{"text_format":"2","workbook":"xlsx","n_sheets":1,"sheets":["Planilha1"],"not_rendered":{"charts":0,"images":0,"macros":0,"external_links":1,"defined_names":1,"comments":0,"pivot_tables":0},"unopened":[],"bounds":{"document_bytes":16777216,"sheet_cells":100000,"run_cost":"one","rows_first":2000,"rows_last":500,"rows_between":2000,"halvings":0,"cell_chars":16384,"cell_head_chars":4096},"cells_cut":0,"cells_raw":0,"read":"whole","date_system":"1900"}

{"sheet":"Planilha1","index":0,"n_rows":221,"n_cols":21,"rows_kept":221,"cut":false,"hidden":false,"merged":[[0,1,0,10],[1,1,1,4],[1,5,1,10],[2,1,2,10],[3,1,3,8],[3,9,3,10],[4,1,4,8],[8,8,8,10],[203,1,203,9],[8,1,9,1],[8,2,9,2],[8,3,9,3],[8,4,9,4],[8,5,9,5],[8,6,9,6],[8,7,9,7],[5,1,6,5]]}
[]
[{"$nulls":5},"MINISTÉRIO DO DESENVOLVIMETNO REGIONAL\nCOMPANHIA DE DESENVOLVIMENTO DOS VALES DO SÃO FRANCISCO E DO PARNAÍBA\n3ª Superintendência Regional"]
[null,"EXECUÇÃO DOS SERVIÇOS RELATIVOS A IMPLANTAÇÃO DE CENTRO DE REPRODUÇÃO E MELHORAMENTO GENETICO DE CAPRINOS E OVINOS EM DIVERSOS MUNICÍPIOS, NO ESTADO DE PERNAMBUCO"]
[null,"SERTÃO DO PAJEÚ - ITAPARICA - SÃO FRANCISCO/PERNAMBUCO - ÁREA DE ATUAÇÃO DE 3 SR",{"$nulls":7},"AGOSTO DE 2021"]
[null,"PLANILHA ORÇAMENTÁRIA DE SERVIÇOS E MATERIAIS",{"$nulls":7},"VALOR R$",{"$f":"K204","v":2616232.32}]
[null,"                                        TABELAS DE REFERÊNCIA (SEM DESONERAÇÃO): ",{"$nulls":4},"QUANT","CODEVASF","FEV/2020","ORSE","JUN/2021"]
[{"$nulls":6},6,"SEINFRA:","27","SINAPI:","JUL/2021"]
[{"$nulls":6},"BDI:","SERVIÇOS:",{"$f":"'[1]BDI''s'!G31","v":0.235},"MATERIAIS:",{"$f":"'[1]BDI''s'!G63","v":0.1143}]
[null,"ITEM","TIPO","FONTE","CÓDIGO","DISCRIMINAÇÃO DOS SERVIÇOS","UNID.","QUANT.","PREÇO (R$)"]
[{"$nulls":8},"SEM BDI","COM BDI","TOTAL"]
[null,1,"INSTALAÇÕES PRELIMINARES E CANTEIRO DE OBRAS",{"$nulls":7},{"$f":"SUM(K12:K19)","v":255726.88}]
[null,"1.1","SERVIÇO","SEINFRA","C1937",{"$f":"IF(C12=\"SERVIÇO\",IF(D12=\"SINAPI\",VLOOKUP(E12,'[1]SERVIÇOS SINAPI'!$A:$D,2,0),IF(D12=\"ORSE\",VLOOKUP(E12,'[1]SERVIÇOS ORSE'!$A:$D,2,0),IF(D12=\"SEINFRA\",VLOOKUP(E12,'[1]SERVIÇOS SEINFRA'!$A:$D,2,0)))),IF(C12=\"INSUMO\",IF(D12=\"SINAPI\",VLOOKUP(E12,'[1]INSUMOS SINAPI'!$A:$D,2,0),IF(D12=\"ORSE\",VLOOKUP(E12,'[1]INSUMOS ORSE'!$A:$D,2,0),IF(D12=\"SEINFRA\",VLOOKUP(E12,'[1]INSUMOS SEINFRA'!$A:$D,2,0),)))))","v":"PLACAS PADRÃO DE OBRA"},{"$f":"IF(C12=\"SERVIÇO\",IF(D12=\"SINAPI\",VLOOKUP(E12,'[1]SERVIÇOS SINAPI'!$A:$D,3,0),IF(D12=\"ORSE\",VLOOKUP(E12,'[1]SERVIÇOS ORSE'!$A:$D,3,0),IF(D12=\"SEINFRA\",VLOOKUP(E12,'[1]SERVIÇOS SEINFRA'!$A:$D,3,0)))),IF(C12=\"INSUMO\",IF(D12=\"SINAPI\",VLOOKUP(E12,'[1]INSUMOS SINAPI'!$A:$D,3,0),IF(D12=\"ORSE\",VLOOKUP(E12,'[1]INSUMOS ORSE'!$A:$D,3,0),IF(D12=\"SEINFRA\",VLOOKUP(E12,'[1]INSUMOS SEINFRA'!$A:$D,3,0),)))))","v":"M²"},{"$f":"12*$G$7","v":72},{"$f":"IF(C12=\"SERVIÇO\",IF(D12=\"SINAPI\",VLOOKUP(E12,'[1]SERVIÇOS SINAPI'!$A:$D,4,0),IF(D12=\"ORSE\",VLOOKUP(E12,'[1]SERVIÇOS ORSE'!$A:$D,4,0),IF(D12=\"SEINFRA\",VLOOKUP(E12,'[1]SERVIÇOS SEINFRA'!$A:$D,4,0)))),IF(C12=\"INSUMO\",IF(D12=\"SINAPI\",VLOOKUP(E12,'[1]INSUMOS SINAPI'!$A:$D,4,0),IF(D12=\"ORSE\",VLOOKUP(E12,'[1]INSUMOS ORSE'!$A:$D,4,0),IF(D12=\"SEINFRA\",VLOOKUP(E12,'[1]INSUMOS SEINFRA'!$A:$D,4,0),)))))","v":154.65},{"$f":"IF(C12=\"SERVIÇO\",I12*(1+$I$8),IF(C12=\"INSUMO\",(I12*(1+$K$8))))","v":190.99},{"$f":"J12*H12","v":13751.28},6]
[null,"1.2","SERVIÇO","ORSE",11986,{"$f":"IF(C13=\"SERVIÇO\",IF(D13=\"SINAPI\",VLOOKUP(E13,'[1]SERVIÇOS SINAPI'!$A:$D,2,0),IF(D13=\"ORSE\",VLOOKUP(E13,'[1]SERVIÇOS ORSE'!$A:$D,2,0),IF(D13=\"SEINFRA\",VLOOKUP(E13,'[1]SERVIÇOS SEINFRA'!$A:$D,2,0)))),IF(C13=\"INSUMO\",IF(D13=\"SINAPI\",VLOOKUP(E13,'[1]INSUMOS SINAPI'!$A:$D,2,0),IF(D13=\"ORSE\",VLOOKUP(E13,'[1]INSUMOS ORSE'!$A:$D,2,0),IF(D13=\"SEINFRA\",VLOOKUP(E13,'[1]INSUMOS SEINFRA'!$A:$D,2,0),)))))","v":"PLACA DE INAUGURAÇÃO EM ALUMÍNIO COM ACRILICO, 80X60CM,COM LOGOMARCA E MOLDUR A"},{"$f":"IF(C13=\"SERVIÇO\",IF(D13=\"SINAPI\",VLOOKUP(E13,'[1]SERVIÇOS SINAPI'!$A:$D,3,0),IF(D13=\"ORSE\",VLOOKUP(E13,'[1]SERVIÇOS ORSE'!$A:$D,3,0),IF(D13=\"SEINFRA\",VLOOKUP(E13,'[1]SERVIÇOS SEINFRA'!$A:$D,3,0)))),IF(C13=\"INSUMO\",IF(D13=\"SINAPI\",VLOOKUP(E13,'[1]INSUMOS SINAPI'!$A:$D,3,0),IF(D13=\"ORSE\",VLOOKUP(E13,'[1]INSUMOS ORSE'!$A:$D,3,0),IF(D13=\"SEINFRA\",VLOOKUP(E13,'[1]INSUMOS SEINFRA'!$A:$D,3,0),)))))","v":"UN"},{"$f":"1*$G$7","v":6},{"$f":"IF(C13=\"SERVIÇO\",IF(D13=\"SINAPI\",VLOOKUP(E13,'[1]SERVIÇOS SINAPI'!$A:$D,4,0),IF(D13=\"ORSE\",VLOOKUP(E13,'[1]SERVIÇOS ORSE'!$A:$D,4,0),IF(D13=\"SEINFRA\",VLOOKUP(E13,'[1]SERVIÇOS SEINFRA'!$A:$D,4,0)))),IF(C13=\"INSUMO\",IF(D13=\"SINAPI\",VLOOKUP(E13,'[1]INSUMOS SINAPI'!$A:$D,4,0),IF(D13=\"ORSE\",VLOOKUP(E13,'[1]INSUMOS ORSE'!$A:$D,4,0),IF(D13=\"SEINFRA\",VLOOKUP(E13,'[1]INSUMOS SEINFRA'!$A:$D,4,0),)))))","v":1137.91},1405.32,8431.92,5]
[null,"1.3","SERVIÇO","CODEVASF",{"$f":"[1]Composições!I3","v":"COMPO. 1"},"MOBILIZAÇÃO DE EQUIPAMENTOS, MATERIAIS E PESSOAL",{"$f":"[1]Composições!$I$2","v":"UN "},6,{"$f":"[1]Composições!$I$14","v":1830.93},2261.2,13567.2,6]
[null,"1.4","SERVIÇO","CODEVASF",{"$f":"[1]Composições!I17","v":"COMPO. 2"},"DESMOBILIZAÇÃO DE EQUIPAMENTOS, MATERIAIS E PESSOAL",{"$f":"[1]Composições!$I$16","v":"UN "},{"$f":"1","v":1},{"$f":"[1]Composições!I28","v":1830.93},2261.2,2261.2,6]
[null,"1.5","SERVIÇO","CODEVASF",{"$f":"[1]Composições!I31","v":"COMPO. 3"},"LOCAÇÃO, ADMINISTRAÇÃO E MANUTENÇÃO DE CANTEIRO DE OBRA",{"$f":"[1]Composições!$I$30","v":"UN "},1,{"$f":"[1]Composições!I53","v":84133.8},103905.24,103905.24,6]
[null,"1.6","SERVIÇO","CODEVASF","B11","CAMINHONETE CABINE DUPLA, TRAÇÃO 4X4, ZERO QUILOMETRO, C/4 PORTAS, TRAVAS ELÉTRICAS, SOM AUTOMOTIVO,EQUIP.C/AR-COND.,QUE FICARÁ À DISP.DA FISC.,INCL.DESP.C/SEG.TOTAL, EMPLAC.,REVIS.CONS.,REP.,COMB.E LUBR.,LAV.,ETC ",{"$f":"[1]Composições!$I$2","v":"UN "},{"$f":"2*$G$7","v":12},{"$f":"'[1]CPU Veículos'!D43","v":6475.46},7997.19,95966.28,7]
[null,"1.7","SERVIÇO","CODEVASF",{"$f":"[1]Composições!I56","v":"COMPO. 4"},"ELABORAÇÃO/REVISÃO DO PROJETO ESTRUTURAL DO UNIDADE","UN ",6,{"$f":"[1]Composições!I66","v":2084.32},2574.14,15444.84,6]
[null,"1.8","SERVIÇO","CODEVASF",{"$f":"[1]Composições!I69","v":"COMPO. 5"},"PLACA DE IDENTIFICAÇÃO DAS FRENTES DE SERVIÇOS","UN ",6,{"$f":"[1]Composições!$I$84","v":323.74},399.82,2398.92,6]
[null,2,"UNIDADE DE MELHORAMENTO GENETICO",{"$nulls":7},{"$f":"K21+K69+K92+K102+K107+K138+K152+K173+K185+K197","v":2360505.44}]
[null,"2.1","CONSTRUÇÃO DA UNIDADE DE MELHORAMENTO GENETICO",{"$nulls":7},{"$f":"SUM(K22:K68)","v":1739755.05}]
[null,"2.1.1","SERVIÇO","SINAPI",98525,{"$f":"IF(C22=\"SERVIÇO\",IF(D22=\"SINAPI\",VLOOKUP(E22,'[1]SERVIÇOS SINAPI'!$A:$D,2,0),IF(D22=\"ORSE\",VLOOKUP(E22,'[1]SERVIÇOS ORSE'!$A:$D,2,0),IF(D22=\"SEINFRA\",VLOOKUP(E22,'[1]SERVIÇOS SEINFRA'!$A:$D,2,0)))),IF(C22=\"INSUMO\",IF(D22=\"SINAPI\",VLOOKUP(E22,'[1]INSUMOS SINAPI'!$A:$D,2,0),IF(D22=\"ORSE\",VLOOKUP(E22,'[1]INSUMOS ORSE'!$A:$D,2,0),IF(D22=\"SEINFRA\",VLOOKUP(E22,'[1]INSUMOS SEINFRA'!$A:$D,2,0),)))))","v":"LIMPEZA MECANIZADA DE CAMADA VEGETAL, VEGETAÇÃO E PEQUENAS ÁRVORES (DIÂMETRO DE TRONCO MENOR QUE 0,20 M), COM TRATOR DE ESTEIRAS.AF_05/2018"},{"$f":"IF(C22=\"SERVIÇO\",IF(D22=\"SINAPI\",VLOOKUP(E22,'[1]SERVIÇOS SINAPI'!$A:$D,3,0),IF(D22=\"ORSE\",VLOOKUP(E22,'[1]SERVIÇOS ORSE'!$A:$D,3,0),IF(D22=\"SEINFRA\",VLOOKUP(E22,'[1]SERVIÇOS SEINFRA'!$A:$D,3,0)))),IF(C22=\"INSUMO\",IF(D22=\"SINAPI\",VLOOKUP(E22,'[1]INSUMOS SINAPI'!$A:$D,3,0),IF(D22=\"ORSE\",VLOOKUP(E22,'[1]INSUMOS ORSE'!$A:$D,3,0),IF(D22=\"SEINFRA\",VLOOKUP(E22,'[1]INSUMOS SEINFRA'!$A:$D,3,0),)))))","v":"M²"},{"$f":"'[1]Memória de Cálculo'!$L$13*$G$7","v":3072.3},{"$f":"IF(C22=\"SERVIÇO\",IF(D22=\"SINAPI\",VLOOKUP(E22,'[1]SERVIÇOS SINAPI'!$A:$D,4,0),IF(D22=\"ORSE\",VLOOKUP(E22,'[1]SERVIÇOS ORSE'!$A:$D,4,0),IF(D22=\"SEINFRA\",VLOOKUP(E22,'[1]SERVIÇOS SEINFRA'!$A:$D,4,0)))),IF(C22=\"INSUMO\",IF(D22=\"SINAPI\",VLOOKUP(E22,'[1]INSUMOS SINAPI'!$A:$D,4,0),IF(D22=\"ORSE\",VLOOKUP(E22,'[1]INSUMOS ORSE'!$A:$D,4,0),IF(D22=\"SEINFRA\",VLOOKUP(E22,'[1]INSUMOS SEINFRA'!$A:$D,4,0),)))))","v":0.34},{"$f":"IF(C22=\"SERVIÇO\",I22*(1+$I$8),IF(C22=\"INSUMO\",(I22*(1+$K$8))))","v":0.42},{"$f":"J22*H22","v":1290.37},1]
[null,"2.1.2","SERVIÇO","SEINFRA","C1630",{"$f":"IF(C23=\"SERVIÇO\",IF(D23=\"SINAPI\",VLOOKUP(E23,'[1]SERVIÇOS SINAPI'!$A:$D,2,0),IF(D23=\"ORSE\",VLOOKUP(E23,'[1]SERVIÇOS ORSE'!$A:$D,2,0),IF(D23=\"SEINFRA\",VLOOKUP(E23,'[1]SERVIÇOS SEINFRA'!$A:$D,2,0)))),IF(C23=\"INSUMO\",IF(D23=\"SINAPI\",VLOOKUP(E23,'[1]INSUMOS SINAPI'!$A:$D,2,0),IF(D23=\"ORSE\",VLOOKUP(E23,'[1]INSUMOS ORSE'!$A:$D,2,0),IF(D23=\"SEINFRA\",VLOOKUP(E23,'[1]INSUMOS SEINFRA'!$A:$D,2,0),)))))","v":"LOCAÇÃO DA OBRA - EXECUÇÃO DE GABARITO"},{"$f":"IF(C23=\"SERVIÇO\",IF(D23=\"SINAPI\",VLOOKUP(E23,'[1]SERVIÇOS SINAPI'!$A:$D,3,0),IF(D23=\"ORSE\",VLOOKUP(E23,'[1]SERVIÇOS ORSE'!$A:$D,3,0),IF(D23=\"SEINFRA\",VLOOKUP(E23,'[1]SERVIÇOS SEINFRA'!$A:$D,3,0)))),IF(C23=\"INSUMO\",IF(D23=\"SINAPI\",VLOOKUP(E23,'[1]INSUMOS SINAPI'!$A:$D,3,0),IF(D23=\"ORSE\",VLOOKUP(E23,'[1]INSUMOS ORSE'!$A:$D,3,0),IF(D23=\"SEINFRA\",VLOOKUP(E23,'[1]INSUMOS SEINFRA'!$A:$D,3,0),)))))","v":"M²"},{"$f":"'[1]Memória de Cálculo'!$L$45*$G$7","v":2091},{"$f":"IF(C23=\"SERVIÇO\",IF(D23=\"SINAPI\",VLOOKUP(E23,'[1]SERVIÇOS SINAPI'!$A:$D,4,0),IF(D23=\"ORSE\",VLOOKUP(E23,'[1]SERVIÇOS ORSE'!$A:$D,4,0),IF(D23=\"SEINFRA\",VLOOKUP(E23,'[1]SERVIÇOS SEINFRA'!$A:$D,4,0)))),IF(C23=\"INSUMO\",IF(D23=\"SINAPI\",VLOOKUP(E23,'[1]INSUMOS SINAPI'!$A:$D,4,0),IF(D23=\"ORSE\",VLOOKUP(E23,'[1]INSUMOS ORSE'!$A:$D,4,0),IF(D23=\"SEINFRA\",VLOOKUP(E23,'[1]INSUMOS SEINFRA'!$A:$D,4,0),)))))","v":6.6},8.15,17041.65,1]
[null,"2.1.3","SERVIÇO","SINAPI",93358,{"$f":"IF(C24=\"SERVIÇO\",IF(D24=\"SINAPI\",VLOOKUP(E24,'[1]SERVIÇOS SINAPI'!$A:$D,2,0),IF(D24=\"ORSE\",VLOOKUP(E24,'[1]SERVIÇOS ORSE'!$A:$D,2,0),IF(D24=\"SEINFRA\",VLOOKUP(E24,'[1]SERVIÇOS SEINFRA'!$A:$D,2,0)))),IF(C24=\"INSUMO\",IF(D24=\"SINAPI\",VLOOKUP(E24,'[1]INSUMOS SINAPI'!$A:$D,2,0),IF(D24=\"ORSE\",VLOOKUP(E24,'[1]INSUMOS ORSE'!$A:$D,2,0),IF(D24=\"SEINFRA\",VLOOKUP(E24,'[1]INSUMOS SEINFRA'!$A:$D,2,0),)))))","v":"ESCAVAÇÃO MANUAL DE VALA COM PROFUNDIDADE MENOR OU IGUAL A 1,30 M. AF_02/2021"},{"$f":"IF(C24=\"SERVIÇO\",IF(D24=\"SINAPI\",VLOOKUP(E24,'[1]SERVIÇOS SINAPI'!$A:$D,3,0),IF(D24=\"ORSE\",VLOOKUP(E24,'[1]SERVIÇOS ORSE'!$A:$D,3,0),IF(D24=\"SEINFRA\",VLOOKUP(E24,'[1]SERVIÇOS SEINFRA'!$A:$D,3,0)))),IF(C24=\"INSUMO\",IF(D24=\"SINAPI\",VLOOKUP(E24,'[1]INSUMOS SINAPI'!$A:$D,3,0),IF(D24=\"ORSE\",VLOOKUP(E24,'[1]INSUMOS ORSE'!$A:$D,3,0),IF(D24=\"SEINFRA\",VLOOKUP(E24,'[1]INSUMOS SEINFRA'!$A:$D,3,0),)))))","v":"M³"},{"$f":"'[1]Memória de Cálculo'!$L$49*$G$7","v":472.02},{"$f":"IF(C24=\"SERVIÇO\",IF(D24=\"SINAPI\",VLOOKUP(E24,'[1]SERVIÇOS SINAPI'!$A:$D,4,0),IF(D24=\"ORSE\",VLOOKUP(E24,'[1]SERVIÇOS ORSE'!$A:$D,4,0),IF(D24=\"SEINFRA\",VLOOKUP(E24,'[1]SERVIÇOS SEINFRA'!$A:$D,4,0)))),IF(C24=\"INSUMO\",IF(D24=\"SINAPI\",VLOOKUP(E24,'[1]INSUMOS SINAPI'!$A:$D,4,0),IF(D24=\"ORSE\",VLOOKUP(E24,'[1]INSUMOS ORSE'!$A:$D,4,0),IF(D24=\"SEINFRA\",VLOOKUP(E24,'[1]INSUMOS SEINFRA'!$A:$D,4,0),)))))","v":68.51},84.61,39937.61,1]
[null,"2.1.4","SERVIÇO","SINAPI",95240,{"$f":"IF(C25=\"SERVIÇO\",IF(D25=\"SINAPI\",VLOOKUP(E25,'[1]SERVIÇOS SINAPI'!$A:$D,2,0),IF(D25=\"ORSE\",VLOOKUP(E25,'[1]SERVIÇOS ORSE'!$A:$D,2,0),IF(D25=\"SEINFRA\",VLOOKUP(E25,'[1]SERVIÇOS SEINFRA'!$A:$D,2,0)))),IF(C25=\"INSUMO\",IF(D25=\"SINAPI\",VLOOKUP(E25,'[1]INSUMOS SINAPI'!$A:$D,2,0),IF(D25=\"ORSE\",VLOOKUP(E25,'[1]INSUMOS ORSE'!$A:$D,2,0),IF(D25=\"SEINFRA\",VLOOKUP(E25,'[1]INSUMOS SEINFRA'!$A:$D,2,0),)))))","v":"LASTRO DE CONCRETO MAGRO, APLICADO EM PISOS, LAJES SOBRE SOLO OU RADIERS, ESPESSURA DE 3 CM. AF_07/2016"},{"$f":"IF(C25=\"SERVIÇO\",IF(D25=\"SINAPI\",VLOOKUP(E25,'[1]SERVIÇOS SINAPI'!$A:$D,3,0),IF(D25=\"ORSE\",VLOOKUP(E25,'[1]SERVIÇOS ORSE'!$A:$D,3,0),IF(D25=\"SEINFRA\",VLOOKUP(E25,'[1]SERVIÇOS SEINFRA'!$A:$D,3,0)))),IF(C25=\"INSUMO\",IF(D25=\"SINAPI\",VLOOKUP(E25,'[1]INSUMOS SINAPI'!$A:$D,3,0),IF(D25=\"ORSE\",VLOOKUP(E25,'[1]INSUMOS ORSE'!$A:$D,3,0),IF(D25=\"SEINFRA\",VLOOKUP(E25,'[1]INSUMOS SEINFRA'!$A:$D,3,0),)))))","v":"M²"},{"$f":"'[1]Memória de Cálculo'!$L$53*$G$7","v":910.26},{"$f":"IF(C25=\"SERVIÇO\",IF(D25=\"SINAPI\",VLOOKUP(E25,'[1]SERVIÇOS SINAPI'!$A:$D,4,0),IF(D25=\"ORSE\",VLOOKUP(E25,'[1]SERVIÇOS ORSE'!$A:$D,4,0),IF(D25=\"SEINFRA\",VLOOKUP(E25,'[1]SERVIÇOS SEINFRA'!$A:$D,4,0)))),IF(C25=\"INSUMO\",IF(D25=\"SINAPI\",VLOOKUP(E25,'[1]INSUMOS SINAPI'!$A:$D,4,0),IF(D25=\"ORSE\",VLOOKUP(E25,'[1]INSUMOS ORSE'!$A:$D,4,0),IF(D25=\"SEINFRA\",VLOOKUP(E25,'[1]INSUMOS SEINFRA'!$A:$D,4,0),)))))","v":14.97},18.49,16830.71,3]
[null,"2.1.5","SERVIÇO","ORSE",93,{"$f":"IF(C26=\"SERVIÇO\",IF(D26=\"SINAPI\",VLOOKUP(E26,'[1]SERVIÇOS SINAPI'!$A:$D,2,0),IF(D26=\"ORSE\",VLOOKUP(E26,'[1]SERVIÇOS ORSE'!$A:$D,2,0),IF(D26=\"SEINFRA\",VLOOKUP(E26,'[1]SERVIÇOS SEINFRA'!$A:$D,2,0)))),IF(C26=\"INSUMO\",IF(D26=\"SINAPI\",VLOOKUP(E26,'[1]INSUMOS SINAPI'!$A:$D,2,0),IF(D26=\"ORSE\",VLOOKUP(E26,'[1]INSUMOS ORSE'!$A:$D,2,0),IF(D26=\"SEINFRA\",VLOOKUP(E26,'[1]INSUMOS SEINFRA'!$A:$D,2,0),)))))","v":"ALVENARIA PEDRA GRANITICA ARGAMASSADA TRAÇO (1:5) - 1 SACO CIMENTO 50KG / 5 P ADIOLAS AREIA DIM. 0,35Z0,45X0,23M - CONFECÇÃO MECÂNICA E TRANSPORTE"},{"$f":"IF(C26=\"SERVIÇO\",IF(D26=\"SINAPI\",VLOOKUP(E26,'[1]SERVIÇOS SINAPI'!$A:$D,3,0),IF(D26=\"ORSE\",VLOOKUP(E26,'[1]SERVIÇOS ORSE'!$A:$D,3,0),IF(D26=\"SEINFRA\",VLOOKUP(E26,'[1]SERVIÇOS SEINFRA'!$A:$D,3,0)))),IF(C26=\"INSUMO\",IF(D26=\"SINAPI\",VLOOKUP(E26,'[1]INSUMOS SINAPI'!$A:$D,3,0),IF(D26=\"ORSE\",VLOOKUP(E26,'[1]INSUMOS ORSE'!$A:$D,3,0),IF(D26=\"SEINFRA\",VLOOKUP(E26,'[1]INSUMOS SEINFRA'!$A:$D,3,0),)))))","v":"M³"},{"$f":"'[1]Memória de Cálculo'!$L$55*$G$7","v":154.98},{"$f":"IF(C26=\"SERVIÇO\",IF(D26=\"SINAPI\",VLOOKUP(E26,'[1]SERVIÇOS SINAPI'!$A:$D,4,0),IF(D26=\"ORSE\",VLOOKUP(E26,'[1]SERVIÇOS ORSE'!$A:$D,4,0),IF(D26=\"SEINFRA\",VLOOKUP(E26,'[1]SERVIÇOS SEINFRA'!$A:$D,4,0)))),IF(C26=\"INSUMO\",IF(D26=\"SINAPI\",VLOOKUP(E26,'[1]INSUMOS SINAPI'!$A:$D,4,0),IF(D26=\"ORSE\",VLOOKUP(E26,'[1]INSUMOS ORSE'!$A:$D,4,0),IF(D26=\"SEINFRA\",VLOOKUP(E26,'[1]INSUMOS SEINFRA'!$A:$D,4,0),)))))","v":386.29},477.07,73936.31,2]
[null,"2.1.6","SERVIÇO","SINAPI",87503,{"$f":"IF(C27=\"SERVIÇO\",IF(D27=\"SINAPI\",VLOOKUP(E27,'[1]SERVIÇOS SINAPI'!$A:$D,2,0),IF(D27=\"ORSE\",VLOOKUP(E27,'[1]SERVIÇOS ORSE'!$A:$D,2,0),IF(D27=\"SEINFRA\",VLOOKUP(E27,'[1]SERVIÇOS SEINFRA'!$A:$D,2,0)))),IF(C27=\"INSUMO\",IF(D27=\"SINAPI\",VLOOKUP(E27,'[1]INSUMOS SINAPI'!$A:$D,2,0),IF(D27=\"ORSE\",VLOOKUP(E27,'[1]INSUMOS ORSE'!$A:$D,2,0),IF(D27=\"SEINFRA\",VLOOKUP(E27,'[1]INSUMOS SEINFRA'!$A:$D,2,0),)))))","v":"ALVENARIA DE VEDAÇÃO DE BLOCOS CERÂMICOS FURADOS NA HORIZONTAL DE 9X19X19CM (ESPESSURA 9CM) DE PAREDES COM ÁREA LÍQUIDA MAIOR OU IGUAL A 6M² SEM VÃOS E ARGAMASSA DE ASSENTAMENTO COM PREPARO EM BETONEIRA. AF_06/2014"},{"$f":"IF(C27=\"SERVIÇO\",IF(D27=\"SINAPI\",VLOOKUP(E27,'[1]SERVIÇOS SINAPI'!$A:$D,3,0),IF(D27=\"ORSE\",VLOOKUP(E27,'[1]SERVIÇOS ORSE'!$A:$D,3,0),IF(D27=\"SEINFRA\",VLOOKUP(E27,'[1]SERVIÇOS SEINFRA'!$A:$D,3,0)))),IF(C27=\"INSUMO\",IF(D27=\"SINAPI\",VLOOKUP(E27,'[1]INSUMOS SINAPI'!$A:$D,3,0),IF(D27=\"ORSE\",VLOOKUP(E27,'[1]INSUMOS ORSE'!$A:$D,3,0),IF(D27=\"SEINFRA\",VLOOKUP(E27,'[1]INSUMOS SEINFRA'!$A:$D,3,0),)))))","v":"M²"},{"$f":"'[1]Memória de Cálculo'!$L$58*$G$7","v":198.48},{"$f":"IF(C27=\"SERVIÇO\",IF(D27=\"SINAPI\",VLOOKUP(E27,'[1]SERVIÇOS SINAPI'!$A:$D,4,0),IF(D27=\"ORSE\",VLOOKUP(E27,'[1]SERVIÇOS ORSE'!$A:$D,4,0),IF(D27=\"SEINFRA\",VLOOKUP(E27,'[1]SERVIÇOS SEINFRA'!$A:$D,4,0)))),IF(C27=\"INSUMO\",IF(D27=\"SINAPI\",VLOOKUP(E27,'[1]INSUMOS SINAPI'!$A:$D,4,0),IF(D27=\"ORSE\",VLOOKUP(E27,'[1]INSUMOS ORSE'!$A:$D,4,0),IF(D27=\"SEINFRA\",VLOOKUP(E27,'[1]INSUMOS SEINFRA'!$A:$D,4,0),)))))","v":65.15},80.46,15969.7,2]
[null,"2.1.7","SERVIÇO","SINAPI",101209,{"$f":"IF(C28=\"SERVIÇO\",IF(D28=\"SINAPI\",VLOOKUP(E28,'[1]SERVIÇOS SINAPI'!$A:$D,2,0),IF(D28=\"ORSE\",VLOOKUP(E28,'[1]SERVIÇOS ORSE'!$A:$D,2,0),IF(D28=\"SEINFRA\",VLOOKUP(E28,'[1]SERVIÇOS SEINFRA'!$A:$D,2,0)))),IF(C28=\"INSUMO\",IF(D28=\"SINAPI\",VLOOKUP(E28,'[1]INSUMOS SINAPI'!$A:$D,2,0),IF(D28=\"ORSE\",VLOOKUP(E28,'[1]INSUMOS ORSE'!$A:$D,2,0),IF(D28=\"SEINFRA\",VLOOKUP(E28,'[1]INSUMOS SEINFRA'!$A:$D,2,0),)))))","v":"ESCAVAÇÃO VERTICAL A CÉU ABERTO, EM OBRAS DE EDIFICAÇÃO, INCLUINDO CARGA, DESCARGA E TRANSPORTE, EM SOLO DE 1ª CATEGORIA COM ESCAVADEIRA HIDRÁULICA (CAÇAMBA: 1,2 M³ / 155 HP), FROTA DE 3 CAMINHÕES BASCULANTES DE 18 M³, DMT ATÉ 1 KM E VELOCIDADE MÉDIA 14KM/H. AF_05/2020"},{"$f":"IF(C28=\"SERVIÇO\",IF(D28=\"SINAPI\",VLOOKUP(E28,'[1]SERVIÇOS SINAPI'!$A:$D,3,0),IF(D28=\"ORSE\",VLOOKUP(E28,'[1]SERVIÇOS ORSE'!$A:$D,3,0),IF(D28=\"SEINFRA\",VLOOKUP(E28,'[1]SERVIÇOS SEINFRA'!$A:$D,3,0)))),IF(C28=\"INSUMO\",IF(D28=\"SINAPI\",VLOOKUP(E28,'[1]INSUMOS SINAPI'!$A:$D,3,0),IF(D28=\"ORSE\",VLOOKUP(E28,'[1]INSUMOS ORSE'!$A:$D,3,0),IF(D28=\"SEINFRA\",VLOOKUP(E28,'[1]INSUMOS SEINFRA'!$A:$D,3,0),)))))","v":"M³"},{"$f":"'[1]Memória de Cálculo'!$L$41*$G$7","v":209.04},{"$f":"IF(C28=\"SERVIÇO\",IF(D28=\"SINAPI\",VLOOKUP(E28,'[1]SERVIÇOS SINAPI'!$A:$D,4,0),IF(D28=\"ORSE\",VLOOKUP(E28,'[1]SERVIÇOS ORSE'!$A:$D,4,0),IF(D28=\"SEINFRA\",VLOOKUP(E28,'[1]SERVIÇOS SEINFRA'!$A:$D,4,0)))),IF(C28=\"INSUMO\",IF(D28=\"SINAPI\",VLOOKUP(E28,'[1]INSUMOS SINAPI'!$A:$D,4,0),IF(D28=\"ORSE\",VLOOKUP(E28,'[1]INSUMOS ORSE'!$A:$D,4,0),IF(D28=\"SEINFRA\",VLOOKUP(E28,'[1]INSUMOS SEINFRA'!$A:$D,4,0),)))))","v":7.67},9.47,1979.61,1]
[null,"2.1.8","SERVIÇO","SINAPI",96385,{"$f":"IF(C29=\"SERVIÇO\",IF(D29=\"SINAPI\",VLOOKUP(E29,'[1]SERVIÇOS SINAPI'!$A:$D,2,0),IF(D29=\"ORSE\",VLOOKUP(E29,'[1]SERVIÇOS ORSE'!$A:$D,2,0),IF(D29=\"SEINFRA\",VLOOKUP(E29,'[1]SERVIÇOS SEINFRA'!$A:$D,2,0)))),IF(C29=\"INSUMO\",IF(D29=\"SINAPI\",VLOOKUP(E29,'[1]INSUMOS SINAPI'!$A:$D,2,0),IF(D29=\"ORSE\",VLOOKUP(E29,'[1]INSUMOS ORSE'!$A:$D,2,0),IF(D29=\"SEINFRA\",VLOOKUP(E29,'[1]INSUMOS SEINFRA'!$A:$D,2,0),)))))","v":"EXECUÇÃO E COMPACTAÇÃO DE ATERRO COM SOLO PREDOMINANTEMENTE ARGILOSO - EXCLUSIVE SOLO, ESCAVAÇÃO, CARGA E TRANSPORTE. AF_11/2019"},{"$f":"IF(C29=\"SERVIÇO\",IF(D29=\"SINAPI\",VLOOKUP(E29,'[1]SERVIÇOS SINAPI'!$A:$D,3,0),IF(D29=\"ORSE\",VLOOKUP(E29,'[1]SERVIÇOS ORSE'!$A:$D,3,0),IF(D29=\"SEINFRA\",VLOOKUP(E29,'[1]SERVIÇOS SEINFRA'!$A:$D,3,0)))),IF(C29=\"INSUMO\",IF(D29=\"SINAPI\",VLOOKUP(E29,'[1]INSUMOS SINAPI'!$A:$D,3,0),IF(D29=\"ORSE\",VLOOKUP(E29,'[1]INSUMOS ORSE'!$A:$D,3,0),IF(D29=\"SEINFRA\",VLOOKUP(E29,'[1]INSUMOS SEINFRA'!$A:$D,3,0),)))))","v":"M³"},{"$f":"'[1]Memória de Cálculo'!$L$26*$G$7","v":681.06},{"$f":"IF(C29=\"SERVIÇO\",IF(D29=\"SINAPI\",VLOOKUP(E29,'[1]SERVIÇOS SINAPI'!$A:$D,4,0),IF(D29=\"ORSE\",VLOOKUP(E29,'[1]SERVIÇOS ORSE'!$A:$D,4,0),IF(D29=\"SEINFRA\",VLOOKUP(E29,'[1]SERVIÇOS SEINFRA'!$A:$D,4,0)))),IF(C29=\"INSUMO\",IF(D29=\"SINAPI\",VLOOKUP(E29,'[1]INSUMOS SINAPI'!$A:$D,4,0),IF(D29=\"ORSE\",VLOOKUP(E29,'[1]INSUMOS ORSE'!$A:$D,4,0),IF(D29=\"SEINFRA\",VLOOKUP(E29,'[1]INSUMOS SEINFRA'!$A:$D,4,0),)))))","v":9.76},12.05,8206.77,1]
[null,"2.1.9","SERVIÇO","orse",8175,{"$f":"IF(C30=\"SERVIÇO\",IF(D30=\"SINAPI\",VLOOKUP(E30,'[1]SERVIÇOS SINAPI'!$A:$D,2,0),IF(D30=\"ORSE\",VLOOKUP(E30,'[1]SERVIÇOS ORSE'!$A:$D,2,0),IF(D30=\"SEINFRA\",VLOOKUP(E30,'[1]SERVIÇOS SEINFRA'!$A:$D,2,0)))),IF(C30=\"INSUMO\",IF(D30=\"SINAPI\",VLOOKUP(E30,'[1]INSUMOS SINAPI'!$A:$D,2,0),IF(D30=\"ORSE\",VLOOKUP(E30,'[1]INSUMOS ORSE'!$A:$D,2,0),IF(D30=\"SEINFRA\",VLOOKUP(E30,'[1]INSUMOS SEINFRA'!$A:$D,2,0),)))))","v":"CINTAS E VERGAS EM BLOCOS DE CONCRETO TIPO \"U\" (CALHA) 14X19X39, PREENCHIDOS  COM CONCRETO ARMADO FCK=15 MPA E TRELIÇA DE FERRO PTG 81 - REV.02"},{"$f":"IF(C30=\"SERVIÇO\",IF(D30=\"SINAPI\",VLOOKUP(E30,'[1]SERVIÇOS SINAPI'!$A:$D,3,0),IF(D30=\"ORSE\",VLOOKUP(E30,'[1]SERVIÇOS ORSE'!$A:$D,3,0),IF(D30=\"SEINFRA\",VLOOKUP(E30,'[1]SERVIÇOS SEINFRA'!$A:$D,3,0)))),IF(C30=\"INSUMO\",IF(D30=\"SINAPI\",VLOOKUP(E30,'[1]INSUMOS SINAPI'!$A:$D,3,0),IF(D30=\"ORSE\",VLOOKUP(E30,'[1]INSUMOS ORSE'!$A:$D,3,0),IF(D30=\"SEINFRA\",VLOOKUP(E30,'[1]INSUMOS SEINFRA'!$A:$D,3,0),)))))","v":"M"},{"$f":"'[1]Memória de Cálculo'!$L$58*$G$7","v":198.48},{"$f":"IF(C30=\"SERVIÇO\",IF(D30=\"SINAPI\",VLOOKUP(E30,'[1]SERVIÇOS SINAPI'!$A:$D,4,0),IF(D30=\"ORSE\",VLOOKUP(E30,'[1]SERVIÇOS ORSE'!$A:$D,4,0),IF(D30=\"SEINFRA\",VLOOKUP(E30,'[1]SERVIÇOS SEINFRA'!$A:$D,4,0)))),IF(C30=\"INSUMO\",IF(D30=\"SINAPI\",VLOOKUP(E30,'[1]INSUMOS SINAPI'!$A:$D,4,0),IF(D30=\"ORSE\",VLOOKUP(E30,'[1]INSUMOS ORSE'!$A:$D,4,0),IF(D30=\"SEINFRA\",VLOOKUP(E30,'[1]INSUMOS SEINFRA'!$A:$D,4,0),)))))","v":50.94},62.91,12486.38,3]
[null,"2.1.10","SERVIÇO","SINAPI",92435,{"$f":"IF(C31=\"SERVIÇO\",IF(D31=\"SINAPI\",VLOOKUP(E31,'[1]SERVIÇOS SINAPI'!$A:$D,2,0),IF(D31=\"ORSE\",VLOOKUP(E31,'[1]SERVIÇOS ORSE'!$A:$D,2,0),IF(D31=\"SEINFRA\",VLOOKUP(E31,'[1]SERVIÇOS SEINFRA'!$A:$D,2,0)))),IF(C31=\"INSUMO\",IF(D31=\"SINAPI\",VLOOKUP(E31,'[1]INSUMOS SINAPI'!$A:$D,2,0),IF(D31=\"ORSE\",VLOOKUP(E31,'[1]INSUMOS ORSE'!$A:$D,2,0),IF(D31=\"SEINFRA\",VLOOKUP(E31,'[1]INSUMOS SEINFRA'!$A:$D,2,0),)))))","v":"MONTAGEM E DESMONTAGEM DE FÔRMA DE PILARES RETANGULARES E ESTRUTURAS SIMILARES, PÉ-DIREITO SIMPLES, EM CHAPA DE MADEIRA COMPENSADA PLASTIFICADA, 12 UTILIZAÇÕES. AF_09/2020"},{"$f":"IF(C31=\"SERVIÇO\",IF(D31=\"SINAPI\",VLOOKUP(E31,'[1]SERVIÇOS SINAPI'!$A:$D,3,0),IF(D31=\"ORSE\",VLOOKUP(E31,'[1]SERVIÇOS ORSE'!$A:$D,3,0),IF(D31=\"SEINFRA\",VLOOKUP(E31,'[1]SERVIÇOS SEINFRA'!$A:$D,3,0)))),IF(C31=\"INSUMO\",IF(D31=\"SINAPI\",VLOOKUP(E31,'[1]INSUMOS SINAPI'!$A:$D,3,0),IF(D31=\"ORSE\",VLOOKUP(E31,'[1]INSUMOS ORSE'!$A:$D,3,0),IF(D31=\"SEINFRA\",VLOOKUP(E31,'[1]INSUMOS SEINFRA'!$A:$D,3,0),)))))","v":"M²"},{"$f":"'[1]Memória de Cálculo'!$L$74*$G$7","v":1985.34},{"$f":"IF(C31=\"SERVIÇO\",IF(D31=\"SINAPI\",VLOOKUP(E31,'[1]SERVIÇOS SINAPI'!$A:$D,4,0),IF(D31=\"ORSE\",VLOOKUP(E31,'[1]SERVIÇOS ORSE'!$A:$D,4,0),IF(D31=\"SEINFRA\",VLOOKUP(E31,'[1]SERVIÇOS SEINFRA'!$A:$D,4,0)))),IF(C31=\"INSUMO\",IF(D31=\"SINAPI\",VLOOKUP(E31,'[1]INSUMOS SINAPI'!$A:$D,4,0),IF(D31=\"ORSE\",VLOOKUP(E31,'[1]INSUMOS ORSE'!$A:$D,4,0),IF(D31=\"SEINFRA\",VLOOKUP(E31,'[1]INSUMOS SEINFRA'!$A:$D,4,0),)))))","v":39.65},48.97,97222.1,2]
[null,"2.1.11","SERVIÇO","SINAPI",94964,{"$f":"IF(C32=\"SERVIÇO\",IF(D32=\"SINAPI\",VLOOKUP(E32,'[1]SERVIÇOS SINAPI'!$A:$D,2,0),IF(D32=\"ORSE\",VLOOKUP(E32,'[1]SERVIÇOS ORSE'!$A:$D,2,0),IF(D32=\"SEINFRA\",VLOOKUP(E32,'[1]SERVIÇOS SEINFRA'!$A:$D,2,0)))),IF(C32=\"INSUMO\",IF(D32=\"SINAPI\",VLOOKUP(E32,'[1]INSUMOS SINAPI'!$A:$D,2,0),IF(D32=\"ORSE\",VLOOKUP(E32,'[1]INSUMOS ORSE'!$A:$D,2,0),IF(D32=\"SEINFRA\",VLOOKUP(E32,'[1]INSUMOS SEINFRA'!$A:$D,2,0),)))))","v":"CONCRETO FCK = 20MPA, TRAÇO 1:2,7:3 (EM MASSA SECA DE CIMENTO/ AREIA MÉDIA/ BRITA 1) - PREPARO MECÂNICO COM BETONEIRA 400 L. AF_05/2021"},{"$f":"IF(C32=\"SERVIÇO\",IF(D32=\"SINAPI\",VLOOKUP(E32,'[1]SERVIÇOS SINAPI'!$A:$D,3,0),IF(D32=\"ORSE\",VLOOKUP(E32,'[1]SERVIÇOS ORSE'!$A:$D,3,0),IF(D32=\"SEINFRA\",VLOOKUP(E32,'[1]SERVIÇOS SEINFRA'!$A:$D,3,0)))),IF(C32=\"INSUMO\",IF(D32=\"SINAPI\",VLOOKUP(E32,'[1]INSUMOS SINAPI'!$A:$D,3,0),IF(D32=\"ORSE\",VLOOKUP(E32,'[1]INSUMOS ORSE'!$A:$D,3,0),IF(D32=\"SEINFRA\",VLOOKUP(E32,'[1]INSUMOS SEINFRA'!$A:$D,3,0),)))))","v":"M³"},{"$f":"'[1]Memória de Cálculo'!$L$94*$G$7","v":136.8},{"$f":"IF(C32=\"SERVIÇO\",IF(D32=\"SINAPI\",VLOOKUP(E32,'[1]SERVIÇOS SINAPI'!$A:$D,4,0),IF(D32=\"ORSE\",VLOOKUP(E32,'[1]SERVIÇOS ORSE'!$A:$D,4,0),IF(D32=\"SEINFRA\",VLOOKUP(E32,'[1]SERVIÇOS SEINFRA'!$A:$D,4,0)))),IF(C32=\"INSUMO\",IF(D32=\"SINAPI\",VLOOKUP(E32,'[1]INSUMOS SINAPI'!$A:$D,4,0),IF(D32=\"ORSE\",VLOOKUP(E32,'[1]INSUMOS ORSE'!$A:$D,4,0),IF(D32=\"SEINFRA\",VLOOKUP(E32,'[1]INSUMOS SEINFRA'!$A:$D,4,0),)))))","v":385.45},476.03,65120.9,3]
[null,"2.1.12","SERVIÇO","SINAPI",92435,{"$f":"IF(C33=\"SERVIÇO\",IF(D33=\"SINAPI\",VLOOKUP(E33,'[1]SERVIÇOS SINAPI'!$A:$D,2,0),IF(D33=\"ORSE\",VLOOKUP(E33,'[1]SERVIÇOS ORSE'!$A:$D,2,0),IF(D33=\"SEINFRA\",VLOOKUP(E33,'[1]SERVIÇOS SEINFRA'!$A:$D,2,0)))),IF(C33=\"INSUMO\",IF(D33=\"SINAPI\",VLOOKUP(E33,'[1]INSUMOS SINAPI'!$A:$D,2,0),IF(D33=\"ORSE\",VLOOKUP(E33,'[1]INSUMOS ORSE'!$A:$D,2,0),IF(D33=\"SEINFRA\",VLOOKUP(E33,'[1]INSUMOS SEINFRA'!$A:$D,2,0),)))))","v":"MONTAGEM E DESMONTAGEM DE FÔRMA DE PILARES RETANGULARES E ESTRUTURAS SIMILARES, PÉ-DIREITO SIMPLES, EM CHAPA DE MADEIRA COMPENSADA PLASTIFICADA, 12 UTILIZAÇÕES. AF_09/2020"},{"$f":"IF(C33=\"SERVIÇO\",IF(D33=\"SINAPI\",VLOOKUP(E33,'[1]SERVIÇOS SINAPI'!$A:$D,3,0),IF(D33=\"ORSE\",VLOOKUP(E33,'[1]SERVIÇOS ORSE'!$A:$D,3,0),IF(D33=\"SEINFRA\",VLOOKUP(E33,'[1]SERVIÇOS SEINFRA'!$A:$D,3,0)))),IF(C33=\"INSUMO\",IF(D33=\"SINAPI\",VLOOKUP(E33,'[1]INSUMOS SINAPI'!$A:$D,3,0),IF(D33=\"ORSE\",VLOOKUP(E33,'[1]INSUMOS ORSE'!$A:$D,3,0),IF(D33=\"SEINFRA\",VLOOKUP(E33,'[1]INSUMOS SEINFRA'!$A:$D,3,0),)))))","v":"M²"},{"$f":"'[1]Memória de Cálculo'!$L$99*$G$7","v":26.4},{"$f":"IF(C33=\"SERVIÇO\",IF(D33=\"SINAPI\",VLOOKUP(E33,'[1]SERVIÇOS SINAPI'!$A:$D,4,0),IF(D33=\"ORSE\",VLOOKUP(E33,'[1]SERVIÇOS ORSE'!$A:$D,4,0),IF(D33=\"SEINFRA\",VLOOKUP(E33,'[1]SERVIÇOS SEINFRA'!$A:$D,4,0)))),IF(C33=\"INSUMO\",IF(D33=\"SINAPI\",VLOOKUP(E33,'[1]INSUMOS SINAPI'!$A:$D,4,0),IF(D33=\"ORSE\",VLOOKUP(E33,'[1]INSUMOS ORSE'!$A:$D,4,0),IF(D33=\"SEINFRA\",VLOOKUP(E33,'[1]INSUMOS SEINFRA'!$A:$D,4,0),)))))","v":39.65},48.97,1292.81,3]
[null,"2.1.13","SERVIÇO","SINAPI",92778,{"$f":"IF(C34=\"SERVIÇO\",IF(D34=\"SINAPI\",VLOOKUP(E34,'[1]SERVIÇOS SINAPI'!$A:$D,2,0),IF(D34=\"ORSE\",VLOOKUP(E34,'[1]SERVIÇOS ORSE'!$A:$D,2,0),IF(D34=\"SEINFRA\",VLOOKUP(E34,'[1]SERVIÇOS SEINFRA'!$A:$D,2,0)))),IF(C34=\"INSUMO\",IF(D34=\"SINAPI\",VLOOKUP(E34,'[1]INSUMOS SINAPI'!$A:$D,2,0),IF(D34=\"ORSE\",VLOOKUP(E34,'[1]INSUMOS ORSE'!$A:$D,2,0),IF(D34=\"SEINFRA\",VLOOKUP(E34,'[1]INSUMOS SEINFRA'!$A:$D,2,0),)))))","v":"ARMAÇÃO DE PILAR OU VIGA DE UMA ESTRUTURA CONVENCIONAL DE CONCRETO ARMADO EM UMA EDIFICAÇÃO TÉRREA OU SOBRADO UTILIZANDO AÇO CA-50 DE 10,0 MM - MONTAGEM. AF_12/2015"},{"$f":"IF(C34=\"SERVIÇO\",IF(D34=\"SINAPI\",VLOOKUP(E34,'[1]SERVIÇOS SINAPI'!$A:$D,3,0),IF(D34=\"ORSE\",VLOOKUP(E34,'[1]SERVIÇOS ORSE'!$A:$D,3,0),IF(D34=\"SEINFRA\",VLOOKUP(E34,'[1]SERVIÇOS SEINFRA'!$A:$D,3,0)))),IF(C34=\"INSUMO\",IF(D34=\"SINAPI\",VLOOKUP(E34,'[1]INSUMOS SINAPI'!$A:$D,3,0),IF(D34=\"ORSE\",VLOOKUP(E34,'[1]INSUMOS ORSE'!$A:$D,3,0),IF(D34=\"SEINFRA\",VLOOKUP(E34,'[1]INSUMOS SEINFRA'!$A:$D,3,0),)))))","v":"KG"},{"$f":"'[1]Memória de Cálculo'!$L$103*$G$7","v":7524},{"$f":"IF(C34=\"SERVIÇO\",IF(D34=\"SINAPI\",VLOOKUP(E34,'[1]SERVIÇOS SINAPI'!$A:$D,4,0),IF(D34=\"ORSE\",VLOOKUP(E34,'[1]SERVIÇOS ORSE'!$A:$D,4,0),IF(D34=\"SEINFRA\",VLOOKUP(E34,'[1]SERVIÇOS SEINFRA'!$A:$D,4,0)))),IF(C34=\"INSUMO\",IF(D34=\"SINAPI\",VLOOKUP(E34,'[1]INSUMOS SINAPI'!$A:$D,4,0),IF(D34=\"ORSE\",VLOOKUP(E34,'[1]INSUMOS ORSE'!$A:$D,4,0),IF(D34=\"SEINFRA\",VLOOKUP(E34,'[1]INSUMOS SEINFRA'!$A:$D,4,0),)))))","v":17.57},21.7,163270.8,5]
[null,"2.1.14","SERVIÇO","SINAPI",92775,{"$f":"IF(C35=\"SERVIÇO\",IF(D35=\"SINAPI\",VLOOKUP(E35,'[1]SERVIÇOS SINAPI'!$A:$D,2,0),IF(D35=\"ORSE\",VLOOKUP(E35,'[1]SERVIÇOS ORSE'!$A:$D,2,0),IF(D35=\"SEINFRA\",VLOOKUP(E35,'[1]SERVIÇOS SEINFRA'!$A:$D,2,0)))),IF(C35=\"INSUMO\",IF(D35=\"SINAPI\",VLOOKUP(E35,'[1]INSUMOS SINAPI'!$A:$D,2,0),IF(D35=\"ORSE\",VLOOKUP(E35,'[1]INSUMOS ORSE'!$A:$D,2,0),IF(D35=\"SEINFRA\",VLOOKUP(E35,'[1]INSUMOS SEINFRA'!$A:$D,2,0),)))))","v":"ARMAÇÃO DE PILAR OU VIGA DE UMA ESTRUTURA CONVENCIONAL DE CONCRETO ARMADO EM UMA EDIFICAÇÃO TÉRREA OU SOBRADO UTILIZANDO AÇO CA-60 DE 5,0 MM - MONTAGEM. AF_12/2015"},{"$f":"IF(C35=\"SERVIÇO\",IF(D35=\"SINAPI\",VLOOKUP(E35,'[1]SERVIÇOS SINAPI'!$A:$D,3,0),IF(D35=\"ORSE\",VLOOKUP(E35,'[1]SERVIÇOS ORSE'!$A:$D,3,0),IF(D35=\"SEINFRA\",VLOOKUP(E35,'[1]SERVIÇOS SEINFRA'!$A:$D,3,0)))),IF(C35=\"INSUMO\",IF(D35=\"SINAPI\",VLOOKUP(E35,'[1]INSUMOS SINAPI'!$A:$D,3,0),IF(D35=\"ORSE\",VLOOKUP(E35,'[1]INSUMOS ORSE'!$A:$D,3,0),IF(D35=\"SEINFRA\",VLOOKUP(E35,'[1]INSUMOS SEINFRA'!$A:$D,3,0),)))))","v":"KG"},{"$f":"'[1]Memória de Cálculo'!$L$107*$G$7","v":4104},{"$f":"IF(C35=\"SERVIÇO\",IF(D35=\"SINAPI\",VLOOKUP(E35,'[1]SERVIÇOS SINAPI'!$A:$D,4,0),IF(D35=\"ORSE\",VLOOKUP(E35,'[1]SERVIÇOS ORSE'!$A:$D,4,0),IF(D35=\"SEINFRA\",VLOOKUP(E35,'[1]SERVIÇOS SEINFRA'!$A:$D,4,0)))),IF(C35=\"INSUMO\",IF(D35=\"SINAPI\",VLOOKUP(E35,'[1]INSUMOS SINAPI'!$A:$D,4,0),IF(D35=\"ORSE\",VLOOKUP(E35,'[1]INSUMOS ORSE'!$A:$D,4,0),IF(D35=\"SEINFRA\",VLOOKUP(E35,'[1]INSUMOS SEINFRA'!$A:$D,4,0),)))))","v":21.12},26.08,107032.32,5]
[null,"2.1.15","SERVIÇO","SINAPI",92873,{"$f":"IF(C36=\"SERVIÇO\",IF(D36=\"SINAPI\",VLOOKUP(E36,'[1]SERVIÇOS SINAPI'!$A:$D,2,0),IF(D36=\"ORSE\",VLOOKUP(E36,'[1]SERVIÇOS ORSE'!$A:$D,2,0),IF(D36=\"SEINFRA\",VLOOKUP(E36,'[1]SERVIÇOS SEINFRA'!$A:$D,2,0)))),IF(C36=\"INSUMO\",IF(D36=\"SINAPI\",VLOOKUP(E36,'[1]INSUMOS SINAPI'!$A:$D,2,0),IF(D36=\"ORSE\",VLOOKUP(E36,'[1]INSUMOS ORSE'!$A:$D,2,0),IF(D36=\"SEINFRA\",VLOOKUP(E36,'[1]INSUMOS SEINFRA'!$A:$D,2,0),)))))","v":"LANÇAMENTO COM USO DE BALDES, ADENSAMENTO E ACABAMENTO DE CONCRETO EM ESTRUTURAS. AF_12/2015"},{"$f":"IF(C36=\"SERVIÇO\",IF(D36=\"SINAPI\",VLOOKUP(E36,'[1]SERVIÇOS SINAPI'!$A:$D,3,0),IF(D36=\"ORSE\",VLOOKUP(E36,'[1]SERVIÇOS ORSE'!$A:$D,3,0),IF(D36=\"SEINFRA\",VLOOKUP(E36,'[1]SERVIÇOS SEINFRA'!$A:$D,3,0)))),IF(C36=\"INSUMO\",IF(D36=\"SINAPI\",VLOOKUP(E36,'[1]INSUMOS SINAPI'!$A:$D,3,0),IF(D36=\"ORSE\",VLOOKUP(E36,'[1]INSUMOS ORSE'!$A:$D,3,0),IF(D36=\"SEINFRA\",VLOOKUP(E36,'[1]INSUMOS SEINFRA'!$A:$D,3,0),)))))","v":"M³"},{"$f":"'[1]Memória de Cálculo'!$L$111*$G$7","v":136.8},{"$f":"IF(C36=\"SERVIÇO\",IF(D36=\"SINAPI\",VLOOKUP(E36,'[1]SERVIÇOS SINAPI'!$A:$D,4,0),IF(D36=\"ORSE\",VLOOKUP(E36,'[1]SERVIÇOS ORSE'!$A:$D,4,0),IF(D36=\"SEINFRA\",VLOOKUP(E36,'[1]SERVIÇOS SEINFRA'!$A:$D,4,0)))),IF(C36=\"INSUMO\",IF(D36=\"SINAPI\",VLOOKUP(E36,'[1]INSUMOS SINAPI'!$A:$D,4,0),IF(D36=\"ORSE\",VLOOKUP(E36,'[1]INSUMOS ORSE'!$A:$D,4,0),IF(D36=\"SEINFRA\",VLOOKUP(E36,'[1]INSUMOS SEINFRA'!$A:$D,4,0),)))))","v":177.24},218.89,29944.15,3]
[null,"2.1.16","SERVIÇO","SINAPI",95240,{"$f":"IF(C37=\"SERVIÇO\",IF(D37=\"SINAPI\",VLOOKUP(E37,'[1]SERVIÇOS SINAPI'!$A:$D,2,0),IF(D37=\"ORSE\",VLOOKUP(E37,'[1]SERVIÇOS ORSE'!$A:$D,2,0),IF(D37=\"SEINFRA\",VLOOKUP(E37,'[1]SERVIÇOS SEINFRA'!$A:$D,2,0)))),IF(C37=\"INSUMO\",IF(D37=\"SINAPI\",VLOOKUP(E37,'[1]INSUMOS SINAPI'!$A:$D,2,0),IF(D37=\"ORSE\",VLOOKUP(E37,'[1]INSUMOS ORSE'!$A:$D,2,0),IF(D37=\"SEINFRA\",VLOOKUP(E37,'[1]INSUMOS SEINFRA'!$A:$D,2,0),)))))","v":"LASTRO DE CONCRETO MAGRO, APLICADO EM PISOS, LAJES SOBRE SOLO OU RADIERS, ESPESSURA DE 3 CM. AF_07/2016"},{"$f":"IF(C37=\"SERVIÇO\",IF(D37=\"SINAPI\",VLOOKUP(E37,'[1]SERVIÇOS SINAPI'!$A:$D,3,0),IF(D37=\"ORSE\",VLOOKUP(E37,'[1]SERVIÇOS ORSE'!$A:$D,3,0),IF(D37=\"SEINFRA\",VLOOKUP(E37,'[1]SERVIÇOS SEINFRA'!$A:$D,3,0)))),IF(C37=\"INSUMO\",IF(D37=\"SINAPI\",VLOOKUP(E37,'[1]INSUMOS SINAPI'!$A:$D,3,0),IF(D37=\"ORSE\",VLOOKUP(E37,'[1]INSUMOS ORSE'!$A:$D,3,0),IF(D37=\"SEINFRA\",VLOOKUP(E37,'[1]INSUMOS SEINFRA'!$A:$D,3,0),)))))","v":"M²"},{"$f":"'[1]Memória de Cálculo'!$L$125*$G$7","v":1398.72},{"$f":"IF(C37=\"SERVIÇO\",IF(D37=\"SINAPI\",VLOOKUP(E37,'[1]SERVIÇOS SINAPI'!$A:$D,4,0),IF(D37=\"ORSE\",VLOOKUP(E37,'[1]SERVIÇOS ORSE'!$A:$D,4,0),IF(D37=\"SEINFRA\",VLOOKUP(E37,'[1]SERVIÇOS SEINFRA'!$A:$D,4,0)))),IF(C37=\"INSUMO\",IF(D37=\"SINAPI\",VLOOKUP(E37,'[1]INSUMOS SINAPI'!$A:$D,4,0),IF(D37=\"ORSE\",VLOOKUP(E37,'[1]INSUMOS ORSE'!$A:$D,4,0),IF(D37=\"SEINFRA\",VLOOKUP(E37,'[1]INSUMOS SEINFRA'!$A:$D,4,0),)))))","v":14.97},18.49,25862.33,3]
[null,"2.1.17","SERVIÇO","SINAPI",94438,{"$f":"IF(C38=\"SERVIÇO\",IF(D38=\"SINAPI\",VLOOKUP(E38,'[1]SERVIÇOS SINAPI'!$A:$D,2,0),IF(D38=\"ORSE\",VLOOKUP(E38,'[1]SERVIÇOS ORSE'!$A:$D,2,0),IF(D38=\"SEINFRA\",VLOOKUP(E38,'[1]SERVIÇOS SEINFRA'!$A:$D,2,0)))),IF(C38=\"INSUMO\",IF(D38=\"SINAPI\",VLOOKUP(E38,'[1]INSUMOS SINAPI'!$A:$D,2,0),IF(D38=\"ORSE\",VLOOKUP(E38,'[1]INSUMOS ORSE'!$A:$D,2,0),IF(D38=\"SEINFRA\",VLOOKUP(E38,'[1]INSUMOS SEINFRA'!$A:$D,2,0),)))))","v":"(COMPOSIÇÃO REPRESENTATIVA) DO SERVIÇO DE CONTRAPISO EM ARGAMASSA TRAÇO 1:4 (CIM E AREIA), EM BETONEIRA 400 L, ESPESSURA 3 CM ÁREAS SECAS E 3 CM ÁREAS MOLHADAS, PARA EDIFICAÇÃO HABITACIONAL UNIFAMILIAR (CASA) E EDIFICAÇÃO PÚBLICA PADRÃO. AF_11/2014"},{"$f":"IF(C38=\"SERVIÇO\",IF(D38=\"SINAPI\",VLOOKUP(E38,'[1]SERVIÇOS SINAPI'!$A:$D,3,0),IF(D38=\"ORSE\",VLOOKUP(E38,'[1]SERVIÇOS ORSE'!$A:$D,3,0),IF(D38=\"SEINFRA\",VLOOKUP(E38,'[1]SERVIÇOS SEINFRA'!$A:$D,3,0)))),IF(C38=\"INSUMO\",IF(D38=\"SINAPI\",VLOOKUP(E38,'[1]INSUMOS SINAPI'!$A:$D,3,0),IF(D38=\"ORSE\",VLOOKUP(E38,'[1]INSUMOS ORSE'!$A:$D,3,0),IF(D38=\"SEINFRA\",VLOOKUP(E38,'[1]INSUMOS SEINFRA'!$A:$D,3,0),)))))","v":"M²"},{"$f":"'[1]Memória de Cálculo'!$L$134*$G$7","v":417.9},{"$f":"IF(C38=\"SERVIÇO\",IF(D38=\"SINAPI\",VLOOKUP(E38,'[1]SERVIÇOS SINAPI'!$A:$D,4,0),IF(D38=\"ORSE\",VLOOKUP(E38,'[1]SERVIÇOS ORSE'!$A:$D,4,0),IF(D38=\"SEINFRA\",VLOOKUP(E38,'[1]SERVIÇOS SEINFRA'!$A:$D,4,0)))),IF(C38=\"INSUMO\",IF(D38=\"SINAPI\",VLOOKUP(E38,'[1]INSUMOS SINAPI'!$A:$D,4,0),IF(D38=\"ORSE\",VLOOKUP(E38,'[1]INSUMOS ORSE'!$A:$D,4,0),IF(D38=\"SEINFRA\",VLOOKUP(E38,'[1]INSUMOS SEINFRA'!$A:$D,4,0),)))))","v":36.35},44.89,18759.53,2]
[null,"2.1.18","SERVIÇO","SINAPI",98680,{"$f":"IF(C39=\"SERVIÇO\",IF(D39=\"SINAPI\",VLOOKUP(E39,'[1]SERVIÇOS SINAPI'!$A:$D,2,0),IF(D39=\"ORSE\",VLOOKUP(E39,'[1]SERVIÇOS ORSE'!$A:$D,2,0),IF(D39=\"SEINFRA\",VLOOKUP(E39,'[1]SERVIÇOS SEINFRA'!$A:$D,2,0)))),IF(C39=\"INSUMO\",IF(D39=\"SINAPI\",VLOOKUP(E39,'[1]INSUMOS SINAPI'!$A:$D,2,0),IF(D39=\"ORSE\",VLOOKUP(E39,'[1]INSUMOS ORSE'!$A:$D,2,0),IF(D39=\"SEINFRA\",VLOOKUP(E39,'[1]INSUMOS SEINFRA'!$A:$D,2,0),)))))","v":"PISO CIMENTADO, TRAÇO 1:3 (CIMENTO E AREIA), ACABAMENTO LISO, ESPESSURA 3,0 CM, PREPARO MECÂNICO DA ARGAMASSA. AF_09/2020"},{"$f":"IF(C39=\"SERVIÇO\",IF(D39=\"SINAPI\",VLOOKUP(E39,'[1]SERVIÇOS SINAPI'!$A:$D,3,0),IF(D39=\"ORSE\",VLOOKUP(E39,'[1]SERVIÇOS ORSE'!$A:$D,3,0),IF(D39=\"SEINFRA\",VLOOKUP(E39,'[1]SERVIÇOS SEINFRA'!$A:$D,3,0)))),IF(C39=\"INSUMO\",IF(D39=\"SINAPI\",VLOOKUP(E39,'[1]INSUMOS SINAPI'!$A:$D,3,0),IF(D39=\"ORSE\",VLOOKUP(E39,'[1]INSUMOS ORSE'!$A:$D,3,0),IF(D39=\"SEINFRA\",VLOOKUP(E39,'[1]INSUMOS SEINFRA'!$A:$D,3,0),)))))","v":"M²"},{"$f":"'[1]Memória de Cálculo'!$L$142*$G$7","v":1012.32},{"$f":"IF(C39=\"SERVIÇO\",IF(D39=\"SINAPI\",VLOOKUP(E39,'[1]SERVIÇOS SINAPI'!$A:$D,4,0),IF(D39=\"ORSE\",VLOOKUP(E39,'[1]SERVIÇOS ORSE'!$A:$D,4,0),IF(D39=\"SEINFRA\",VLOOKUP(E39,'[1]SERVIÇOS SEINFRA'!$A:$D,4,0)))),IF(C39=\"INSUMO\",IF(D39=\"SINAPI\",VLOOKUP(E39,'[1]INSUMOS SINAPI'!$A:$D,4,0),IF(D39=\"ORSE\",VLOOKUP(E39,'[1]INSUMOS ORSE'!$A:$D,4,0),IF(D39=\"SEINFRA\",VLOOKUP(E39,'[1]INSUMOS SEINFRA'!$A:$D,4,0),)))))","v":38.38},47.4,47983.97,2]
[null,"2.1.19","SERVIÇO","ORSE",10169,{"$f":"IF(C40=\"SERVIÇO\",IF(D40=\"SINAPI\",VLOOKUP(E40,'[1]SERVIÇOS SINAPI'!$A:$D,2,0),IF(D40=\"ORSE\",VLOOKUP(E40,'[1]SERVIÇOS ORSE'!$A:$D,2,0),IF(D40=\"SEINFRA\",VLOOKUP(E40,'[1]SERVIÇOS SEINFRA'!$A:$D,2,0)))),IF(C40=\"INSUMO\",IF(D40=\"SINAPI\",VLOOKUP(E40,'[1]INSUMOS SINAPI'!$A:$D,2,0),IF(D40=\"ORSE\",VLOOKUP(E40,'[1]INSUMOS ORSE'!$A:$D,2,0),IF(D40=\"SEINFRA\",VLOOKUP(E40,'[1]INSUMOS SEINFRA'!$A:$D,2,0),)))))","v":"PISO ALTA RESISTÊNCIA 12 MM, COR CINZA, COM JUNTAS PLÁSTICAS, POLIMENTO ATÉ O ESMERIL 400 E ENCERAMENTO, EXCLUSIVE ARGAMASSA DE REGULARIZAÇÃO, APLICADO"},{"$f":"IF(C40=\"SERVIÇO\",IF(D40=\"SINAPI\",VLOOKUP(E40,'[1]SERVIÇOS SINAPI'!$A:$D,3,0),IF(D40=\"ORSE\",VLOOKUP(E40,'[1]SERVIÇOS ORSE'!$A:$D,3,0),IF(D40=\"SEINFRA\",VLOOKUP(E40,'[1]SERVIÇOS SEINFRA'!$A:$D,3,0)))),IF(C40=\"INSUMO\",IF(D40=\"SINAPI\",VLOOKUP(E40,'[1]INSUMOS SINAPI'!$A:$D,3,0),IF(D40=\"ORSE\",VLOOKUP(E40,'[1]INSUMOS ORSE'!$A:$D,3,0),IF(D40=\"SEINFRA\",VLOOKUP(E40,'[1]INSUMOS SEINFRA'!$A:$D,3,0),)))))","v":"M²"},{"$f":"'[1]Memória de Cálculo'!$L$151*$G$7","v":417.9},{"$f":"IF(C40=\"SERVIÇO\",IF(D40=\"SINAPI\",VLOOKUP(E40,'[1]SERVIÇOS SINAPI'!$A:$D,4,0),IF(D40=\"ORSE\",VLOOKUP(E40,'[1]SERVIÇOS ORSE'!$A:$D,4,0),IF(D40=\"SEINFRA\",VLOOKUP(E40,'[1]SERVIÇOS SEINFRA'!$A:$D,4,0)))),IF(C40=\"INSUMO\",IF(D40=\"SINAPI\",VLOOKUP(E40,'[1]INSUMOS SINAPI'!$A:$D,4,0),IF(D40=\"ORSE\",VLOOKUP(E40,'[1]INSUMOS ORSE'!$A:$D,4,0),IF(D40=\"SEINFRA\",VLOOKUP(E40,'[1]INSUMOS SEINFRA'!$A:$D,4,0),)))))","v":41.8},51.62,21572,2]
[null,"2.1.20","SERVIÇO","ORSE",11233,{"$f":"IF(C41=\"SERVIÇO\",IF(D41=\"SINAPI\",VLOOKUP(E41,'[1]SERVIÇOS SINAPI'!$A:$D,2,0),IF(D41=\"ORSE\",VLOOKUP(E41,'[1]SERVIÇOS ORSE'!$A:$D,2,0),IF(D41=\"SEINFRA\",VLOOKUP(E41,'[1]SERVIÇOS SEINFRA'!$A:$D,2,0)))),IF(C41=\"INSUMO\",IF(D41=\"SINAPI\",VLOOKUP(E41,'[1]INSUMOS SINAPI'!$A:$D,2,0),IF(D41=\"ORSE\",VLOOKUP(E41,'[1]INSUMOS ORSE'!$A:$D,2,0),IF(D41=\"SEINFRA\",VLOOKUP(E41,'[1]INSUMOS SEINFRA'!$A:$D,2,0),)))))","v":"RODAPÉ ALTA RESISTÊNCIA, H = 10 CM, MEIA-CANA"},{"$f":"IF(C41=\"SERVIÇO\",IF(D41=\"SINAPI\",VLOOKUP(E41,'[1]SERVIÇOS SINAPI'!$A:$D,3,0),IF(D41=\"ORSE\",VLOOKUP(E41,'[1]SERVIÇOS ORSE'!$A:$D,3,0),IF(D41=\"SEINFRA\",VLOOKUP(E41,'[1]SERVIÇOS SEINFRA'!$A:$D,3,0)))),IF(C41=\"INSUMO\",IF(D41=\"SINAPI\",VLOOKUP(E41,'[1]INSUMOS SINAPI'!$A:$D,3,0),IF(D41=\"ORSE\",VLOOKUP(E41,'[1]INSUMOS ORSE'!$A:$D,3,0),IF(D41=\"SEINFRA\",VLOOKUP(E41,'[1]INSUMOS SEINFRA'!$A:$D,3,0),)))))","v":"M"},{"$f":"'[1]Memória de Cálculo'!$L$160*$G$7","v":596.76},{"$f":"IF(C41=\"SERVIÇO\",IF(D41=\"SINAPI\",VLOOKUP(E41,'[1]SERVIÇOS SINAPI'!$A:$D,4,0),IF(D41=\"ORSE\",VLOOKUP(E41,'[1]SERVIÇOS ORSE'!$A:$D,4,0),IF(D41=\"SEINFRA\",VLOOKUP(E41,'[1]SERVIÇOS SEINFRA'!$A:$D,4,0)))),IF(C41=\"INSUMO\",IF(D41=\"SINAPI\",VLOOKUP(E41,'[1]INSUMOS SINAPI'!$A:$D,4,0),IF(D41=\"ORSE\",VLOOKUP(E41,'[1]INSUMOS ORSE'!$A:$D,4,0),IF(D41=\"SEINFRA\",VLOOKUP(E41,'[1]INSUMOS SEINFRA'!$A:$D,4,0),)))))","v":18.46},22.8,13606.13,2]
[null,"2.1.21","SERVIÇO","SINAPI",94990,{"$f":"IF(C42=\"SERVIÇO\",IF(D42=\"SINAPI\",VLOOKUP(E42,'[1]SERVIÇOS SINAPI'!$A:$D,2,0),IF(D42=\"ORSE\",VLOOKUP(E42,'[1]SERVIÇOS ORSE'!$A:$D,2,0),IF(D42=\"SEINFRA\",VLOOKUP(E42,'[1]SERVIÇOS SEINFRA'!$A:$D,2,0)))),IF(C42=\"INSUMO\",IF(D42=\"SINAPI\",VLOOKUP(E42,'[1]INSUMOS SINAPI'!$A:$D,2,0),IF(D42=\"ORSE\",VLOOKUP(E42,'[1]INSUMOS ORSE'!$A:$D,2,0),IF(D42=\"SEINFRA\",VLOOKUP(E42,'[1]INSUMOS SEINFRA'!$A:$D,2,0),)))))","v":"EXECUÇÃO DE PASSEIO (CALÇADA) OU PISO DE CONCRETO COM CONCRETO MOLDADO IN LOCO, FEITO EM OBRA, ACABAMENTO CONVENCIONAL, NÃO ARMADO. AF_07/2016"},{"$f":"IF(C42=\"SERVIÇO\",IF(D42=\"SINAPI\",VLOOKUP(E42,'[1]SERVIÇOS SINAPI'!$A:$D,3,0),IF(D42=\"ORSE\",VLOOKUP(E42,'[1]SERVIÇOS ORSE'!$A:$D,3,0),IF(D42=\"SEINFRA\",VLOOKUP(E42,'[1]SERVIÇOS SEINFRA'!$A:$D,3,0)))),IF(C42=\"INSUMO\",IF(D42=\"SINAPI\",VLOOKUP(E42,'[1]INSUMOS SINAPI'!$A:$D,3,0),IF(D42=\"ORSE\",VLOOKUP(E42,'[1]INSUMOS ORSE'!$A:$D,3,0),IF(D42=\"SEINFRA\",VLOOKUP(E42,'[1]INSUMOS SEINFRA'!$A:$D,3,0),)))))","v":"M³"},{"$f":"'[1]Memória de Cálculo'!$L$166*$G$7","v":27.54},{"$f":"IF(C42=\"SERVIÇO\",IF(D42=\"SINAPI\",VLOOKUP(E42,'[1]SERVIÇOS SINAPI'!$A:$D,4,0),IF(D42=\"ORSE\",VLOOKUP(E42,'[1]SERVIÇOS ORSE'!$A:$D,4,0),IF(D42=\"SEINFRA\",VLOOKUP(E42,'[1]SERVIÇOS SEINFRA'!$A:$D,4,0)))),IF(C42=\"INSUMO\",IF(D42=\"SINAPI\",VLOOKUP(E42,'[1]INSUMOS SINAPI'!$A:$D,4,0),IF(D42=\"ORSE\",VLOOKUP(E42,'[1]INSUMOS ORSE'!$A:$D,4,0),IF(D42=\"SEINFRA\",VLOOKUP(E42,'[1]INSUMOS SEINFRA'!$A:$D,4,0),)))))","v":653.29},806.81,22219.55,2]
[null,"2.1.22","SERVIÇO","SINAPI",87503,{"$f":"IF(C43=\"SERVIÇO\",IF(D43=\"SINAPI\",VLOOKUP(E43,'[1]SERVIÇOS SINAPI'!$A:$D,2,0),IF(D43=\"ORSE\",VLOOKUP(E43,'[1]SERVIÇOS ORSE'!$A:$D,2,0),IF(D43=\"SEINFRA\",VLOOKUP(E43,'[1]SERVIÇOS SEINFRA'!$A:$D,2,0)))),IF(C43=\"INSUMO\",IF(D43=\"SINAPI\",VLOOKUP(E43,'[1]INSUMOS SINAPI'!$A:$D,2,0),IF(D43=\"ORSE\",VLOOKUP(E43,'[1]INSUMOS ORSE'!$A:$D,2,0),IF(D43=\"SEINFRA\",VLOOKUP(E43,'[1]INSUMOS SEINFRA'!$A:$D,2,0),)))))","v":"ALVENARIA DE VEDAÇÃO DE BLOCOS CERÂMICOS FURADOS NA HORIZONTAL DE 9X19X19CM (ESPESSURA 9CM) DE PAREDES COM ÁREA LÍQUIDA MAIOR OU IGUAL A 6M² SEM VÃOS E ARGAMASSA DE ASSENTAMENTO COM PREPARO EM BETONEIRA. AF_06/2014"},{"$f":"IF(C43=\"SERVIÇO\",IF(D43=\"SINAPI\",VLOOKUP(E43,'[1]SERVIÇOS SINAPI'!$A:$D,3,0),IF(D43=\"ORSE\",VLOOKUP(E43,'[1]SERVIÇOS ORSE'!$A:$D,3,0),IF(D43=\"SEINFRA\",VLOOKUP(E43,'[1]SERVIÇOS SEINFRA'!$A:$D,3,0)))),IF(C43=\"INSUMO\",IF(D43=\"SINAPI\",VLOOKUP(E43,'[1]INSUMOS SINAPI'!$A:$D,3,0),IF(D43=\"ORSE\",VLOOKUP(E43,'[1]INSUMOS ORSE'!$A:$D,3,0),IF(D43=\"SEINFRA\",VLOOKUP(E43,'[1]INSUMOS SEINFRA'!$A:$D,3,0),)))))","v":"M²"},{"$f":"'[1]Memória de Cálculo'!$L$191*$G$7","v":2508.24},{"$f":"IF(C43=\"SERVIÇO\",IF(D43=\"SINAPI\",VLOOKUP(E43,'[1]SERVIÇOS SINAPI'!$A:$D,4,0),IF(D43=\"ORSE\",VLOOKUP(E43,'[1]SERVIÇOS ORSE'!$A:$D,4,0),IF(D43=\"SEINFRA\",VLOOKUP(E43,'[1]SERVIÇOS SEINFRA'!$A:$D,4,0)))),IF(C43=\"INSUMO\",IF(D43=\"SINAPI\",VLOOKUP(E43,'[1]INSUMOS SINAPI'!$A:$D,4,0),IF(D43=\"ORSE\",VLOOKUP(E43,'[1]INSUMOS ORSE'!$A:$D,4,0),IF(D43=\"SEINFRA\",VLOOKUP(E43,'[1]INSUMOS SEINFRA'!$A:$D,4,0),)))))","v":65.15},80.46,201812.99,2]
[null,"2.1.23","SERVIÇO","SINAPI",101161,{"$f":"IF(C44=\"SERVIÇO\",IF(D44=\"SINAPI\",VLOOKUP(E44,'[1]SERVIÇOS SINAPI'!$A:$D,2,0),IF(D44=\"ORSE\",VLOOKUP(E44,'[1]SERVIÇOS ORSE'!$A:$D,2,0),IF(D44=\"SEINFRA\",VLOOKUP(E44,'[1]SERVIÇOS SEINFRA'!$A:$D,2,0)))),IF(C44=\"INSUMO\",IF(D44=\"SINAPI\",VLOOKUP(E44,'[1]INSUMOS SINAPI'!$A:$D,2,0),IF(D44=\"ORSE\",VLOOKUP(E44,'[1]INSUMOS ORSE'!$A:$D,2,0),IF(D44=\"SEINFRA\",VLOOKUP(E44,'[1]INSUMOS SEINFRA'!$A:$D,2,0),)))))","v":"ALVENARIA DE VEDAÇÃO COM ELEMENTO VAZADO DE CONCRETO (COBOGÓ) DE 7X50X50CM E ARGAMASSA DE ASSENTAMENTO COM PREPARO EM BETONEIRA. AF_05/2020"},{"$f":"IF(C44=\"SERVIÇO\",IF(D44=\"SINAPI\",VLOOKUP(E44,'[1]SERVIÇOS SINAPI'!$A:$D,3,0),IF(D44=\"ORSE\",VLOOKUP(E44,'[1]SERVIÇOS ORSE'!$A:$D,3,0),IF(D44=\"SEINFRA\",VLOOKUP(E44,'[1]SERVIÇOS SEINFRA'!$A:$D,3,0)))),IF(C44=\"INSUMO\",IF(D44=\"SINAPI\",VLOOKUP(E44,'[1]INSUMOS SINAPI'!$A:$D,3,0),IF(D44=\"ORSE\",VLOOKUP(E44,'[1]INSUMOS ORSE'!$A:$D,3,0),IF(D44=\"SEINFRA\",VLOOKUP(E44,'[1]INSUMOS SEINFRA'!$A:$D,3,0),)))))","v":"M²"},{"$f":"'[1]Memória de Cálculo'!$L$195*$G$7","v":3},{"$f":"IF(C44=\"SERVIÇO\",IF(D44=\"SINAPI\",VLOOKUP(E44,'[1]SERVIÇOS SINAPI'!$A:$D,4,0),IF(D44=\"ORSE\",VLOOKUP(E44,'[1]SERVIÇOS ORSE'!$A:$D,4,0),IF(D44=\"SEINFRA\",VLOOKUP(E44,'[1]SERVIÇOS SEINFRA'!$A:$D,4,0)))),IF(C44=\"INSUMO\",IF(D44=\"SINAPI\",VLOOKUP(E44,'[1]INSUMOS SINAPI'!$A:$D,4,0),IF(D44=\"ORSE\",VLOOKUP(E44,'[1]INSUMOS ORSE'!$A:$D,4,0),IF(D44=\"SEINFRA\",VLOOKUP(E44,'[1]INSUMOS SEINFRA'!$A:$D,4,0),)))))","v":168.88},208.57,625.71,2]
[null,"2.1.24","SERVIÇO","ORSE",8970,{"$f":"IF(C45=\"SERVIÇO\",IF(D45=\"SINAPI\",VLOOKUP(E45,'[1]SERVIÇOS SINAPI'!$A:$D,2,0),IF(D45=\"ORSE\",VLOOKUP(E45,'[1]SERVIÇOS ORSE'!$A:$D,2,0),IF(D45=\"SEINFRA\",VLOOKUP(E45,'[1]SERVIÇOS SEINFRA'!$A:$D,2,0)))),IF(C45=\"INSUMO\",IF(D45=\"SINAPI\",VLOOKUP(E45,'[1]INSUMOS SINAPI'!$A:$D,2,0),IF(D45=\"ORSE\",VLOOKUP(E45,'[1]INSUMOS ORSE'!$A:$D,2,0),IF(D45=\"SEINFRA\",VLOOKUP(E45,'[1]INSUMOS SEINFRA'!$A:$D,2,0),)))))","v":"TELA DE NYLON TIPO MOSQUITEIRO COM MOLDURA EM ALUMINIO ANODIZADO NATURAL"},{"$f":"IF(C45=\"SERVIÇO\",IF(D45=\"SINAPI\",VLOOKUP(E45,'[1]SERVIÇOS SINAPI'!$A:$D,3,0),IF(D45=\"ORSE\",VLOOKUP(E45,'[1]SERVIÇOS ORSE'!$A:$D,3,0),IF(D45=\"SEINFRA\",VLOOKUP(E45,'[1]SERVIÇOS SEINFRA'!$A:$D,3,0)))),IF(C45=\"INSUMO\",IF(D45=\"SINAPI\",VLOOKUP(E45,'[1]INSUMOS SINAPI'!$A:$D,3,0),IF(D45=\"ORSE\",VLOOKUP(E45,'[1]INSUMOS ORSE'!$A:$D,3,0),IF(D45=\"SEINFRA\",VLOOKUP(E45,'[1]INSUMOS SEINFRA'!$A:$D,3,0),)))))","v":"M²"},{"$f":"'[1]Memória de Cálculo'!$L$199*$G$7","v":3},{"$f":"IF(C45=\"SERVIÇO\",IF(D45=\"SINAPI\",VLOOKUP(E45,'[1]SERVIÇOS SINAPI'!$A:$D,4,0),IF(D45=\"ORSE\",VLOOKUP(E45,'[1]SERVIÇOS ORSE'!$A:$D,4,0),IF(D45=\"SEINFRA\",VLOOKUP(E45,'[1]SERVIÇOS SEINFRA'!$A:$D,4,0)))),IF(C45=\"INSUMO\",IF(D45=\"SINAPI\",VLOOKUP(E45,'[1]INSUMOS SINAPI'!$A:$D,4,0),IF(D45=\"ORSE\",VLOOKUP(E45,'[1]INSUMOS ORSE'!$A:$D,4,0),IF(D45=\"SEINFRA\",VLOOKUP(E45,'[1]INSUMOS SEINFRA'!$A:$D,4,0),)))))","v":84.65},104.54,313.62,2,{"$f":"(M43/$N$44)+0.0002","v":{"$error":"#DIV/0!"}}]
[null,"2.1.25","SERVIÇO","SINAPI",96109,{"$f":"IF(C46=\"SERVIÇO\",IF(D46=\"SINAPI\",VLOOKUP(E46,'[1]SERVIÇOS SINAPI'!$A:$D,2,0),IF(D46=\"ORSE\",VLOOKUP(E46,'[1]SERVIÇOS ORSE'!$A:$D,2,0),IF(D46=\"SEINFRA\",VLOOKUP(E46,'[1]SERVIÇOS SEINFRA'!$A:$D,2,0)))),IF(C46=\"INSUMO\",IF(D46=\"SINAPI\",VLOOKUP(E46,'[1]INSUMOS SINAPI'!$A:$D,2,0),IF(D46=\"ORSE\",VLOOKUP(E46,'[1]INSUMOS ORSE'!$A:$D,2,0),IF(D46=\"SEINFRA\",VLOOKUP(E46,'[1]INSUMOS SEINFRA'!$A:$D,2,0),)))))","v":"FORRO EM PLACAS DE GESSO, PARA AMBIENTES RESIDENCIAIS. AF_05/2017_P"},{"$f":"IF(C46=\"SERVIÇO\",IF(D46=\"SINAPI\",VLOOKUP(E46,'[1]SERVIÇOS SINAPI'!$A:$D,3,0),IF(D46=\"ORSE\",VLOOKUP(E46,'[1]SERVIÇOS ORSE'!$A:$D,3,0),IF(D46=\"SEINFRA\",VLOOKUP(E46,'[1]SERVIÇOS SEINFRA'!$A:$D,3,0)))),IF(C46=\"INSUMO\",IF(D46=\"SINAPI\",VLOOKUP(E46,'[1]INSUMOS SINAPI'!$A:$D,3,0),IF(D46=\"ORSE\",VLOOKUP(E46,'[1]INSUMOS ORSE'!$A:$D,3,0),IF(D46=\"SEINFRA\",VLOOKUP(E46,'[1]INSUMOS SEINFRA'!$A:$D,3,0),)))))","v":"M²"},{"$f":"'[1]Memória de Cálculo'!$L$208*$G$7","v":417.9},{"$f":"IF(C46=\"SERVIÇO\",IF(D46=\"SINAPI\",VLOOKUP(E46,'[1]SERVIÇOS SINAPI'!$A:$D,4,0),IF(D46=\"ORSE\",VLOOKUP(E46,'[1]SERVIÇOS ORSE'!$A:$D,4,0),IF(D46=\"SEINFRA\",VLOOKUP(E46,'[1]SERVIÇOS SEINFRA'!$A:$D,4,0)))),IF(C46=\"INSUMO\",IF(D46=\"SINAPI\",VLOOKUP(E46,'[1]INSUMOS SINAPI'!$A:$D,4,0),IF(D46=\"ORSE\",VLOOKUP(E46,'[1]INSUMOS ORSE'!$A:$D,4,0),IF(D46=\"SEINFRA\",VLOOKUP(E46,'[1]INSUMOS SEINFRA'!$A:$D,4,0),)))))","v":35.13},43.39,18132.68,2]
[null,"2.1.26","SERVIÇO","SINAPI",92551,{"$f":"IF(C47=\"SERVIÇO\",IF(D47=\"SINAPI\",VLOOKUP(E47,'[1]SERVIÇOS SINAPI'!$A:$D,2,0),IF(D47=\"ORSE\",VLOOKUP(E47,'[1]SERVIÇOS ORSE'!$A:$D,2,0),IF(D47=\"SEINFRA\",VLOOKUP(E47,'[1]SERVIÇOS SEINFRA'!$A:$D,2,0)))),IF(C47=\"INSUMO\",IF(D47=\"SINAPI\",VLOOKUP(E47,'[1]INSUMOS SINAPI'!$A:$D,2,0),IF(D47=\"ORSE\",VLOOKUP(E47,'[1]INSUMOS ORSE'!$A:$D,2,0),IF(D47=\"SEINFRA\",VLOOKUP(E47,'[1]INSUMOS SEINFRA'!$A:$D,2,0),)))))","v":"FABRICAÇÃO E INSTALAÇÃO DE TESOURA INTEIRA EM MADEIRA NÃO APARELHADA, VÃO DE 9 M, PARA TELHA CERÂMICA OU DE CONCRETO, INCLUSO IÇAMENTO. AF_07/2019"},{"$f":"IF(C47=\"SERVIÇO\",IF(D47=\"SINAPI\",VLOOKUP(E47,'[1]SERVIÇOS SINAPI'!$A:$D,3,0),IF(D47=\"ORSE\",VLOOKUP(E47,'[1]SERVIÇOS ORSE'!$A:$D,3,0),IF(D47=\"SEINFRA\",VLOOKUP(E47,'[1]SERVIÇOS SEINFRA'!$A:$D,3,0)))),IF(C47=\"INSUMO\",IF(D47=\"SINAPI\",VLOOKUP(E47,'[1]INSUMOS SINAPI'!$A:$D,3,0),IF(D47=\"ORSE\",VLOOKUP(E47,'[1]INSUMOS ORSE'!$A:$D,3,0),IF(D47=\"SEINFRA\",VLOOKUP(E47,'[1]INSUMOS SEINFRA'!$A:$D,3,0),)))))","v":"UN"},{"$f":"'[1]Memória de Cálculo'!$L$212*$G$7","v":30},{"$f":"IF(C47=\"SERVIÇO\",IF(D47=\"SINAPI\",VLOOKUP(E47,'[1]SERVIÇOS SINAPI'!$A:$D,4,0),IF(D47=\"ORSE\",VLOOKUP(E47,'[1]SERVIÇOS ORSE'!$A:$D,4,0),IF(D47=\"SEINFRA\",VLOOKUP(E47,'[1]SERVIÇOS SEINFRA'!$A:$D,4,0)))),IF(C47=\"INSUMO\",IF(D47=\"SINAPI\",VLOOKUP(E47,'[1]INSUMOS SINAPI'!$A:$D,4,0),IF(D47=\"ORSE\",VLOOKUP(E47,'[1]INSUMOS ORSE'!$A:$D,4,0),IF(D47=\"SEINFRA\",VLOOKUP(E47,'[1]INSUMOS SEINFRA'!$A:$D,4,0),)))))","v":1718.48},2122.32,63669.6,2]
[null,"2.1.27","SERVIÇO","SINAPI",92541,{"$f":"IF(C48=\"SERVIÇO\",IF(D48=\"SINAPI\",VLOOKUP(E48,'[1]SERVIÇOS SINAPI'!$A:$D,2,0),IF(D48=\"ORSE\",VLOOKUP(E48,'[1]SERVIÇOS ORSE'!$A:$D,2,0),IF(D48=\"SEINFRA\",VLOOKUP(E48,'[1]SERVIÇOS SEINFRA'!$A:$D,2,0)))),IF(C48=\"INSUMO\",IF(D48=\"SINAPI\",VLOOKUP(E48,'[1]INSUMOS SINAPI'!$A:$D,2,0),IF(D48=\"ORSE\",VLOOKUP(E48,'[1]INSUMOS ORSE'!$A:$D,2,0),IF(D48=\"SEINFRA\",VLOOKUP(E48,'[1]INSUMOS SEINFRA'!$A:$D,2,0),)))))","v":"TRAMA DE MADEIRA COMPOSTA POR RIPAS, CAIBROS E TERÇAS PARA TELHADOS DE ATÉ 2 ÁGUAS PARA TELHA CERÂMICA CAPA-CANAL, INCLUSO TRANSPORTE VERTICAL. AF_07/2019"},{"$f":"IF(C48=\"SERVIÇO\",IF(D48=\"SINAPI\",VLOOKUP(E48,'[1]SERVIÇOS SINAPI'!$A:$D,3,0),IF(D48=\"ORSE\",VLOOKUP(E48,'[1]SERVIÇOS ORSE'!$A:$D,3,0),IF(D48=\"SEINFRA\",VLOOKUP(E48,'[1]SERVIÇOS SEINFRA'!$A:$D,3,0)))),IF(C48=\"INSUMO\",IF(D48=\"SINAPI\",VLOOKUP(E48,'[1]INSUMOS SINAPI'!$A:$D,3,0),IF(D48=\"ORSE\",VLOOKUP(E48,'[1]INSUMOS ORSE'!$A:$D,3,0),IF(D48=\"SEINFRA\",VLOOKUP(E48,'[1]INSUMOS SEINFRA'!$A:$D,3,0),)))))","v":"M²"},{"$f":"'[1]Memória de Cálculo'!$L$219*$G$7","v":1440.12},{"$f":"IF(C48=\"SERVIÇO\",IF(D48=\"SINAPI\",VLOOKUP(E48,'[1]SERVIÇOS SINAPI'!$A:$D,4,0),IF(D48=\"ORSE\",VLOOKUP(E48,'[1]SERVIÇOS ORSE'!$A:$D,4,0),IF(D48=\"SEINFRA\",VLOOKUP(E48,'[1]SERVIÇOS SEINFRA'!$A:$D,4,0)))),IF(C48=\"INSUMO\",IF(D48=\"SINAPI\",VLOOKUP(E48,'[1]INSUMOS SINAPI'!$A:$D,4,0),IF(D48=\"ORSE\",VLOOKUP(E48,'[1]INSUMOS ORSE'!$A:$D,4,0),IF(D48=\"SEINFRA\",VLOOKUP(E48,'[1]INSUMOS SEINFRA'!$A:$D,4,0),)))))","v":55.33},68.33,98403.4,2]
[null,"2.1.28","SERVIÇO","SINAPI",102233,{"$f":"IF(C49=\"SERVIÇO\",IF(D49=\"SINAPI\",VLOOKUP(E49,'[1]SERVIÇOS SINAPI'!$A:$D,2,0),IF(D49=\"ORSE\",VLOOKUP(E49,'[1]SERVIÇOS ORSE'!$A:$D,2,0),IF(D49=\"SEINFRA\",VLOOKUP(E49,'[1]SERVIÇOS SEINFRA'!$A:$D,2,0)))),IF(C49=\"INSUMO\",IF(D49=\"SINAPI\",VLOOKUP(E49,'[1]INSUMOS SINAPI'!$A:$D,2,0),IF(D49=\"ORSE\",VLOOKUP(E49,'[1]INSUMOS ORSE'!$A:$D,2,0),IF(D49=\"SEINFRA\",VLOOKUP(E49,'[1]INSUMOS SEINFRA'!$A:$D,2,0),)))))","v":"PINTURA IMUNIZANTE PARA MADEIRA, 1 DEMÃO. AF_01/2021"},{"$f":"IF(C49=\"SERVIÇO\",IF(D49=\"SINAPI\",VLOOKUP(E49,'[1]SERVIÇOS SINAPI'!$A:$D,3,0),IF(D49=\"ORSE\",VLOOKUP(E49,'[1]SERVIÇOS ORSE'!$A:$D,3,0),IF(D49=\"SEINFRA\",VLOOKUP(E49,'[1]SERVIÇOS SEINFRA'!$A:$D,3,0)))),IF(C49=\"INSUMO\",IF(D49=\"SINAPI\",VLOOKUP(E49,'[1]INSUMOS SINAPI'!$A:$D,3,0),IF(D49=\"ORSE\",VLOOKUP(E49,'[1]INSUMOS ORSE'!$A:$D,3,0),IF(D49=\"SEINFRA\",VLOOKUP(E49,'[1]INSUMOS SEINFRA'!$A:$D,3,0),)))))","v":"M²"},{"$f":"'[1]Memória de Cálculo'!$L$226*$G$7","v":1440.12},{"$f":"IF(C49=\"SERVIÇO\",IF(D49=\"SINAPI\",VLOOKUP(E49,'[1]SERVIÇOS SINAPI'!$A:$D,4,0),IF(D49=\"ORSE\",VLOOKUP(E49,'[1]SERVIÇOS ORSE'!$A:$D,4,0),IF(D49=\"SEINFRA\",VLOOKUP(E49,'[1]SERVIÇOS SEINFRA'!$A:$D,4,0)))),IF(C49=\"INSUMO\",IF(D49=\"SINAPI\",VLOOKUP(E49,'[1]INSUMOS SINAPI'!$A:$D,4,0),IF(D49=\"ORSE\",VLOOKUP(E49,'[1]INSUMOS ORSE'!$A:$D,4,0),IF(D49=\"SEINFRA\",VLOOKUP(E49,'[1]INSUMOS SEINFRA'!$A:$D,4,0),)))))","v":9.16},11.31,16287.76,2]
[null,"2.1.29","SERVIÇO","SINAPI",94201,{"$f":"IF(C50=\"SERVIÇO\",IF(D50=\"SINAPI\",VLOOKUP(E50,'[1]SERVIÇOS SINAPI'!$A:$D,2,0),IF(D50=\"ORSE\",VLOOKUP(E50,'[1]SERVIÇOS ORSE'!$A:$D,2,0),IF(D50=\"SEINFRA\",VLOOKUP(E50,'[1]SERVIÇOS SEINFRA'!$A:$D,2,0)))),IF(C50=\"INSUMO\",IF(D50=\"SINAPI\",VLOOKUP(E50,'[1]INSUMOS SINAPI'!$A:$D,2,0),IF(D50=\"ORSE\",VLOOKUP(E50,'[1]INSUMOS ORSE'!$A:$D,2,0),IF(D50=\"SEINFRA\",VLOOKUP(E50,'[1]INSUMOS SEINFRA'!$A:$D,2,0),)))))","v":"TELHAMENTO COM TELHA CERÂMICA CAPA-CANAL, TIPO COLONIAL, COM ATÉ 2 ÁGUAS, INCLUSO TRANSPORTE VERTICAL. AF_07/2019"},{"$f":"IF(C50=\"SERVIÇO\",IF(D50=\"SINAPI\",VLOOKUP(E50,'[1]SERVIÇOS SINAPI'!$A:$D,3,0),IF(D50=\"ORSE\",VLOOKUP(E50,'[1]SERVIÇOS ORSE'!$A:$D,3,0),IF(D50=\"SEINFRA\",VLOOKUP(E50,'[1]SERVIÇOS SEINFRA'!$A:$D,3,0)))),IF(C50=\"INSUMO\",IF(D50=\"SINAPI\",VLOOKUP(E50,'[1]INSUMOS SINAPI'!$A:$D,3,0),IF(D50=\"ORSE\",VLOOKUP(E50,'[1]INSUMOS ORSE'!$A:$D,3,0),IF(D50=\"SEINFRA\",VLOOKUP(E50,'[1]INSUMOS SEINFRA'!$A:$D,3,0),)))))","v":"M²"},{"$f":"'[1]Memória de Cálculo'!$L$233*$G$7","v":1440.12},{"$f":"IF(C50=\"SERVIÇO\",IF(D50=\"SINAPI\",VLOOKUP(E50,'[1]SERVIÇOS SINAPI'!$A:$D,4,0),IF(D50=\"ORSE\",VLOOKUP(E50,'[1]SERVIÇOS ORSE'!$A:$D,4,0),IF(D50=\"SEINFRA\",VLOOKUP(E50,'[1]SERVIÇOS SEINFRA'!$A:$D,4,0)))),IF(C50=\"INSUMO\",IF(D50=\"SINAPI\",VLOOKUP(E50,'[1]INSUMOS SINAPI'!$A:$D,4,0),IF(D50=\"ORSE\",VLOOKUP(E50,'[1]INSUMOS ORSE'!$A:$D,4,0),IF(D50=\"SEINFRA\",VLOOKUP(E50,'[1]INSUMOS SEINFRA'!$A:$D,4,0),)))))","v":47.74},58.96,84909.48,2]
[null,"2.1.30","SERVIÇO","orse",10821,{"$f":"IF(C51=\"SERVIÇO\",IF(D51=\"SINAPI\",VLOOKUP(E51,'[1]SERVIÇOS SINAPI'!$A:$D,2,0),IF(D51=\"ORSE\",VLOOKUP(E51,'[1]SERVIÇOS ORSE'!$A:$D,2,0),IF(D51=\"SEINFRA\",VLOOKUP(E51,'[1]SERVIÇOS SEINFRA'!$A:$D,2,0)))),IF(C51=\"INSUMO\",IF(D51=\"SINAPI\",VLOOKUP(E51,'[1]INSUMOS SINAPI'!$A:$D,2,0),IF(D51=\"ORSE\",VLOOKUP(E51,'[1]INSUMOS ORSE'!$A:$D,2,0),IF(D51=\"SEINFRA\",VLOOKUP(E51,'[1]INSUMOS SEINFRA'!$A:$D,2,0),)))))","v":"CUMEEIRA PARA TELHA CANAL REDONDA, DIMENSÕES 20 X 41,5CM, INCLUSIVE EMASSAMEN TO"},{"$f":"IF(C51=\"SERVIÇO\",IF(D51=\"SINAPI\",VLOOKUP(E51,'[1]SERVIÇOS SINAPI'!$A:$D,3,0),IF(D51=\"ORSE\",VLOOKUP(E51,'[1]SERVIÇOS ORSE'!$A:$D,3,0),IF(D51=\"SEINFRA\",VLOOKUP(E51,'[1]SERVIÇOS SEINFRA'!$A:$D,3,0)))),IF(C51=\"INSUMO\",IF(D51=\"SINAPI\",VLOOKUP(E51,'[1]INSUMOS SINAPI'!$A:$D,3,0),IF(D51=\"ORSE\",VLOOKUP(E51,'[1]INSUMOS ORSE'!$A:$D,3,0),IF(D51=\"SEINFRA\",VLOOKUP(E51,'[1]INSUMOS SEINFRA'!$A:$D,3,0),)))))","v":"M"},{"$f":"'[1]Memória de Cálculo'!$L$237*$G$7","v":129},{"$f":"IF(C51=\"SERVIÇO\",IF(D51=\"SINAPI\",VLOOKUP(E51,'[1]SERVIÇOS SINAPI'!$A:$D,4,0),IF(D51=\"ORSE\",VLOOKUP(E51,'[1]SERVIÇOS ORSE'!$A:$D,4,0),IF(D51=\"SEINFRA\",VLOOKUP(E51,'[1]SERVIÇOS SEINFRA'!$A:$D,4,0)))),IF(C51=\"INSUMO\",IF(D51=\"SINAPI\",VLOOKUP(E51,'[1]INSUMOS SINAPI'!$A:$D,4,0),IF(D51=\"ORSE\",VLOOKUP(E51,'[1]INSUMOS ORSE'!$A:$D,4,0),IF(D51=\"SEINFRA\",VLOOKUP(E51,'[1]INSUMOS SEINFRA'!$A:$D,4,0),)))))","v":49.67},61.34,7912.86,2]
[null,"2.1.31","SERVIÇO","ORSE",248,{"$f":"IF(C52=\"SERVIÇO\",IF(D52=\"SINAPI\",VLOOKUP(E52,'[1]SERVIÇOS SINAPI'!$A:$D,2,0),IF(D52=\"ORSE\",VLOOKUP(E52,'[1]SERVIÇOS ORSE'!$A:$D,2,0),IF(D52=\"SEINFRA\",VLOOKUP(E52,'[1]SERVIÇOS SEINFRA'!$A:$D,2,0)))),IF(C52=\"INSUMO\",IF(D52=\"SINAPI\",VLOOKUP(E52,'[1]INSUMOS SINAPI'!$A:$D,2,0),IF(D52=\"ORSE\",VLOOKUP(E52,'[1]INSUMOS ORSE'!$A:$D,2,0),IF(D52=\"SEINFRA\",VLOOKUP(E52,'[1]INSUMOS SEINFRA'!$A:$D,2,0),)))))","v":"EMASSAMENTO DE BEIRAL DE TELHA CERAMICA"},{"$f":"IF(C52=\"SERVIÇO\",IF(D52=\"SINAPI\",VLOOKUP(E52,'[1]SERVIÇOS SINAPI'!$A:$D,3,0),IF(D52=\"ORSE\",VLOOKUP(E52,'[1]SERVIÇOS ORSE'!$A:$D,3,0),IF(D52=\"SEINFRA\",VLOOKUP(E52,'[1]SERVIÇOS SEINFRA'!$A:$D,3,0)))),IF(C52=\"INSUMO\",IF(D52=\"SINAPI\",VLOOKUP(E52,'[1]INSUMOS SINAPI'!$A:$D,3,0),IF(D52=\"ORSE\",VLOOKUP(E52,'[1]INSUMOS ORSE'!$A:$D,3,0),IF(D52=\"SEINFRA\",VLOOKUP(E52,'[1]INSUMOS SEINFRA'!$A:$D,3,0),)))))","v":"M"},{"$f":"'[1]Memória de Cálculo'!$L$247*$G$7","v":400.2},{"$f":"IF(C52=\"SERVIÇO\",IF(D52=\"SINAPI\",VLOOKUP(E52,'[1]SERVIÇOS SINAPI'!$A:$D,4,0),IF(D52=\"ORSE\",VLOOKUP(E52,'[1]SERVIÇOS ORSE'!$A:$D,4,0),IF(D52=\"SEINFRA\",VLOOKUP(E52,'[1]SERVIÇOS SEINFRA'!$A:$D,4,0)))),IF(C52=\"INSUMO\",IF(D52=\"SINAPI\",VLOOKUP(E52,'[1]INSUMOS SINAPI'!$A:$D,4,0),IF(D52=\"ORSE\",VLOOKUP(E52,'[1]INSUMOS ORSE'!$A:$D,4,0),IF(D52=\"SEINFRA\",VLOOKUP(E52,'[1]INSUMOS SEINFRA'!$A:$D,4,0),)))))","v":5.85},7.22,2889.44,2]
[null,"2.1.32","SERVIÇO","SINAPI",98557,{"$f":"IF(C53=\"SERVIÇO\",IF(D53=\"SINAPI\",VLOOKUP(E53,'[1]SERVIÇOS SINAPI'!$A:$D,2,0),IF(D53=\"ORSE\",VLOOKUP(E53,'[1]SERVIÇOS ORSE'!$A:$D,2,0),IF(D53=\"SEINFRA\",VLOOKUP(E53,'[1]SERVIÇOS SEINFRA'!$A:$D,2,0)))),IF(C53=\"INSUMO\",IF(D53=\"SINAPI\",VLOOKUP(E53,'[1]INSUMOS SINAPI'!$A:$D,2,0),IF(D53=\"ORSE\",VLOOKUP(E53,'[1]INSUMOS ORSE'!$A:$D,2,0),IF(D53=\"SEINFRA\",VLOOKUP(E53,'[1]INSUMOS SEINFRA'!$A:$D,2,0),)))))","v":"IMPERMEABILIZAÇÃO DE SUPERFÍCIE COM EMULSÃO ASFÁLTICA, 2 DEMÃOS AF_06/2018"},{"$f":"IF(C53=\"SERVIÇO\",IF(D53=\"SINAPI\",VLOOKUP(E53,'[1]SERVIÇOS SINAPI'!$A:$D,3,0),IF(D53=\"ORSE\",VLOOKUP(E53,'[1]SERVIÇOS ORSE'!$A:$D,3,0),IF(D53=\"SEINFRA\",VLOOKUP(E53,'[1]SERVIÇOS SEINFRA'!$A:$D,3,0)))),IF(C53=\"INSUMO\",IF(D53=\"SINAPI\",VLOOKUP(E53,'[1]INSUMOS SINAPI'!$A:$D,3,0),IF(D53=\"ORSE\",VLOOKUP(E53,'[1]INSUMOS ORSE'!$A:$D,3,0),IF(D53=\"SEINFRA\",VLOOKUP(E53,'[1]INSUMOS SEINFRA'!$A:$D,3,0),)))))","v":"M²"},{"$f":"'[1]Memória de Cálculo'!$L$255*$G$7","v":516.6},{"$f":"IF(C53=\"SERVIÇO\",IF(D53=\"SINAPI\",VLOOKUP(E53,'[1]SERVIÇOS SINAPI'!$A:$D,4,0),IF(D53=\"ORSE\",VLOOKUP(E53,'[1]SERVIÇOS ORSE'!$A:$D,4,0),IF(D53=\"SEINFRA\",VLOOKUP(E53,'[1]SERVIÇOS SEINFRA'!$A:$D,4,0)))),IF(C53=\"INSUMO\",IF(D53=\"SINAPI\",VLOOKUP(E53,'[1]INSUMOS SINAPI'!$A:$D,4,0),IF(D53=\"ORSE\",VLOOKUP(E53,'[1]INSUMOS ORSE'!$A:$D,4,0),IF(D53=\"SEINFRA\",VLOOKUP(E53,'[1]INSUMOS SEINFRA'!$A:$D,4,0),)))))","v":35.52},43.87,22663.24,2]
[null,"2.1.33","SERVIÇO","SINAPI",87897,{"$f":"IF(C54=\"SERVIÇO\",IF(D54=\"SINAPI\",VLOOKUP(E54,'[1]SERVIÇOS SINAPI'!$A:$D,2,0),IF(D54=\"ORSE\",VLOOKUP(E54,'[1]SERVIÇOS ORSE'!$A:$D,2,0),IF(D54=\"SEINFRA\",VLOOKUP(E54,'[1]SERVIÇOS SEINFRA'!$A:$D,2,0)))),IF(C54=\"INSUMO\",IF(D54=\"SINAPI\",VLOOKUP(E54,'[1]INSUMOS SINAPI'!$A:$D,2,0),IF(D54=\"ORSE\",VLOOKUP(E54,'[1]INSUMOS ORSE'!$A:$D,2,0),IF(D54=\"SEINFRA\",VLOOKUP(E54,'[1]INSUMOS SEINFRA'!$A:$D,2,0),)))))","v":"CHAPISCO APLICADO EM ALVENARIA (SEM PRESENÇA DE VÃOS) E ESTRUTURAS DE CONCRETO DE FACHADA, COM EQUIPAMENTO DE PROJEÇÃO.  ARGAMASSA TRAÇO 1:3 COM PREPARO EM BETONEIRA 400 L. AF_06/2014"},{"$f":"IF(C54=\"SERVIÇO\",IF(D54=\"SINAPI\",VLOOKUP(E54,'[1]SERVIÇOS SINAPI'!$A:$D,3,0),IF(D54=\"ORSE\",VLOOKUP(E54,'[1]SERVIÇOS ORSE'!$A:$D,3,0),IF(D54=\"SEINFRA\",VLOOKUP(E54,'[1]SERVIÇOS SEINFRA'!$A:$D,3,0)))),IF(C54=\"INSUMO\",IF(D54=\"SINAPI\",VLOOKUP(E54,'[1]INSUMOS SINAPI'!$A:$D,3,0),IF(D54=\"ORSE\",VLOOKUP(E54,'[1]INSUMOS ORSE'!$A:$D,3,0),IF(D54=\"SEINFRA\",VLOOKUP(E54,'[1]INSUMOS SEINFRA'!$A:$D,3,0),)))))","v":"M²"},{"$f":"'[1]Memória de Cálculo'!$L$280*$G$7","v":4956.42},{"$f":"IF(C54=\"SERVIÇO\",IF(D54=\"SINAPI\",VLOOKUP(E54,'[1]SERVIÇOS SINAPI'!$A:$D,4,0),IF(D54=\"ORSE\",VLOOKUP(E54,'[1]SERVIÇOS ORSE'!$A:$D,4,0),IF(D54=\"SEINFRA\",VLOOKUP(E54,'[1]SERVIÇOS SEINFRA'!$A:$D,4,0)))),IF(C54=\"INSUMO\",IF(D54=\"SINAPI\",VLOOKUP(E54,'[1]INSUMOS SINAPI'!$A:$D,4,0),IF(D54=\"ORSE\",VLOOKUP(E54,'[1]INSUMOS ORSE'!$A:$D,4,0),IF(D54=\"SEINFRA\",VLOOKUP(E54,'[1]INSUMOS SEINFRA'!$A:$D,4,0),)))))","v":5.22},6.45,31968.91,2]
[null,"2.1.34","SERVIÇO","SINAPI",87553,{"$f":"IF(C55=\"SERVIÇO\",IF(D55=\"SINAPI\",VLOOKUP(E55,'[1]SERVIÇOS SINAPI'!$A:$D,2,0),IF(D55=\"ORSE\",VLOOKUP(E55,'[1]SERVIÇOS ORSE'!$A:$D,2,0),IF(D55=\"SEINFRA\",VLOOKUP(E55,'[1]SERVIÇOS SEINFRA'!$A:$D,2,0)))),IF(C55=\"INSUMO\",IF(D55=\"SINAPI\",VLOOKUP(E55,'[1]INSUMOS SINAPI'!$A:$D,2,0),IF(D55=\"ORSE\",VLOOKUP(E55,'[1]INSUMOS ORSE'!$A:$D,2,0),IF(D55=\"SEINFRA\",VLOOKUP(E55,'[1]INSUMOS SEINFRA'!$A:$D,2,0),)))))","v":"EMBOÇO, PARA RECEBIMENTO DE CERÂMICA, EM ARGAMASSA TRAÇO 1:2:8, PREPARO MECÂNICO COM BETONEIRA 400L, APLICADO MANUALMENTE EM FACES INTERNAS DE PAREDES, PARA AMBIENTE COM ÁREA MAIOR QUE 10M2, ESPESSURA DE 10MM, COM EXECUÇÃO DE TALISCAS. AF_06/2014"},{"$f":"IF(C55=\"SERVIÇO\",IF(D55=\"SINAPI\",VLOOKUP(E55,'[1]SERVIÇOS SINAPI'!$A:$D,3,0),IF(D55=\"ORSE\",VLOOKUP(E55,'[1]SERVIÇOS ORSE'!$A:$D,3,0),IF(D55=\"SEINFRA\",VLOOKUP(E55,'[1]SERVIÇOS SEINFRA'!$A:$D,3,0)))),IF(C55=\"INSUMO\",IF(D55=\"SINAPI\",VLOOKUP(E55,'[1]INSUMOS SINAPI'!$A:$D,3,0),IF(D55=\"ORSE\",VLOOKUP(E55,'[1]INSUMOS ORSE'!$A:$D,3,0),IF(D55=\"SEINFRA\",VLOOKUP(E55,'[1]INSUMOS SEINFRA'!$A:$D,3,0),)))))","v":"M²"},{"$f":"'[1]Memória de Cálculo'!$L$294*$G$7","v":1263.96},{"$f":"IF(C55=\"SERVIÇO\",IF(D55=\"SINAPI\",VLOOKUP(E55,'[1]SERVIÇOS SINAPI'!$A:$D,4,0),IF(D55=\"ORSE\",VLOOKUP(E55,'[1]SERVIÇOS ORSE'!$A:$D,4,0),IF(D55=\"SEINFRA\",VLOOKUP(E55,'[1]SERVIÇOS SEINFRA'!$A:$D,4,0)))),IF(C55=\"INSUMO\",IF(D55=\"SINAPI\",VLOOKUP(E55,'[1]INSUMOS SINAPI'!$A:$D,4,0),IF(D55=\"ORSE\",VLOOKUP(E55,'[1]INSUMOS ORSE'!$A:$D,4,0),IF(D55=\"SEINFRA\",VLOOKUP(E55,'[1]INSUMOS SEINFRA'!$A:$D,4,0),)))))","v":16.82},20.77,26252.45,2]
[null,"2.1.35","SERVIÇO","SINAPI",87547,{"$f":"IF(C56=\"SERVIÇO\",IF(D56=\"SINAPI\",VLOOKUP(E56,'[1]SERVIÇOS SINAPI'!$A:$D,2,0),IF(D56=\"ORSE\",VLOOKUP(E56,'[1]SERVIÇOS ORSE'!$A:$D,2,0),IF(D56=\"SEINFRA\",VLOOKUP(E56,'[1]SERVIÇOS SEINFRA'!$A:$D,2,0)))),IF(C56=\"INSUMO\",IF(D56=\"SINAPI\",VLOOKUP(E56,'[1]INSUMOS SINAPI'!$A:$D,2,0),IF(D56=\"ORSE\",VLOOKUP(E56,'[1]INSUMOS ORSE'!$A:$D,2,0),IF(D56=\"SEINFRA\",VLOOKUP(E56,'[1]INSUMOS SEINFRA'!$A:$D,2,0),)))))","v":"MASSA ÚNICA, PARA RECEBIMENTO DE PINTURA, EM ARGAMASSA TRAÇO 1:2:8, PREPARO MECÂNICO COM BETONEIRA 400L, APLICADA MANUALMENTE EM FACES INTERNAS DE PAREDES, ESPESSURA DE 10MM, COM EXECUÇÃO DE TALISCAS. AF_06/2014"},{"$f":"IF(C56=\"SERVIÇO\",IF(D56=\"SINAPI\",VLOOKUP(E56,'[1]SERVIÇOS SINAPI'!$A:$D,3,0),IF(D56=\"ORSE\",VLOOKUP(E56,'[1]SERVIÇOS ORSE'!$A:$D,3,0),IF(D56=\"SEINFRA\",VLOOKUP(E56,'[1]SERVIÇOS SEINFRA'!$A:$D,3,0)))),IF(C56=\"INSUMO\",IF(D56=\"SINAPI\",VLOOKUP(E56,'[1]INSUMOS SINAPI'!$A:$D,3,0),IF(D56=\"ORSE\",VLOOKUP(E56,'[1]INSUMOS ORSE'!$A:$D,3,0),IF(D56=\"SEINFRA\",VLOOKUP(E56,'[1]INSUMOS SEINFRA'!$A:$D,3,0),)))))","v":"M²"},{"$f":"'[1]Memória de Cálculo'!$L$313*$G$7","v":3099.06},{"$f":"IF(C56=\"SERVIÇO\",IF(D56=\"SINAPI\",VLOOKUP(E56,'[1]SERVIÇOS SINAPI'!$A:$D,4,0),IF(D56=\"ORSE\",VLOOKUP(E56,'[1]SERVIÇOS ORSE'!$A:$D,4,0),IF(D56=\"SEINFRA\",VLOOKUP(E56,'[1]SERVIÇOS SEINFRA'!$A:$D,4,0)))),IF(C56=\"INSUMO\",IF(D56=\"SINAPI\",VLOOKUP(E56,'[1]INSUMOS SINAPI'!$A:$D,4,0),IF(D56=\"ORSE\",VLOOKUP(E56,'[1]INSUMOS ORSE'!$A:$D,4,0),IF(D56=\"SEINFRA\",VLOOKUP(E56,'[1]INSUMOS SEINFRA'!$A:$D,4,0),)))))","v":20.99},25.92,80327.64,2]
[null,"2.1.36","SERVIÇO","SINAPI",93392,{"$f":"IF(C57=\"SERVIÇO\",IF(D57=\"SINAPI\",VLOOKUP(E57,'[1]SERVIÇOS SINAPI'!$A:$D,2,0),IF(D57=\"ORSE\",VLOOKUP(E57,'[1]SERVIÇOS ORSE'!$A:$D,2,0),IF(D57=\"SEINFRA\",VLOOKUP(E57,'[1]SERVIÇOS SEINFRA'!$A:$D,2,0)))),IF(C57=\"INSUMO\",IF(D57=\"SINAPI\",VLOOKUP(E57,'[1]INSUMOS SINAPI'!$A:$D,2,0),IF(D57=\"ORSE\",VLOOKUP(E57,'[1]INSUMOS ORSE'!$A:$D,2,0),IF(D57=\"SEINFRA\",VLOOKUP(E57,'[1]INSUMOS SEINFRA'!$A:$D,2,0),)))))","v":"REVESTIMENTO CERÂMICO PARA PAREDES INTERNAS COM PLACAS TIPO ESMALTADA PADRÃO POPULAR DE DIMENSÕES 20X20 CM, ARGAMASSA TIPO AC I, APLICADAS EM AMBIENTES DE ÁREA MENOR QUE 5 M2 NA ALTURA INTEIRA DAS PAREDES. AF_06/2014"},{"$f":"IF(C57=\"SERVIÇO\",IF(D57=\"SINAPI\",VLOOKUP(E57,'[1]SERVIÇOS SINAPI'!$A:$D,3,0),IF(D57=\"ORSE\",VLOOKUP(E57,'[1]SERVIÇOS ORSE'!$A:$D,3,0),IF(D57=\"SEINFRA\",VLOOKUP(E57,'[1]SERVIÇOS SEINFRA'!$A:$D,3,0)))),IF(C57=\"INSUMO\",IF(D57=\"SINAPI\",VLOOKUP(E57,'[1]INSUMOS SINAPI'!$A:$D,3,0),IF(D57=\"ORSE\",VLOOKUP(E57,'[1]INSUMOS ORSE'!$A:$D,3,0),IF(D57=\"SEINFRA\",VLOOKUP(E57,'[1]INSUMOS SEINFRA'!$A:$D,3,0),)))))","v":"M²"},{"$f":"'[1]Memória de Cálculo'!$L$327*$G$7","v":1263.96},{"$f":"IF(C57=\"SERVIÇO\",IF(D57=\"SINAPI\",VLOOKUP(E57,'[1]SERVIÇOS SINAPI'!$A:$D,4,0),IF(D57=\"ORSE\",VLOOKUP(E57,'[1]SERVIÇOS ORSE'!$A:$D,4,0),IF(D57=\"SEINFRA\",VLOOKUP(E57,'[1]SERVIÇOS SEINFRA'!$A:$D,4,0)))),IF(C57=\"INSUMO\",IF(D57=\"SINAPI\",VLOOKUP(E57,'[1]INSUMOS SINAPI'!$A:$D,4,0),IF(D57=\"ORSE\",VLOOKUP(E57,'[1]INSUMOS ORSE'!$A:$D,4,0),IF(D57=\"SEINFRA\",VLOOKUP(E57,'[1]INSUMOS SEINFRA'!$A:$D,4,0),)))))","v":58.98},72.84,92066.85,2]
[null,"2.1.37","SERVIÇO","SINAPI",88489,{"$f":"IF(C58=\"SERVIÇO\",IF(D58=\"SINAPI\",VLOOKUP(E58,'[1]SERVIÇOS SINAPI'!$A:$D,2,0),IF(D58=\"ORSE\",VLOOKUP(E58,'[1]SERVIÇOS ORSE'!$A:$D,2,0),IF(D58=\"SEINFRA\",VLOOKUP(E58,'[1]SERVIÇOS SEINFRA'!$A:$D,2,0)))),IF(C58=\"INSUMO\",IF(D58=\"SINAPI\",VLOOKUP(E58,'[1]INSUMOS SINAPI'!$A:$D,2,0),IF(D58=\"ORSE\",VLOOKUP(E58,'[1]INSUMOS ORSE'!$A:$D,2,0),IF(D58=\"SEINFRA\",VLOOKUP(E58,'[1]INSUMOS SEINFRA'!$A:$D,2,0),)))))","v":"APLICAÇÃO MANUAL DE PINTURA COM TINTA LÁTEX ACRÍLICA EM PAREDES, DUAS DEMÃOS. AF_06/2014"},{"$f":"IF(C58=\"SERVIÇO\",IF(D58=\"SINAPI\",VLOOKUP(E58,'[1]SERVIÇOS SINAPI'!$A:$D,3,0),IF(D58=\"ORSE\",VLOOKUP(E58,'[1]SERVIÇOS ORSE'!$A:$D,3,0),IF(D58=\"SEINFRA\",VLOOKUP(E58,'[1]SERVIÇOS SEINFRA'!$A:$D,3,0)))),IF(C58=\"INSUMO\",IF(D58=\"SINAPI\",VLOOKUP(E58,'[1]INSUMOS SINAPI'!$A:$D,3,0),IF(D58=\"ORSE\",VLOOKUP(E58,'[1]INSUMOS ORSE'!$A:$D,3,0),IF(D58=\"SEINFRA\",VLOOKUP(E58,'[1]INSUMOS SEINFRA'!$A:$D,3,0),)))))","v":"M²"},{"$f":"'[1]Memória de Cálculo'!$L$347*$G$7","v":3099.06},{"$f":"IF(C58=\"SERVIÇO\",IF(D58=\"SINAPI\",VLOOKUP(E58,'[1]SERVIÇOS SINAPI'!$A:$D,4,0),IF(D58=\"ORSE\",VLOOKUP(E58,'[1]SERVIÇOS ORSE'!$A:$D,4,0),IF(D58=\"SEINFRA\",VLOOKUP(E58,'[1]SERVIÇOS SEINFRA'!$A:$D,4,0)))),IF(C58=\"INSUMO\",IF(D58=\"SINAPI\",VLOOKUP(E58,'[1]INSUMOS SINAPI'!$A:$D,4,0),IF(D58=\"ORSE\",VLOOKUP(E58,'[1]INSUMOS ORSE'!$A:$D,4,0),IF(D58=\"SEINFRA\",VLOOKUP(E58,'[1]INSUMOS SEINFRA'!$A:$D,4,0),)))))","v":13.67},16.88,52312.13,2]
[null,"2.1.38","SERVIÇO","SINAPI",88488,{"$f":"IF(C59=\"SERVIÇO\",IF(D59=\"SINAPI\",VLOOKUP(E59,'[1]SERVIÇOS SINAPI'!$A:$D,2,0),IF(D59=\"ORSE\",VLOOKUP(E59,'[1]SERVIÇOS ORSE'!$A:$D,2,0),IF(D59=\"SEINFRA\",VLOOKUP(E59,'[1]SERVIÇOS SEINFRA'!$A:$D,2,0)))),IF(C59=\"INSUMO\",IF(D59=\"SINAPI\",VLOOKUP(E59,'[1]INSUMOS SINAPI'!$A:$D,2,0),IF(D59=\"ORSE\",VLOOKUP(E59,'[1]INSUMOS ORSE'!$A:$D,2,0),IF(D59=\"SEINFRA\",VLOOKUP(E59,'[1]INSUMOS SEINFRA'!$A:$D,2,0),)))))","v":"APLICAÇÃO MANUAL DE PINTURA COM TINTA LÁTEX ACRÍLICA EM TETO, DUAS DEMÃOS. AF_06/2014"},{"$f":"IF(C59=\"SERVIÇO\",IF(D59=\"SINAPI\",VLOOKUP(E59,'[1]SERVIÇOS SINAPI'!$A:$D,3,0),IF(D59=\"ORSE\",VLOOKUP(E59,'[1]SERVIÇOS ORSE'!$A:$D,3,0),IF(D59=\"SEINFRA\",VLOOKUP(E59,'[1]SERVIÇOS SEINFRA'!$A:$D,3,0)))),IF(C59=\"INSUMO\",IF(D59=\"SINAPI\",VLOOKUP(E59,'[1]INSUMOS SINAPI'!$A:$D,3,0),IF(D59=\"ORSE\",VLOOKUP(E59,'[1]INSUMOS ORSE'!$A:$D,3,0),IF(D59=\"SEINFRA\",VLOOKUP(E59,'[1]INSUMOS SEINFRA'!$A:$D,3,0),)))))","v":"M²"},{"$f":"'[1]Memória de Cálculo'!$L$356*$G$7","v":417.9},{"$f":"IF(C59=\"SERVIÇO\",IF(D59=\"SINAPI\",VLOOKUP(E59,'[1]SERVIÇOS SINAPI'!$A:$D,4,0),IF(D59=\"ORSE\",VLOOKUP(E59,'[1]SERVIÇOS ORSE'!$A:$D,4,0),IF(D59=\"SEINFRA\",VLOOKUP(E59,'[1]SERVIÇOS SEINFRA'!$A:$D,4,0)))),IF(C59=\"INSUMO\",IF(D59=\"SINAPI\",VLOOKUP(E59,'[1]INSUMOS SINAPI'!$A:$D,4,0),IF(D59=\"ORSE\",VLOOKUP(E59,'[1]INSUMOS ORSE'!$A:$D,4,0),IF(D59=\"SEINFRA\",VLOOKUP(E59,'[1]INSUMOS SEINFRA'!$A:$D,4,0),)))))","v":15.31},18.91,7902.49,2]
[null,"2.1.39","SERVIÇO","SEINFRA","C2899",{"$f":"IF(C60=\"SERVIÇO\",IF(D60=\"SINAPI\",VLOOKUP(E60,'[1]SERVIÇOS SINAPI'!$A:$D,2,0),IF(D60=\"ORSE\",VLOOKUP(E60,'[1]SERVIÇOS ORSE'!$A:$D,2,0),IF(D60=\"SEINFRA\",VLOOKUP(E60,'[1]SERVIÇOS SEINFRA'!$A:$D,2,0)))),IF(C60=\"INSUMO\",IF(D60=\"SINAPI\",VLOOKUP(E60,'[1]INSUMOS SINAPI'!$A:$D,2,0),IF(D60=\"ORSE\",VLOOKUP(E60,'[1]INSUMOS ORSE'!$A:$D,2,0),IF(D60=\"SEINFRA\",VLOOKUP(E60,'[1]INSUMOS SEINFRA'!$A:$D,2,0),)))))","v":"PINTURA LOGOTIPO CAGECE - PROJETO PADRÃO"},{"$f":"IF(C60=\"SERVIÇO\",IF(D60=\"SINAPI\",VLOOKUP(E60,'[1]SERVIÇOS SINAPI'!$A:$D,3,0),IF(D60=\"ORSE\",VLOOKUP(E60,'[1]SERVIÇOS ORSE'!$A:$D,3,0),IF(D60=\"SEINFRA\",VLOOKUP(E60,'[1]SERVIÇOS SEINFRA'!$A:$D,3,0)))),IF(C60=\"INSUMO\",IF(D60=\"SINAPI\",VLOOKUP(E60,'[1]INSUMOS SINAPI'!$A:$D,3,0),IF(D60=\"ORSE\",VLOOKUP(E60,'[1]INSUMOS ORSE'!$A:$D,3,0),IF(D60=\"SEINFRA\",VLOOKUP(E60,'[1]INSUMOS SEINFRA'!$A:$D,3,0),)))))","v":"UN"},{"$f":"'[1]Memória de Cálculo'!$L$360*$G$7","v":6},{"$f":"IF(C60=\"SERVIÇO\",IF(D60=\"SINAPI\",VLOOKUP(E60,'[1]SERVIÇOS SINAPI'!$A:$D,4,0),IF(D60=\"ORSE\",VLOOKUP(E60,'[1]SERVIÇOS ORSE'!$A:$D,4,0),IF(D60=\"SEINFRA\",VLOOKUP(E60,'[1]SERVIÇOS SEINFRA'!$A:$D,4,0)))),IF(C60=\"INSUMO\",IF(D60=\"SINAPI\",VLOOKUP(E60,'[1]INSUMOS SINAPI'!$A:$D,4,0),IF(D60=\"ORSE\",VLOOKUP(E60,'[1]INSUMOS ORSE'!$A:$D,4,0),IF(D60=\"SEINFRA\",VLOOKUP(E60,'[1]INSUMOS SEINFRA'!$A:$D,4,0),)))))","v":284.28},351.09,2106.54,6]
[null,"2.1.40","SERVIÇO","SINAPI",100701,{"$f":"IF(C61=\"SERVIÇO\",IF(D61=\"SINAPI\",VLOOKUP(E61,'[1]SERVIÇOS SINAPI'!$A:$D,2,0),IF(D61=\"ORSE\",VLOOKUP(E61,'[1]SERVIÇOS ORSE'!$A:$D,2,0),IF(D61=\"SEINFRA\",VLOOKUP(E61,'[1]SERVIÇOS SEINFRA'!$A:$D,2,0)))),IF(C61=\"INSUMO\",IF(D61=\"SINAPI\",VLOOKUP(E61,'[1]INSUMOS SINAPI'!$A:$D,2,0),IF(D61=\"ORSE\",VLOOKUP(E61,'[1]INSUMOS ORSE'!$A:$D,2,0),IF(D61=\"SEINFRA\",VLOOKUP(E61,'[1]INSUMOS SEINFRA'!$A:$D,2,0),)))))","v":"PORTA DE FERRO, DE ABRIR, TIPO GRADE COM CHAPA, COM GUARNIÇÕES. AF_12/2019"},{"$f":"IF(C61=\"SERVIÇO\",IF(D61=\"SINAPI\",VLOOKUP(E61,'[1]SERVIÇOS SINAPI'!$A:$D,3,0),IF(D61=\"ORSE\",VLOOKUP(E61,'[1]SERVIÇOS ORSE'!$A:$D,3,0),IF(D61=\"SEINFRA\",VLOOKUP(E61,'[1]SERVIÇOS SEINFRA'!$A:$D,3,0)))),IF(C61=\"INSUMO\",IF(D61=\"SINAPI\",VLOOKUP(E61,'[1]INSUMOS SINAPI'!$A:$D,3,0),IF(D61=\"ORSE\",VLOOKUP(E61,'[1]INSUMOS ORSE'!$A:$D,3,0),IF(D61=\"SEINFRA\",VLOOKUP(E61,'[1]INSUMOS SEINFRA'!$A:$D,3,0),)))))","v":"M²"},{"$f":"'[1]Memória de Cálculo'!$L$373*$G$7","v":108.36},{"$f":"IF(C61=\"SERVIÇO\",IF(D61=\"SINAPI\",VLOOKUP(E61,'[1]SERVIÇOS SINAPI'!$A:$D,4,0),IF(D61=\"ORSE\",VLOOKUP(E61,'[1]SERVIÇOS ORSE'!$A:$D,4,0),IF(D61=\"SEINFRA\",VLOOKUP(E61,'[1]SERVIÇOS SEINFRA'!$A:$D,4,0)))),IF(C61=\"INSUMO\",IF(D61=\"SINAPI\",VLOOKUP(E61,'[1]INSUMOS SINAPI'!$A:$D,4,0),IF(D61=\"ORSE\",VLOOKUP(E61,'[1]INSUMOS ORSE'!$A:$D,4,0),IF(D61=\"SEINFRA\",VLOOKUP(E61,'[1]INSUMOS SEINFRA'!$A:$D,4,0),)))))","v":407.33},503.05,54510.5,5]
[null,"2.1.41","SERVIÇO","SINAPI",94559,{"$f":"IF(C62=\"SERVIÇO\",IF(D62=\"SINAPI\",VLOOKUP(E62,'[1]SERVIÇOS SINAPI'!$A:$D,2,0),IF(D62=\"ORSE\",VLOOKUP(E62,'[1]SERVIÇOS ORSE'!$A:$D,2,0),IF(D62=\"SEINFRA\",VLOOKUP(E62,'[1]SERVIÇOS SEINFRA'!$A:$D,2,0)))),IF(C62=\"INSUMO\",IF(D62=\"SINAPI\",VLOOKUP(E62,'[1]INSUMOS SINAPI'!$A:$D,2,0),IF(D62=\"ORSE\",VLOOKUP(E62,'[1]INSUMOS ORSE'!$A:$D,2,0),IF(D62=\"SEINFRA\",VLOOKUP(E62,'[1]INSUMOS SEINFRA'!$A:$D,2,0),)))))","v":"JANELA DE AÇO TIPO BASCULANTE PARA VIDROS, COM BATENTE, FERRAGENS E PINTURA ANTICORROSIVA. EXCLUSIVE VIDROS, ACABAMENTO, ALIZAR E CONTRAMARCO. FORNECIMENTO E INSTALAÇÃO. AF_12/2019"},{"$f":"IF(C62=\"SERVIÇO\",IF(D62=\"SINAPI\",VLOOKUP(E62,'[1]SERVIÇOS SINAPI'!$A:$D,3,0),IF(D62=\"ORSE\",VLOOKUP(E62,'[1]SERVIÇOS ORSE'!$A:$D,3,0),IF(D62=\"SEINFRA\",VLOOKUP(E62,'[1]SERVIÇOS SEINFRA'!$A:$D,3,0)))),IF(C62=\"INSUMO\",IF(D62=\"SINAPI\",VLOOKUP(E62,'[1]INSUMOS SINAPI'!$A:$D,3,0),IF(D62=\"ORSE\",VLOOKUP(E62,'[1]INSUMOS ORSE'!$A:$D,3,0),IF(D62=\"SEINFRA\",VLOOKUP(E62,'[1]INSUMOS SEINFRA'!$A:$D,3,0),)))))","v":"M²"},{"$f":"'[1]Memória de Cálculo'!$L$380*$G$7","v":26.1},{"$f":"IF(C62=\"SERVIÇO\",IF(D62=\"SINAPI\",VLOOKUP(E62,'[1]SERVIÇOS SINAPI'!$A:$D,4,0),IF(D62=\"ORSE\",VLOOKUP(E62,'[1]SERVIÇOS ORSE'!$A:$D,4,0),IF(D62=\"SEINFRA\",VLOOKUP(E62,'[1]SERVIÇOS SEINFRA'!$A:$D,4,0)))),IF(C62=\"INSUMO\",IF(D62=\"SINAPI\",VLOOKUP(E62,'[1]INSUMOS SINAPI'!$A:$D,4,0),IF(D62=\"ORSE\",VLOOKUP(E62,'[1]INSUMOS ORSE'!$A:$D,4,0),IF(D62=\"SEINFRA\",VLOOKUP(E62,'[1]INSUMOS SEINFRA'!$A:$D,4,0),)))))","v":719.18},888.19,23181.76,5]
[null,"2.1.42","SERVIÇO","ORSE",1883,{"$f":"IF(C63=\"SERVIÇO\",IF(D63=\"SINAPI\",VLOOKUP(E63,'[1]SERVIÇOS SINAPI'!$A:$D,2,0),IF(D63=\"ORSE\",VLOOKUP(E63,'[1]SERVIÇOS ORSE'!$A:$D,2,0),IF(D63=\"SEINFRA\",VLOOKUP(E63,'[1]SERVIÇOS SEINFRA'!$A:$D,2,0)))),IF(C63=\"INSUMO\",IF(D63=\"SINAPI\",VLOOKUP(E63,'[1]INSUMOS SINAPI'!$A:$D,2,0),IF(D63=\"ORSE\",VLOOKUP(E63,'[1]INSUMOS ORSE'!$A:$D,2,0),IF(D63=\"SEINFRA\",VLOOKUP(E63,'[1]INSUMOS SEINFRA'!$A:$D,2,0),)))))","v":"VIDRO FANTASIA CANELADO 4 MM"},{"$f":"IF(C63=\"SERVIÇO\",IF(D63=\"SINAPI\",VLOOKUP(E63,'[1]SERVIÇOS SINAPI'!$A:$D,3,0),IF(D63=\"ORSE\",VLOOKUP(E63,'[1]SERVIÇOS ORSE'!$A:$D,3,0),IF(D63=\"SEINFRA\",VLOOKUP(E63,'[1]SERVIÇOS SEINFRA'!$A:$D,3,0)))),IF(C63=\"INSUMO\",IF(D63=\"SINAPI\",VLOOKUP(E63,'[1]INSUMOS SINAPI'!$A:$D,3,0),IF(D63=\"ORSE\",VLOOKUP(E63,'[1]INSUMOS ORSE'!$A:$D,3,0),IF(D63=\"SEINFRA\",VLOOKUP(E63,'[1]INSUMOS SEINFRA'!$A:$D,3,0),)))))","v":"M²"},{"$f":"'[1]Memória de Cálculo'!$L$387*$G$7","v":26.1},{"$f":"IF(C63=\"SERVIÇO\",IF(D63=\"SINAPI\",VLOOKUP(E63,'[1]SERVIÇOS SINAPI'!$A:$D,4,0),IF(D63=\"ORSE\",VLOOKUP(E63,'[1]SERVIÇOS ORSE'!$A:$D,4,0),IF(D63=\"SEINFRA\",VLOOKUP(E63,'[1]SERVIÇOS SEINFRA'!$A:$D,4,0)))),IF(C63=\"INSUMO\",IF(D63=\"SINAPI\",VLOOKUP(E63,'[1]INSUMOS SINAPI'!$A:$D,4,0),IF(D63=\"ORSE\",VLOOKUP(E63,'[1]INSUMOS ORSE'!$A:$D,4,0),IF(D63=\"SEINFRA\",VLOOKUP(E63,'[1]INSUMOS SEINFRA'!$A:$D,4,0),)))))","v":133.33},164.66,4297.63,2]
[null,"2.1.43","SERVIÇO","SEINFRA","C1426",{"$f":"IF(C64=\"SERVIÇO\",IF(D64=\"SINAPI\",VLOOKUP(E64,'[1]SERVIÇOS SINAPI'!$A:$D,2,0),IF(D64=\"ORSE\",VLOOKUP(E64,'[1]SERVIÇOS ORSE'!$A:$D,2,0),IF(D64=\"SEINFRA\",VLOOKUP(E64,'[1]SERVIÇOS SEINFRA'!$A:$D,2,0)))),IF(C64=\"INSUMO\",IF(D64=\"SINAPI\",VLOOKUP(E64,'[1]INSUMOS SINAPI'!$A:$D,2,0),IF(D64=\"ORSE\",VLOOKUP(E64,'[1]INSUMOS ORSE'!$A:$D,2,0),IF(D64=\"SEINFRA\",VLOOKUP(E64,'[1]INSUMOS SEINFRA'!$A:$D,2,0),)))))","v":"GRADE DE FERRO DE PROTEÇÃO"},{"$f":"IF(C64=\"SERVIÇO\",IF(D64=\"SINAPI\",VLOOKUP(E64,'[1]SERVIÇOS SINAPI'!$A:$D,3,0),IF(D64=\"ORSE\",VLOOKUP(E64,'[1]SERVIÇOS ORSE'!$A:$D,3,0),IF(D64=\"SEINFRA\",VLOOKUP(E64,'[1]SERVIÇOS SEINFRA'!$A:$D,3,0)))),IF(C64=\"INSUMO\",IF(D64=\"SINAPI\",VLOOKUP(E64,'[1]INSUMOS SINAPI'!$A:$D,3,0),IF(D64=\"ORSE\",VLOOKUP(E64,'[1]INSUMOS ORSE'!$A:$D,3,0),IF(D64=\"SEINFRA\",VLOOKUP(E64,'[1]INSUMOS SEINFRA'!$A:$D,3,0),)))))","v":"M²"},{"$f":"'[1]Memória de Cálculo'!$L$394*$G$7","v":85.68},{"$f":"IF(C64=\"SERVIÇO\",IF(D64=\"SINAPI\",VLOOKUP(E64,'[1]SERVIÇOS SINAPI'!$A:$D,4,0),IF(D64=\"ORSE\",VLOOKUP(E64,'[1]SERVIÇOS ORSE'!$A:$D,4,0),IF(D64=\"SEINFRA\",VLOOKUP(E64,'[1]SERVIÇOS SEINFRA'!$A:$D,4,0)))),IF(C64=\"INSUMO\",IF(D64=\"SINAPI\",VLOOKUP(E64,'[1]INSUMOS SINAPI'!$A:$D,4,0),IF(D64=\"ORSE\",VLOOKUP(E64,'[1]INSUMOS ORSE'!$A:$D,4,0),IF(D64=\"SEINFRA\",VLOOKUP(E64,'[1]INSUMOS SEINFRA'!$A:$D,4,0),)))))","v":222.31},274.55,23523.44,5]
[null,"2.1.44","SERVIÇO","SINAPI",91304,{"$f":"IF(C65=\"SERVIÇO\",IF(D65=\"SINAPI\",VLOOKUP(E65,'[1]SERVIÇOS SINAPI'!$A:$D,2,0),IF(D65=\"ORSE\",VLOOKUP(E65,'[1]SERVIÇOS ORSE'!$A:$D,2,0),IF(D65=\"SEINFRA\",VLOOKUP(E65,'[1]SERVIÇOS SEINFRA'!$A:$D,2,0)))),IF(C65=\"INSUMO\",IF(D65=\"SINAPI\",VLOOKUP(E65,'[1]INSUMOS SINAPI'!$A:$D,2,0),IF(D65=\"ORSE\",VLOOKUP(E65,'[1]INSUMOS ORSE'!$A:$D,2,0),IF(D65=\"SEINFRA\",VLOOKUP(E65,'[1]INSUMOS SEINFRA'!$A:$D,2,0),)))))","v":"FECHADURA DE EMBUTIR COM CILINDRO, EXTERNA, COMPLETA, ACABAMENTO PADRÃO POPULAR, INCLUSO EXECUÇÃO DE FURO - FORNECIMENTO E INSTALAÇÃO. AF_12/2019"},{"$f":"IF(C65=\"SERVIÇO\",IF(D65=\"SINAPI\",VLOOKUP(E65,'[1]SERVIÇOS SINAPI'!$A:$D,3,0),IF(D65=\"ORSE\",VLOOKUP(E65,'[1]SERVIÇOS ORSE'!$A:$D,3,0),IF(D65=\"SEINFRA\",VLOOKUP(E65,'[1]SERVIÇOS SEINFRA'!$A:$D,3,0)))),IF(C65=\"INSUMO\",IF(D65=\"SINAPI\",VLOOKUP(E65,'[1]INSUMOS SINAPI'!$A:$D,3,0),IF(D65=\"ORSE\",VLOOKUP(E65,'[1]INSUMOS ORSE'!$A:$D,3,0),IF(D65=\"SEINFRA\",VLOOKUP(E65,'[1]INSUMOS SEINFRA'!$A:$D,3,0),)))))","v":"UN"},{"$f":"'[1]Memória de Cálculo'!$L$410*$G$7","v":78},{"$f":"IF(C65=\"SERVIÇO\",IF(D65=\"SINAPI\",VLOOKUP(E65,'[1]SERVIÇOS SINAPI'!$A:$D,4,0),IF(D65=\"ORSE\",VLOOKUP(E65,'[1]SERVIÇOS ORSE'!$A:$D,4,0),IF(D65=\"SEINFRA\",VLOOKUP(E65,'[1]SERVIÇOS SEINFRA'!$A:$D,4,0)))),IF(C65=\"INSUMO\",IF(D65=\"SINAPI\",VLOOKUP(E65,'[1]INSUMOS SINAPI'!$A:$D,4,0),IF(D65=\"ORSE\",VLOOKUP(E65,'[1]INSUMOS ORSE'!$A:$D,4,0),IF(D65=\"SEINFRA\",VLOOKUP(E65,'[1]INSUMOS SEINFRA'!$A:$D,4,0),)))))","v":87.09},107.56,8389.68,5]
[null,"2.1.45","SERVIÇO","SINAPI",100719,{"$f":"IF(C66=\"SERVIÇO\",IF(D66=\"SINAPI\",VLOOKUP(E66,'[1]SERVIÇOS SINAPI'!$A:$D,2,0),IF(D66=\"ORSE\",VLOOKUP(E66,'[1]SERVIÇOS ORSE'!$A:$D,2,0),IF(D66=\"SEINFRA\",VLOOKUP(E66,'[1]SERVIÇOS SEINFRA'!$A:$D,2,0)))),IF(C66=\"INSUMO\",IF(D66=\"SINAPI\",VLOOKUP(E66,'[1]INSUMOS SINAPI'!$A:$D,2,0),IF(D66=\"ORSE\",VLOOKUP(E66,'[1]INSUMOS ORSE'!$A:$D,2,0),IF(D66=\"SEINFRA\",VLOOKUP(E66,'[1]INSUMOS SEINFRA'!$A:$D,2,0),)))))","v":"PINTURA COM TINTA ALQUÍDICA DE FUNDO (TIPO ZARCÃO) PULVERIZADA SOBRE PERFIL METÁLICO EXECUTADO EM FÁBRICA (POR DEMÃO). AF_01/2020_P"},{"$f":"IF(C66=\"SERVIÇO\",IF(D66=\"SINAPI\",VLOOKUP(E66,'[1]SERVIÇOS SINAPI'!$A:$D,3,0),IF(D66=\"ORSE\",VLOOKUP(E66,'[1]SERVIÇOS ORSE'!$A:$D,3,0),IF(D66=\"SEINFRA\",VLOOKUP(E66,'[1]SERVIÇOS SEINFRA'!$A:$D,3,0)))),IF(C66=\"INSUMO\",IF(D66=\"SINAPI\",VLOOKUP(E66,'[1]INSUMOS SINAPI'!$A:$D,3,0),IF(D66=\"ORSE\",VLOOKUP(E66,'[1]INSUMOS ORSE'!$A:$D,3,0),IF(D66=\"SEINFRA\",VLOOKUP(E66,'[1]INSUMOS SEINFRA'!$A:$D,3,0),)))))","v":"M²"},{"$f":"'[1]Memória de Cálculo'!$L$450*$G$7","v":420.12},{"$f":"IF(C66=\"SERVIÇO\",IF(D66=\"SINAPI\",VLOOKUP(E66,'[1]SERVIÇOS SINAPI'!$A:$D,4,0),IF(D66=\"ORSE\",VLOOKUP(E66,'[1]SERVIÇOS ORSE'!$A:$D,4,0),IF(D66=\"SEINFRA\",VLOOKUP(E66,'[1]SERVIÇOS SEINFRA'!$A:$D,4,0)))),IF(C66=\"INSUMO\",IF(D66=\"SINAPI\",VLOOKUP(E66,'[1]INSUMOS SINAPI'!$A:$D,4,0),IF(D66=\"ORSE\",VLOOKUP(E66,'[1]INSUMOS ORSE'!$A:$D,4,0),IF(D66=\"SEINFRA\",VLOOKUP(E66,'[1]INSUMOS SEINFRA'!$A:$D,4,0),)))))","v":8.05},9.94,4175.99,2]
[null,"2.1.46","SERVIÇO","SINAPI",100745,{"$f":"IF(C67=\"SERVIÇO\",IF(D67=\"SINAPI\",VLOOKUP(E67,'[1]SERVIÇOS SINAPI'!$A:$D,2,0),IF(D67=\"ORSE\",VLOOKUP(E67,'[1]SERVIÇOS ORSE'!$A:$D,2,0),IF(D67=\"SEINFRA\",VLOOKUP(E67,'[1]SERVIÇOS SEINFRA'!$A:$D,2,0)))),IF(C67=\"INSUMO\",IF(D67=\"SINAPI\",VLOOKUP(E67,'[1]INSUMOS SINAPI'!$A:$D,2,0),IF(D67=\"ORSE\",VLOOKUP(E67,'[1]INSUMOS ORSE'!$A:$D,2,0),IF(D67=\"SEINFRA\",VLOOKUP(E67,'[1]INSUMOS SEINFRA'!$A:$D,2,0),)))))","v":"PINTURA COM TINTA ALQUÍDICA DE ACABAMENTO (ESMALTE SINTÉTICO BRILHANTE) PULVERIZADA SOBRE SUPERFÍCIES METÁLICAS (EXCETO PERFIL) EXECUTADO EM OBRA  (POR DEMÃO). AF_01/2020_P"},{"$f":"IF(C67=\"SERVIÇO\",IF(D67=\"SINAPI\",VLOOKUP(E67,'[1]SERVIÇOS SINAPI'!$A:$D,3,0),IF(D67=\"ORSE\",VLOOKUP(E67,'[1]SERVIÇOS ORSE'!$A:$D,3,0),IF(D67=\"SEINFRA\",VLOOKUP(E67,'[1]SERVIÇOS SEINFRA'!$A:$D,3,0)))),IF(C67=\"INSUMO\",IF(D67=\"SINAPI\",VLOOKUP(E67,'[1]INSUMOS SINAPI'!$A:$D,3,0),IF(D67=\"ORSE\",VLOOKUP(E67,'[1]INSUMOS ORSE'!$A:$D,3,0),IF(D67=\"SEINFRA\",VLOOKUP(E67,'[1]INSUMOS SEINFRA'!$A:$D,3,0),)))))","v":"M²"},{"$f":"'[1]Memória de Cálculo'!$L$455*$G$7","v":17.28},{"$f":"IF(C67=\"SERVIÇO\",IF(D67=\"SINAPI\",VLOOKUP(E67,'[1]SERVIÇOS SINAPI'!$A:$D,4,0),IF(D67=\"ORSE\",VLOOKUP(E67,'[1]SERVIÇOS ORSE'!$A:$D,4,0),IF(D67=\"SEINFRA\",VLOOKUP(E67,'[1]SERVIÇOS SEINFRA'!$A:$D,4,0)))),IF(C67=\"INSUMO\",IF(D67=\"SINAPI\",VLOOKUP(E67,'[1]INSUMOS SINAPI'!$A:$D,4,0),IF(D67=\"ORSE\",VLOOKUP(E67,'[1]INSUMOS ORSE'!$A:$D,4,0),IF(D67=\"SEINFRA\",VLOOKUP(E67,'[1]INSUMOS SEINFRA'!$A:$D,4,0),)))))","v":18.64},23.02,397.79,2]
[null,"2.1.47","SERVIÇO","ORSE",11363,{"$f":"IF(C68=\"SERVIÇO\",IF(D68=\"SINAPI\",VLOOKUP(E68,'[1]SERVIÇOS SINAPI'!$A:$D,2,0),IF(D68=\"ORSE\",VLOOKUP(E68,'[1]SERVIÇOS ORSE'!$A:$D,2,0),IF(D68=\"SEINFRA\",VLOOKUP(E68,'[1]SERVIÇOS SEINFRA'!$A:$D,2,0)))),IF(C68=\"INSUMO\",IF(D68=\"SINAPI\",VLOOKUP(E68,'[1]INSUMOS SINAPI'!$A:$D,2,0),IF(D68=\"ORSE\",VLOOKUP(E68,'[1]INSUMOS ORSE'!$A:$D,2,0),IF(D68=\"SEINFRA\",VLOOKUP(E68,'[1]INSUMOS SEINFRA'!$A:$D,2,0),)))))","v":"PRATELEIRA EM GRANITO VERDE UBATUBA, ESP=2CM, INCLUSIVE TESTEIRA DE 10CM"},{"$f":"IF(C68=\"SERVIÇO\",IF(D68=\"SINAPI\",VLOOKUP(E68,'[1]SERVIÇOS SINAPI'!$A:$D,3,0),IF(D68=\"ORSE\",VLOOKUP(E68,'[1]SERVIÇOS ORSE'!$A:$D,3,0),IF(D68=\"SEINFRA\",VLOOKUP(E68,'[1]SERVIÇOS SEINFRA'!$A:$D,3,0)))),IF(C68=\"INSUMO\",IF(D68=\"SINAPI\",VLOOKUP(E68,'[1]INSUMOS SINAPI'!$A:$D,3,0),IF(D68=\"ORSE\",VLOOKUP(E68,'[1]INSUMOS ORSE'!$A:$D,3,0),IF(D68=\"SEINFRA\",VLOOKUP(E68,'[1]INSUMOS SEINFRA'!$A:$D,3,0),)))))","v":"M²"},{"$f":"'[1]Memória de Cálculo'!$L$455*$G$7","v":17.28},{"$f":"IF(C68=\"SERVIÇO\",IF(D68=\"SINAPI\",VLOOKUP(E68,'[1]SERVIÇOS SINAPI'!$A:$D,4,0),IF(D68=\"ORSE\",VLOOKUP(E68,'[1]SERVIÇOS ORSE'!$A:$D,4,0),IF(D68=\"SEINFRA\",VLOOKUP(E68,'[1]SERVIÇOS SEINFRA'!$A:$D,4,0)))),IF(C68=\"INSUMO\",IF(D68=\"SINAPI\",VLOOKUP(E68,'[1]INSUMOS SINAPI'!$A:$D,4,0),IF(D68=\"ORSE\",VLOOKUP(E68,'[1]INSUMOS ORSE'!$A:$D,4,0),IF(D68=\"SEINFRA\",VLOOKUP(E68,'[1]INSUMOS SEINFRA'!$A:$D,4,0),)))))","v":428.98},529.79,9154.77,2]
[null,"2.2","INSTALAÇÕES HIDRAULICAS",{"$nulls":7},{"$f":"SUM(K70:K91)","v":193003.66}]
[null,"2.2.1","SERVIÇO","ORSE",4545,{"$f":"IF(C70=\"SERVIÇO\",IF(D70=\"SINAPI\",VLOOKUP(E70,'[1]SERVIÇOS SINAPI'!$A:$D,2,0),IF(D70=\"ORSE\",VLOOKUP(E70,'[1]SERVIÇOS ORSE'!$A:$D,2,0),IF(D70=\"SEINFRA\",VLOOKUP(E70,'[1]SERVIÇOS SEINFRA'!$A:$D,2,0)))),IF(C70=\"INSUMO\",IF(D70=\"SINAPI\",VLOOKUP(E70,'[1]INSUMOS SINAPI'!$A:$D,2,0),IF(D70=\"ORSE\",VLOOKUP(E70,'[1]INSUMOS ORSE'!$A:$D,2,0),IF(D70=\"SEINFRA\",VLOOKUP(E70,'[1]INSUMOS SEINFRA'!$A:$D,2,0),)))))","v":"KIT DE ACESSÓRIOS PARA BANHEIRO EM ABS/ALUMÍNIO COM 5 PEÇAS (01 CABIDE, 01 SA BONETEIRA, 01 PAPELEIRA, 01 PORTA-TOALHA ROSTO E 01 PORTA-TOALHA BANHO)"},{"$f":"IF(C70=\"SERVIÇO\",IF(D70=\"SINAPI\",VLOOKUP(E70,'[1]SERVIÇOS SINAPI'!$A:$D,3,0),IF(D70=\"ORSE\",VLOOKUP(E70,'[1]SERVIÇOS ORSE'!$A:$D,3,0),IF(D70=\"SEINFRA\",VLOOKUP(E70,'[1]SERVIÇOS SEINFRA'!$A:$D,3,0)))),IF(C70=\"INSUMO\",IF(D70=\"SINAPI\",VLOOKUP(E70,'[1]INSUMOS SINAPI'!$A:$D,3,0),IF(D70=\"ORSE\",VLOOKUP(E70,'[1]INSUMOS ORSE'!$A:$D,3,0),IF(D70=\"SEINFRA\",VLOOKUP(E70,'[1]INSUMOS SEINFRA'!$A:$D,3,0),)))))","v":"UN"},{"$f":"'[1]Memória de Cálculo'!$L$462*$G$7","v":18},{"$f":"IF(C70=\"SERVIÇO\",IF(D70=\"SINAPI\",VLOOKUP(E70,'[1]SERVIÇOS SINAPI'!$A:$D,4,0),IF(D70=\"ORSE\",VLOOKUP(E70,'[1]SERVIÇOS ORSE'!$A:$D,4,0),IF(D70=\"SEINFRA\",VLOOKUP(E70,'[1]SERVIÇOS SEINFRA'!$A:$D,4,0)))),IF(C70=\"INSUMO\",IF(D70=\"SINAPI\",VLOOKUP(E70,'[1]INSUMOS SINAPI'!$A:$D,4,0),IF(D70=\"ORSE\",VLOOKUP(E70,'[1]INSUMOS ORSE'!$A:$D,4,0),IF(D70=\"SEINFRA\",VLOOKUP(E70,'[1]INSUMOS SEINFRA'!$A:$D,4,0),)))))","v":49.66},{"$f":"IF(C70=\"SERVIÇO\",I70*(1+$I$8),IF(C70=\"INSUMO\",(I70*(1+$K$8))))","v":61.33},{"$f":"J70*H70","v":1103.94},7]
[null,"2.2.2","SERVIÇO","SINAPI",86939,{"$f":"IF(C71=\"SERVIÇO\",IF(D71=\"SINAPI\",VLOOKUP(E71,'[1]SERVIÇOS SINAPI'!$A:$D,2,0),IF(D71=\"ORSE\",VLOOKUP(E71,'[1]SERVIÇOS ORSE'!$A:$D,2,0),IF(D71=\"SEINFRA\",VLOOKUP(E71,'[1]SERVIÇOS SEINFRA'!$A:$D,2,0)))),IF(C71=\"INSUMO\",IF(D71=\"SINAPI\",VLOOKUP(E71,'[1]INSUMOS SINAPI'!$A:$D,2,0),IF(D71=\"ORSE\",VLOOKUP(E71,'[1]INSUMOS ORSE'!$A:$D,2,0),IF(D71=\"SEINFRA\",VLOOKUP(E71,'[1]INSUMOS SEINFRA'!$A:$D,2,0),)))))","v":"LAVATÓRIO LOUÇA BRANCA COM COLUNA, *44 X 35,5* CM, PADRÃO POPULAR, INCLUSO SIFÃO FLEXÍVEL EM PVC, VÁLVULA E ENGATE FLEXÍVEL 30CM EM PLÁSTICO E COM TORNEIRA CROMADA PADRÃO POPULAR - FORNECIMENTO E INSTALAÇÃO. AF_01/2020"},{"$f":"IF(C71=\"SERVIÇO\",IF(D71=\"SINAPI\",VLOOKUP(E71,'[1]SERVIÇOS SINAPI'!$A:$D,3,0),IF(D71=\"ORSE\",VLOOKUP(E71,'[1]SERVIÇOS ORSE'!$A:$D,3,0),IF(D71=\"SEINFRA\",VLOOKUP(E71,'[1]SERVIÇOS SEINFRA'!$A:$D,3,0)))),IF(C71=\"INSUMO\",IF(D71=\"SINAPI\",VLOOKUP(E71,'[1]INSUMOS SINAPI'!$A:$D,3,0),IF(D71=\"ORSE\",VLOOKUP(E71,'[1]INSUMOS ORSE'!$A:$D,3,0),IF(D71=\"SEINFRA\",VLOOKUP(E71,'[1]INSUMOS SEINFRA'!$A:$D,3,0),)))))","v":"UN"},{"$f":"'[1]Memória de Cálculo'!$L$468*$G$7","v":18},{"$f":"IF(C71=\"SERVIÇO\",IF(D71=\"SINAPI\",VLOOKUP(E71,'[1]SERVIÇOS SINAPI'!$A:$D,4,0),IF(D71=\"ORSE\",VLOOKUP(E71,'[1]SERVIÇOS ORSE'!$A:$D,4,0),IF(D71=\"SEINFRA\",VLOOKUP(E71,'[1]SERVIÇOS SEINFRA'!$A:$D,4,0)))),IF(C71=\"INSUMO\",IF(D71=\"SINAPI\",VLOOKUP(E71,'[1]INSUMOS SINAPI'!$A:$D,4,0),IF(D71=\"ORSE\",VLOOKUP(E71,'[1]INSUMOS ORSE'!$A:$D,4,0),IF(D71=\"SEINFRA\",VLOOKUP(E71,'[1]INSUMOS SEINFRA'!$A:$D,4,0),)))))","v":305.85},377.72,6798.96,2]
[null,"2.2.3","SERVIÇO","SINAPI",86888,{"$f":"IF(C72=\"SERVIÇO\",IF(D72=\"SINAPI\",VLOOKUP(E72,'[1]SERVIÇOS SINAPI'!$A:$D,2,0),IF(D72=\"ORSE\",VLOOKUP(E72,'[1]SERVIÇOS ORSE'!$A:$D,2,0),IF(D72=\"SEINFRA\",VLOOKUP(E72,'[1]SERVIÇOS SEINFRA'!$A:$D,2,0)))),IF(C72=\"INSUMO\",IF(D72=\"SINAPI\",VLOOKUP(E72,'[1]INSUMOS SINAPI'!$A:$D,2,0),IF(D72=\"ORSE\",VLOOKUP(E72,'[1]INSUMOS ORSE'!$A:$D,2,0),IF(D72=\"SEINFRA\",VLOOKUP(E72,'[1]INSUMOS SEINFRA'!$A:$D,2,0),)))))","v":"VASO SANITÁRIO SIFONADO COM CAIXA ACOPLADA LOUÇA BRANCA - FORNECIMENTO E INSTALAÇÃO. AF_01/2020"},{"$f":"IF(C72=\"SERVIÇO\",IF(D72=\"SINAPI\",VLOOKUP(E72,'[1]SERVIÇOS SINAPI'!$A:$D,3,0),IF(D72=\"ORSE\",VLOOKUP(E72,'[1]SERVIÇOS ORSE'!$A:$D,3,0),IF(D72=\"SEINFRA\",VLOOKUP(E72,'[1]SERVIÇOS SEINFRA'!$A:$D,3,0)))),IF(C72=\"INSUMO\",IF(D72=\"SINAPI\",VLOOKUP(E72,'[1]INSUMOS SINAPI'!$A:$D,3,0),IF(D72=\"ORSE\",VLOOKUP(E72,'[1]INSUMOS ORSE'!$A:$D,3,0),IF(D72=\"SEINFRA\",VLOOKUP(E72,'[1]INSUMOS SEINFRA'!$A:$D,3,0),)))))","v":"UN"},{"$f":"'[1]Memória de Cálculo'!$L$474*$G$7","v":18},{"$f":"IF(C72=\"SERVIÇO\",IF(D72=\"SINAPI\",VLOOKUP(E72,'[1]SERVIÇOS SINAPI'!$A:$D,4,0),IF(D72=\"ORSE\",VLOOKUP(E72,'[1]SERVIÇOS ORSE'!$A:$D,4,0),IF(D72=\"SEINFRA\",VLOOKUP(E72,'[1]SERVIÇOS SEINFRA'!$A:$D,4,0)))),IF(C72=\"INSUMO\",IF(D72=\"SINAPI\",VLOOKUP(E72,'[1]INSUMOS SINAPI'!$A:$D,4,0),IF(D72=\"ORSE\",VLOOKUP(E72,'[1]INSUMOS ORSE'!$A:$D,4,0),IF(D72=\"SEINFRA\",VLOOKUP(E72,'[1]INSUMOS SEINFRA'!$A:$D,4,0),)))))","v":297.16},366.99,6605.82,2]
[null,"2.2.4","SERVIÇO","SEINFRA","C0797",{"$f":"IF(C73=\"SERVIÇO\",IF(D73=\"SINAPI\",VLOOKUP(E73,'[1]SERVIÇOS SINAPI'!$A:$D,2,0),IF(D73=\"ORSE\",VLOOKUP(E73,'[1]SERVIÇOS ORSE'!$A:$D,2,0),IF(D73=\"SEINFRA\",VLOOKUP(E73,'[1]SERVIÇOS SEINFRA'!$A:$D,2,0)))),IF(C73=\"INSUMO\",IF(D73=\"SINAPI\",VLOOKUP(E73,'[1]INSUMOS SINAPI'!$A:$D,2,0),IF(D73=\"ORSE\",VLOOKUP(E73,'[1]INSUMOS ORSE'!$A:$D,2,0),IF(D73=\"SEINFRA\",VLOOKUP(E73,'[1]INSUMOS SEINFRA'!$A:$D,2,0),)))))","v":"CHUVEIRO PLÁSTICO (INSTALADO)"},{"$f":"IF(C73=\"SERVIÇO\",IF(D73=\"SINAPI\",VLOOKUP(E73,'[1]SERVIÇOS SINAPI'!$A:$D,3,0),IF(D73=\"ORSE\",VLOOKUP(E73,'[1]SERVIÇOS ORSE'!$A:$D,3,0),IF(D73=\"SEINFRA\",VLOOKUP(E73,'[1]SERVIÇOS SEINFRA'!$A:$D,3,0)))),IF(C73=\"INSUMO\",IF(D73=\"SINAPI\",VLOOKUP(E73,'[1]INSUMOS SINAPI'!$A:$D,3,0),IF(D73=\"ORSE\",VLOOKUP(E73,'[1]INSUMOS ORSE'!$A:$D,3,0),IF(D73=\"SEINFRA\",VLOOKUP(E73,'[1]INSUMOS SEINFRA'!$A:$D,3,0),)))))","v":"UN"},{"$f":"'[1]Memória de Cálculo'!$L$480*$G$7","v":18},{"$f":"IF(C73=\"SERVIÇO\",IF(D73=\"SINAPI\",VLOOKUP(E73,'[1]SERVIÇOS SINAPI'!$A:$D,4,0),IF(D73=\"ORSE\",VLOOKUP(E73,'[1]SERVIÇOS ORSE'!$A:$D,4,0),IF(D73=\"SEINFRA\",VLOOKUP(E73,'[1]SERVIÇOS SEINFRA'!$A:$D,4,0)))),IF(C73=\"INSUMO\",IF(D73=\"SINAPI\",VLOOKUP(E73,'[1]INSUMOS SINAPI'!$A:$D,4,0),IF(D73=\"ORSE\",VLOOKUP(E73,'[1]INSUMOS ORSE'!$A:$D,4,0),IF(D73=\"SEINFRA\",VLOOKUP(E73,'[1]INSUMOS SEINFRA'!$A:$D,4,0),)))))","v":10.93},13.5,243,4]
[null,"2.2.5","SERVIÇO","ORSE",12287,{"$f":"IF(C74=\"SERVIÇO\",IF(D74=\"SINAPI\",VLOOKUP(E74,'[1]SERVIÇOS SINAPI'!$A:$D,2,0),IF(D74=\"ORSE\",VLOOKUP(E74,'[1]SERVIÇOS ORSE'!$A:$D,2,0),IF(D74=\"SEINFRA\",VLOOKUP(E74,'[1]SERVIÇOS SEINFRA'!$A:$D,2,0)))),IF(C74=\"INSUMO\",IF(D74=\"SINAPI\",VLOOKUP(E74,'[1]INSUMOS SINAPI'!$A:$D,2,0),IF(D74=\"ORSE\",VLOOKUP(E74,'[1]INSUMOS ORSE'!$A:$D,2,0),IF(D74=\"SEINFRA\",VLOOKUP(E74,'[1]INSUMOS SEINFRA'!$A:$D,2,0),)))))","v":"PIA DE COZINHA COM BANCADA EM GRANITO CINZA ANDORINHA, E = 2CM, DIM 3.45X0.60 , COM 01 CUBA DE AÇO INOX, SIFÃO CROMADO, VÁLVULA CROMADA, TORNEIRA CROMADA,  INCLUSIVE RODOPIA 10 CM, ASSENTADA"},{"$f":"IF(C74=\"SERVIÇO\",IF(D74=\"SINAPI\",VLOOKUP(E74,'[1]SERVIÇOS SINAPI'!$A:$D,3,0),IF(D74=\"ORSE\",VLOOKUP(E74,'[1]SERVIÇOS ORSE'!$A:$D,3,0),IF(D74=\"SEINFRA\",VLOOKUP(E74,'[1]SERVIÇOS SEINFRA'!$A:$D,3,0)))),IF(C74=\"INSUMO\",IF(D74=\"SINAPI\",VLOOKUP(E74,'[1]INSUMOS SINAPI'!$A:$D,3,0),IF(D74=\"ORSE\",VLOOKUP(E74,'[1]INSUMOS ORSE'!$A:$D,3,0),IF(D74=\"SEINFRA\",VLOOKUP(E74,'[1]INSUMOS SEINFRA'!$A:$D,3,0),)))))","v":"UN"},{"$f":"'[1]Memória de Cálculo'!$L$484*$G$7","v":6},{"$f":"IF(C74=\"SERVIÇO\",IF(D74=\"SINAPI\",VLOOKUP(E74,'[1]SERVIÇOS SINAPI'!$A:$D,4,0),IF(D74=\"ORSE\",VLOOKUP(E74,'[1]SERVIÇOS ORSE'!$A:$D,4,0),IF(D74=\"SEINFRA\",VLOOKUP(E74,'[1]SERVIÇOS SEINFRA'!$A:$D,4,0)))),IF(C74=\"INSUMO\",IF(D74=\"SINAPI\",VLOOKUP(E74,'[1]INSUMOS SINAPI'!$A:$D,4,0),IF(D74=\"ORSE\",VLOOKUP(E74,'[1]INSUMOS ORSE'!$A:$D,4,0),IF(D74=\"SEINFRA\",VLOOKUP(E74,'[1]INSUMOS SEINFRA'!$A:$D,4,0),)))))","v":1647.55},2034.72,12208.32,6]
[null,"2.2.6","SERVIÇO","ORSE",2794,{"$f":"IF(C75=\"SERVIÇO\",IF(D75=\"SINAPI\",VLOOKUP(E75,'[1]SERVIÇOS SINAPI'!$A:$D,2,0),IF(D75=\"ORSE\",VLOOKUP(E75,'[1]SERVIÇOS ORSE'!$A:$D,2,0),IF(D75=\"SEINFRA\",VLOOKUP(E75,'[1]SERVIÇOS SEINFRA'!$A:$D,2,0)))),IF(C75=\"INSUMO\",IF(D75=\"SINAPI\",VLOOKUP(E75,'[1]INSUMOS SINAPI'!$A:$D,2,0),IF(D75=\"ORSE\",VLOOKUP(E75,'[1]INSUMOS ORSE'!$A:$D,2,0),IF(D75=\"SEINFRA\",VLOOKUP(E75,'[1]INSUMOS SEINFRA'!$A:$D,2,0),)))))","v":"CAIXA DE PASSAGEM EM ALVENARIA DE TIJOLOS MACIÇOS ESP. = 0,12M,  DIM. INT. =  0.40 X 0.40 X 0.60M, INCLUSIVE TAMPA"},{"$f":"IF(C75=\"SERVIÇO\",IF(D75=\"SINAPI\",VLOOKUP(E75,'[1]SERVIÇOS SINAPI'!$A:$D,3,0),IF(D75=\"ORSE\",VLOOKUP(E75,'[1]SERVIÇOS ORSE'!$A:$D,3,0),IF(D75=\"SEINFRA\",VLOOKUP(E75,'[1]SERVIÇOS SEINFRA'!$A:$D,3,0)))),IF(C75=\"INSUMO\",IF(D75=\"SINAPI\",VLOOKUP(E75,'[1]INSUMOS SINAPI'!$A:$D,3,0),IF(D75=\"ORSE\",VLOOKUP(E75,'[1]INSUMOS ORSE'!$A:$D,3,0),IF(D75=\"SEINFRA\",VLOOKUP(E75,'[1]INSUMOS SEINFRA'!$A:$D,3,0),)))))","v":"UN"},{"$f":"'[1]Memória de Cálculo'!$L$488*$G$7","v":12},{"$f":"IF(C75=\"SERVIÇO\",IF(D75=\"SINAPI\",VLOOKUP(E75,'[1]SERVIÇOS SINAPI'!$A:$D,4,0),IF(D75=\"ORSE\",VLOOKUP(E75,'[1]SERVIÇOS ORSE'!$A:$D,4,0),IF(D75=\"SEINFRA\",VLOOKUP(E75,'[1]SERVIÇOS SEINFRA'!$A:$D,4,0)))),IF(C75=\"INSUMO\",IF(D75=\"SINAPI\",VLOOKUP(E75,'[1]INSUMOS SINAPI'!$A:$D,4,0),IF(D75=\"ORSE\",VLOOKUP(E75,'[1]INSUMOS ORSE'!$A:$D,4,0),IF(D75=\"SEINFRA\",VLOOKUP(E75,'[1]INSUMOS SEINFRA'!$A:$D,4,0),)))))","v":213.6},263.8,3165.6,2]
[null,"2.2.7","SERVIÇO","SINAPI",89957,{"$f":"IF(C76=\"SERVIÇO\",IF(D76=\"SINAPI\",VLOOKUP(E76,'[1]SERVIÇOS SINAPI'!$A:$D,2,0),IF(D76=\"ORSE\",VLOOKUP(E76,'[1]SERVIÇOS ORSE'!$A:$D,2,0),IF(D76=\"SEINFRA\",VLOOKUP(E76,'[1]SERVIÇOS SEINFRA'!$A:$D,2,0)))),IF(C76=\"INSUMO\",IF(D76=\"SINAPI\",VLOOKUP(E76,'[1]INSUMOS SINAPI'!$A:$D,2,0),IF(D76=\"ORSE\",VLOOKUP(E76,'[1]INSUMOS ORSE'!$A:$D,2,0),IF(D76=\"SEINFRA\",VLOOKUP(E76,'[1]INSUMOS SEINFRA'!$A:$D,2,0),)))))","v":"PONTO DE CONSUMO TERMINAL DE ÁGUA FRIA (SUBRAMAL) COM TUBULAÇÃO DE PVC, DN 25 MM, INSTALADO EM RAMAL DE ÁGUA, INCLUSOS RASGO E CHUMBAMENTO EM ALVENARIA. AF_12/2014"},{"$f":"IF(C76=\"SERVIÇO\",IF(D76=\"SINAPI\",VLOOKUP(E76,'[1]SERVIÇOS SINAPI'!$A:$D,3,0),IF(D76=\"ORSE\",VLOOKUP(E76,'[1]SERVIÇOS ORSE'!$A:$D,3,0),IF(D76=\"SEINFRA\",VLOOKUP(E76,'[1]SERVIÇOS SEINFRA'!$A:$D,3,0)))),IF(C76=\"INSUMO\",IF(D76=\"SINAPI\",VLOOKUP(E76,'[1]INSUMOS SINAPI'!$A:$D,3,0),IF(D76=\"ORSE\",VLOOKUP(E76,'[1]INSUMOS ORSE'!$A:$D,3,0),IF(D76=\"SEINFRA\",VLOOKUP(E76,'[1]INSUMOS SEINFRA'!$A:$D,3,0),)))))","v":"UN"},{"$f":"'[1]Memória de Cálculo'!$L$498*$G$7","v":144},{"$f":"IF(C76=\"SERVIÇO\",IF(D76=\"SINAPI\",VLOOKUP(E76,'[1]SERVIÇOS SINAPI'!$A:$D,4,0),IF(D76=\"ORSE\",VLOOKUP(E76,'[1]SERVIÇOS ORSE'!$A:$D,4,0),IF(D76=\"SEINFRA\",VLOOKUP(E76,'[1]SERVIÇOS SEINFRA'!$A:$D,4,0)))),IF(C76=\"INSUMO\",IF(D76=\"SINAPI\",VLOOKUP(E76,'[1]INSUMOS SINAPI'!$A:$D,4,0),IF(D76=\"ORSE\",VLOOKUP(E76,'[1]INSUMOS ORSE'!$A:$D,4,0),IF(D76=\"SEINFRA\",VLOOKUP(E76,'[1]INSUMOS SEINFRA'!$A:$D,4,0),)))))","v":119.5},147.58,21251.52,6]
[null,"2.2.8","SERVIÇO","ORSE",1683,{"$f":"IF(C77=\"SERVIÇO\",IF(D77=\"SINAPI\",VLOOKUP(E77,'[1]SERVIÇOS SINAPI'!$A:$D,2,0),IF(D77=\"ORSE\",VLOOKUP(E77,'[1]SERVIÇOS ORSE'!$A:$D,2,0),IF(D77=\"SEINFRA\",VLOOKUP(E77,'[1]SERVIÇOS SEINFRA'!$A:$D,2,0)))),IF(C77=\"INSUMO\",IF(D77=\"SINAPI\",VLOOKUP(E77,'[1]INSUMOS SINAPI'!$A:$D,2,0),IF(D77=\"ORSE\",VLOOKUP(E77,'[1]INSUMOS ORSE'!$A:$D,2,0),IF(D77=\"SEINFRA\",VLOOKUP(E77,'[1]INSUMOS SEINFRA'!$A:$D,2,0),)))))","v":"PONTO DE ESGOTO COM TUBO DE PVC RÍGIDO SOLDÁVEL DE Ø 100 MM (VASO SANITÁRIO)"},{"$f":"IF(C77=\"SERVIÇO\",IF(D77=\"SINAPI\",VLOOKUP(E77,'[1]SERVIÇOS SINAPI'!$A:$D,3,0),IF(D77=\"ORSE\",VLOOKUP(E77,'[1]SERVIÇOS ORSE'!$A:$D,3,0),IF(D77=\"SEINFRA\",VLOOKUP(E77,'[1]SERVIÇOS SEINFRA'!$A:$D,3,0)))),IF(C77=\"INSUMO\",IF(D77=\"SINAPI\",VLOOKUP(E77,'[1]INSUMOS SINAPI'!$A:$D,3,0),IF(D77=\"ORSE\",VLOOKUP(E77,'[1]INSUMOS ORSE'!$A:$D,3,0),IF(D77=\"SEINFRA\",VLOOKUP(E77,'[1]INSUMOS SEINFRA'!$A:$D,3,0),)))))","v":"PT"},{"$f":"'[1]Memória de Cálculo'!$L$504*$G$7","v":18},{"$f":"IF(C77=\"SERVIÇO\",IF(D77=\"SINAPI\",VLOOKUP(E77,'[1]SERVIÇOS SINAPI'!$A:$D,4,0),IF(D77=\"ORSE\",VLOOKUP(E77,'[1]SERVIÇOS ORSE'!$A:$D,4,0),IF(D77=\"SEINFRA\",VLOOKUP(E77,'[1]SERVIÇOS SEINFRA'!$A:$D,4,0)))),IF(C77=\"INSUMO\",IF(D77=\"SINAPI\",VLOOKUP(E77,'[1]INSUMOS SINAPI'!$A:$D,4,0),IF(D77=\"ORSE\",VLOOKUP(E77,'[1]INSUMOS ORSE'!$A:$D,4,0),IF(D77=\"SEINFRA\",VLOOKUP(E77,'[1]INSUMOS SEINFRA'!$A:$D,4,0),)))))","v":114.24},141.09,2539.62,6]
[null,"2.2.9","SERVIÇO","ORSE",1678,{"$f":"IF(C78=\"SERVIÇO\",IF(D78=\"SINAPI\",VLOOKUP(E78,'[1]SERVIÇOS SINAPI'!$A:$D,2,0),IF(D78=\"ORSE\",VLOOKUP(E78,'[1]SERVIÇOS ORSE'!$A:$D,2,0),IF(D78=\"SEINFRA\",VLOOKUP(E78,'[1]SERVIÇOS SEINFRA'!$A:$D,2,0)))),IF(C78=\"INSUMO\",IF(D78=\"SINAPI\",VLOOKUP(E78,'[1]INSUMOS SINAPI'!$A:$D,2,0),IF(D78=\"ORSE\",VLOOKUP(E78,'[1]INSUMOS ORSE'!$A:$D,2,0),IF(D78=\"SEINFRA\",VLOOKUP(E78,'[1]INSUMOS SEINFRA'!$A:$D,2,0),)))))","v":"PONTO DE ESGOTO COM TUBO DE PVC RÍGIDO SOLDÁVEL DE  Ø 50 MM (PIAS DE COZINHA, MÁQUINAS DE LAVAR, ETC...)"},{"$f":"IF(C78=\"SERVIÇO\",IF(D78=\"SINAPI\",VLOOKUP(E78,'[1]SERVIÇOS SINAPI'!$A:$D,3,0),IF(D78=\"ORSE\",VLOOKUP(E78,'[1]SERVIÇOS ORSE'!$A:$D,3,0),IF(D78=\"SEINFRA\",VLOOKUP(E78,'[1]SERVIÇOS SEINFRA'!$A:$D,3,0)))),IF(C78=\"INSUMO\",IF(D78=\"SINAPI\",VLOOKUP(E78,'[1]INSUMOS SINAPI'!$A:$D,3,0),IF(D78=\"ORSE\",VLOOKUP(E78,'[1]INSUMOS ORSE'!$A:$D,3,0),IF(D78=\"SEINFRA\",VLOOKUP(E78,'[1]INSUMOS SEINFRA'!$A:$D,3,0),)))))","v":"UN"},{"$f":"'[1]Memória de Cálculo'!$L$511*$G$7","v":72},{"$f":"IF(C78=\"SERVIÇO\",IF(D78=\"SINAPI\",VLOOKUP(E78,'[1]SERVIÇOS SINAPI'!$A:$D,4,0),IF(D78=\"ORSE\",VLOOKUP(E78,'[1]SERVIÇOS ORSE'!$A:$D,4,0),IF(D78=\"SEINFRA\",VLOOKUP(E78,'[1]SERVIÇOS SEINFRA'!$A:$D,4,0)))),IF(C78=\"INSUMO\",IF(D78=\"SINAPI\",VLOOKUP(E78,'[1]INSUMOS SINAPI'!$A:$D,4,0),IF(D78=\"ORSE\",VLOOKUP(E78,'[1]INSUMOS ORSE'!$A:$D,4,0),IF(D78=\"SEINFRA\",VLOOKUP(E78,'[1]INSUMOS SEINFRA'!$A:$D,4,0),)))))","v":112.07},138.41,9965.52,6]
[null,"2.2.10","SERVIÇO","ORSE",1469,{"$f":"IF(C79=\"SERVIÇO\",IF(D79=\"SINAPI\",VLOOKUP(E79,'[1]SERVIÇOS SINAPI'!$A:$D,2,0),IF(D79=\"ORSE\",VLOOKUP(E79,'[1]SERVIÇOS ORSE'!$A:$D,2,0),IF(D79=\"SEINFRA\",VLOOKUP(E79,'[1]SERVIÇOS SEINFRA'!$A:$D,2,0)))),IF(C79=\"INSUMO\",IF(D79=\"SINAPI\",VLOOKUP(E79,'[1]INSUMOS SINAPI'!$A:$D,2,0),IF(D79=\"ORSE\",VLOOKUP(E79,'[1]INSUMOS ORSE'!$A:$D,2,0),IF(D79=\"SEINFRA\",VLOOKUP(E79,'[1]INSUMOS SEINFRA'!$A:$D,2,0),)))))","v":"REGISTRO DE PRESSÃO 1/2\" C/CANOPLA CROMADA, LINHA STANDARD C39 - REF 1416, DE CA OU SIMILAR"},{"$f":"IF(C79=\"SERVIÇO\",IF(D79=\"SINAPI\",VLOOKUP(E79,'[1]SERVIÇOS SINAPI'!$A:$D,3,0),IF(D79=\"ORSE\",VLOOKUP(E79,'[1]SERVIÇOS ORSE'!$A:$D,3,0),IF(D79=\"SEINFRA\",VLOOKUP(E79,'[1]SERVIÇOS SEINFRA'!$A:$D,3,0)))),IF(C79=\"INSUMO\",IF(D79=\"SINAPI\",VLOOKUP(E79,'[1]INSUMOS SINAPI'!$A:$D,3,0),IF(D79=\"ORSE\",VLOOKUP(E79,'[1]INSUMOS ORSE'!$A:$D,3,0),IF(D79=\"SEINFRA\",VLOOKUP(E79,'[1]INSUMOS SEINFRA'!$A:$D,3,0),)))))","v":"UN"},{"$f":"'[1]Memória de Cálculo'!$L$516*$G$7","v":12},{"$f":"IF(C79=\"SERVIÇO\",IF(D79=\"SINAPI\",VLOOKUP(E79,'[1]SERVIÇOS SINAPI'!$A:$D,4,0),IF(D79=\"ORSE\",VLOOKUP(E79,'[1]SERVIÇOS ORSE'!$A:$D,4,0),IF(D79=\"SEINFRA\",VLOOKUP(E79,'[1]SERVIÇOS SEINFRA'!$A:$D,4,0)))),IF(C79=\"INSUMO\",IF(D79=\"SINAPI\",VLOOKUP(E79,'[1]INSUMOS SINAPI'!$A:$D,4,0),IF(D79=\"ORSE\",VLOOKUP(E79,'[1]INSUMOS ORSE'!$A:$D,4,0),IF(D79=\"SEINFRA\",VLOOKUP(E79,'[1]INSUMOS SEINFRA'!$A:$D,4,0),)))))","v":79.14},97.74,1172.88,2]
[null,"2.2.11","SERVIÇO","ORSE",1469,{"$f":"IF(C80=\"SERVIÇO\",IF(D80=\"SINAPI\",VLOOKUP(E80,'[1]SERVIÇOS SINAPI'!$A:$D,2,0),IF(D80=\"ORSE\",VLOOKUP(E80,'[1]SERVIÇOS ORSE'!$A:$D,2,0),IF(D80=\"SEINFRA\",VLOOKUP(E80,'[1]SERVIÇOS SEINFRA'!$A:$D,2,0)))),IF(C80=\"INSUMO\",IF(D80=\"SINAPI\",VLOOKUP(E80,'[1]INSUMOS SINAPI'!$A:$D,2,0),IF(D80=\"ORSE\",VLOOKUP(E80,'[1]INSUMOS ORSE'!$A:$D,2,0),IF(D80=\"SEINFRA\",VLOOKUP(E80,'[1]INSUMOS SEINFRA'!$A:$D,2,0),)))))","v":"REGISTRO DE PRESSÃO 1/2\" C/CANOPLA CROMADA, LINHA STANDARD C39 - REF 1416, DE CA OU SIMILAR"},{"$f":"IF(C80=\"SERVIÇO\",IF(D80=\"SINAPI\",VLOOKUP(E80,'[1]SERVIÇOS SINAPI'!$A:$D,3,0),IF(D80=\"ORSE\",VLOOKUP(E80,'[1]SERVIÇOS ORSE'!$A:$D,3,0),IF(D80=\"SEINFRA\",VLOOKUP(E80,'[1]SERVIÇOS SEINFRA'!$A:$D,3,0)))),IF(C80=\"INSUMO\",IF(D80=\"SINAPI\",VLOOKUP(E80,'[1]INSUMOS SINAPI'!$A:$D,3,0),IF(D80=\"ORSE\",VLOOKUP(E80,'[1]INSUMOS ORSE'!$A:$D,3,0),IF(D80=\"SEINFRA\",VLOOKUP(E80,'[1]INSUMOS SEINFRA'!$A:$D,3,0),)))))","v":"UN"},{"$f":"'[1]Memória de Cálculo'!$L$488*$G$7","v":12},{"$f":"IF(C80=\"SERVIÇO\",IF(D80=\"SINAPI\",VLOOKUP(E80,'[1]SERVIÇOS SINAPI'!$A:$D,4,0),IF(D80=\"ORSE\",VLOOKUP(E80,'[1]SERVIÇOS ORSE'!$A:$D,4,0),IF(D80=\"SEINFRA\",VLOOKUP(E80,'[1]SERVIÇOS SEINFRA'!$A:$D,4,0)))),IF(C80=\"INSUMO\",IF(D80=\"SINAPI\",VLOOKUP(E80,'[1]INSUMOS SINAPI'!$A:$D,4,0),IF(D80=\"ORSE\",VLOOKUP(E80,'[1]INSUMOS ORSE'!$A:$D,4,0),IF(D80=\"SEINFRA\",VLOOKUP(E80,'[1]INSUMOS SEINFRA'!$A:$D,4,0),)))))","v":79.14},97.74,1172.88,2]
[null,"2.2.12","SERVIÇO","ORSE",1470,{"$f":"IF(C81=\"SERVIÇO\",IF(D81=\"SINAPI\",VLOOKUP(E81,'[1]SERVIÇOS SINAPI'!$A:$D,2,0),IF(D81=\"ORSE\",VLOOKUP(E81,'[1]SERVIÇOS ORSE'!$A:$D,2,0),IF(D81=\"SEINFRA\",VLOOKUP(E81,'[1]SERVIÇOS SEINFRA'!$A:$D,2,0)))),IF(C81=\"INSUMO\",IF(D81=\"SINAPI\",VLOOKUP(E81,'[1]INSUMOS SINAPI'!$A:$D,2,0),IF(D81=\"ORSE\",VLOOKUP(E81,'[1]INSUMOS ORSE'!$A:$D,2,0),IF(D81=\"SEINFRA\",VLOOKUP(E81,'[1]INSUMOS SEINFRA'!$A:$D,2,0),)))))","v":"REGISTRO DE PRESSÃO 3/4\" C/CANOPLA CROMADA, LINHA TARGA C40 - REF.1416, DECA  OU SIMILAR"},{"$f":"IF(C81=\"SERVIÇO\",IF(D81=\"SINAPI\",VLOOKUP(E81,'[1]SERVIÇOS SINAPI'!$A:$D,3,0),IF(D81=\"ORSE\",VLOOKUP(E81,'[1]SERVIÇOS ORSE'!$A:$D,3,0),IF(D81=\"SEINFRA\",VLOOKUP(E81,'[1]SERVIÇOS SEINFRA'!$A:$D,3,0)))),IF(C81=\"INSUMO\",IF(D81=\"SINAPI\",VLOOKUP(E81,'[1]INSUMOS SINAPI'!$A:$D,3,0),IF(D81=\"ORSE\",VLOOKUP(E81,'[1]INSUMOS ORSE'!$A:$D,3,0),IF(D81=\"SEINFRA\",VLOOKUP(E81,'[1]INSUMOS SEINFRA'!$A:$D,3,0),)))))","v":"UN"},{"$f":"'[1]Memória de Cálculo'!$L$522*$G$7","v":18},{"$f":"IF(C81=\"SERVIÇO\",IF(D81=\"SINAPI\",VLOOKUP(E81,'[1]SERVIÇOS SINAPI'!$A:$D,4,0),IF(D81=\"ORSE\",VLOOKUP(E81,'[1]SERVIÇOS ORSE'!$A:$D,4,0),IF(D81=\"SEINFRA\",VLOOKUP(E81,'[1]SERVIÇOS SEINFRA'!$A:$D,4,0)))),IF(C81=\"INSUMO\",IF(D81=\"SINAPI\",VLOOKUP(E81,'[1]INSUMOS SINAPI'!$A:$D,4,0),IF(D81=\"ORSE\",VLOOKUP(E81,'[1]INSUMOS ORSE'!$A:$D,4,0),IF(D81=\"SEINFRA\",VLOOKUP(E81,'[1]INSUMOS SEINFRA'!$A:$D,4,0),)))))","v":84.2},103.99,1871.82,2]
[null,"2.2.13","SERVIÇO","ORSE",1702,{"$f":"IF(C82=\"SERVIÇO\",IF(D82=\"SINAPI\",VLOOKUP(E82,'[1]SERVIÇOS SINAPI'!$A:$D,2,0),IF(D82=\"ORSE\",VLOOKUP(E82,'[1]SERVIÇOS ORSE'!$A:$D,2,0),IF(D82=\"SEINFRA\",VLOOKUP(E82,'[1]SERVIÇOS SEINFRA'!$A:$D,2,0)))),IF(C82=\"INSUMO\",IF(D82=\"SINAPI\",VLOOKUP(E82,'[1]INSUMOS SINAPI'!$A:$D,2,0),IF(D82=\"ORSE\",VLOOKUP(E82,'[1]INSUMOS ORSE'!$A:$D,2,0),IF(D82=\"SEINFRA\",VLOOKUP(E82,'[1]INSUMOS SEINFRA'!$A:$D,2,0),)))))","v":"RALO SIFONADO EM PVC D = 100 MM ALTURA REGULÁVEL, SAÍDA 40 MM, COM GRELHA RED ONDA ACABAMENTO CROMADO"},{"$f":"IF(C82=\"SERVIÇO\",IF(D82=\"SINAPI\",VLOOKUP(E82,'[1]SERVIÇOS SINAPI'!$A:$D,3,0),IF(D82=\"ORSE\",VLOOKUP(E82,'[1]SERVIÇOS ORSE'!$A:$D,3,0),IF(D82=\"SEINFRA\",VLOOKUP(E82,'[1]SERVIÇOS SEINFRA'!$A:$D,3,0)))),IF(C82=\"INSUMO\",IF(D82=\"SINAPI\",VLOOKUP(E82,'[1]INSUMOS SINAPI'!$A:$D,3,0),IF(D82=\"ORSE\",VLOOKUP(E82,'[1]INSUMOS ORSE'!$A:$D,3,0),IF(D82=\"SEINFRA\",VLOOKUP(E82,'[1]INSUMOS SEINFRA'!$A:$D,3,0),)))))","v":"UN"},{"$f":"'[1]Memória de Cálculo'!$L$536*$G$7","v":48},{"$f":"IF(C82=\"SERVIÇO\",IF(D82=\"SINAPI\",VLOOKUP(E82,'[1]SERVIÇOS SINAPI'!$A:$D,4,0),IF(D82=\"ORSE\",VLOOKUP(E82,'[1]SERVIÇOS ORSE'!$A:$D,4,0),IF(D82=\"SEINFRA\",VLOOKUP(E82,'[1]SERVIÇOS SEINFRA'!$A:$D,4,0)))),IF(C82=\"INSUMO\",IF(D82=\"SINAPI\",VLOOKUP(E82,'[1]INSUMOS SINAPI'!$A:$D,4,0),IF(D82=\"ORSE\",VLOOKUP(E82,'[1]INSUMOS ORSE'!$A:$D,4,0),IF(D82=\"SEINFRA\",VLOOKUP(E82,'[1]INSUMOS SEINFRA'!$A:$D,4,0),)))))","v":30.08},37.15,1783.2,2]
[null,"2.2.14","SERVIÇO","ORSE",10203,{"$f":"IF(C83=\"SERVIÇO\",IF(D83=\"SINAPI\",VLOOKUP(E83,'[1]SERVIÇOS SINAPI'!$A:$D,2,0),IF(D83=\"ORSE\",VLOOKUP(E83,'[1]SERVIÇOS ORSE'!$A:$D,2,0),IF(D83=\"SEINFRA\",VLOOKUP(E83,'[1]SERVIÇOS SEINFRA'!$A:$D,2,0)))),IF(C83=\"INSUMO\",IF(D83=\"SINAPI\",VLOOKUP(E83,'[1]INSUMOS SINAPI'!$A:$D,2,0),IF(D83=\"ORSE\",VLOOKUP(E83,'[1]INSUMOS ORSE'!$A:$D,2,0),IF(D83=\"SEINFRA\",VLOOKUP(E83,'[1]INSUMOS SEINFRA'!$A:$D,2,0),)))))","v":"RESERVATORIO ELEVADO C/ CAIXA D'AGUA EM FIBRA DE VIDRO DE 5.000 LITROS APOIAD O EM ESTRUTURA PRE-MOLDADA CONCRETO, COMPOSTA DE CAPITEL P/APOIO DA CAIXA E P ILAR CILINDRICO C/ALTURA UTIL = 6,00M, INCLUSO FRETE E MONTAGEM NO LOCAL, EXC ETO INST.HIDRAULICA"},{"$f":"IF(C83=\"SERVIÇO\",IF(D83=\"SINAPI\",VLOOKUP(E83,'[1]SERVIÇOS SINAPI'!$A:$D,3,0),IF(D83=\"ORSE\",VLOOKUP(E83,'[1]SERVIÇOS ORSE'!$A:$D,3,0),IF(D83=\"SEINFRA\",VLOOKUP(E83,'[1]SERVIÇOS SEINFRA'!$A:$D,3,0)))),IF(C83=\"INSUMO\",IF(D83=\"SINAPI\",VLOOKUP(E83,'[1]INSUMOS SINAPI'!$A:$D,3,0),IF(D83=\"ORSE\",VLOOKUP(E83,'[1]INSUMOS ORSE'!$A:$D,3,0),IF(D83=\"SEINFRA\",VLOOKUP(E83,'[1]INSUMOS SEINFRA'!$A:$D,3,0),)))))","v":"UN"},{"$f":"'[1]Memória de Cálculo'!$L$540*$G$7","v":6},{"$f":"IF(C83=\"SERVIÇO\",IF(D83=\"SINAPI\",VLOOKUP(E83,'[1]SERVIÇOS SINAPI'!$A:$D,4,0),IF(D83=\"ORSE\",VLOOKUP(E83,'[1]SERVIÇOS ORSE'!$A:$D,4,0),IF(D83=\"SEINFRA\",VLOOKUP(E83,'[1]SERVIÇOS SEINFRA'!$A:$D,4,0)))),IF(C83=\"INSUMO\",IF(D83=\"SINAPI\",VLOOKUP(E83,'[1]INSUMOS SINAPI'!$A:$D,4,0),IF(D83=\"ORSE\",VLOOKUP(E83,'[1]INSUMOS ORSE'!$A:$D,4,0),IF(D83=\"SEINFRA\",VLOOKUP(E83,'[1]INSUMOS SEINFRA'!$A:$D,4,0),)))))","v":8688.69},10730.53,64383.18,6]
[null,"2.2.15","SERVIÇO","SINAPI",102264,{"$f":"IF(C84=\"SERVIÇO\",IF(D84=\"SINAPI\",VLOOKUP(E84,'[1]SERVIÇOS SINAPI'!$A:$D,2,0),IF(D84=\"ORSE\",VLOOKUP(E84,'[1]SERVIÇOS ORSE'!$A:$D,2,0),IF(D84=\"SEINFRA\",VLOOKUP(E84,'[1]SERVIÇOS SEINFRA'!$A:$D,2,0)))),IF(C84=\"INSUMO\",IF(D84=\"SINAPI\",VLOOKUP(E84,'[1]INSUMOS SINAPI'!$A:$D,2,0),IF(D84=\"ORSE\",VLOOKUP(E84,'[1]INSUMOS ORSE'!$A:$D,2,0),IF(D84=\"SEINFRA\",VLOOKUP(E84,'[1]INSUMOS SEINFRA'!$A:$D,2,0),)))))","v":"TUBO DE PVC BRANCO PARA REDE COLETORA DE ESGOTO CONDOMINIAL DE PAREDE MACIÇA, DN 100 MM, JUNTA ELÁSTICA - FORNECIMENTO E ASSENTAMENTO. AF_01/2021"},{"$f":"IF(C84=\"SERVIÇO\",IF(D84=\"SINAPI\",VLOOKUP(E84,'[1]SERVIÇOS SINAPI'!$A:$D,3,0),IF(D84=\"ORSE\",VLOOKUP(E84,'[1]SERVIÇOS ORSE'!$A:$D,3,0),IF(D84=\"SEINFRA\",VLOOKUP(E84,'[1]SERVIÇOS SEINFRA'!$A:$D,3,0)))),IF(C84=\"INSUMO\",IF(D84=\"SINAPI\",VLOOKUP(E84,'[1]INSUMOS SINAPI'!$A:$D,3,0),IF(D84=\"ORSE\",VLOOKUP(E84,'[1]INSUMOS ORSE'!$A:$D,3,0),IF(D84=\"SEINFRA\",VLOOKUP(E84,'[1]INSUMOS SEINFRA'!$A:$D,3,0),)))))","v":"M"},{"$f":"'[1]Memória de Cálculo'!$L$544*$G$7","v":72},{"$f":"IF(C84=\"SERVIÇO\",IF(D84=\"SINAPI\",VLOOKUP(E84,'[1]SERVIÇOS SINAPI'!$A:$D,4,0),IF(D84=\"ORSE\",VLOOKUP(E84,'[1]SERVIÇOS ORSE'!$A:$D,4,0),IF(D84=\"SEINFRA\",VLOOKUP(E84,'[1]SERVIÇOS SEINFRA'!$A:$D,4,0)))),IF(C84=\"INSUMO\",IF(D84=\"SINAPI\",VLOOKUP(E84,'[1]INSUMOS SINAPI'!$A:$D,4,0),IF(D84=\"ORSE\",VLOOKUP(E84,'[1]INSUMOS ORSE'!$A:$D,4,0),IF(D84=\"SEINFRA\",VLOOKUP(E84,'[1]INSUMOS SEINFRA'!$A:$D,4,0),)))))","v":21.79},26.91,1937.52,4]
[null,"2.2.16","SERVIÇO","ORSE",1029,{"$f":"IF(C85=\"SERVIÇO\",IF(D85=\"SINAPI\",VLOOKUP(E85,'[1]SERVIÇOS SINAPI'!$A:$D,2,0),IF(D85=\"ORSE\",VLOOKUP(E85,'[1]SERVIÇOS ORSE'!$A:$D,2,0),IF(D85=\"SEINFRA\",VLOOKUP(E85,'[1]SERVIÇOS SEINFRA'!$A:$D,2,0)))),IF(C85=\"INSUMO\",IF(D85=\"SINAPI\",VLOOKUP(E85,'[1]INSUMOS SINAPI'!$A:$D,2,0),IF(D85=\"ORSE\",VLOOKUP(E85,'[1]INSUMOS ORSE'!$A:$D,2,0),IF(D85=\"SEINFRA\",VLOOKUP(E85,'[1]INSUMOS SEINFRA'!$A:$D,2,0),)))))","v":"TUBO PVC RÍGIDO SOLDÁVEL MARROM P/ ÁGUA, D = 32 MM (1\")"},{"$f":"IF(C85=\"SERVIÇO\",IF(D85=\"SINAPI\",VLOOKUP(E85,'[1]SERVIÇOS SINAPI'!$A:$D,3,0),IF(D85=\"ORSE\",VLOOKUP(E85,'[1]SERVIÇOS ORSE'!$A:$D,3,0),IF(D85=\"SEINFRA\",VLOOKUP(E85,'[1]SERVIÇOS SEINFRA'!$A:$D,3,0)))),IF(C85=\"INSUMO\",IF(D85=\"SINAPI\",VLOOKUP(E85,'[1]INSUMOS SINAPI'!$A:$D,3,0),IF(D85=\"ORSE\",VLOOKUP(E85,'[1]INSUMOS ORSE'!$A:$D,3,0),IF(D85=\"SEINFRA\",VLOOKUP(E85,'[1]INSUMOS SEINFRA'!$A:$D,3,0),)))))","v":"M"},{"$f":"'[1]Memória de Cálculo'!$L$548*$G$7","v":114},{"$f":"IF(C85=\"SERVIÇO\",IF(D85=\"SINAPI\",VLOOKUP(E85,'[1]SERVIÇOS SINAPI'!$A:$D,4,0),IF(D85=\"ORSE\",VLOOKUP(E85,'[1]SERVIÇOS ORSE'!$A:$D,4,0),IF(D85=\"SEINFRA\",VLOOKUP(E85,'[1]SERVIÇOS SEINFRA'!$A:$D,4,0)))),IF(C85=\"INSUMO\",IF(D85=\"SINAPI\",VLOOKUP(E85,'[1]INSUMOS SINAPI'!$A:$D,4,0),IF(D85=\"ORSE\",VLOOKUP(E85,'[1]INSUMOS ORSE'!$A:$D,4,0),IF(D85=\"SEINFRA\",VLOOKUP(E85,'[1]INSUMOS SEINFRA'!$A:$D,4,0),)))))","v":18.08},22.33,2545.62,4]
[null,"2.2.17","SERVIÇO","SINAPI",98052,{"$f":"IF(C86=\"SERVIÇO\",IF(D86=\"SINAPI\",VLOOKUP(E86,'[1]SERVIÇOS SINAPI'!$A:$D,2,0),IF(D86=\"ORSE\",VLOOKUP(E86,'[1]SERVIÇOS ORSE'!$A:$D,2,0),IF(D86=\"SEINFRA\",VLOOKUP(E86,'[1]SERVIÇOS SEINFRA'!$A:$D,2,0)))),IF(C86=\"INSUMO\",IF(D86=\"SINAPI\",VLOOKUP(E86,'[1]INSUMOS SINAPI'!$A:$D,2,0),IF(D86=\"ORSE\",VLOOKUP(E86,'[1]INSUMOS ORSE'!$A:$D,2,0),IF(D86=\"SEINFRA\",VLOOKUP(E86,'[1]INSUMOS SEINFRA'!$A:$D,2,0),)))))","v":"TANQUE SÉPTICO CIRCULAR, EM CONCRETO PRÉ-MOLDADO, DIÂMETRO INTERNO = 1,10 M, ALTURA INTERNA = 2,50 M, VOLUME ÚTIL: 2138,2 L (PARA 5 CONTRIBUINTES). AF_12/2020"},{"$f":"IF(C86=\"SERVIÇO\",IF(D86=\"SINAPI\",VLOOKUP(E86,'[1]SERVIÇOS SINAPI'!$A:$D,3,0),IF(D86=\"ORSE\",VLOOKUP(E86,'[1]SERVIÇOS ORSE'!$A:$D,3,0),IF(D86=\"SEINFRA\",VLOOKUP(E86,'[1]SERVIÇOS SEINFRA'!$A:$D,3,0)))),IF(C86=\"INSUMO\",IF(D86=\"SINAPI\",VLOOKUP(E86,'[1]INSUMOS SINAPI'!$A:$D,3,0),IF(D86=\"ORSE\",VLOOKUP(E86,'[1]INSUMOS ORSE'!$A:$D,3,0),IF(D86=\"SEINFRA\",VLOOKUP(E86,'[1]INSUMOS SEINFRA'!$A:$D,3,0),)))))","v":"UN"},{"$f":"'[1]Memória de Cálculo'!$L$552*$G$7","v":6},{"$f":"IF(C86=\"SERVIÇO\",IF(D86=\"SINAPI\",VLOOKUP(E86,'[1]SERVIÇOS SINAPI'!$A:$D,4,0),IF(D86=\"ORSE\",VLOOKUP(E86,'[1]SERVIÇOS ORSE'!$A:$D,4,0),IF(D86=\"SEINFRA\",VLOOKUP(E86,'[1]SERVIÇOS SEINFRA'!$A:$D,4,0)))),IF(C86=\"INSUMO\",IF(D86=\"SINAPI\",VLOOKUP(E86,'[1]INSUMOS SINAPI'!$A:$D,4,0),IF(D86=\"ORSE\",VLOOKUP(E86,'[1]INSUMOS ORSE'!$A:$D,4,0),IF(D86=\"SEINFRA\",VLOOKUP(E86,'[1]INSUMOS SEINFRA'!$A:$D,4,0),)))))","v":1741.26},2150.46,12902.76,2]
[null,"2.2.18","SERVIÇO","SINAPI",98094,{"$f":"IF(C87=\"SERVIÇO\",IF(D87=\"SINAPI\",VLOOKUP(E87,'[1]SERVIÇOS SINAPI'!$A:$D,2,0),IF(D87=\"ORSE\",VLOOKUP(E87,'[1]SERVIÇOS ORSE'!$A:$D,2,0),IF(D87=\"SEINFRA\",VLOOKUP(E87,'[1]SERVIÇOS SEINFRA'!$A:$D,2,0)))),IF(C87=\"INSUMO\",IF(D87=\"SINAPI\",VLOOKUP(E87,'[1]INSUMOS SINAPI'!$A:$D,2,0),IF(D87=\"ORSE\",VLOOKUP(E87,'[1]INSUMOS ORSE'!$A:$D,2,0),IF(D87=\"SEINFRA\",VLOOKUP(E87,'[1]INSUMOS SEINFRA'!$A:$D,2,0),)))))","v":"SUMIDOURO RETANGULAR, EM ALVENARIA COM BLOCOS DE CONCRETO, DIMENSÕES INTERNAS: 0,8 X 1,4 X 3,0 M, ÁREA DE INFILTRAÇÃO: 13,2 M² (PARA 5 CONTRIBUINTES). AF_12/2020"},{"$f":"IF(C87=\"SERVIÇO\",IF(D87=\"SINAPI\",VLOOKUP(E87,'[1]SERVIÇOS SINAPI'!$A:$D,3,0),IF(D87=\"ORSE\",VLOOKUP(E87,'[1]SERVIÇOS ORSE'!$A:$D,3,0),IF(D87=\"SEINFRA\",VLOOKUP(E87,'[1]SERVIÇOS SEINFRA'!$A:$D,3,0)))),IF(C87=\"INSUMO\",IF(D87=\"SINAPI\",VLOOKUP(E87,'[1]INSUMOS SINAPI'!$A:$D,3,0),IF(D87=\"ORSE\",VLOOKUP(E87,'[1]INSUMOS ORSE'!$A:$D,3,0),IF(D87=\"SEINFRA\",VLOOKUP(E87,'[1]INSUMOS SEINFRA'!$A:$D,3,0),)))))","v":"UN"},{"$f":"'[1]Memória de Cálculo'!$L$556*$G$7","v":6},{"$f":"IF(C87=\"SERVIÇO\",IF(D87=\"SINAPI\",VLOOKUP(E87,'[1]SERVIÇOS SINAPI'!$A:$D,4,0),IF(D87=\"ORSE\",VLOOKUP(E87,'[1]SERVIÇOS ORSE'!$A:$D,4,0),IF(D87=\"SEINFRA\",VLOOKUP(E87,'[1]SERVIÇOS SEINFRA'!$A:$D,4,0)))),IF(C87=\"INSUMO\",IF(D87=\"SINAPI\",VLOOKUP(E87,'[1]INSUMOS SINAPI'!$A:$D,4,0),IF(D87=\"ORSE\",VLOOKUP(E87,'[1]INSUMOS ORSE'!$A:$D,4,0),IF(D87=\"SEINFRA\",VLOOKUP(E87,'[1]INSUMOS SEINFRA'!$A:$D,4,0),)))))","v":2460.07},3038.19,18229.14,2]
[null,"2.2.19","SERVIÇO","SINAPI",90105,{"$f":"IF(C88=\"SERVIÇO\",IF(D88=\"SINAPI\",VLOOKUP(E88,'[1]SERVIÇOS SINAPI'!$A:$D,2,0),IF(D88=\"ORSE\",VLOOKUP(E88,'[1]SERVIÇOS ORSE'!$A:$D,2,0),IF(D88=\"SEINFRA\",VLOOKUP(E88,'[1]SERVIÇOS SEINFRA'!$A:$D,2,0)))),IF(C88=\"INSUMO\",IF(D88=\"SINAPI\",VLOOKUP(E88,'[1]INSUMOS SINAPI'!$A:$D,2,0),IF(D88=\"ORSE\",VLOOKUP(E88,'[1]INSUMOS ORSE'!$A:$D,2,0),IF(D88=\"SEINFRA\",VLOOKUP(E88,'[1]INSUMOS SEINFRA'!$A:$D,2,0),)))))","v":"ESCAVAÇÃO MECANIZADA DE VALA COM PROFUNDIDADE ATÉ 1,5 M (MÉDIA ENTRE MONTANTE E JUSANTE/UMA COMPOSIÇÃO POR TRECHO) COM RETROESCAVADEIRA (CAPACIDADE DA CAÇAMBA DA RETRO: 0,26 M3 / POTÊNCIA: 88 HP), LARGURA MENOR QUE 0,8 M, EM SOLO DE 1A CATEGORIA, LOCAISCOM BAIXO NÍVEL DE INTERFERÊNCIA. AF_02/2021"},{"$f":"IF(C88=\"SERVIÇO\",IF(D88=\"SINAPI\",VLOOKUP(E88,'[1]SERVIÇOS SINAPI'!$A:$D,3,0),IF(D88=\"ORSE\",VLOOKUP(E88,'[1]SERVIÇOS ORSE'!$A:$D,3,0),IF(D88=\"SEINFRA\",VLOOKUP(E88,'[1]SERVIÇOS SEINFRA'!$A:$D,3,0)))),IF(C88=\"INSUMO\",IF(D88=\"SINAPI\",VLOOKUP(E88,'[1]INSUMOS SINAPI'!$A:$D,3,0),IF(D88=\"ORSE\",VLOOKUP(E88,'[1]INSUMOS ORSE'!$A:$D,3,0),IF(D88=\"SEINFRA\",VLOOKUP(E88,'[1]INSUMOS SEINFRA'!$A:$D,3,0),)))))","v":"M³"},{"$f":"'[1]Memória de Cálculo'!$L$561*$G$7","v":36},{"$f":"IF(C88=\"SERVIÇO\",IF(D88=\"SINAPI\",VLOOKUP(E88,'[1]SERVIÇOS SINAPI'!$A:$D,4,0),IF(D88=\"ORSE\",VLOOKUP(E88,'[1]SERVIÇOS ORSE'!$A:$D,4,0),IF(D88=\"SEINFRA\",VLOOKUP(E88,'[1]SERVIÇOS SEINFRA'!$A:$D,4,0)))),IF(C88=\"INSUMO\",IF(D88=\"SINAPI\",VLOOKUP(E88,'[1]INSUMOS SINAPI'!$A:$D,4,0),IF(D88=\"ORSE\",VLOOKUP(E88,'[1]INSUMOS ORSE'!$A:$D,4,0),IF(D88=\"SEINFRA\",VLOOKUP(E88,'[1]INSUMOS SEINFRA'!$A:$D,4,0),)))))","v":7.3},9.02,324.72,1]
[null,"2.2.20","SERVIÇO","ORSE",5103,{"$f":"IF(C89=\"SERVIÇO\",IF(D89=\"SINAPI\",VLOOKUP(E89,'[1]SERVIÇOS SINAPI'!$A:$D,2,0),IF(D89=\"ORSE\",VLOOKUP(E89,'[1]SERVIÇOS ORSE'!$A:$D,2,0),IF(D89=\"SEINFRA\",VLOOKUP(E89,'[1]SERVIÇOS SEINFRA'!$A:$D,2,0)))),IF(C89=\"INSUMO\",IF(D89=\"SINAPI\",VLOOKUP(E89,'[1]INSUMOS SINAPI'!$A:$D,2,0),IF(D89=\"ORSE\",VLOOKUP(E89,'[1]INSUMOS ORSE'!$A:$D,2,0),IF(D89=\"SEINFRA\",VLOOKUP(E89,'[1]INSUMOS SEINFRA'!$A:$D,2,0),)))))","v":"REGULARIZAÇÃO MANUAL"},{"$f":"IF(C89=\"SERVIÇO\",IF(D89=\"SINAPI\",VLOOKUP(E89,'[1]SERVIÇOS SINAPI'!$A:$D,3,0),IF(D89=\"ORSE\",VLOOKUP(E89,'[1]SERVIÇOS ORSE'!$A:$D,3,0),IF(D89=\"SEINFRA\",VLOOKUP(E89,'[1]SERVIÇOS SEINFRA'!$A:$D,3,0)))),IF(C89=\"INSUMO\",IF(D89=\"SINAPI\",VLOOKUP(E89,'[1]INSUMOS SINAPI'!$A:$D,3,0),IF(D89=\"ORSE\",VLOOKUP(E89,'[1]INSUMOS ORSE'!$A:$D,3,0),IF(D89=\"SEINFRA\",VLOOKUP(E89,'[1]INSUMOS SEINFRA'!$A:$D,3,0),)))))","v":"M²"},{"$f":"'[1]Memória de Cálculo'!$L$566*$G$7","v":64.8},{"$f":"IF(C89=\"SERVIÇO\",IF(D89=\"SINAPI\",VLOOKUP(E89,'[1]SERVIÇOS SINAPI'!$A:$D,4,0),IF(D89=\"ORSE\",VLOOKUP(E89,'[1]SERVIÇOS ORSE'!$A:$D,4,0),IF(D89=\"SEINFRA\",VLOOKUP(E89,'[1]SERVIÇOS SEINFRA'!$A:$D,4,0)))),IF(C89=\"INSUMO\",IF(D89=\"SINAPI\",VLOOKUP(E89,'[1]INSUMOS SINAPI'!$A:$D,4,0),IF(D89=\"ORSE\",VLOOKUP(E89,'[1]INSUMOS ORSE'!$A:$D,4,0),IF(D89=\"SEINFRA\",VLOOKUP(E89,'[1]INSUMOS SEINFRA'!$A:$D,4,0),)))))","v":4.08},5.04,326.59,1]
[null,"2.2.21","SERVIÇO","SINAPI",93379,{"$f":"IF(C90=\"SERVIÇO\",IF(D90=\"SINAPI\",VLOOKUP(E90,'[1]SERVIÇOS SINAPI'!$A:$D,2,0),IF(D90=\"ORSE\",VLOOKUP(E90,'[1]SERVIÇOS ORSE'!$A:$D,2,0),IF(D90=\"SEINFRA\",VLOOKUP(E90,'[1]SERVIÇOS SEINFRA'!$A:$D,2,0)))),IF(C90=\"INSUMO\",IF(D90=\"SINAPI\",VLOOKUP(E90,'[1]INSUMOS SINAPI'!$A:$D,2,0),IF(D90=\"ORSE\",VLOOKUP(E90,'[1]INSUMOS ORSE'!$A:$D,2,0),IF(D90=\"SEINFRA\",VLOOKUP(E90,'[1]INSUMOS SEINFRA'!$A:$D,2,0),)))))","v":"REATERRO MECANIZADO DE VALA COM RETROESCAVADEIRA (CAPACIDADE DA CAÇAMBA DA RETRO: 0,26 M³ / POTÊNCIA: 88 HP), LARGURA DE 0,8 A 1,5 M, PROFUNDIDADE ATÉ 1,5 M, COM SOLO DE 1ª CATEGORIA EM LOCAIS COM BAIXO NÍVEL DE INTERFERÊNCIA. AF_04/2016"},{"$f":"IF(C90=\"SERVIÇO\",IF(D90=\"SINAPI\",VLOOKUP(E90,'[1]SERVIÇOS SINAPI'!$A:$D,3,0),IF(D90=\"ORSE\",VLOOKUP(E90,'[1]SERVIÇOS ORSE'!$A:$D,3,0),IF(D90=\"SEINFRA\",VLOOKUP(E90,'[1]SERVIÇOS SEINFRA'!$A:$D,3,0)))),IF(C90=\"INSUMO\",IF(D90=\"SINAPI\",VLOOKUP(E90,'[1]INSUMOS SINAPI'!$A:$D,3,0),IF(D90=\"ORSE\",VLOOKUP(E90,'[1]INSUMOS ORSE'!$A:$D,3,0),IF(D90=\"SEINFRA\",VLOOKUP(E90,'[1]INSUMOS SEINFRA'!$A:$D,3,0),)))))","v":"M³"},{"$f":"'[1]Memória de Cálculo'!$L$571*$G$7","v":36},{"$f":"IF(C90=\"SERVIÇO\",IF(D90=\"SINAPI\",VLOOKUP(E90,'[1]SERVIÇOS SINAPI'!$A:$D,4,0),IF(D90=\"ORSE\",VLOOKUP(E90,'[1]SERVIÇOS ORSE'!$A:$D,4,0),IF(D90=\"SEINFRA\",VLOOKUP(E90,'[1]SERVIÇOS SEINFRA'!$A:$D,4,0)))),IF(C90=\"INSUMO\",IF(D90=\"SINAPI\",VLOOKUP(E90,'[1]INSUMOS SINAPI'!$A:$D,4,0),IF(D90=\"ORSE\",VLOOKUP(E90,'[1]INSUMOS ORSE'!$A:$D,4,0),IF(D90=\"SEINFRA\",VLOOKUP(E90,'[1]INSUMOS SEINFRA'!$A:$D,4,0),)))))","v":18.95},23.4,842.4,1]
[null,"2.2.22","SERVIÇO","SINAPI",100434,{"$f":"IF(C91=\"SERVIÇO\",IF(D91=\"SINAPI\",VLOOKUP(E91,'[1]SERVIÇOS SINAPI'!$A:$D,2,0),IF(D91=\"ORSE\",VLOOKUP(E91,'[1]SERVIÇOS ORSE'!$A:$D,2,0),IF(D91=\"SEINFRA\",VLOOKUP(E91,'[1]SERVIÇOS SEINFRA'!$A:$D,2,0)))),IF(C91=\"INSUMO\",IF(D91=\"SINAPI\",VLOOKUP(E91,'[1]INSUMOS SINAPI'!$A:$D,2,0),IF(D91=\"ORSE\",VLOOKUP(E91,'[1]INSUMOS ORSE'!$A:$D,2,0),IF(D91=\"SEINFRA\",VLOOKUP(E91,'[1]INSUMOS SEINFRA'!$A:$D,2,0),)))))","v":"CALHA DE BEIRAL, SEMICIRCULAR DE PVC, DIAMETRO 125 MM, INCLUINDO CABECEIRAS, EMENDAS, BOCAIS, SUPORTES E VEDAÇÕES, EXCLUINDO CONDUTORES, INCLUSO TRANSPORTE VERTICAL. AF_07/2019"},{"$f":"IF(C91=\"SERVIÇO\",IF(D91=\"SINAPI\",VLOOKUP(E91,'[1]SERVIÇOS SINAPI'!$A:$D,3,0),IF(D91=\"ORSE\",VLOOKUP(E91,'[1]SERVIÇOS ORSE'!$A:$D,3,0),IF(D91=\"SEINFRA\",VLOOKUP(E91,'[1]SERVIÇOS SEINFRA'!$A:$D,3,0)))),IF(C91=\"INSUMO\",IF(D91=\"SINAPI\",VLOOKUP(E91,'[1]INSUMOS SINAPI'!$A:$D,3,0),IF(D91=\"ORSE\",VLOOKUP(E91,'[1]INSUMOS ORSE'!$A:$D,3,0),IF(D91=\"SEINFRA\",VLOOKUP(E91,'[1]INSUMOS SEINFRA'!$A:$D,3,0),)))))","v":"M"},{"$f":"'[1]Memória de Cálculo'!$L$580*$G$7","v":285},{"$f":"IF(C91=\"SERVIÇO\",IF(D91=\"SINAPI\",VLOOKUP(E91,'[1]SERVIÇOS SINAPI'!$A:$D,4,0),IF(D91=\"ORSE\",VLOOKUP(E91,'[1]SERVIÇOS ORSE'!$A:$D,4,0),IF(D91=\"SEINFRA\",VLOOKUP(E91,'[1]SERVIÇOS SEINFRA'!$A:$D,4,0)))),IF(C91=\"INSUMO\",IF(D91=\"SINAPI\",VLOOKUP(E91,'[1]INSUMOS SINAPI'!$A:$D,4,0),IF(D91=\"ORSE\",VLOOKUP(E91,'[1]INSUMOS ORSE'!$A:$D,4,0),IF(D91=\"SEINFRA\",VLOOKUP(E91,'[1]INSUMOS SEINFRA'!$A:$D,4,0),)))))","v":61.45},75.89,21628.65,2]
[null,"2.3","URBANIZAÇÃO",{"$nulls":7},{"$f":"SUM(K93:K101)","v":183432.07}]
[null,"2.3.1","SERVIÇO","SINAPI",98525,{"$f":"IF(C93=\"SERVIÇO\",IF(D93=\"SINAPI\",VLOOKUP(E93,'[1]SERVIÇOS SINAPI'!$A:$D,2,0),IF(D93=\"ORSE\",VLOOKUP(E93,'[1]SERVIÇOS ORSE'!$A:$D,2,0),IF(D93=\"SEINFRA\",VLOOKUP(E93,'[1]SERVIÇOS SEINFRA'!$A:$D,2,0)))),IF(C93=\"INSUMO\",IF(D93=\"SINAPI\",VLOOKUP(E93,'[1]INSUMOS SINAPI'!$A:$D,2,0),IF(D93=\"ORSE\",VLOOKUP(E93,'[1]INSUMOS ORSE'!$A:$D,2,0),IF(D93=\"SEINFRA\",VLOOKUP(E93,'[1]INSUMOS SEINFRA'!$A:$D,2,0),)))))","v":"LIMPEZA MECANIZADA DE CAMADA VEGETAL, VEGETAÇÃO E PEQUENAS ÁRVORES (DIÂMETRO DE TRONCO MENOR QUE 0,20 M), COM TRATOR DE ESTEIRAS.AF_05/2018"},{"$f":"IF(C93=\"SERVIÇO\",IF(D93=\"SINAPI\",VLOOKUP(E93,'[1]SERVIÇOS SINAPI'!$A:$D,3,0),IF(D93=\"ORSE\",VLOOKUP(E93,'[1]SERVIÇOS ORSE'!$A:$D,3,0),IF(D93=\"SEINFRA\",VLOOKUP(E93,'[1]SERVIÇOS SEINFRA'!$A:$D,3,0)))),IF(C93=\"INSUMO\",IF(D93=\"SINAPI\",VLOOKUP(E93,'[1]INSUMOS SINAPI'!$A:$D,3,0),IF(D93=\"ORSE\",VLOOKUP(E93,'[1]INSUMOS ORSE'!$A:$D,3,0),IF(D93=\"SEINFRA\",VLOOKUP(E93,'[1]INSUMOS SEINFRA'!$A:$D,3,0),)))))","v":"M²"},{"$f":"'[1]Memória de Cálculo'!$L$588*$G$7","v":3410.4},{"$f":"IF(C93=\"SERVIÇO\",IF(D93=\"SINAPI\",VLOOKUP(E93,'[1]SERVIÇOS SINAPI'!$A:$D,4,0),IF(D93=\"ORSE\",VLOOKUP(E93,'[1]SERVIÇOS ORSE'!$A:$D,4,0),IF(D93=\"SEINFRA\",VLOOKUP(E93,'[1]SERVIÇOS SEINFRA'!$A:$D,4,0)))),IF(C93=\"INSUMO\",IF(D93=\"SINAPI\",VLOOKUP(E93,'[1]INSUMOS SINAPI'!$A:$D,4,0),IF(D93=\"ORSE\",VLOOKUP(E93,'[1]INSUMOS ORSE'!$A:$D,4,0),IF(D93=\"SEINFRA\",VLOOKUP(E93,'[1]INSUMOS SEINFRA'!$A:$D,4,0),)))))","v":0.34},{"$f":"IF(C93=\"SERVIÇO\",I93*(1+$I$8),IF(C93=\"INSUMO\",(I93*(1+$K$8))))","v":0.42},{"$f":"J93*H93","v":1432.37},1]
[null,"2.3.2","SERVIÇO","SINAPI",101197,{"$f":"IF(C94=\"SERVIÇO\",IF(D94=\"SINAPI\",VLOOKUP(E94,'[1]SERVIÇOS SINAPI'!$A:$D,2,0),IF(D94=\"ORSE\",VLOOKUP(E94,'[1]SERVIÇOS ORSE'!$A:$D,2,0),IF(D94=\"SEINFRA\",VLOOKUP(E94,'[1]SERVIÇOS SEINFRA'!$A:$D,2,0)))),IF(C94=\"INSUMO\",IF(D94=\"SINAPI\",VLOOKUP(E94,'[1]INSUMOS SINAPI'!$A:$D,2,0),IF(D94=\"ORSE\",VLOOKUP(E94,'[1]INSUMOS ORSE'!$A:$D,2,0),IF(D94=\"SEINFRA\",VLOOKUP(E94,'[1]INSUMOS SEINFRA'!$A:$D,2,0),)))))","v":"CERCA COM MOURÕES DE CONCRETO, SEÇÃO \"T\" PONTA INCLINADA, 10X10 CM, ESPAÇAMENTO DE 2,5 M, CRAVADOS 0,5 M, COM 11 FIOS DE ARAME FARPADO Nº 14 - FORNECIMENTO E INSTALAÇÃO. AF_05/2020"},{"$f":"IF(C94=\"SERVIÇO\",IF(D94=\"SINAPI\",VLOOKUP(E94,'[1]SERVIÇOS SINAPI'!$A:$D,3,0),IF(D94=\"ORSE\",VLOOKUP(E94,'[1]SERVIÇOS ORSE'!$A:$D,3,0),IF(D94=\"SEINFRA\",VLOOKUP(E94,'[1]SERVIÇOS SEINFRA'!$A:$D,3,0)))),IF(C94=\"INSUMO\",IF(D94=\"SINAPI\",VLOOKUP(E94,'[1]INSUMOS SINAPI'!$A:$D,3,0),IF(D94=\"ORSE\",VLOOKUP(E94,'[1]INSUMOS ORSE'!$A:$D,3,0),IF(D94=\"SEINFRA\",VLOOKUP(E94,'[1]INSUMOS SEINFRA'!$A:$D,3,0),)))))","v":"M"},{"$f":"'[1]Memória de Cálculo'!$L$595*$G$7","v":533.4},{"$f":"IF(C94=\"SERVIÇO\",IF(D94=\"SINAPI\",VLOOKUP(E94,'[1]SERVIÇOS SINAPI'!$A:$D,4,0),IF(D94=\"ORSE\",VLOOKUP(E94,'[1]SERVIÇOS ORSE'!$A:$D,4,0),IF(D94=\"SEINFRA\",VLOOKUP(E94,'[1]SERVIÇOS SEINFRA'!$A:$D,4,0)))),IF(C94=\"INSUMO\",IF(D94=\"SINAPI\",VLOOKUP(E94,'[1]INSUMOS SINAPI'!$A:$D,4,0),IF(D94=\"ORSE\",VLOOKUP(E94,'[1]INSUMOS ORSE'!$A:$D,4,0),IF(D94=\"SEINFRA\",VLOOKUP(E94,'[1]INSUMOS SEINFRA'!$A:$D,4,0),)))))","v":107.93},133.29,71096.89,2]
[null,"2.3.3","SERVIÇO","ORSE",2374,{"$f":"IF(C95=\"SERVIÇO\",IF(D95=\"SINAPI\",VLOOKUP(E95,'[1]SERVIÇOS SINAPI'!$A:$D,2,0),IF(D95=\"ORSE\",VLOOKUP(E95,'[1]SERVIÇOS ORSE'!$A:$D,2,0),IF(D95=\"SEINFRA\",VLOOKUP(E95,'[1]SERVIÇOS SEINFRA'!$A:$D,2,0)))),IF(C95=\"INSUMO\",IF(D95=\"SINAPI\",VLOOKUP(E95,'[1]INSUMOS SINAPI'!$A:$D,2,0),IF(D95=\"ORSE\",VLOOKUP(E95,'[1]INSUMOS ORSE'!$A:$D,2,0),IF(D95=\"SEINFRA\",VLOOKUP(E95,'[1]INSUMOS SEINFRA'!$A:$D,2,0),)))))","v":"MURO EM ALVENARIA BLOCO CERÂMICO, E= 0,09M, C/ ALV DE PEDRA 0,35 X 0,60M, COL UNAS (9X20CM) E CINTAMENTO (9X15CM) SUPERIOR E INFERIOR CONCRETO ARMADO FCK = 15,0 MPA CADA 3,00M, CHAPISCO E REBOCO"},{"$f":"IF(C95=\"SERVIÇO\",IF(D95=\"SINAPI\",VLOOKUP(E95,'[1]SERVIÇOS SINAPI'!$A:$D,3,0),IF(D95=\"ORSE\",VLOOKUP(E95,'[1]SERVIÇOS ORSE'!$A:$D,3,0),IF(D95=\"SEINFRA\",VLOOKUP(E95,'[1]SERVIÇOS SEINFRA'!$A:$D,3,0)))),IF(C95=\"INSUMO\",IF(D95=\"SINAPI\",VLOOKUP(E95,'[1]INSUMOS SINAPI'!$A:$D,3,0),IF(D95=\"ORSE\",VLOOKUP(E95,'[1]INSUMOS ORSE'!$A:$D,3,0),IF(D95=\"SEINFRA\",VLOOKUP(E95,'[1]INSUMOS SEINFRA'!$A:$D,3,0),)))))","v":"M²"},{"$f":"'[1]Memória de Cálculo'!$L$599*$G$7","v":263.34},{"$f":"IF(C95=\"SERVIÇO\",IF(D95=\"SINAPI\",VLOOKUP(E95,'[1]SERVIÇOS SINAPI'!$A:$D,4,0),IF(D95=\"ORSE\",VLOOKUP(E95,'[1]SERVIÇOS ORSE'!$A:$D,4,0),IF(D95=\"SEINFRA\",VLOOKUP(E95,'[1]SERVIÇOS SEINFRA'!$A:$D,4,0)))),IF(C95=\"INSUMO\",IF(D95=\"SINAPI\",VLOOKUP(E95,'[1]INSUMOS SINAPI'!$A:$D,4,0),IF(D95=\"ORSE\",VLOOKUP(E95,'[1]INSUMOS ORSE'!$A:$D,4,0),IF(D95=\"SEINFRA\",VLOOKUP(E95,'[1]INSUMOS SEINFRA'!$A:$D,4,0),)))))","v":172.29},212.78,56033.49,2]
[null,"2.3.4","SERVIÇO","SEINFRA","C2904",{"$f":"IF(C96=\"SERVIÇO\",IF(D96=\"SINAPI\",VLOOKUP(E96,'[1]SERVIÇOS SINAPI'!$A:$D,2,0),IF(D96=\"ORSE\",VLOOKUP(E96,'[1]SERVIÇOS ORSE'!$A:$D,2,0),IF(D96=\"SEINFRA\",VLOOKUP(E96,'[1]SERVIÇOS SEINFRA'!$A:$D,2,0)))),IF(C96=\"INSUMO\",IF(D96=\"SINAPI\",VLOOKUP(E96,'[1]INSUMOS SINAPI'!$A:$D,2,0),IF(D96=\"ORSE\",VLOOKUP(E96,'[1]INSUMOS ORSE'!$A:$D,2,0),IF(D96=\"SEINFRA\",VLOOKUP(E96,'[1]INSUMOS SEINFRA'!$A:$D,2,0),)))))","v":"PORTÃO DE TUBO DE AÇO GALVANIZADO DE 2\" (4X2)m, INCL.. PILARES DE SUSTENTAÇÃO"},{"$f":"IF(C96=\"SERVIÇO\",IF(D96=\"SINAPI\",VLOOKUP(E96,'[1]SERVIÇOS SINAPI'!$A:$D,3,0),IF(D96=\"ORSE\",VLOOKUP(E96,'[1]SERVIÇOS ORSE'!$A:$D,3,0),IF(D96=\"SEINFRA\",VLOOKUP(E96,'[1]SERVIÇOS SEINFRA'!$A:$D,3,0)))),IF(C96=\"INSUMO\",IF(D96=\"SINAPI\",VLOOKUP(E96,'[1]INSUMOS SINAPI'!$A:$D,3,0),IF(D96=\"ORSE\",VLOOKUP(E96,'[1]INSUMOS ORSE'!$A:$D,3,0),IF(D96=\"SEINFRA\",VLOOKUP(E96,'[1]INSUMOS SEINFRA'!$A:$D,3,0),)))))","v":"UN"},{"$f":"'[1]Memória de Cálculo'!$L$603*$G$7","v":6},{"$f":"IF(C96=\"SERVIÇO\",IF(D96=\"SINAPI\",VLOOKUP(E96,'[1]SERVIÇOS SINAPI'!$A:$D,4,0),IF(D96=\"ORSE\",VLOOKUP(E96,'[1]SERVIÇOS ORSE'!$A:$D,4,0),IF(D96=\"SEINFRA\",VLOOKUP(E96,'[1]SERVIÇOS SEINFRA'!$A:$D,4,0)))),IF(C96=\"INSUMO\",IF(D96=\"SINAPI\",VLOOKUP(E96,'[1]INSUMOS SINAPI'!$A:$D,4,0),IF(D96=\"ORSE\",VLOOKUP(E96,'[1]INSUMOS ORSE'!$A:$D,4,0),IF(D96=\"SEINFRA\",VLOOKUP(E96,'[1]INSUMOS SEINFRA'!$A:$D,4,0),)))))","v":4026.92},4973.25,29839.5,5]
[null,"2.3.5","SERVIÇO","SEINFRA","C2903",{"$f":"IF(C97=\"SERVIÇO\",IF(D97=\"SINAPI\",VLOOKUP(E97,'[1]SERVIÇOS SINAPI'!$A:$D,2,0),IF(D97=\"ORSE\",VLOOKUP(E97,'[1]SERVIÇOS ORSE'!$A:$D,2,0),IF(D97=\"SEINFRA\",VLOOKUP(E97,'[1]SERVIÇOS SEINFRA'!$A:$D,2,0)))),IF(C97=\"INSUMO\",IF(D97=\"SINAPI\",VLOOKUP(E97,'[1]INSUMOS SINAPI'!$A:$D,2,0),IF(D97=\"ORSE\",VLOOKUP(E97,'[1]INSUMOS ORSE'!$A:$D,2,0),IF(D97=\"SEINFRA\",VLOOKUP(E97,'[1]INSUMOS SEINFRA'!$A:$D,2,0),)))))","v":"PORTÃO DE TUBO DE AÇO GALVANIZADO DE 2\" (1X2)m, INCL. PILARES DE SUSTENTAÇÃO"},{"$f":"IF(C97=\"SERVIÇO\",IF(D97=\"SINAPI\",VLOOKUP(E97,'[1]SERVIÇOS SINAPI'!$A:$D,3,0),IF(D97=\"ORSE\",VLOOKUP(E97,'[1]SERVIÇOS ORSE'!$A:$D,3,0),IF(D97=\"SEINFRA\",VLOOKUP(E97,'[1]SERVIÇOS SEINFRA'!$A:$D,3,0)))),IF(C97=\"INSUMO\",IF(D97=\"SINAPI\",VLOOKUP(E97,'[1]INSUMOS SINAPI'!$A:$D,3,0),IF(D97=\"ORSE\",VLOOKUP(E97,'[1]INSUMOS ORSE'!$A:$D,3,0),IF(D97=\"SEINFRA\",VLOOKUP(E97,'[1]INSUMOS SEINFRA'!$A:$D,3,0),)))))","v":"UN"},{"$f":"'[1]Memória de Cálculo'!$L$607*$G$7","v":6},{"$f":"IF(C97=\"SERVIÇO\",IF(D97=\"SINAPI\",VLOOKUP(E97,'[1]SERVIÇOS SINAPI'!$A:$D,4,0),IF(D97=\"ORSE\",VLOOKUP(E97,'[1]SERVIÇOS ORSE'!$A:$D,4,0),IF(D97=\"SEINFRA\",VLOOKUP(E97,'[1]SERVIÇOS SEINFRA'!$A:$D,4,0)))),IF(C97=\"INSUMO\",IF(D97=\"SINAPI\",VLOOKUP(E97,'[1]INSUMOS SINAPI'!$A:$D,4,0),IF(D97=\"ORSE\",VLOOKUP(E97,'[1]INSUMOS ORSE'!$A:$D,4,0),IF(D97=\"SEINFRA\",VLOOKUP(E97,'[1]INSUMOS SEINFRA'!$A:$D,4,0),)))))","v":1360.02},1679.62,10077.72,5]
[null,"2.3.6","SERVIÇO","SEINFRA","C2899",{"$f":"IF(C98=\"SERVIÇO\",IF(D98=\"SINAPI\",VLOOKUP(E98,'[1]SERVIÇOS SINAPI'!$A:$D,2,0),IF(D98=\"ORSE\",VLOOKUP(E98,'[1]SERVIÇOS ORSE'!$A:$D,2,0),IF(D98=\"SEINFRA\",VLOOKUP(E98,'[1]SERVIÇOS SEINFRA'!$A:$D,2,0)))),IF(C98=\"INSUMO\",IF(D98=\"SINAPI\",VLOOKUP(E98,'[1]INSUMOS SINAPI'!$A:$D,2,0),IF(D98=\"ORSE\",VLOOKUP(E98,'[1]INSUMOS ORSE'!$A:$D,2,0),IF(D98=\"SEINFRA\",VLOOKUP(E98,'[1]INSUMOS SEINFRA'!$A:$D,2,0),)))))","v":"PINTURA LOGOTIPO CAGECE - PROJETO PADRÃO"},{"$f":"IF(C98=\"SERVIÇO\",IF(D98=\"SINAPI\",VLOOKUP(E98,'[1]SERVIÇOS SINAPI'!$A:$D,3,0),IF(D98=\"ORSE\",VLOOKUP(E98,'[1]SERVIÇOS ORSE'!$A:$D,3,0),IF(D98=\"SEINFRA\",VLOOKUP(E98,'[1]SERVIÇOS SEINFRA'!$A:$D,3,0)))),IF(C98=\"INSUMO\",IF(D98=\"SINAPI\",VLOOKUP(E98,'[1]INSUMOS SINAPI'!$A:$D,3,0),IF(D98=\"ORSE\",VLOOKUP(E98,'[1]INSUMOS ORSE'!$A:$D,3,0),IF(D98=\"SEINFRA\",VLOOKUP(E98,'[1]INSUMOS SEINFRA'!$A:$D,3,0),)))))","v":"UN"},{"$f":"'[1]Memória de Cálculo'!$L$610*$G$7","v":6},{"$f":"IF(C98=\"SERVIÇO\",IF(D98=\"SINAPI\",VLOOKUP(E98,'[1]SERVIÇOS SINAPI'!$A:$D,4,0),IF(D98=\"ORSE\",VLOOKUP(E98,'[1]SERVIÇOS ORSE'!$A:$D,4,0),IF(D98=\"SEINFRA\",VLOOKUP(E98,'[1]SERVIÇOS SEINFRA'!$A:$D,4,0)))),IF(C98=\"INSUMO\",IF(D98=\"SINAPI\",VLOOKUP(E98,'[1]INSUMOS SINAPI'!$A:$D,4,0),IF(D98=\"ORSE\",VLOOKUP(E98,'[1]INSUMOS ORSE'!$A:$D,4,0),IF(D98=\"SEINFRA\",VLOOKUP(E98,'[1]INSUMOS SEINFRA'!$A:$D,4,0),)))))","v":284.28},351.09,2106.54,6]
[null,"2.3.7","SERVIÇO","SINAPI",100745,{"$f":"IF(C99=\"SERVIÇO\",IF(D99=\"SINAPI\",VLOOKUP(E99,'[1]SERVIÇOS SINAPI'!$A:$D,2,0),IF(D99=\"ORSE\",VLOOKUP(E99,'[1]SERVIÇOS ORSE'!$A:$D,2,0),IF(D99=\"SEINFRA\",VLOOKUP(E99,'[1]SERVIÇOS SEINFRA'!$A:$D,2,0)))),IF(C99=\"INSUMO\",IF(D99=\"SINAPI\",VLOOKUP(E99,'[1]INSUMOS SINAPI'!$A:$D,2,0),IF(D99=\"ORSE\",VLOOKUP(E99,'[1]INSUMOS ORSE'!$A:$D,2,0),IF(D99=\"SEINFRA\",VLOOKUP(E99,'[1]INSUMOS SEINFRA'!$A:$D,2,0),)))))","v":"PINTURA COM TINTA ALQUÍDICA DE ACABAMENTO (ESMALTE SINTÉTICO BRILHANTE) PULVERIZADA SOBRE SUPERFÍCIES METÁLICAS (EXCETO PERFIL) EXECUTADO EM OBRA  (POR DEMÃO). AF_01/2020_P"},{"$f":"IF(C99=\"SERVIÇO\",IF(D99=\"SINAPI\",VLOOKUP(E99,'[1]SERVIÇOS SINAPI'!$A:$D,3,0),IF(D99=\"ORSE\",VLOOKUP(E99,'[1]SERVIÇOS ORSE'!$A:$D,3,0),IF(D99=\"SEINFRA\",VLOOKUP(E99,'[1]SERVIÇOS SEINFRA'!$A:$D,3,0)))),IF(C99=\"INSUMO\",IF(D99=\"SINAPI\",VLOOKUP(E99,'[1]INSUMOS SINAPI'!$A:$D,3,0),IF(D99=\"ORSE\",VLOOKUP(E99,'[1]INSUMOS ORSE'!$A:$D,3,0),IF(D99=\"SEINFRA\",VLOOKUP(E99,'[1]INSUMOS SEINFRA'!$A:$D,3,0),)))))","v":"M²"},{"$f":"'[1]Memória de Cálculo'!$L$619*$G$7","v":120},{"$f":"IF(C99=\"SERVIÇO\",IF(D99=\"SINAPI\",VLOOKUP(E99,'[1]SERVIÇOS SINAPI'!$A:$D,4,0),IF(D99=\"ORSE\",VLOOKUP(E99,'[1]SERVIÇOS ORSE'!$A:$D,4,0),IF(D99=\"SEINFRA\",VLOOKUP(E99,'[1]SERVIÇOS SEINFRA'!$A:$D,4,0)))),IF(C99=\"INSUMO\",IF(D99=\"SINAPI\",VLOOKUP(E99,'[1]INSUMOS SINAPI'!$A:$D,4,0),IF(D99=\"ORSE\",VLOOKUP(E99,'[1]INSUMOS ORSE'!$A:$D,4,0),IF(D99=\"SEINFRA\",VLOOKUP(E99,'[1]INSUMOS SEINFRA'!$A:$D,4,0),)))))","v":18.64},23.02,2762.4,2]
[null,"2.3.8","SERVIÇO","SINAPI",100719,{"$f":"IF(C100=\"SERVIÇO\",IF(D100=\"SINAPI\",VLOOKUP(E100,'[1]SERVIÇOS SINAPI'!$A:$D,2,0),IF(D100=\"ORSE\",VLOOKUP(E100,'[1]SERVIÇOS ORSE'!$A:$D,2,0),IF(D100=\"SEINFRA\",VLOOKUP(E100,'[1]SERVIÇOS SEINFRA'!$A:$D,2,0)))),IF(C100=\"INSUMO\",IF(D100=\"SINAPI\",VLOOKUP(E100,'[1]INSUMOS SINAPI'!$A:$D,2,0),IF(D100=\"ORSE\",VLOOKUP(E100,'[1]INSUMOS ORSE'!$A:$D,2,0),IF(D100=\"SEINFRA\",VLOOKUP(E100,'[1]INSUMOS SEINFRA'!$A:$D,2,0),)))))","v":"PINTURA COM TINTA ALQUÍDICA DE FUNDO (TIPO ZARCÃO) PULVERIZADA SOBRE PERFIL METÁLICO EXECUTADO EM FÁBRICA (POR DEMÃO). AF_01/2020_P"},{"$f":"IF(C100=\"SERVIÇO\",IF(D100=\"SINAPI\",VLOOKUP(E100,'[1]SERVIÇOS SINAPI'!$A:$D,3,0),IF(D100=\"ORSE\",VLOOKUP(E100,'[1]SERVIÇOS ORSE'!$A:$D,3,0),IF(D100=\"SEINFRA\",VLOOKUP(E100,'[1]SERVIÇOS SEINFRA'!$A:$D,3,0)))),IF(C100=\"INSUMO\",IF(D100=\"SINAPI\",VLOOKUP(E100,'[1]INSUMOS SINAPI'!$A:$D,3,0),IF(D100=\"ORSE\",VLOOKUP(E100,'[1]INSUMOS ORSE'!$A:$D,3,0),IF(D100=\"SEINFRA\",VLOOKUP(E100,'[1]INSUMOS SEINFRA'!$A:$D,3,0),)))))","v":"M²"},{"$f":"'[1]Memória de Cálculo'!$L$615*$G$7","v":120},{"$f":"IF(C100=\"SERVIÇO\",IF(D100=\"SINAPI\",VLOOKUP(E100,'[1]SERVIÇOS SINAPI'!$A:$D,4,0),IF(D100=\"ORSE\",VLOOKUP(E100,'[1]SERVIÇOS ORSE'!$A:$D,4,0),IF(D100=\"SEINFRA\",VLOOKUP(E100,'[1]SERVIÇOS SEINFRA'!$A:$D,4,0)))),IF(C100=\"INSUMO\",IF(D100=\"SINAPI\",VLOOKUP(E100,'[1]INSUMOS SINAPI'!$A:$D,4,0),IF(D100=\"ORSE\",VLOOKUP(E100,'[1]INSUMOS ORSE'!$A:$D,4,0),IF(D100=\"SEINFRA\",VLOOKUP(E100,'[1]INSUMOS SEINFRA'!$A:$D,4,0),)))))","v":8.05},9.94,1192.8,2]
[null,"2.3.9","SERVIÇO","SINAPI",88489,{"$f":"IF(C101=\"SERVIÇO\",IF(D101=\"SINAPI\",VLOOKUP(E101,'[1]SERVIÇOS SINAPI'!$A:$D,2,0),IF(D101=\"ORSE\",VLOOKUP(E101,'[1]SERVIÇOS ORSE'!$A:$D,2,0),IF(D101=\"SEINFRA\",VLOOKUP(E101,'[1]SERVIÇOS SEINFRA'!$A:$D,2,0)))),IF(C101=\"INSUMO\",IF(D101=\"SINAPI\",VLOOKUP(E101,'[1]INSUMOS SINAPI'!$A:$D,2,0),IF(D101=\"ORSE\",VLOOKUP(E101,'[1]INSUMOS ORSE'!$A:$D,2,0),IF(D101=\"SEINFRA\",VLOOKUP(E101,'[1]INSUMOS SEINFRA'!$A:$D,2,0),)))))","v":"APLICAÇÃO MANUAL DE PINTURA COM TINTA LÁTEX ACRÍLICA EM PAREDES, DUAS DEMÃOS. AF_06/2014"},{"$f":"IF(C101=\"SERVIÇO\",IF(D101=\"SINAPI\",VLOOKUP(E101,'[1]SERVIÇOS SINAPI'!$A:$D,3,0),IF(D101=\"ORSE\",VLOOKUP(E101,'[1]SERVIÇOS ORSE'!$A:$D,3,0),IF(D101=\"SEINFRA\",VLOOKUP(E101,'[1]SERVIÇOS SEINFRA'!$A:$D,3,0)))),IF(C101=\"INSUMO\",IF(D101=\"SINAPI\",VLOOKUP(E101,'[1]INSUMOS SINAPI'!$A:$D,3,0),IF(D101=\"ORSE\",VLOOKUP(E101,'[1]INSUMOS ORSE'!$A:$D,3,0),IF(D101=\"SEINFRA\",VLOOKUP(E101,'[1]INSUMOS SEINFRA'!$A:$D,3,0),)))))","v":"M²"},{"$f":"'[1]Memória de Cálculo'!$L$623*$G$7","v":526.68},{"$f":"IF(C101=\"SERVIÇO\",IF(D101=\"SINAPI\",VLOOKUP(E101,'[1]SERVIÇOS SINAPI'!$A:$D,4,0),IF(D101=\"ORSE\",VLOOKUP(E101,'[1]SERVIÇOS ORSE'!$A:$D,4,0),IF(D101=\"SEINFRA\",VLOOKUP(E101,'[1]SERVIÇOS SEINFRA'!$A:$D,4,0)))),IF(C101=\"INSUMO\",IF(D101=\"SINAPI\",VLOOKUP(E101,'[1]INSUMOS SINAPI'!$A:$D,4,0),IF(D101=\"ORSE\",VLOOKUP(E101,'[1]INSUMOS ORSE'!$A:$D,4,0),IF(D101=\"SEINFRA\",VLOOKUP(E101,'[1]INSUMOS SEINFRA'!$A:$D,4,0),)))))","v":13.67},16.88,8890.36,2]
[null,"2.4","SERVIÇOS DE INSTALAÇÕES ELÉTRICAS PARA UNIDADE DE MELHORAMENTO GENETICO",{"$nulls":7},{"$f":"SUM(K103:K106)","v":17225.16}]
[null,"2.4.1","SERVIÇO","CODEVASF",{"$f":"[1]Composições!I87","v":"COMPO. 6"},"INSTALAÇÃO ELÉTRICA DA UNIDADE DE REPRODUÇÃO E MELHORAMENTO GENEICO",{"$f":"[1]Composições!$I$86","v":"UN "},{"$f":"1*$G$7","v":6},{"$f":"[1]Composições!I98","v":1759.92},{"$f":"IF(C103=\"SERVIÇO\",I103*(1+$I$8),IF(C103=\"INSUMO\",(I103*(1+$K$8))))","v":2173.5},{"$f":"J103*H103","v":13041},6]
[null,"2.4.2","SERVIÇO","CODEVASF",{"$f":"[1]Composições!I101","v":"COMPO. 7"},"INSTALAÇÃO DE PAINEL ELÉTRICO DE DISTRIBUIÇÃO DA UNIDADE DE REPRODUÇÃO E MELHORAMENTO GENEICO",{"$f":"[1]Composições!$I$100","v":"UN "},6,{"$f":"[1]Composições!I112","v":113.44},140.1,840.6,6]
[null,"2.4.3","SERVIÇO","CODEVASF",{"$f":"[1]Composições!I115","v":"COMPO. 8"},"INSTALAÇÃO ELÉTRICA DA ILUMINAÇÃO DO PÁTIO EXTERNO DA UNIDADE DE REPRODUÇÃO E MELHORAMENTO GENEICO",{"$f":"[1]Composições!$I$114","v":"UN "},6,{"$f":"[1]Composições!I126","v":199.75},246.69,1480.14,6]
[null,"2.4.4","SERVIÇO","CODEVASF",{"$f":"[1]Composições!I130","v":"COMPO. 9"},"TESTE DE PARTIDA DO SISTEMA ELETRICO DA UNIDADE DE REPRODUÇÃO E MELHORAMENTO GENEICO",{"$f":"[1]Composições!$I$129","v":"UN "},6,{"$f":"[1]Composições!I142","v":251.47},310.57,1863.42,6]
[null,"2.5","INSUMOS DE INSTALAÇÕES ELÉTRICAS PARA UNIDADE DE MELHORAMENTO GENETICO",{"$nulls":7},{"$f":"SUM(K108:K137)","v":42205.88}]
[null,"2.5.1","INSUMO","SINAPI",2687,{"$f":"IF(C108=\"SERVIÇO\",IF(D108=\"SINAPI\",VLOOKUP(E108,'[1]SERVIÇOS SINAPI'!$A:$D,2,0),IF(D108=\"ORSE\",VLOOKUP(E108,'[1]SERVIÇOS ORSE'!$A:$D,2,0),IF(D108=\"SEINFRA\",VLOOKUP(E108,'[1]SERVIÇOS SEINFRA'!$A:$D,2,0)))),IF(C108=\"INSUMO\",IF(D108=\"SINAPI\",VLOOKUP(E108,'[1]INSUMOS SINAPI'!$A:$D,2,0),IF(D108=\"ORSE\",VLOOKUP(E108,'[1]INSUMOS ORSE'!$A:$D,2,0),IF(D108=\"SEINFRA\",VLOOKUP(E108,'[1]INSUMOS SEINFRA'!$A:$D,2,0),)))))","v":"ELETRODUTO PVC FLEXIVEL CORRUGADO, COR AMARELA, DE 16 MM                                                                                                                                                                                                                                                                                                                                                                                                                                                  "},{"$f":"IF(C108=\"SERVIÇO\",IF(D108=\"SINAPI\",VLOOKUP(E108,'[1]SERVIÇOS SINAPI'!$A:$D,3,0),IF(D108=\"ORSE\",VLOOKUP(E108,'[1]SERVIÇOS ORSE'!$A:$D,3,0),IF(D108=\"SEINFRA\",VLOOKUP(E108,'[1]SERVIÇOS SEINFRA'!$A:$D,3,0)))),IF(C108=\"INSUMO\",IF(D108=\"SINAPI\",VLOOKUP(E108,'[1]INSUMOS SINAPI'!$A:$D,3,0),IF(D108=\"ORSE\",VLOOKUP(E108,'[1]INSUMOS ORSE'!$A:$D,3,0),IF(D108=\"SEINFRA\",VLOOKUP(E108,'[1]INSUMOS SEINFRA'!$A:$D,3,0),)))))","v":"M     "},{"$f":"'[1]Memória de Cálculo'!$L$633*$G$7","v":582},{"$f":"IF(C108=\"SERVIÇO\",IF(D108=\"SINAPI\",VLOOKUP(E108,'[1]SERVIÇOS SINAPI'!$A:$D,4,0),IF(D108=\"ORSE\",VLOOKUP(E108,'[1]SERVIÇOS ORSE'!$A:$D,4,0),IF(D108=\"SEINFRA\",VLOOKUP(E108,'[1]SERVIÇOS SEINFRA'!$A:$D,4,0)))),IF(C108=\"INSUMO\",IF(D108=\"SINAPI\",VLOOKUP(E108,'[1]INSUMOS SINAPI'!$A:$D,4,0),IF(D108=\"ORSE\",VLOOKUP(E108,'[1]INSUMOS ORSE'!$A:$D,4,0),IF(D108=\"SEINFRA\",VLOOKUP(E108,'[1]INSUMOS SEINFRA'!$A:$D,4,0),)))))","v":1.94},{"$f":"IF(C108=\"SERVIÇO\",I108*(1+$I$8),IF(C108=\"INSUMO\",(I108*(1+$K$8))))","v":2.16},{"$f":"J108*H108","v":1257.12},4]
[null,"2.5.2","INSUMO","SINAPI",2674,{"$f":"IF(C109=\"SERVIÇO\",IF(D109=\"SINAPI\",VLOOKUP(E109,'[1]SERVIÇOS SINAPI'!$A:$D,2,0),IF(D109=\"ORSE\",VLOOKUP(E109,'[1]SERVIÇOS ORSE'!$A:$D,2,0),IF(D109=\"SEINFRA\",VLOOKUP(E109,'[1]SERVIÇOS SEINFRA'!$A:$D,2,0)))),IF(C109=\"INSUMO\",IF(D109=\"SINAPI\",VLOOKUP(E109,'[1]INSUMOS SINAPI'!$A:$D,2,0),IF(D109=\"ORSE\",VLOOKUP(E109,'[1]INSUMOS ORSE'!$A:$D,2,0),IF(D109=\"SEINFRA\",VLOOKUP(E109,'[1]INSUMOS SEINFRA'!$A:$D,2,0),)))))","v":"ELETRODUTO DE PVC RIGIDO ROSCAVEL DE 3/4 \", SEM LUVA                                                                                                                                                                                                                                                                                                                                                                                                                                                      "},{"$f":"IF(C109=\"SERVIÇO\",IF(D109=\"SINAPI\",VLOOKUP(E109,'[1]SERVIÇOS SINAPI'!$A:$D,3,0),IF(D109=\"ORSE\",VLOOKUP(E109,'[1]SERVIÇOS ORSE'!$A:$D,3,0),IF(D109=\"SEINFRA\",VLOOKUP(E109,'[1]SERVIÇOS SEINFRA'!$A:$D,3,0)))),IF(C109=\"INSUMO\",IF(D109=\"SINAPI\",VLOOKUP(E109,'[1]INSUMOS SINAPI'!$A:$D,3,0),IF(D109=\"ORSE\",VLOOKUP(E109,'[1]INSUMOS ORSE'!$A:$D,3,0),IF(D109=\"SEINFRA\",VLOOKUP(E109,'[1]INSUMOS SEINFRA'!$A:$D,3,0),)))))","v":"M     "},{"$f":"'[1]Memória de Cálculo'!$L$638*$G$7","v":433.8},{"$f":"IF(C109=\"SERVIÇO\",IF(D109=\"SINAPI\",VLOOKUP(E109,'[1]SERVIÇOS SINAPI'!$A:$D,4,0),IF(D109=\"ORSE\",VLOOKUP(E109,'[1]SERVIÇOS ORSE'!$A:$D,4,0),IF(D109=\"SEINFRA\",VLOOKUP(E109,'[1]SERVIÇOS SEINFRA'!$A:$D,4,0)))),IF(C109=\"INSUMO\",IF(D109=\"SINAPI\",VLOOKUP(E109,'[1]INSUMOS SINAPI'!$A:$D,4,0),IF(D109=\"ORSE\",VLOOKUP(E109,'[1]INSUMOS ORSE'!$A:$D,4,0),IF(D109=\"SEINFRA\",VLOOKUP(E109,'[1]INSUMOS SEINFRA'!$A:$D,4,0),)))))","v":4.77},5.32,2307.82,4]
[null,"2.5.3","INSUMO","SINAPI",2675,{"$f":"IF(C110=\"SERVIÇO\",IF(D110=\"SINAPI\",VLOOKUP(E110,'[1]SERVIÇOS SINAPI'!$A:$D,2,0),IF(D110=\"ORSE\",VLOOKUP(E110,'[1]SERVIÇOS ORSE'!$A:$D,2,0),IF(D110=\"SEINFRA\",VLOOKUP(E110,'[1]SERVIÇOS SEINFRA'!$A:$D,2,0)))),IF(C110=\"INSUMO\",IF(D110=\"SINAPI\",VLOOKUP(E110,'[1]INSUMOS SINAPI'!$A:$D,2,0),IF(D110=\"ORSE\",VLOOKUP(E110,'[1]INSUMOS ORSE'!$A:$D,2,0),IF(D110=\"SEINFRA\",VLOOKUP(E110,'[1]INSUMOS SEINFRA'!$A:$D,2,0),)))))","v":"ELETRODUTO DE PVC RIGIDO SOLDAVEL, CLASSE B, DE 50 MM                                                                                                                                                                                                                                                                                                                                                                                                                                                     "},{"$f":"IF(C110=\"SERVIÇO\",IF(D110=\"SINAPI\",VLOOKUP(E110,'[1]SERVIÇOS SINAPI'!$A:$D,3,0),IF(D110=\"ORSE\",VLOOKUP(E110,'[1]SERVIÇOS ORSE'!$A:$D,3,0),IF(D110=\"SEINFRA\",VLOOKUP(E110,'[1]SERVIÇOS SEINFRA'!$A:$D,3,0)))),IF(C110=\"INSUMO\",IF(D110=\"SINAPI\",VLOOKUP(E110,'[1]INSUMOS SINAPI'!$A:$D,3,0),IF(D110=\"ORSE\",VLOOKUP(E110,'[1]INSUMOS ORSE'!$A:$D,3,0),IF(D110=\"SEINFRA\",VLOOKUP(E110,'[1]INSUMOS SEINFRA'!$A:$D,3,0),)))))","v":"M     "},{"$f":"'[1]Memória de Cálculo'!$L$643*$G$7","v":108},{"$f":"IF(C110=\"SERVIÇO\",IF(D110=\"SINAPI\",VLOOKUP(E110,'[1]SERVIÇOS SINAPI'!$A:$D,4,0),IF(D110=\"ORSE\",VLOOKUP(E110,'[1]SERVIÇOS ORSE'!$A:$D,4,0),IF(D110=\"SEINFRA\",VLOOKUP(E110,'[1]SERVIÇOS SEINFRA'!$A:$D,4,0)))),IF(C110=\"INSUMO\",IF(D110=\"SINAPI\",VLOOKUP(E110,'[1]INSUMOS SINAPI'!$A:$D,4,0),IF(D110=\"ORSE\",VLOOKUP(E110,'[1]INSUMOS ORSE'!$A:$D,4,0),IF(D110=\"SEINFRA\",VLOOKUP(E110,'[1]INSUMOS SEINFRA'!$A:$D,4,0),)))))","v":7.78},8.67,936.36,4]
[null,"2.5.4","INSUMO","SINAPI",2689,{"$f":"IF(C111=\"SERVIÇO\",IF(D111=\"SINAPI\",VLOOKUP(E111,'[1]SERVIÇOS SINAPI'!$A:$D,2,0),IF(D111=\"ORSE\",VLOOKUP(E111,'[1]SERVIÇOS ORSE'!$A:$D,2,0),IF(D111=\"SEINFRA\",VLOOKUP(E111,'[1]SERVIÇOS SEINFRA'!$A:$D,2,0)))),IF(C111=\"INSUMO\",IF(D111=\"SINAPI\",VLOOKUP(E111,'[1]INSUMOS SINAPI'!$A:$D,2,0),IF(D111=\"ORSE\",VLOOKUP(E111,'[1]INSUMOS ORSE'!$A:$D,2,0),IF(D111=\"SEINFRA\",VLOOKUP(E111,'[1]INSUMOS SEINFRA'!$A:$D,2,0),)))))","v":"ELETRODUTO PVC FLEXIVEL CORRUGADO, COR AMARELA, DE 20 MM                                                                                                                                                                                                                                                                                                                                                                                                                                                  "},{"$f":"IF(C111=\"SERVIÇO\",IF(D111=\"SINAPI\",VLOOKUP(E111,'[1]SERVIÇOS SINAPI'!$A:$D,3,0),IF(D111=\"ORSE\",VLOOKUP(E111,'[1]SERVIÇOS ORSE'!$A:$D,3,0),IF(D111=\"SEINFRA\",VLOOKUP(E111,'[1]SERVIÇOS SEINFRA'!$A:$D,3,0)))),IF(C111=\"INSUMO\",IF(D111=\"SINAPI\",VLOOKUP(E111,'[1]INSUMOS SINAPI'!$A:$D,3,0),IF(D111=\"ORSE\",VLOOKUP(E111,'[1]INSUMOS ORSE'!$A:$D,3,0),IF(D111=\"SEINFRA\",VLOOKUP(E111,'[1]INSUMOS SEINFRA'!$A:$D,3,0),)))))","v":"M     "},{"$f":"'[1]Memória de Cálculo'!$L$648*$G$7","v":90},{"$f":"IF(C111=\"SERVIÇO\",IF(D111=\"SINAPI\",VLOOKUP(E111,'[1]SERVIÇOS SINAPI'!$A:$D,4,0),IF(D111=\"ORSE\",VLOOKUP(E111,'[1]SERVIÇOS ORSE'!$A:$D,4,0),IF(D111=\"SEINFRA\",VLOOKUP(E111,'[1]SERVIÇOS SEINFRA'!$A:$D,4,0)))),IF(C111=\"INSUMO\",IF(D111=\"SINAPI\",VLOOKUP(E111,'[1]INSUMOS SINAPI'!$A:$D,4,0),IF(D111=\"ORSE\",VLOOKUP(E111,'[1]INSUMOS ORSE'!$A:$D,4,0),IF(D111=\"SEINFRA\",VLOOKUP(E111,'[1]INSUMOS SEINFRA'!$A:$D,4,0),)))))","v":2.31},2.57,231.3,4]
[null,"2.5.5","INSUMO","SINAPI",1891,{"$f":"IF(C112=\"SERVIÇO\",IF(D112=\"SINAPI\",VLOOKUP(E112,'[1]SERVIÇOS SINAPI'!$A:$D,2,0),IF(D112=\"ORSE\",VLOOKUP(E112,'[1]SERVIÇOS ORSE'!$A:$D,2,0),IF(D112=\"SEINFRA\",VLOOKUP(E112,'[1]SERVIÇOS SEINFRA'!$A:$D,2,0)))),IF(C112=\"INSUMO\",IF(D112=\"SINAPI\",VLOOKUP(E112,'[1]INSUMOS SINAPI'!$A:$D,2,0),IF(D112=\"ORSE\",VLOOKUP(E112,'[1]INSUMOS ORSE'!$A:$D,2,0),IF(D112=\"SEINFRA\",VLOOKUP(E112,'[1]INSUMOS SEINFRA'!$A:$D,2,0),)))))","v":"LUVA EM PVC RIGIDO ROSCAVEL, DE 3/4\", PARA ELETRODUTO                                                                                                                                                                                                                                                                                                                                                                                                                                                     "},{"$f":"IF(C112=\"SERVIÇO\",IF(D112=\"SINAPI\",VLOOKUP(E112,'[1]SERVIÇOS SINAPI'!$A:$D,3,0),IF(D112=\"ORSE\",VLOOKUP(E112,'[1]SERVIÇOS ORSE'!$A:$D,3,0),IF(D112=\"SEINFRA\",VLOOKUP(E112,'[1]SERVIÇOS SEINFRA'!$A:$D,3,0)))),IF(C112=\"INSUMO\",IF(D112=\"SINAPI\",VLOOKUP(E112,'[1]INSUMOS SINAPI'!$A:$D,3,0),IF(D112=\"ORSE\",VLOOKUP(E112,'[1]INSUMOS ORSE'!$A:$D,3,0),IF(D112=\"SEINFRA\",VLOOKUP(E112,'[1]INSUMOS SEINFRA'!$A:$D,3,0),)))))","v":"UN    "},{"$f":"'[1]Memória de Cálculo'!$L$653*$G$7","v":144},{"$f":"IF(C112=\"SERVIÇO\",IF(D112=\"SINAPI\",VLOOKUP(E112,'[1]SERVIÇOS SINAPI'!$A:$D,4,0),IF(D112=\"ORSE\",VLOOKUP(E112,'[1]SERVIÇOS ORSE'!$A:$D,4,0),IF(D112=\"SEINFRA\",VLOOKUP(E112,'[1]SERVIÇOS SEINFRA'!$A:$D,4,0)))),IF(C112=\"INSUMO\",IF(D112=\"SINAPI\",VLOOKUP(E112,'[1]INSUMOS SINAPI'!$A:$D,4,0),IF(D112=\"ORSE\",VLOOKUP(E112,'[1]INSUMOS ORSE'!$A:$D,4,0),IF(D112=\"SEINFRA\",VLOOKUP(E112,'[1]INSUMOS SEINFRA'!$A:$D,4,0),)))))","v":1.31},1.46,210.24,4]
[null,"2.5.6","INSUMO","SINAPI",1892,{"$f":"IF(C113=\"SERVIÇO\",IF(D113=\"SINAPI\",VLOOKUP(E113,'[1]SERVIÇOS SINAPI'!$A:$D,2,0),IF(D113=\"ORSE\",VLOOKUP(E113,'[1]SERVIÇOS ORSE'!$A:$D,2,0),IF(D113=\"SEINFRA\",VLOOKUP(E113,'[1]SERVIÇOS SEINFRA'!$A:$D,2,0)))),IF(C113=\"INSUMO\",IF(D113=\"SINAPI\",VLOOKUP(E113,'[1]INSUMOS SINAPI'!$A:$D,2,0),IF(D113=\"ORSE\",VLOOKUP(E113,'[1]INSUMOS ORSE'!$A:$D,2,0),IF(D113=\"SEINFRA\",VLOOKUP(E113,'[1]INSUMOS SEINFRA'!$A:$D,2,0),)))))","v":"LUVA EM PVC RIGIDO ROSCAVEL, DE 1\", PARA ELETRODUTO                                                                                                                                                                                                                                                                                                                                                                                                                                                       "},{"$f":"IF(C113=\"SERVIÇO\",IF(D113=\"SINAPI\",VLOOKUP(E113,'[1]SERVIÇOS SINAPI'!$A:$D,3,0),IF(D113=\"ORSE\",VLOOKUP(E113,'[1]SERVIÇOS ORSE'!$A:$D,3,0),IF(D113=\"SEINFRA\",VLOOKUP(E113,'[1]SERVIÇOS SEINFRA'!$A:$D,3,0)))),IF(C113=\"INSUMO\",IF(D113=\"SINAPI\",VLOOKUP(E113,'[1]INSUMOS SINAPI'!$A:$D,3,0),IF(D113=\"ORSE\",VLOOKUP(E113,'[1]INSUMOS ORSE'!$A:$D,3,0),IF(D113=\"SEINFRA\",VLOOKUP(E113,'[1]INSUMOS SEINFRA'!$A:$D,3,0),)))))","v":"UN    "},{"$f":"'[1]Memória de Cálculo'!$L$662*$G$7","v":6},{"$f":"IF(C113=\"SERVIÇO\",IF(D113=\"SINAPI\",VLOOKUP(E113,'[1]SERVIÇOS SINAPI'!$A:$D,4,0),IF(D113=\"ORSE\",VLOOKUP(E113,'[1]SERVIÇOS ORSE'!$A:$D,4,0),IF(D113=\"SEINFRA\",VLOOKUP(E113,'[1]SERVIÇOS SEINFRA'!$A:$D,4,0)))),IF(C113=\"INSUMO\",IF(D113=\"SINAPI\",VLOOKUP(E113,'[1]INSUMOS SINAPI'!$A:$D,4,0),IF(D113=\"ORSE\",VLOOKUP(E113,'[1]INSUMOS ORSE'!$A:$D,4,0),IF(D113=\"SEINFRA\",VLOOKUP(E113,'[1]INSUMOS SEINFRA'!$A:$D,4,0),)))))","v":1.83},2.04,12.24,4]
[null,"2.5.7","INSUMO","SINAPI",1879,{"$f":"IF(C114=\"SERVIÇO\",IF(D114=\"SINAPI\",VLOOKUP(E114,'[1]SERVIÇOS SINAPI'!$A:$D,2,0),IF(D114=\"ORSE\",VLOOKUP(E114,'[1]SERVIÇOS ORSE'!$A:$D,2,0),IF(D114=\"SEINFRA\",VLOOKUP(E114,'[1]SERVIÇOS SEINFRA'!$A:$D,2,0)))),IF(C114=\"INSUMO\",IF(D114=\"SINAPI\",VLOOKUP(E114,'[1]INSUMOS SINAPI'!$A:$D,2,0),IF(D114=\"ORSE\",VLOOKUP(E114,'[1]INSUMOS ORSE'!$A:$D,2,0),IF(D114=\"SEINFRA\",VLOOKUP(E114,'[1]INSUMOS SEINFRA'!$A:$D,2,0),)))))","v":"CURVA 90 GRAUS, LONGA, DE PVC RIGIDO ROSCAVEL, DE 3/4\", PARA ELETRODUTO                                                                                                                                                                                                                                                                                                                                                                                                                                   "},{"$f":"IF(C114=\"SERVIÇO\",IF(D114=\"SINAPI\",VLOOKUP(E114,'[1]SERVIÇOS SINAPI'!$A:$D,3,0),IF(D114=\"ORSE\",VLOOKUP(E114,'[1]SERVIÇOS ORSE'!$A:$D,3,0),IF(D114=\"SEINFRA\",VLOOKUP(E114,'[1]SERVIÇOS SEINFRA'!$A:$D,3,0)))),IF(C114=\"INSUMO\",IF(D114=\"SINAPI\",VLOOKUP(E114,'[1]INSUMOS SINAPI'!$A:$D,3,0),IF(D114=\"ORSE\",VLOOKUP(E114,'[1]INSUMOS ORSE'!$A:$D,3,0),IF(D114=\"SEINFRA\",VLOOKUP(E114,'[1]INSUMOS SEINFRA'!$A:$D,3,0),)))))","v":"UN    "},{"$f":"'[1]Memória de Cálculo'!$L$658*$G$7","v":36},{"$f":"IF(C114=\"SERVIÇO\",IF(D114=\"SINAPI\",VLOOKUP(E114,'[1]SERVIÇOS SINAPI'!$A:$D,4,0),IF(D114=\"ORSE\",VLOOKUP(E114,'[1]SERVIÇOS ORSE'!$A:$D,4,0),IF(D114=\"SEINFRA\",VLOOKUP(E114,'[1]SERVIÇOS SEINFRA'!$A:$D,4,0)))),IF(C114=\"INSUMO\",IF(D114=\"SINAPI\",VLOOKUP(E114,'[1]INSUMOS SINAPI'!$A:$D,4,0),IF(D114=\"ORSE\",VLOOKUP(E114,'[1]INSUMOS ORSE'!$A:$D,4,0),IF(D114=\"SEINFRA\",VLOOKUP(E114,'[1]INSUMOS SEINFRA'!$A:$D,4,0),)))))","v":3.03},3.38,121.68,4]
[null,"2.5.8","INSUMO","SINAPI",939,{"$f":"IF(C115=\"SERVIÇO\",IF(D115=\"SINAPI\",VLOOKUP(E115,'[1]SERVIÇOS SINAPI'!$A:$D,2,0),IF(D115=\"ORSE\",VLOOKUP(E115,'[1]SERVIÇOS ORSE'!$A:$D,2,0),IF(D115=\"SEINFRA\",VLOOKUP(E115,'[1]SERVIÇOS SEINFRA'!$A:$D,2,0)))),IF(C115=\"INSUMO\",IF(D115=\"SINAPI\",VLOOKUP(E115,'[1]INSUMOS SINAPI'!$A:$D,2,0),IF(D115=\"ORSE\",VLOOKUP(E115,'[1]INSUMOS ORSE'!$A:$D,2,0),IF(D115=\"SEINFRA\",VLOOKUP(E115,'[1]INSUMOS SEINFRA'!$A:$D,2,0),)))))","v":"FIO DE COBRE, SOLIDO, CLASSE 1, ISOLACAO EM PVC/A, ANTICHAMA BWF-B, 450/750V, SECAO NOMINAL 2,5 MM2                                                                                                                                                                                                                                                                                                                                                                                                       "},{"$f":"IF(C115=\"SERVIÇO\",IF(D115=\"SINAPI\",VLOOKUP(E115,'[1]SERVIÇOS SINAPI'!$A:$D,3,0),IF(D115=\"ORSE\",VLOOKUP(E115,'[1]SERVIÇOS ORSE'!$A:$D,3,0),IF(D115=\"SEINFRA\",VLOOKUP(E115,'[1]SERVIÇOS SEINFRA'!$A:$D,3,0)))),IF(C115=\"INSUMO\",IF(D115=\"SINAPI\",VLOOKUP(E115,'[1]INSUMOS SINAPI'!$A:$D,3,0),IF(D115=\"ORSE\",VLOOKUP(E115,'[1]INSUMOS ORSE'!$A:$D,3,0),IF(D115=\"SEINFRA\",VLOOKUP(E115,'[1]INSUMOS SEINFRA'!$A:$D,3,0),)))))","v":"M     "},{"$f":"'[1]Memória de Cálculo'!$L$671*$G$7","v":1382.4},{"$f":"IF(C115=\"SERVIÇO\",IF(D115=\"SINAPI\",VLOOKUP(E115,'[1]SERVIÇOS SINAPI'!$A:$D,4,0),IF(D115=\"ORSE\",VLOOKUP(E115,'[1]SERVIÇOS ORSE'!$A:$D,4,0),IF(D115=\"SEINFRA\",VLOOKUP(E115,'[1]SERVIÇOS SEINFRA'!$A:$D,4,0)))),IF(C115=\"INSUMO\",IF(D115=\"SINAPI\",VLOOKUP(E115,'[1]INSUMOS SINAPI'!$A:$D,4,0),IF(D115=\"ORSE\",VLOOKUP(E115,'[1]INSUMOS ORSE'!$A:$D,4,0),IF(D115=\"SEINFRA\",VLOOKUP(E115,'[1]INSUMOS SEINFRA'!$A:$D,4,0),)))))","v":2.52},2.81,3884.54,5]
[null,"2.5.9","INSUMO","SINAPI",938,{"$f":"IF(C116=\"SERVIÇO\",IF(D116=\"SINAPI\",VLOOKUP(E116,'[1]SERVIÇOS SINAPI'!$A:$D,2,0),IF(D116=\"ORSE\",VLOOKUP(E116,'[1]SERVIÇOS ORSE'!$A:$D,2,0),IF(D116=\"SEINFRA\",VLOOKUP(E116,'[1]SERVIÇOS SEINFRA'!$A:$D,2,0)))),IF(C116=\"INSUMO\",IF(D116=\"SINAPI\",VLOOKUP(E116,'[1]INSUMOS SINAPI'!$A:$D,2,0),IF(D116=\"ORSE\",VLOOKUP(E116,'[1]INSUMOS ORSE'!$A:$D,2,0),IF(D116=\"SEINFRA\",VLOOKUP(E116,'[1]INSUMOS SEINFRA'!$A:$D,2,0),)))))","v":"FIO DE COBRE, SOLIDO, CLASSE 1, ISOLACAO EM PVC/A, ANTICHAMA BWF-B, 450/750V, SECAO NOMINAL 1,5 MM2                                                                                                                                                                                                                                                                                                                                                                                                       "},{"$f":"IF(C116=\"SERVIÇO\",IF(D116=\"SINAPI\",VLOOKUP(E116,'[1]SERVIÇOS SINAPI'!$A:$D,3,0),IF(D116=\"ORSE\",VLOOKUP(E116,'[1]SERVIÇOS ORSE'!$A:$D,3,0),IF(D116=\"SEINFRA\",VLOOKUP(E116,'[1]SERVIÇOS SEINFRA'!$A:$D,3,0)))),IF(C116=\"INSUMO\",IF(D116=\"SINAPI\",VLOOKUP(E116,'[1]INSUMOS SINAPI'!$A:$D,3,0),IF(D116=\"ORSE\",VLOOKUP(E116,'[1]INSUMOS ORSE'!$A:$D,3,0),IF(D116=\"SEINFRA\",VLOOKUP(E116,'[1]INSUMOS SEINFRA'!$A:$D,3,0),)))))","v":"M     "},{"$f":"'[1]Memória de Cálculo'!$L$682*$G$7","v":3047.4},{"$f":"IF(C116=\"SERVIÇO\",IF(D116=\"SINAPI\",VLOOKUP(E116,'[1]SERVIÇOS SINAPI'!$A:$D,4,0),IF(D116=\"ORSE\",VLOOKUP(E116,'[1]SERVIÇOS ORSE'!$A:$D,4,0),IF(D116=\"SEINFRA\",VLOOKUP(E116,'[1]SERVIÇOS SEINFRA'!$A:$D,4,0)))),IF(C116=\"INSUMO\",IF(D116=\"SINAPI\",VLOOKUP(E116,'[1]INSUMOS SINAPI'!$A:$D,4,0),IF(D116=\"ORSE\",VLOOKUP(E116,'[1]INSUMOS ORSE'!$A:$D,4,0),IF(D116=\"SEINFRA\",VLOOKUP(E116,'[1]INSUMOS SEINFRA'!$A:$D,4,0),)))))","v":1.58},1.76,5363.42,5]
[null,"2.5.10","INSUMO","SINAPI",944,{"$f":"IF(C117=\"SERVIÇO\",IF(D117=\"SINAPI\",VLOOKUP(E117,'[1]SERVIÇOS SINAPI'!$A:$D,2,0),IF(D117=\"ORSE\",VLOOKUP(E117,'[1]SERVIÇOS ORSE'!$A:$D,2,0),IF(D117=\"SEINFRA\",VLOOKUP(E117,'[1]SERVIÇOS SEINFRA'!$A:$D,2,0)))),IF(C117=\"INSUMO\",IF(D117=\"SINAPI\",VLOOKUP(E117,'[1]INSUMOS SINAPI'!$A:$D,2,0),IF(D117=\"ORSE\",VLOOKUP(E117,'[1]INSUMOS ORSE'!$A:$D,2,0),IF(D117=\"SEINFRA\",VLOOKUP(E117,'[1]INSUMOS SEINFRA'!$A:$D,2,0),)))))","v":"FIO DE COBRE, SOLIDO, CLASSE 1, ISOLACAO EM PVC/A, ANTICHAMA BWF-B, 450/750V, SECAO NOMINAL 4 MM2                                                                                                                                                                                                                                                                                                                                                                                                         "},{"$f":"IF(C117=\"SERVIÇO\",IF(D117=\"SINAPI\",VLOOKUP(E117,'[1]SERVIÇOS SINAPI'!$A:$D,3,0),IF(D117=\"ORSE\",VLOOKUP(E117,'[1]SERVIÇOS ORSE'!$A:$D,3,0),IF(D117=\"SEINFRA\",VLOOKUP(E117,'[1]SERVIÇOS SEINFRA'!$A:$D,3,0)))),IF(C117=\"INSUMO\",IF(D117=\"SINAPI\",VLOOKUP(E117,'[1]INSUMOS SINAPI'!$A:$D,3,0),IF(D117=\"ORSE\",VLOOKUP(E117,'[1]INSUMOS ORSE'!$A:$D,3,0),IF(D117=\"SEINFRA\",VLOOKUP(E117,'[1]INSUMOS SEINFRA'!$A:$D,3,0),)))))","v":"M     "},{"$f":"'[1]Memória de Cálculo'!$L$689*$G$7","v":432},{"$f":"IF(C117=\"SERVIÇO\",IF(D117=\"SINAPI\",VLOOKUP(E117,'[1]SERVIÇOS SINAPI'!$A:$D,4,0),IF(D117=\"ORSE\",VLOOKUP(E117,'[1]SERVIÇOS ORSE'!$A:$D,4,0),IF(D117=\"SEINFRA\",VLOOKUP(E117,'[1]SERVIÇOS SEINFRA'!$A:$D,4,0)))),IF(C117=\"INSUMO\",IF(D117=\"SINAPI\",VLOOKUP(E117,'[1]INSUMOS SINAPI'!$A:$D,4,0),IF(D117=\"ORSE\",VLOOKUP(E117,'[1]INSUMOS ORSE'!$A:$D,4,0),IF(D117=\"SEINFRA\",VLOOKUP(E117,'[1]INSUMOS SEINFRA'!$A:$D,4,0),)))))","v":4.31},4.8,2073.6,5]
[null,"2.5.11","INSUMO","SINAPI",12294,{"$f":"IF(C118=\"SERVIÇO\",IF(D118=\"SINAPI\",VLOOKUP(E118,'[1]SERVIÇOS SINAPI'!$A:$D,2,0),IF(D118=\"ORSE\",VLOOKUP(E118,'[1]SERVIÇOS ORSE'!$A:$D,2,0),IF(D118=\"SEINFRA\",VLOOKUP(E118,'[1]SERVIÇOS SEINFRA'!$A:$D,2,0)))),IF(C118=\"INSUMO\",IF(D118=\"SINAPI\",VLOOKUP(E118,'[1]INSUMOS SINAPI'!$A:$D,2,0),IF(D118=\"ORSE\",VLOOKUP(E118,'[1]INSUMOS ORSE'!$A:$D,2,0),IF(D118=\"SEINFRA\",VLOOKUP(E118,'[1]INSUMOS SEINFRA'!$A:$D,2,0),)))))","v":"SOQUETE DE PORCELANA BASE E27, PARA USO AO TEMPO, PARA LAMPADAS                                                                                                                                                                                                                                                                                                                                                                                                                                           "},{"$f":"IF(C118=\"SERVIÇO\",IF(D118=\"SINAPI\",VLOOKUP(E118,'[1]SERVIÇOS SINAPI'!$A:$D,3,0),IF(D118=\"ORSE\",VLOOKUP(E118,'[1]SERVIÇOS ORSE'!$A:$D,3,0),IF(D118=\"SEINFRA\",VLOOKUP(E118,'[1]SERVIÇOS SEINFRA'!$A:$D,3,0)))),IF(C118=\"INSUMO\",IF(D118=\"SINAPI\",VLOOKUP(E118,'[1]INSUMOS SINAPI'!$A:$D,3,0),IF(D118=\"ORSE\",VLOOKUP(E118,'[1]INSUMOS ORSE'!$A:$D,3,0),IF(D118=\"SEINFRA\",VLOOKUP(E118,'[1]INSUMOS SEINFRA'!$A:$D,3,0),)))))","v":"UN    "},{"$f":"'[1]Memória de Cálculo'!$L$711*$G$7","v":156},{"$f":"IF(C118=\"SERVIÇO\",IF(D118=\"SINAPI\",VLOOKUP(E118,'[1]SERVIÇOS SINAPI'!$A:$D,4,0),IF(D118=\"ORSE\",VLOOKUP(E118,'[1]SERVIÇOS ORSE'!$A:$D,4,0),IF(D118=\"SEINFRA\",VLOOKUP(E118,'[1]SERVIÇOS SEINFRA'!$A:$D,4,0)))),IF(C118=\"INSUMO\",IF(D118=\"SINAPI\",VLOOKUP(E118,'[1]INSUMOS SINAPI'!$A:$D,4,0),IF(D118=\"ORSE\",VLOOKUP(E118,'[1]INSUMOS ORSE'!$A:$D,4,0),IF(D118=\"SEINFRA\",VLOOKUP(E118,'[1]INSUMOS SEINFRA'!$A:$D,4,0),)))))","v":9.42},10.5,1638,2]
[null,"2.5.12","INSUMO","SINAPI",38194,{"$f":"IF(C119=\"SERVIÇO\",IF(D119=\"SINAPI\",VLOOKUP(E119,'[1]SERVIÇOS SINAPI'!$A:$D,2,0),IF(D119=\"ORSE\",VLOOKUP(E119,'[1]SERVIÇOS ORSE'!$A:$D,2,0),IF(D119=\"SEINFRA\",VLOOKUP(E119,'[1]SERVIÇOS SEINFRA'!$A:$D,2,0)))),IF(C119=\"INSUMO\",IF(D119=\"SINAPI\",VLOOKUP(E119,'[1]INSUMOS SINAPI'!$A:$D,2,0),IF(D119=\"ORSE\",VLOOKUP(E119,'[1]INSUMOS ORSE'!$A:$D,2,0),IF(D119=\"SEINFRA\",VLOOKUP(E119,'[1]INSUMOS SEINFRA'!$A:$D,2,0),)))))","v":"LAMPADA LED 10 W BIVOLT BRANCA, FORMATO TRADICIONAL (BASE E27)                                                                                                                                                                                                                                                                                                                                                                                                                                            "},{"$f":"IF(C119=\"SERVIÇO\",IF(D119=\"SINAPI\",VLOOKUP(E119,'[1]SERVIÇOS SINAPI'!$A:$D,3,0),IF(D119=\"ORSE\",VLOOKUP(E119,'[1]SERVIÇOS ORSE'!$A:$D,3,0),IF(D119=\"SEINFRA\",VLOOKUP(E119,'[1]SERVIÇOS SEINFRA'!$A:$D,3,0)))),IF(C119=\"INSUMO\",IF(D119=\"SINAPI\",VLOOKUP(E119,'[1]INSUMOS SINAPI'!$A:$D,3,0),IF(D119=\"ORSE\",VLOOKUP(E119,'[1]INSUMOS ORSE'!$A:$D,3,0),IF(D119=\"SEINFRA\",VLOOKUP(E119,'[1]INSUMOS SEINFRA'!$A:$D,3,0),)))))","v":"UN    "},{"$f":"'[1]Memória de Cálculo'!$L$700*$G$7","v":156},{"$f":"IF(C119=\"SERVIÇO\",IF(D119=\"SINAPI\",VLOOKUP(E119,'[1]SERVIÇOS SINAPI'!$A:$D,4,0),IF(D119=\"ORSE\",VLOOKUP(E119,'[1]SERVIÇOS ORSE'!$A:$D,4,0),IF(D119=\"SEINFRA\",VLOOKUP(E119,'[1]SERVIÇOS SEINFRA'!$A:$D,4,0)))),IF(C119=\"INSUMO\",IF(D119=\"SINAPI\",VLOOKUP(E119,'[1]INSUMOS SINAPI'!$A:$D,4,0),IF(D119=\"ORSE\",VLOOKUP(E119,'[1]INSUMOS ORSE'!$A:$D,4,0),IF(D119=\"SEINFRA\",VLOOKUP(E119,'[1]INSUMOS SEINFRA'!$A:$D,4,0),)))))","v":10.75},11.98,1868.88,2]
[null,"2.5.13","INSUMO","SINAPI",39334,{"$f":"IF(C120=\"SERVIÇO\",IF(D120=\"SINAPI\",VLOOKUP(E120,'[1]SERVIÇOS SINAPI'!$A:$D,2,0),IF(D120=\"ORSE\",VLOOKUP(E120,'[1]SERVIÇOS ORSE'!$A:$D,2,0),IF(D120=\"SEINFRA\",VLOOKUP(E120,'[1]SERVIÇOS SEINFRA'!$A:$D,2,0)))),IF(C120=\"INSUMO\",IF(D120=\"SINAPI\",VLOOKUP(E120,'[1]INSUMOS SINAPI'!$A:$D,2,0),IF(D120=\"ORSE\",VLOOKUP(E120,'[1]INSUMOS ORSE'!$A:$D,2,0),IF(D120=\"SEINFRA\",VLOOKUP(E120,'[1]INSUMOS SEINFRA'!$A:$D,2,0),)))))","v":"CONDULETE EM PVC, TIPO \"E\", SEM TAMPA, DE 3/4\"                                                                                                                                                                                                                                                                                                                                                                                                                                                            "},{"$f":"IF(C120=\"SERVIÇO\",IF(D120=\"SINAPI\",VLOOKUP(E120,'[1]SERVIÇOS SINAPI'!$A:$D,3,0),IF(D120=\"ORSE\",VLOOKUP(E120,'[1]SERVIÇOS ORSE'!$A:$D,3,0),IF(D120=\"SEINFRA\",VLOOKUP(E120,'[1]SERVIÇOS SEINFRA'!$A:$D,3,0)))),IF(C120=\"INSUMO\",IF(D120=\"SINAPI\",VLOOKUP(E120,'[1]INSUMOS SINAPI'!$A:$D,3,0),IF(D120=\"ORSE\",VLOOKUP(E120,'[1]INSUMOS ORSE'!$A:$D,3,0),IF(D120=\"SEINFRA\",VLOOKUP(E120,'[1]INSUMOS SEINFRA'!$A:$D,3,0),)))))","v":"UN    "},{"$f":"'[1]Memória de Cálculo'!$L$716*$G$7","v":36},{"$f":"IF(C120=\"SERVIÇO\",IF(D120=\"SINAPI\",VLOOKUP(E120,'[1]SERVIÇOS SINAPI'!$A:$D,4,0),IF(D120=\"ORSE\",VLOOKUP(E120,'[1]SERVIÇOS ORSE'!$A:$D,4,0),IF(D120=\"SEINFRA\",VLOOKUP(E120,'[1]SERVIÇOS SEINFRA'!$A:$D,4,0)))),IF(C120=\"INSUMO\",IF(D120=\"SINAPI\",VLOOKUP(E120,'[1]INSUMOS SINAPI'!$A:$D,4,0),IF(D120=\"ORSE\",VLOOKUP(E120,'[1]INSUMOS ORSE'!$A:$D,4,0),IF(D120=\"SEINFRA\",VLOOKUP(E120,'[1]INSUMOS SEINFRA'!$A:$D,4,0),)))))","v":9.64},10.74,386.64,4]
[null,"2.5.14","INSUMO","SINAPI",1872,{"$f":"IF(C121=\"SERVIÇO\",IF(D121=\"SINAPI\",VLOOKUP(E121,'[1]SERVIÇOS SINAPI'!$A:$D,2,0),IF(D121=\"ORSE\",VLOOKUP(E121,'[1]SERVIÇOS ORSE'!$A:$D,2,0),IF(D121=\"SEINFRA\",VLOOKUP(E121,'[1]SERVIÇOS SEINFRA'!$A:$D,2,0)))),IF(C121=\"INSUMO\",IF(D121=\"SINAPI\",VLOOKUP(E121,'[1]INSUMOS SINAPI'!$A:$D,2,0),IF(D121=\"ORSE\",VLOOKUP(E121,'[1]INSUMOS ORSE'!$A:$D,2,0),IF(D121=\"SEINFRA\",VLOOKUP(E121,'[1]INSUMOS SEINFRA'!$A:$D,2,0),)))))","v":"CAIXA DE PASSAGEM, EM PVC, DE 4\" X 2\", PARA ELETRODUTO FLEXIVEL CORRUGADO                                                                                                                                                                                                                                                                                                                                                                                                                                 "},{"$f":"IF(C121=\"SERVIÇO\",IF(D121=\"SINAPI\",VLOOKUP(E121,'[1]SERVIÇOS SINAPI'!$A:$D,3,0),IF(D121=\"ORSE\",VLOOKUP(E121,'[1]SERVIÇOS ORSE'!$A:$D,3,0),IF(D121=\"SEINFRA\",VLOOKUP(E121,'[1]SERVIÇOS SEINFRA'!$A:$D,3,0)))),IF(C121=\"INSUMO\",IF(D121=\"SINAPI\",VLOOKUP(E121,'[1]INSUMOS SINAPI'!$A:$D,3,0),IF(D121=\"ORSE\",VLOOKUP(E121,'[1]INSUMOS ORSE'!$A:$D,3,0),IF(D121=\"SEINFRA\",VLOOKUP(E121,'[1]INSUMOS SEINFRA'!$A:$D,3,0),)))))","v":"UN    "},{"$f":"'[1]Memória de Cálculo'!$L$727*$G$7","v":294},{"$f":"IF(C121=\"SERVIÇO\",IF(D121=\"SINAPI\",VLOOKUP(E121,'[1]SERVIÇOS SINAPI'!$A:$D,4,0),IF(D121=\"ORSE\",VLOOKUP(E121,'[1]SERVIÇOS ORSE'!$A:$D,4,0),IF(D121=\"SEINFRA\",VLOOKUP(E121,'[1]SERVIÇOS SEINFRA'!$A:$D,4,0)))),IF(C121=\"INSUMO\",IF(D121=\"SINAPI\",VLOOKUP(E121,'[1]INSUMOS SINAPI'!$A:$D,4,0),IF(D121=\"ORSE\",VLOOKUP(E121,'[1]INSUMOS ORSE'!$A:$D,4,0),IF(D121=\"SEINFRA\",VLOOKUP(E121,'[1]INSUMOS SEINFRA'!$A:$D,4,0),)))))","v":2.61},2.91,855.54,4]
[null,"2.5.15","INSUMO","SINAPI",39175,{"$f":"IF(C122=\"SERVIÇO\",IF(D122=\"SINAPI\",VLOOKUP(E122,'[1]SERVIÇOS SINAPI'!$A:$D,2,0),IF(D122=\"ORSE\",VLOOKUP(E122,'[1]SERVIÇOS ORSE'!$A:$D,2,0),IF(D122=\"SEINFRA\",VLOOKUP(E122,'[1]SERVIÇOS SEINFRA'!$A:$D,2,0)))),IF(C122=\"INSUMO\",IF(D122=\"SINAPI\",VLOOKUP(E122,'[1]INSUMOS SINAPI'!$A:$D,2,0),IF(D122=\"ORSE\",VLOOKUP(E122,'[1]INSUMOS ORSE'!$A:$D,2,0),IF(D122=\"SEINFRA\",VLOOKUP(E122,'[1]INSUMOS SEINFRA'!$A:$D,2,0),)))))","v":"BUCHA EM ALUMINIO, COM ROSCA, DE 3/4\", PARA ELETRODUTO                                                                                                                                                                                                                                                                                                                                                                                                                                                    "},{"$f":"IF(C122=\"SERVIÇO\",IF(D122=\"SINAPI\",VLOOKUP(E122,'[1]SERVIÇOS SINAPI'!$A:$D,3,0),IF(D122=\"ORSE\",VLOOKUP(E122,'[1]SERVIÇOS ORSE'!$A:$D,3,0),IF(D122=\"SEINFRA\",VLOOKUP(E122,'[1]SERVIÇOS SEINFRA'!$A:$D,3,0)))),IF(C122=\"INSUMO\",IF(D122=\"SINAPI\",VLOOKUP(E122,'[1]INSUMOS SINAPI'!$A:$D,3,0),IF(D122=\"ORSE\",VLOOKUP(E122,'[1]INSUMOS ORSE'!$A:$D,3,0),IF(D122=\"SEINFRA\",VLOOKUP(E122,'[1]INSUMOS SEINFRA'!$A:$D,3,0),)))))","v":"UN    "},{"$f":"'[1]Memória de Cálculo'!$L$738*$G$7","v":642},{"$f":"IF(C122=\"SERVIÇO\",IF(D122=\"SINAPI\",VLOOKUP(E122,'[1]SERVIÇOS SINAPI'!$A:$D,4,0),IF(D122=\"ORSE\",VLOOKUP(E122,'[1]SERVIÇOS ORSE'!$A:$D,4,0),IF(D122=\"SEINFRA\",VLOOKUP(E122,'[1]SERVIÇOS SEINFRA'!$A:$D,4,0)))),IF(C122=\"INSUMO\",IF(D122=\"SINAPI\",VLOOKUP(E122,'[1]INSUMOS SINAPI'!$A:$D,4,0),IF(D122=\"ORSE\",VLOOKUP(E122,'[1]INSUMOS ORSE'!$A:$D,4,0),IF(D122=\"SEINFRA\",VLOOKUP(E122,'[1]INSUMOS SEINFRA'!$A:$D,4,0),)))))","v":0.84},0.94,603.48,4]
[null,"2.5.16","INSUMO","SINAPI",39209,{"$f":"IF(C123=\"SERVIÇO\",IF(D123=\"SINAPI\",VLOOKUP(E123,'[1]SERVIÇOS SINAPI'!$A:$D,2,0),IF(D123=\"ORSE\",VLOOKUP(E123,'[1]SERVIÇOS ORSE'!$A:$D,2,0),IF(D123=\"SEINFRA\",VLOOKUP(E123,'[1]SERVIÇOS SEINFRA'!$A:$D,2,0)))),IF(C123=\"INSUMO\",IF(D123=\"SINAPI\",VLOOKUP(E123,'[1]INSUMOS SINAPI'!$A:$D,2,0),IF(D123=\"ORSE\",VLOOKUP(E123,'[1]INSUMOS ORSE'!$A:$D,2,0),IF(D123=\"SEINFRA\",VLOOKUP(E123,'[1]INSUMOS SEINFRA'!$A:$D,2,0),)))))","v":"ARRUELA EM ALUMINIO, COM ROSCA, DE 3/4\", PARA ELETRODUTO                                                                                                                                                                                                                                                                                                                                                                                                                                                  "},{"$f":"IF(C123=\"SERVIÇO\",IF(D123=\"SINAPI\",VLOOKUP(E123,'[1]SERVIÇOS SINAPI'!$A:$D,3,0),IF(D123=\"ORSE\",VLOOKUP(E123,'[1]SERVIÇOS ORSE'!$A:$D,3,0),IF(D123=\"SEINFRA\",VLOOKUP(E123,'[1]SERVIÇOS SEINFRA'!$A:$D,3,0)))),IF(C123=\"INSUMO\",IF(D123=\"SINAPI\",VLOOKUP(E123,'[1]INSUMOS SINAPI'!$A:$D,3,0),IF(D123=\"ORSE\",VLOOKUP(E123,'[1]INSUMOS ORSE'!$A:$D,3,0),IF(D123=\"SEINFRA\",VLOOKUP(E123,'[1]INSUMOS SEINFRA'!$A:$D,3,0),)))))","v":"UN    "},{"$f":"'[1]Memória de Cálculo'!$L$749*$G$7","v":642},{"$f":"IF(C123=\"SERVIÇO\",IF(D123=\"SINAPI\",VLOOKUP(E123,'[1]SERVIÇOS SINAPI'!$A:$D,4,0),IF(D123=\"ORSE\",VLOOKUP(E123,'[1]SERVIÇOS ORSE'!$A:$D,4,0),IF(D123=\"SEINFRA\",VLOOKUP(E123,'[1]SERVIÇOS SEINFRA'!$A:$D,4,0)))),IF(C123=\"INSUMO\",IF(D123=\"SINAPI\",VLOOKUP(E123,'[1]INSUMOS SINAPI'!$A:$D,4,0),IF(D123=\"ORSE\",VLOOKUP(E123,'[1]INSUMOS ORSE'!$A:$D,4,0),IF(D123=\"SEINFRA\",VLOOKUP(E123,'[1]INSUMOS SEINFRA'!$A:$D,4,0),)))))","v":0.43},0.48,308.16,5]
[null,"2.5.17","INSUMO","SINAPI",38062,{"$f":"IF(C124=\"SERVIÇO\",IF(D124=\"SINAPI\",VLOOKUP(E124,'[1]SERVIÇOS SINAPI'!$A:$D,2,0),IF(D124=\"ORSE\",VLOOKUP(E124,'[1]SERVIÇOS ORSE'!$A:$D,2,0),IF(D124=\"SEINFRA\",VLOOKUP(E124,'[1]SERVIÇOS SEINFRA'!$A:$D,2,0)))),IF(C124=\"INSUMO\",IF(D124=\"SINAPI\",VLOOKUP(E124,'[1]INSUMOS SINAPI'!$A:$D,2,0),IF(D124=\"ORSE\",VLOOKUP(E124,'[1]INSUMOS ORSE'!$A:$D,2,0),IF(D124=\"SEINFRA\",VLOOKUP(E124,'[1]INSUMOS SEINFRA'!$A:$D,2,0),)))))","v":"INTERRUPTOR SIMPLES 10A, 250V, CONJUNTO MONTADO PARA EMBUTIR 4\" X 2\" (PLACA + SUPORTE + MODULO)                                                                                                                                                                                                                                                                                                                                                                                                           "},{"$f":"IF(C124=\"SERVIÇO\",IF(D124=\"SINAPI\",VLOOKUP(E124,'[1]SERVIÇOS SINAPI'!$A:$D,3,0),IF(D124=\"ORSE\",VLOOKUP(E124,'[1]SERVIÇOS ORSE'!$A:$D,3,0),IF(D124=\"SEINFRA\",VLOOKUP(E124,'[1]SERVIÇOS SEINFRA'!$A:$D,3,0)))),IF(C124=\"INSUMO\",IF(D124=\"SINAPI\",VLOOKUP(E124,'[1]INSUMOS SINAPI'!$A:$D,3,0),IF(D124=\"ORSE\",VLOOKUP(E124,'[1]INSUMOS ORSE'!$A:$D,3,0),IF(D124=\"SEINFRA\",VLOOKUP(E124,'[1]INSUMOS SEINFRA'!$A:$D,3,0),)))))","v":"UN    "},{"$f":"'[1]Memória de Cálculo'!$L$758*$G$7","v":60},{"$f":"IF(C124=\"SERVIÇO\",IF(D124=\"SINAPI\",VLOOKUP(E124,'[1]SERVIÇOS SINAPI'!$A:$D,4,0),IF(D124=\"ORSE\",VLOOKUP(E124,'[1]SERVIÇOS ORSE'!$A:$D,4,0),IF(D124=\"SEINFRA\",VLOOKUP(E124,'[1]SERVIÇOS SEINFRA'!$A:$D,4,0)))),IF(C124=\"INSUMO\",IF(D124=\"SINAPI\",VLOOKUP(E124,'[1]INSUMOS SINAPI'!$A:$D,4,0),IF(D124=\"ORSE\",VLOOKUP(E124,'[1]INSUMOS ORSE'!$A:$D,4,0),IF(D124=\"SEINFRA\",VLOOKUP(E124,'[1]INSUMOS SEINFRA'!$A:$D,4,0),)))))","v":8.37},9.33,559.8,4]
[null,"2.5.18","INSUMO","SINAPI",38071,{"$f":"IF(C125=\"SERVIÇO\",IF(D125=\"SINAPI\",VLOOKUP(E125,'[1]SERVIÇOS SINAPI'!$A:$D,2,0),IF(D125=\"ORSE\",VLOOKUP(E125,'[1]SERVIÇOS ORSE'!$A:$D,2,0),IF(D125=\"SEINFRA\",VLOOKUP(E125,'[1]SERVIÇOS SEINFRA'!$A:$D,2,0)))),IF(C125=\"INSUMO\",IF(D125=\"SINAPI\",VLOOKUP(E125,'[1]INSUMOS SINAPI'!$A:$D,2,0),IF(D125=\"ORSE\",VLOOKUP(E125,'[1]INSUMOS ORSE'!$A:$D,2,0),IF(D125=\"SEINFRA\",VLOOKUP(E125,'[1]INSUMOS SEINFRA'!$A:$D,2,0),)))))","v":"INTERRUPTORES SIMPLES (3 MODULOS) 10A, 250V, CONJUNTO MONTADO PARA EMBUTIR 4\" X 2\" (PLACA + SUPORTE + MODULOS)                                                                                                                                                                                                                                                                                                                                                                                            "},{"$f":"IF(C125=\"SERVIÇO\",IF(D125=\"SINAPI\",VLOOKUP(E125,'[1]SERVIÇOS SINAPI'!$A:$D,3,0),IF(D125=\"ORSE\",VLOOKUP(E125,'[1]SERVIÇOS ORSE'!$A:$D,3,0),IF(D125=\"SEINFRA\",VLOOKUP(E125,'[1]SERVIÇOS SEINFRA'!$A:$D,3,0)))),IF(C125=\"INSUMO\",IF(D125=\"SINAPI\",VLOOKUP(E125,'[1]INSUMOS SINAPI'!$A:$D,3,0),IF(D125=\"ORSE\",VLOOKUP(E125,'[1]INSUMOS ORSE'!$A:$D,3,0),IF(D125=\"SEINFRA\",VLOOKUP(E125,'[1]INSUMOS SEINFRA'!$A:$D,3,0),)))))","v":"UN    "},{"$f":"'[1]Memória de Cálculo'!$L$762*$G$7","v":30},{"$f":"IF(C125=\"SERVIÇO\",IF(D125=\"SINAPI\",VLOOKUP(E125,'[1]SERVIÇOS SINAPI'!$A:$D,4,0),IF(D125=\"ORSE\",VLOOKUP(E125,'[1]SERVIÇOS ORSE'!$A:$D,4,0),IF(D125=\"SEINFRA\",VLOOKUP(E125,'[1]SERVIÇOS SEINFRA'!$A:$D,4,0)))),IF(C125=\"INSUMO\",IF(D125=\"SINAPI\",VLOOKUP(E125,'[1]INSUMOS SINAPI'!$A:$D,4,0),IF(D125=\"ORSE\",VLOOKUP(E125,'[1]INSUMOS ORSE'!$A:$D,4,0),IF(D125=\"SEINFRA\",VLOOKUP(E125,'[1]INSUMOS SEINFRA'!$A:$D,4,0),)))))","v":20.54},22.89,686.7,4]
[null,"2.5.19","INSUMO","SINAPI",7528,{"$f":"IF(C126=\"SERVIÇO\",IF(D126=\"SINAPI\",VLOOKUP(E126,'[1]SERVIÇOS SINAPI'!$A:$D,2,0),IF(D126=\"ORSE\",VLOOKUP(E126,'[1]SERVIÇOS ORSE'!$A:$D,2,0),IF(D126=\"SEINFRA\",VLOOKUP(E126,'[1]SERVIÇOS SEINFRA'!$A:$D,2,0)))),IF(C126=\"INSUMO\",IF(D126=\"SINAPI\",VLOOKUP(E126,'[1]INSUMOS SINAPI'!$A:$D,2,0),IF(D126=\"ORSE\",VLOOKUP(E126,'[1]INSUMOS ORSE'!$A:$D,2,0),IF(D126=\"SEINFRA\",VLOOKUP(E126,'[1]INSUMOS SEINFRA'!$A:$D,2,0),)))))","v":"TOMADA 2P+T 10A, 250V, CONJUNTO MONTADO PARA EMBUTIR 4\" X 2\" (PLACA + SUPORTE + MODULO)                                                                                                                                                                                                                                                                                                                                                                                                                   "},{"$f":"IF(C126=\"SERVIÇO\",IF(D126=\"SINAPI\",VLOOKUP(E126,'[1]SERVIÇOS SINAPI'!$A:$D,3,0),IF(D126=\"ORSE\",VLOOKUP(E126,'[1]SERVIÇOS ORSE'!$A:$D,3,0),IF(D126=\"SEINFRA\",VLOOKUP(E126,'[1]SERVIÇOS SEINFRA'!$A:$D,3,0)))),IF(C126=\"INSUMO\",IF(D126=\"SINAPI\",VLOOKUP(E126,'[1]INSUMOS SINAPI'!$A:$D,3,0),IF(D126=\"ORSE\",VLOOKUP(E126,'[1]INSUMOS ORSE'!$A:$D,3,0),IF(D126=\"SEINFRA\",VLOOKUP(E126,'[1]INSUMOS SEINFRA'!$A:$D,3,0),)))))","v":"UN    "},{"$f":"'[1]Memória de Cálculo'!$L$771*$G$7","v":90},{"$f":"IF(C126=\"SERVIÇO\",IF(D126=\"SINAPI\",VLOOKUP(E126,'[1]SERVIÇOS SINAPI'!$A:$D,4,0),IF(D126=\"ORSE\",VLOOKUP(E126,'[1]SERVIÇOS ORSE'!$A:$D,4,0),IF(D126=\"SEINFRA\",VLOOKUP(E126,'[1]SERVIÇOS SEINFRA'!$A:$D,4,0)))),IF(C126=\"INSUMO\",IF(D126=\"SINAPI\",VLOOKUP(E126,'[1]INSUMOS SINAPI'!$A:$D,4,0),IF(D126=\"ORSE\",VLOOKUP(E126,'[1]INSUMOS ORSE'!$A:$D,4,0),IF(D126=\"SEINFRA\",VLOOKUP(E126,'[1]INSUMOS SEINFRA'!$A:$D,4,0),)))))","v":10.9},12.15,1093.5,4]
[null,"2.5.20","INSUMO","ORSE",7406,{"$f":"IF(C127=\"SERVIÇO\",IF(D127=\"SINAPI\",VLOOKUP(E127,'[1]SERVIÇOS SINAPI'!$A:$D,2,0),IF(D127=\"ORSE\",VLOOKUP(E127,'[1]SERVIÇOS ORSE'!$A:$D,2,0),IF(D127=\"SEINFRA\",VLOOKUP(E127,'[1]SERVIÇOS SEINFRA'!$A:$D,2,0)))),IF(C127=\"INSUMO\",IF(D127=\"SINAPI\",VLOOKUP(E127,'[1]INSUMOS SINAPI'!$A:$D,2,0),IF(D127=\"ORSE\",VLOOKUP(E127,'[1]INSUMOS ORSE'!$A:$D,2,0),IF(D127=\"SEINFRA\",VLOOKUP(E127,'[1]INSUMOS SEINFRA'!$A:$D,2,0),)))))","v":"CABO DE COBRE NÚ 10 MM2 - CLASSE 2A"},{"$f":"IF(C127=\"SERVIÇO\",IF(D127=\"SINAPI\",VLOOKUP(E127,'[1]SERVIÇOS SINAPI'!$A:$D,3,0),IF(D127=\"ORSE\",VLOOKUP(E127,'[1]SERVIÇOS ORSE'!$A:$D,3,0),IF(D127=\"SEINFRA\",VLOOKUP(E127,'[1]SERVIÇOS SEINFRA'!$A:$D,3,0)))),IF(C127=\"INSUMO\",IF(D127=\"SINAPI\",VLOOKUP(E127,'[1]INSUMOS SINAPI'!$A:$D,3,0),IF(D127=\"ORSE\",VLOOKUP(E127,'[1]INSUMOS ORSE'!$A:$D,3,0),IF(D127=\"SEINFRA\",VLOOKUP(E127,'[1]INSUMOS SEINFRA'!$A:$D,3,0),)))))","v":"KG"},{"$f":"'[1]Memória de Cálculo'!$L$776*$G$7","v":90},{"$f":"IF(C127=\"SERVIÇO\",IF(D127=\"SINAPI\",VLOOKUP(E127,'[1]SERVIÇOS SINAPI'!$A:$D,4,0),IF(D127=\"ORSE\",VLOOKUP(E127,'[1]SERVIÇOS ORSE'!$A:$D,4,0),IF(D127=\"SEINFRA\",VLOOKUP(E127,'[1]SERVIÇOS SEINFRA'!$A:$D,4,0)))),IF(C127=\"INSUMO\",IF(D127=\"SINAPI\",VLOOKUP(E127,'[1]INSUMOS SINAPI'!$A:$D,4,0),IF(D127=\"ORSE\",VLOOKUP(E127,'[1]INSUMOS ORSE'!$A:$D,4,0),IF(D127=\"SEINFRA\",VLOOKUP(E127,'[1]INSUMOS SEINFRA'!$A:$D,4,0),)))))","v":107.33},119.6,10764,5]
[null,"2.5.21","INSUMO","SINAPI",39128,{"$f":"IF(C128=\"SERVIÇO\",IF(D128=\"SINAPI\",VLOOKUP(E128,'[1]SERVIÇOS SINAPI'!$A:$D,2,0),IF(D128=\"ORSE\",VLOOKUP(E128,'[1]SERVIÇOS ORSE'!$A:$D,2,0),IF(D128=\"SEINFRA\",VLOOKUP(E128,'[1]SERVIÇOS SEINFRA'!$A:$D,2,0)))),IF(C128=\"INSUMO\",IF(D128=\"SINAPI\",VLOOKUP(E128,'[1]INSUMOS SINAPI'!$A:$D,2,0),IF(D128=\"ORSE\",VLOOKUP(E128,'[1]INSUMOS ORSE'!$A:$D,2,0),IF(D128=\"SEINFRA\",VLOOKUP(E128,'[1]INSUMOS SEINFRA'!$A:$D,2,0),)))))","v":"ABRACADEIRA EM ACO PARA AMARRACAO DE ELETRODUTOS, TIPO D, COM 3/4\" E CUNHA DE FIXACAO                                                                                                                                                                                                                                                                                                                                                                                                                     "},{"$f":"IF(C128=\"SERVIÇO\",IF(D128=\"SINAPI\",VLOOKUP(E128,'[1]SERVIÇOS SINAPI'!$A:$D,3,0),IF(D128=\"ORSE\",VLOOKUP(E128,'[1]SERVIÇOS ORSE'!$A:$D,3,0),IF(D128=\"SEINFRA\",VLOOKUP(E128,'[1]SERVIÇOS SEINFRA'!$A:$D,3,0)))),IF(C128=\"INSUMO\",IF(D128=\"SINAPI\",VLOOKUP(E128,'[1]INSUMOS SINAPI'!$A:$D,3,0),IF(D128=\"ORSE\",VLOOKUP(E128,'[1]INSUMOS ORSE'!$A:$D,3,0),IF(D128=\"SEINFRA\",VLOOKUP(E128,'[1]INSUMOS SEINFRA'!$A:$D,3,0),)))))","v":"UN    "},{"$f":"'[1]Memória de Cálculo'!$L$781*$G$7","v":288},{"$f":"IF(C128=\"SERVIÇO\",IF(D128=\"SINAPI\",VLOOKUP(E128,'[1]SERVIÇOS SINAPI'!$A:$D,4,0),IF(D128=\"ORSE\",VLOOKUP(E128,'[1]SERVIÇOS ORSE'!$A:$D,4,0),IF(D128=\"SEINFRA\",VLOOKUP(E128,'[1]SERVIÇOS SEINFRA'!$A:$D,4,0)))),IF(C128=\"INSUMO\",IF(D128=\"SINAPI\",VLOOKUP(E128,'[1]INSUMOS SINAPI'!$A:$D,4,0),IF(D128=\"ORSE\",VLOOKUP(E128,'[1]INSUMOS ORSE'!$A:$D,4,0),IF(D128=\"SEINFRA\",VLOOKUP(E128,'[1]INSUMOS SEINFRA'!$A:$D,4,0),)))))","v":1.41},1.57,452.16,5]
[null,"2.5.22","INSUMO","SINAPI",20111,{"$f":"IF(C129=\"SERVIÇO\",IF(D129=\"SINAPI\",VLOOKUP(E129,'[1]SERVIÇOS SINAPI'!$A:$D,2,0),IF(D129=\"ORSE\",VLOOKUP(E129,'[1]SERVIÇOS ORSE'!$A:$D,2,0),IF(D129=\"SEINFRA\",VLOOKUP(E129,'[1]SERVIÇOS SEINFRA'!$A:$D,2,0)))),IF(C129=\"INSUMO\",IF(D129=\"SINAPI\",VLOOKUP(E129,'[1]INSUMOS SINAPI'!$A:$D,2,0),IF(D129=\"ORSE\",VLOOKUP(E129,'[1]INSUMOS ORSE'!$A:$D,2,0),IF(D129=\"SEINFRA\",VLOOKUP(E129,'[1]INSUMOS SEINFRA'!$A:$D,2,0),)))))","v":"FITA ISOLANTE ADESIVA ANTICHAMA, USO ATE 750 V, EM ROLO DE 19 MM X 20 M                                                                                                                                                                                                                                                                                                                                                                                                                                   "},{"$f":"IF(C129=\"SERVIÇO\",IF(D129=\"SINAPI\",VLOOKUP(E129,'[1]SERVIÇOS SINAPI'!$A:$D,3,0),IF(D129=\"ORSE\",VLOOKUP(E129,'[1]SERVIÇOS ORSE'!$A:$D,3,0),IF(D129=\"SEINFRA\",VLOOKUP(E129,'[1]SERVIÇOS SEINFRA'!$A:$D,3,0)))),IF(C129=\"INSUMO\",IF(D129=\"SINAPI\",VLOOKUP(E129,'[1]INSUMOS SINAPI'!$A:$D,3,0),IF(D129=\"ORSE\",VLOOKUP(E129,'[1]INSUMOS ORSE'!$A:$D,3,0),IF(D129=\"SEINFRA\",VLOOKUP(E129,'[1]INSUMOS SEINFRA'!$A:$D,3,0),)))))","v":"UN    "},{"$f":"'[1]Memória de Cálculo'!$L$785*$G$7","v":24},{"$f":"IF(C129=\"SERVIÇO\",IF(D129=\"SINAPI\",VLOOKUP(E129,'[1]SERVIÇOS SINAPI'!$A:$D,4,0),IF(D129=\"ORSE\",VLOOKUP(E129,'[1]SERVIÇOS ORSE'!$A:$D,4,0),IF(D129=\"SEINFRA\",VLOOKUP(E129,'[1]SERVIÇOS SEINFRA'!$A:$D,4,0)))),IF(C129=\"INSUMO\",IF(D129=\"SINAPI\",VLOOKUP(E129,'[1]INSUMOS SINAPI'!$A:$D,4,0),IF(D129=\"ORSE\",VLOOKUP(E129,'[1]INSUMOS ORSE'!$A:$D,4,0),IF(D129=\"SEINFRA\",VLOOKUP(E129,'[1]INSUMOS SEINFRA'!$A:$D,4,0),)))))","v":13.5},15.04,360.96,2]
[null,"2.5.23","INSUMO","SINAPI",404,{"$f":"IF(C130=\"SERVIÇO\",IF(D130=\"SINAPI\",VLOOKUP(E130,'[1]SERVIÇOS SINAPI'!$A:$D,2,0),IF(D130=\"ORSE\",VLOOKUP(E130,'[1]SERVIÇOS ORSE'!$A:$D,2,0),IF(D130=\"SEINFRA\",VLOOKUP(E130,'[1]SERVIÇOS SEINFRA'!$A:$D,2,0)))),IF(C130=\"INSUMO\",IF(D130=\"SINAPI\",VLOOKUP(E130,'[1]INSUMOS SINAPI'!$A:$D,2,0),IF(D130=\"ORSE\",VLOOKUP(E130,'[1]INSUMOS ORSE'!$A:$D,2,0),IF(D130=\"SEINFRA\",VLOOKUP(E130,'[1]INSUMOS SEINFRA'!$A:$D,2,0),)))))","v":"FITA ISOLANTE DE BORRACHA AUTOFUSAO, USO ATE 69 KV (ALTA TENSAO)                                                                                                                                                                                                                                                                                                                                                                                                                                          "},{"$f":"IF(C130=\"SERVIÇO\",IF(D130=\"SINAPI\",VLOOKUP(E130,'[1]SERVIÇOS SINAPI'!$A:$D,3,0),IF(D130=\"ORSE\",VLOOKUP(E130,'[1]SERVIÇOS ORSE'!$A:$D,3,0),IF(D130=\"SEINFRA\",VLOOKUP(E130,'[1]SERVIÇOS SEINFRA'!$A:$D,3,0)))),IF(C130=\"INSUMO\",IF(D130=\"SINAPI\",VLOOKUP(E130,'[1]INSUMOS SINAPI'!$A:$D,3,0),IF(D130=\"ORSE\",VLOOKUP(E130,'[1]INSUMOS ORSE'!$A:$D,3,0),IF(D130=\"SEINFRA\",VLOOKUP(E130,'[1]INSUMOS SEINFRA'!$A:$D,3,0),)))))","v":"M     "},{"$f":"'[1]Memória de Cálculo'!$L$789*$G$7","v":18},{"$f":"IF(C130=\"SERVIÇO\",IF(D130=\"SINAPI\",VLOOKUP(E130,'[1]SERVIÇOS SINAPI'!$A:$D,4,0),IF(D130=\"ORSE\",VLOOKUP(E130,'[1]SERVIÇOS ORSE'!$A:$D,4,0),IF(D130=\"SEINFRA\",VLOOKUP(E130,'[1]SERVIÇOS SEINFRA'!$A:$D,4,0)))),IF(C130=\"INSUMO\",IF(D130=\"SINAPI\",VLOOKUP(E130,'[1]INSUMOS SINAPI'!$A:$D,4,0),IF(D130=\"ORSE\",VLOOKUP(E130,'[1]INSUMOS ORSE'!$A:$D,4,0),IF(D130=\"SEINFRA\",VLOOKUP(E130,'[1]INSUMOS SEINFRA'!$A:$D,4,0),)))))","v":1.84},2.05,36.9,2]
[null,"2.5.24","INSUMO","SINAPI",39806,{"$f":"IF(C131=\"SERVIÇO\",IF(D131=\"SINAPI\",VLOOKUP(E131,'[1]SERVIÇOS SINAPI'!$A:$D,2,0),IF(D131=\"ORSE\",VLOOKUP(E131,'[1]SERVIÇOS ORSE'!$A:$D,2,0),IF(D131=\"SEINFRA\",VLOOKUP(E131,'[1]SERVIÇOS SEINFRA'!$A:$D,2,0)))),IF(C131=\"INSUMO\",IF(D131=\"SINAPI\",VLOOKUP(E131,'[1]INSUMOS SINAPI'!$A:$D,2,0),IF(D131=\"ORSE\",VLOOKUP(E131,'[1]INSUMOS ORSE'!$A:$D,2,0),IF(D131=\"SEINFRA\",VLOOKUP(E131,'[1]INSUMOS SEINFRA'!$A:$D,2,0),)))))","v":"QUADRO DE DISTRIBUICAO, EM PVC, DE EMBUTIR, COM BARRAMENTO TERRA / NEUTRO, PARA 18 DISJUNTORES NEMA OU 24 DISJUNTORES DIN                                                                                                                                                                                                                                                                                                                                                                                 "},{"$f":"IF(C131=\"SERVIÇO\",IF(D131=\"SINAPI\",VLOOKUP(E131,'[1]SERVIÇOS SINAPI'!$A:$D,3,0),IF(D131=\"ORSE\",VLOOKUP(E131,'[1]SERVIÇOS ORSE'!$A:$D,3,0),IF(D131=\"SEINFRA\",VLOOKUP(E131,'[1]SERVIÇOS SEINFRA'!$A:$D,3,0)))),IF(C131=\"INSUMO\",IF(D131=\"SINAPI\",VLOOKUP(E131,'[1]INSUMOS SINAPI'!$A:$D,3,0),IF(D131=\"ORSE\",VLOOKUP(E131,'[1]INSUMOS ORSE'!$A:$D,3,0),IF(D131=\"SEINFRA\",VLOOKUP(E131,'[1]INSUMOS SEINFRA'!$A:$D,3,0),)))))","v":"UN    "},{"$f":"'[1]Memória de Cálculo'!$L$793*$G$7","v":6},{"$f":"IF(C131=\"SERVIÇO\",IF(D131=\"SINAPI\",VLOOKUP(E131,'[1]SERVIÇOS SINAPI'!$A:$D,4,0),IF(D131=\"ORSE\",VLOOKUP(E131,'[1]SERVIÇOS ORSE'!$A:$D,4,0),IF(D131=\"SEINFRA\",VLOOKUP(E131,'[1]SERVIÇOS SEINFRA'!$A:$D,4,0)))),IF(C131=\"INSUMO\",IF(D131=\"SINAPI\",VLOOKUP(E131,'[1]INSUMOS SINAPI'!$A:$D,4,0),IF(D131=\"ORSE\",VLOOKUP(E131,'[1]INSUMOS ORSE'!$A:$D,4,0),IF(D131=\"SEINFRA\",VLOOKUP(E131,'[1]INSUMOS SEINFRA'!$A:$D,4,0),)))))","v":213.46},237.86,1427.16,4]
[null,"2.5.25","INSUMO","SINAPI",34653,{"$f":"IF(C132=\"SERVIÇO\",IF(D132=\"SINAPI\",VLOOKUP(E132,'[1]SERVIÇOS SINAPI'!$A:$D,2,0),IF(D132=\"ORSE\",VLOOKUP(E132,'[1]SERVIÇOS ORSE'!$A:$D,2,0),IF(D132=\"SEINFRA\",VLOOKUP(E132,'[1]SERVIÇOS SEINFRA'!$A:$D,2,0)))),IF(C132=\"INSUMO\",IF(D132=\"SINAPI\",VLOOKUP(E132,'[1]INSUMOS SINAPI'!$A:$D,2,0),IF(D132=\"ORSE\",VLOOKUP(E132,'[1]INSUMOS ORSE'!$A:$D,2,0),IF(D132=\"SEINFRA\",VLOOKUP(E132,'[1]INSUMOS SEINFRA'!$A:$D,2,0),)))))","v":"DISJUNTOR TIPO DIN/IEC, MONOPOLAR DE 6  ATE  32A                                                                                                                                                                                                                                                                                                                                                                                                                                                          "},{"$f":"IF(C132=\"SERVIÇO\",IF(D132=\"SINAPI\",VLOOKUP(E132,'[1]SERVIÇOS SINAPI'!$A:$D,3,0),IF(D132=\"ORSE\",VLOOKUP(E132,'[1]SERVIÇOS ORSE'!$A:$D,3,0),IF(D132=\"SEINFRA\",VLOOKUP(E132,'[1]SERVIÇOS SEINFRA'!$A:$D,3,0)))),IF(C132=\"INSUMO\",IF(D132=\"SINAPI\",VLOOKUP(E132,'[1]INSUMOS SINAPI'!$A:$D,3,0),IF(D132=\"ORSE\",VLOOKUP(E132,'[1]INSUMOS ORSE'!$A:$D,3,0),IF(D132=\"SEINFRA\",VLOOKUP(E132,'[1]INSUMOS SEINFRA'!$A:$D,3,0),)))))","v":"UN    "},{"$f":"'[1]Memória de Cálculo'!$L$797*$G$7","v":48},{"$f":"IF(C132=\"SERVIÇO\",IF(D132=\"SINAPI\",VLOOKUP(E132,'[1]SERVIÇOS SINAPI'!$A:$D,4,0),IF(D132=\"ORSE\",VLOOKUP(E132,'[1]SERVIÇOS ORSE'!$A:$D,4,0),IF(D132=\"SEINFRA\",VLOOKUP(E132,'[1]SERVIÇOS SEINFRA'!$A:$D,4,0)))),IF(C132=\"INSUMO\",IF(D132=\"SINAPI\",VLOOKUP(E132,'[1]INSUMOS SINAPI'!$A:$D,4,0),IF(D132=\"ORSE\",VLOOKUP(E132,'[1]INSUMOS ORSE'!$A:$D,4,0),IF(D132=\"SEINFRA\",VLOOKUP(E132,'[1]INSUMOS SEINFRA'!$A:$D,4,0),)))))","v":9.96},11.1,532.8,4]
[null,"2.5.26","INSUMO","SINAPI",34688,{"$f":"IF(C133=\"SERVIÇO\",IF(D133=\"SINAPI\",VLOOKUP(E133,'[1]SERVIÇOS SINAPI'!$A:$D,2,0),IF(D133=\"ORSE\",VLOOKUP(E133,'[1]SERVIÇOS ORSE'!$A:$D,2,0),IF(D133=\"SEINFRA\",VLOOKUP(E133,'[1]SERVIÇOS SEINFRA'!$A:$D,2,0)))),IF(C133=\"INSUMO\",IF(D133=\"SINAPI\",VLOOKUP(E133,'[1]INSUMOS SINAPI'!$A:$D,2,0),IF(D133=\"ORSE\",VLOOKUP(E133,'[1]INSUMOS ORSE'!$A:$D,2,0),IF(D133=\"SEINFRA\",VLOOKUP(E133,'[1]INSUMOS SEINFRA'!$A:$D,2,0),)))))","v":"DISJUNTOR TIPO DIN/IEC, MONOPOLAR DE 63 A                                                                                                                                                                                                                                                                                                                                                                                                                                                                 "},{"$f":"IF(C133=\"SERVIÇO\",IF(D133=\"SINAPI\",VLOOKUP(E133,'[1]SERVIÇOS SINAPI'!$A:$D,3,0),IF(D133=\"ORSE\",VLOOKUP(E133,'[1]SERVIÇOS ORSE'!$A:$D,3,0),IF(D133=\"SEINFRA\",VLOOKUP(E133,'[1]SERVIÇOS SEINFRA'!$A:$D,3,0)))),IF(C133=\"INSUMO\",IF(D133=\"SINAPI\",VLOOKUP(E133,'[1]INSUMOS SINAPI'!$A:$D,3,0),IF(D133=\"ORSE\",VLOOKUP(E133,'[1]INSUMOS ORSE'!$A:$D,3,0),IF(D133=\"SEINFRA\",VLOOKUP(E133,'[1]INSUMOS SEINFRA'!$A:$D,3,0),)))))","v":"UN    "},{"$f":"'[1]Memória de Cálculo'!$L$801*$G$7","v":6},{"$f":"IF(C133=\"SERVIÇO\",IF(D133=\"SINAPI\",VLOOKUP(E133,'[1]SERVIÇOS SINAPI'!$A:$D,4,0),IF(D133=\"ORSE\",VLOOKUP(E133,'[1]SERVIÇOS ORSE'!$A:$D,4,0),IF(D133=\"SEINFRA\",VLOOKUP(E133,'[1]SERVIÇOS SEINFRA'!$A:$D,4,0)))),IF(C133=\"INSUMO\",IF(D133=\"SINAPI\",VLOOKUP(E133,'[1]INSUMOS SINAPI'!$A:$D,4,0),IF(D133=\"ORSE\",VLOOKUP(E133,'[1]INSUMOS ORSE'!$A:$D,4,0),IF(D133=\"SEINFRA\",VLOOKUP(E133,'[1]INSUMOS SEINFRA'!$A:$D,4,0),)))))","v":18.05},20.11,120.66,4]
[null,"2.5.27","INSUMO","SINAPI",39447,{"$f":"IF(C134=\"SERVIÇO\",IF(D134=\"SINAPI\",VLOOKUP(E134,'[1]SERVIÇOS SINAPI'!$A:$D,2,0),IF(D134=\"ORSE\",VLOOKUP(E134,'[1]SERVIÇOS ORSE'!$A:$D,2,0),IF(D134=\"SEINFRA\",VLOOKUP(E134,'[1]SERVIÇOS SEINFRA'!$A:$D,2,0)))),IF(C134=\"INSUMO\",IF(D134=\"SINAPI\",VLOOKUP(E134,'[1]INSUMOS SINAPI'!$A:$D,2,0),IF(D134=\"ORSE\",VLOOKUP(E134,'[1]INSUMOS ORSE'!$A:$D,2,0),IF(D134=\"SEINFRA\",VLOOKUP(E134,'[1]INSUMOS SEINFRA'!$A:$D,2,0),)))))","v":"DISPOSITIVO DR, 2 POLOS, SENSIBILIDADE DE 30 MA, CORRENTE DE 63 A, TIPO AC                                                                                                                                                                                                                                                                                                                                                                                                                                "},{"$f":"IF(C134=\"SERVIÇO\",IF(D134=\"SINAPI\",VLOOKUP(E134,'[1]SERVIÇOS SINAPI'!$A:$D,3,0),IF(D134=\"ORSE\",VLOOKUP(E134,'[1]SERVIÇOS ORSE'!$A:$D,3,0),IF(D134=\"SEINFRA\",VLOOKUP(E134,'[1]SERVIÇOS SEINFRA'!$A:$D,3,0)))),IF(C134=\"INSUMO\",IF(D134=\"SINAPI\",VLOOKUP(E134,'[1]INSUMOS SINAPI'!$A:$D,3,0),IF(D134=\"ORSE\",VLOOKUP(E134,'[1]INSUMOS ORSE'!$A:$D,3,0),IF(D134=\"SEINFRA\",VLOOKUP(E134,'[1]INSUMOS SEINFRA'!$A:$D,3,0),)))))","v":"UN    "},{"$f":"'[1]Memória de Cálculo'!$L$805*$G$7","v":6},{"$f":"IF(C134=\"SERVIÇO\",IF(D134=\"SINAPI\",VLOOKUP(E134,'[1]SERVIÇOS SINAPI'!$A:$D,4,0),IF(D134=\"ORSE\",VLOOKUP(E134,'[1]SERVIÇOS ORSE'!$A:$D,4,0),IF(D134=\"SEINFRA\",VLOOKUP(E134,'[1]SERVIÇOS SEINFRA'!$A:$D,4,0)))),IF(C134=\"INSUMO\",IF(D134=\"SINAPI\",VLOOKUP(E134,'[1]INSUMOS SINAPI'!$A:$D,4,0),IF(D134=\"ORSE\",VLOOKUP(E134,'[1]INSUMOS ORSE'!$A:$D,4,0),IF(D134=\"SEINFRA\",VLOOKUP(E134,'[1]INSUMOS SEINFRA'!$A:$D,4,0),)))))","v":166.92},186,1116,4]
[null,"2.5.28","INSUMO","SINAPI",868,{"$f":"IF(C135=\"SERVIÇO\",IF(D135=\"SINAPI\",VLOOKUP(E135,'[1]SERVIÇOS SINAPI'!$A:$D,2,0),IF(D135=\"ORSE\",VLOOKUP(E135,'[1]SERVIÇOS ORSE'!$A:$D,2,0),IF(D135=\"SEINFRA\",VLOOKUP(E135,'[1]SERVIÇOS SEINFRA'!$A:$D,2,0)))),IF(C135=\"INSUMO\",IF(D135=\"SINAPI\",VLOOKUP(E135,'[1]INSUMOS SINAPI'!$A:$D,2,0),IF(D135=\"ORSE\",VLOOKUP(E135,'[1]INSUMOS ORSE'!$A:$D,2,0),IF(D135=\"SEINFRA\",VLOOKUP(E135,'[1]INSUMOS SEINFRA'!$A:$D,2,0),)))))","v":"CABO DE COBRE NU 25 MM2 MEIO-DURO                                                                                                                                                                                                                                                                                                                                                                                                                                                                         "},{"$f":"IF(C135=\"SERVIÇO\",IF(D135=\"SINAPI\",VLOOKUP(E135,'[1]SERVIÇOS SINAPI'!$A:$D,3,0),IF(D135=\"ORSE\",VLOOKUP(E135,'[1]SERVIÇOS ORSE'!$A:$D,3,0),IF(D135=\"SEINFRA\",VLOOKUP(E135,'[1]SERVIÇOS SEINFRA'!$A:$D,3,0)))),IF(C135=\"INSUMO\",IF(D135=\"SINAPI\",VLOOKUP(E135,'[1]INSUMOS SINAPI'!$A:$D,3,0),IF(D135=\"ORSE\",VLOOKUP(E135,'[1]INSUMOS ORSE'!$A:$D,3,0),IF(D135=\"SEINFRA\",VLOOKUP(E135,'[1]INSUMOS SEINFRA'!$A:$D,3,0),)))))","v":"M     "},{"$f":"'[1]Memória de Cálculo'!$L$809*$G$7","v":54},{"$f":"IF(C135=\"SERVIÇO\",IF(D135=\"SINAPI\",VLOOKUP(E135,'[1]SERVIÇOS SINAPI'!$A:$D,4,0),IF(D135=\"ORSE\",VLOOKUP(E135,'[1]SERVIÇOS ORSE'!$A:$D,4,0),IF(D135=\"SEINFRA\",VLOOKUP(E135,'[1]SERVIÇOS SEINFRA'!$A:$D,4,0)))),IF(C135=\"INSUMO\",IF(D135=\"SINAPI\",VLOOKUP(E135,'[1]INSUMOS SINAPI'!$A:$D,4,0),IF(D135=\"ORSE\",VLOOKUP(E135,'[1]INSUMOS ORSE'!$A:$D,4,0),IF(D135=\"SEINFRA\",VLOOKUP(E135,'[1]INSUMOS SEINFRA'!$A:$D,4,0),)))))","v":28.17},31.39,1695.06,5]
[null,"2.5.29","INSUMO","SINAPI",38055,{"$f":"IF(C136=\"SERVIÇO\",IF(D136=\"SINAPI\",VLOOKUP(E136,'[1]SERVIÇOS SINAPI'!$A:$D,2,0),IF(D136=\"ORSE\",VLOOKUP(E136,'[1]SERVIÇOS ORSE'!$A:$D,2,0),IF(D136=\"SEINFRA\",VLOOKUP(E136,'[1]SERVIÇOS SEINFRA'!$A:$D,2,0)))),IF(C136=\"INSUMO\",IF(D136=\"SINAPI\",VLOOKUP(E136,'[1]INSUMOS SINAPI'!$A:$D,2,0),IF(D136=\"ORSE\",VLOOKUP(E136,'[1]INSUMOS ORSE'!$A:$D,2,0),IF(D136=\"SEINFRA\",VLOOKUP(E136,'[1]INSUMOS SEINFRA'!$A:$D,2,0),)))))","v":"GRAMPO METALICO TIPO OLHAL PARA HASTE DE ATERRAMENTO DE 1/2'', CONDUTOR DE *10* A 50 MM2                                                                                                                                                                                                                                                                                                                                                                                                                  "},{"$f":"IF(C136=\"SERVIÇO\",IF(D136=\"SINAPI\",VLOOKUP(E136,'[1]SERVIÇOS SINAPI'!$A:$D,3,0),IF(D136=\"ORSE\",VLOOKUP(E136,'[1]SERVIÇOS ORSE'!$A:$D,3,0),IF(D136=\"SEINFRA\",VLOOKUP(E136,'[1]SERVIÇOS SEINFRA'!$A:$D,3,0)))),IF(C136=\"INSUMO\",IF(D136=\"SINAPI\",VLOOKUP(E136,'[1]INSUMOS SINAPI'!$A:$D,3,0),IF(D136=\"ORSE\",VLOOKUP(E136,'[1]INSUMOS ORSE'!$A:$D,3,0),IF(D136=\"SEINFRA\",VLOOKUP(E136,'[1]INSUMOS SEINFRA'!$A:$D,3,0),)))))","v":"UN    "},{"$f":"'[1]Memória de Cálculo'!$L$813*$G$7","v":6},{"$f":"IF(C136=\"SERVIÇO\",IF(D136=\"SINAPI\",VLOOKUP(E136,'[1]SERVIÇOS SINAPI'!$A:$D,4,0),IF(D136=\"ORSE\",VLOOKUP(E136,'[1]SERVIÇOS ORSE'!$A:$D,4,0),IF(D136=\"SEINFRA\",VLOOKUP(E136,'[1]SERVIÇOS SEINFRA'!$A:$D,4,0)))),IF(C136=\"INSUMO\",IF(D136=\"SINAPI\",VLOOKUP(E136,'[1]INSUMOS SINAPI'!$A:$D,4,0),IF(D136=\"ORSE\",VLOOKUP(E136,'[1]INSUMOS ORSE'!$A:$D,4,0),IF(D136=\"SEINFRA\",VLOOKUP(E136,'[1]INSUMOS SEINFRA'!$A:$D,4,0),)))))","v":5.62},6.26,37.56,5]
[null,"2.5.30","INSUMO","SINAPI",3380,{"$f":"IF(C137=\"SERVIÇO\",IF(D137=\"SINAPI\",VLOOKUP(E137,'[1]SERVIÇOS SINAPI'!$A:$D,2,0),IF(D137=\"ORSE\",VLOOKUP(E137,'[1]SERVIÇOS ORSE'!$A:$D,2,0),IF(D137=\"SEINFRA\",VLOOKUP(E137,'[1]SERVIÇOS SEINFRA'!$A:$D,2,0)))),IF(C137=\"INSUMO\",IF(D137=\"SINAPI\",VLOOKUP(E137,'[1]INSUMOS SINAPI'!$A:$D,2,0),IF(D137=\"ORSE\",VLOOKUP(E137,'[1]INSUMOS ORSE'!$A:$D,2,0),IF(D137=\"SEINFRA\",VLOOKUP(E137,'[1]INSUMOS SEINFRA'!$A:$D,2,0),)))))","v":"!EM PROCESSO DE DESATIVACAO! HASTE DE ATERRAMENTO EM ACO COM 3,00 M DE COMPRIMENTO E DN = 5/8\", REVESTIDA COM BAIXA CAMADA DE COBRE, COM CONECTOR TIPO GRAMPO                                                                                                                                                                                                                                                                                                                                             "},{"$f":"IF(C137=\"SERVIÇO\",IF(D137=\"SINAPI\",VLOOKUP(E137,'[1]SERVIÇOS SINAPI'!$A:$D,3,0),IF(D137=\"ORSE\",VLOOKUP(E137,'[1]SERVIÇOS ORSE'!$A:$D,3,0),IF(D137=\"SEINFRA\",VLOOKUP(E137,'[1]SERVIÇOS SEINFRA'!$A:$D,3,0)))),IF(C137=\"INSUMO\",IF(D137=\"SINAPI\",VLOOKUP(E137,'[1]INSUMOS SINAPI'!$A:$D,3,0),IF(D137=\"ORSE\",VLOOKUP(E137,'[1]INSUMOS ORSE'!$A:$D,3,0),IF(D137=\"SEINFRA\",VLOOKUP(E137,'[1]INSUMOS SEINFRA'!$A:$D,3,0),)))))","v":"UN    "},{"$f":"'[1]Memória de Cálculo'!$L$817*$G$7","v":18},{"$f":"IF(C137=\"SERVIÇO\",IF(D137=\"SINAPI\",VLOOKUP(E137,'[1]SERVIÇOS SINAPI'!$A:$D,4,0),IF(D137=\"ORSE\",VLOOKUP(E137,'[1]SERVIÇOS ORSE'!$A:$D,4,0),IF(D137=\"SEINFRA\",VLOOKUP(E137,'[1]SERVIÇOS SEINFRA'!$A:$D,4,0)))),IF(C137=\"INSUMO\",IF(D137=\"SINAPI\",VLOOKUP(E137,'[1]INSUMOS SINAPI'!$A:$D,4,0),IF(D137=\"ORSE\",VLOOKUP(E137,'[1]INSUMOS ORSE'!$A:$D,4,0),IF(D137=\"SEINFRA\",VLOOKUP(E137,'[1]INSUMOS SEINFRA'!$A:$D,4,0),)))))","v":63},70.2,1263.6,5]
[null,"2.6","INSUMOS PARA INSTALAÇÃO ELÉTRICA DA ILUMINAÇÃO EXTERNA DA UNIDADE DE MELHORAMENTO GENETICO",{"$nulls":7},{"$f":"SUM(K139:K151)","v":19279.65}]
[null,"2.6.1","INSUMO","SINAPI",2689,{"$f":"IF(C139=\"SERVIÇO\",IF(D139=\"SINAPI\",VLOOKUP(E139,'[1]SERVIÇOS SINAPI'!$A:$D,2,0),IF(D139=\"ORSE\",VLOOKUP(E139,'[1]SERVIÇOS ORSE'!$A:$D,2,0),IF(D139=\"SEINFRA\",VLOOKUP(E139,'[1]SERVIÇOS SEINFRA'!$A:$D,2,0)))),IF(C139=\"INSUMO\",IF(D139=\"SINAPI\",VLOOKUP(E139,'[1]INSUMOS SINAPI'!$A:$D,2,0),IF(D139=\"ORSE\",VLOOKUP(E139,'[1]INSUMOS ORSE'!$A:$D,2,0),IF(D139=\"SEINFRA\",VLOOKUP(E139,'[1]INSUMOS SEINFRA'!$A:$D,2,0),)))))","v":"ELETRODUTO PVC FLEXIVEL CORRUGADO, COR AMARELA, DE 20 MM                                                                                                                                                                                                                                                                                                                                                                                                                                                  "},{"$f":"IF(C139=\"SERVIÇO\",IF(D139=\"SINAPI\",VLOOKUP(E139,'[1]SERVIÇOS SINAPI'!$A:$D,3,0),IF(D139=\"ORSE\",VLOOKUP(E139,'[1]SERVIÇOS ORSE'!$A:$D,3,0),IF(D139=\"SEINFRA\",VLOOKUP(E139,'[1]SERVIÇOS SEINFRA'!$A:$D,3,0)))),IF(C139=\"INSUMO\",IF(D139=\"SINAPI\",VLOOKUP(E139,'[1]INSUMOS SINAPI'!$A:$D,3,0),IF(D139=\"ORSE\",VLOOKUP(E139,'[1]INSUMOS ORSE'!$A:$D,3,0),IF(D139=\"SEINFRA\",VLOOKUP(E139,'[1]INSUMOS SEINFRA'!$A:$D,3,0),)))))","v":"M     "},{"$f":"'[1]Memória de Cálculo'!$L$823*$G$7","v":72},{"$f":"IF(C139=\"SERVIÇO\",IF(D139=\"SINAPI\",VLOOKUP(E139,'[1]SERVIÇOS SINAPI'!$A:$D,4,0),IF(D139=\"ORSE\",VLOOKUP(E139,'[1]SERVIÇOS ORSE'!$A:$D,4,0),IF(D139=\"SEINFRA\",VLOOKUP(E139,'[1]SERVIÇOS SEINFRA'!$A:$D,4,0)))),IF(C139=\"INSUMO\",IF(D139=\"SINAPI\",VLOOKUP(E139,'[1]INSUMOS SINAPI'!$A:$D,4,0),IF(D139=\"ORSE\",VLOOKUP(E139,'[1]INSUMOS ORSE'!$A:$D,4,0),IF(D139=\"SEINFRA\",VLOOKUP(E139,'[1]INSUMOS SEINFRA'!$A:$D,4,0),)))))","v":2.31},{"$f":"IF(C139=\"SERVIÇO\",I139*(1+$I$8),IF(C139=\"INSUMO\",(I139*(1+$K$8))))","v":2.57},{"$f":"J139*H139","v":185.04},4]
[null,"2.6.2","INSUMO","SINAPI",1891,{"$f":"IF(C140=\"SERVIÇO\",IF(D140=\"SINAPI\",VLOOKUP(E140,'[1]SERVIÇOS SINAPI'!$A:$D,2,0),IF(D140=\"ORSE\",VLOOKUP(E140,'[1]SERVIÇOS ORSE'!$A:$D,2,0),IF(D140=\"SEINFRA\",VLOOKUP(E140,'[1]SERVIÇOS SEINFRA'!$A:$D,2,0)))),IF(C140=\"INSUMO\",IF(D140=\"SINAPI\",VLOOKUP(E140,'[1]INSUMOS SINAPI'!$A:$D,2,0),IF(D140=\"ORSE\",VLOOKUP(E140,'[1]INSUMOS ORSE'!$A:$D,2,0),IF(D140=\"SEINFRA\",VLOOKUP(E140,'[1]INSUMOS SEINFRA'!$A:$D,2,0),)))))","v":"LUVA EM PVC RIGIDO ROSCAVEL, DE 3/4\", PARA ELETRODUTO                                                                                                                                                                                                                                                                                                                                                                                                                                                     "},{"$f":"IF(C140=\"SERVIÇO\",IF(D140=\"SINAPI\",VLOOKUP(E140,'[1]SERVIÇOS SINAPI'!$A:$D,3,0),IF(D140=\"ORSE\",VLOOKUP(E140,'[1]SERVIÇOS ORSE'!$A:$D,3,0),IF(D140=\"SEINFRA\",VLOOKUP(E140,'[1]SERVIÇOS SEINFRA'!$A:$D,3,0)))),IF(C140=\"INSUMO\",IF(D140=\"SINAPI\",VLOOKUP(E140,'[1]INSUMOS SINAPI'!$A:$D,3,0),IF(D140=\"ORSE\",VLOOKUP(E140,'[1]INSUMOS ORSE'!$A:$D,3,0),IF(D140=\"SEINFRA\",VLOOKUP(E140,'[1]INSUMOS SEINFRA'!$A:$D,3,0),)))))","v":"UN    "},{"$f":"'[1]Memória de Cálculo'!$L$827*$G$7","v":6},{"$f":"IF(C140=\"SERVIÇO\",IF(D140=\"SINAPI\",VLOOKUP(E140,'[1]SERVIÇOS SINAPI'!$A:$D,4,0),IF(D140=\"ORSE\",VLOOKUP(E140,'[1]SERVIÇOS ORSE'!$A:$D,4,0),IF(D140=\"SEINFRA\",VLOOKUP(E140,'[1]SERVIÇOS SEINFRA'!$A:$D,4,0)))),IF(C140=\"INSUMO\",IF(D140=\"SINAPI\",VLOOKUP(E140,'[1]INSUMOS SINAPI'!$A:$D,4,0),IF(D140=\"ORSE\",VLOOKUP(E140,'[1]INSUMOS ORSE'!$A:$D,4,0),IF(D140=\"SEINFRA\",VLOOKUP(E140,'[1]INSUMOS SEINFRA'!$A:$D,4,0),)))))","v":1.31},1.46,8.76,4]
[null,"2.6.3","INSUMO","SINAPI",1879,{"$f":"IF(C141=\"SERVIÇO\",IF(D141=\"SINAPI\",VLOOKUP(E141,'[1]SERVIÇOS SINAPI'!$A:$D,2,0),IF(D141=\"ORSE\",VLOOKUP(E141,'[1]SERVIÇOS ORSE'!$A:$D,2,0),IF(D141=\"SEINFRA\",VLOOKUP(E141,'[1]SERVIÇOS SEINFRA'!$A:$D,2,0)))),IF(C141=\"INSUMO\",IF(D141=\"SINAPI\",VLOOKUP(E141,'[1]INSUMOS SINAPI'!$A:$D,2,0),IF(D141=\"ORSE\",VLOOKUP(E141,'[1]INSUMOS ORSE'!$A:$D,2,0),IF(D141=\"SEINFRA\",VLOOKUP(E141,'[1]INSUMOS SEINFRA'!$A:$D,2,0),)))))","v":"CURVA 90 GRAUS, LONGA, DE PVC RIGIDO ROSCAVEL, DE 3/4\", PARA ELETRODUTO                                                                                                                                                                                                                                                                                                                                                                                                                                   "},{"$f":"IF(C141=\"SERVIÇO\",IF(D141=\"SINAPI\",VLOOKUP(E141,'[1]SERVIÇOS SINAPI'!$A:$D,3,0),IF(D141=\"ORSE\",VLOOKUP(E141,'[1]SERVIÇOS ORSE'!$A:$D,3,0),IF(D141=\"SEINFRA\",VLOOKUP(E141,'[1]SERVIÇOS SEINFRA'!$A:$D,3,0)))),IF(C141=\"INSUMO\",IF(D141=\"SINAPI\",VLOOKUP(E141,'[1]INSUMOS SINAPI'!$A:$D,3,0),IF(D141=\"ORSE\",VLOOKUP(E141,'[1]INSUMOS ORSE'!$A:$D,3,0),IF(D141=\"SEINFRA\",VLOOKUP(E141,'[1]INSUMOS SEINFRA'!$A:$D,3,0),)))))","v":"UN    "},{"$f":"'[1]Memória de Cálculo'!$L$831*$G$7","v":6},{"$f":"IF(C141=\"SERVIÇO\",IF(D141=\"SINAPI\",VLOOKUP(E141,'[1]SERVIÇOS SINAPI'!$A:$D,4,0),IF(D141=\"ORSE\",VLOOKUP(E141,'[1]SERVIÇOS ORSE'!$A:$D,4,0),IF(D141=\"SEINFRA\",VLOOKUP(E141,'[1]SERVIÇOS SEINFRA'!$A:$D,4,0)))),IF(C141=\"INSUMO\",IF(D141=\"SINAPI\",VLOOKUP(E141,'[1]INSUMOS SINAPI'!$A:$D,4,0),IF(D141=\"ORSE\",VLOOKUP(E141,'[1]INSUMOS ORSE'!$A:$D,4,0),IF(D141=\"SEINFRA\",VLOOKUP(E141,'[1]INSUMOS SEINFRA'!$A:$D,4,0),)))))","v":3.03},3.38,20.28,4]
[null,"2.6.4","INSUMO","SINAPI",39175,{"$f":"IF(C142=\"SERVIÇO\",IF(D142=\"SINAPI\",VLOOKUP(E142,'[1]SERVIÇOS SINAPI'!$A:$D,2,0),IF(D142=\"ORSE\",VLOOKUP(E142,'[1]SERVIÇOS ORSE'!$A:$D,2,0),IF(D142=\"SEINFRA\",VLOOKUP(E142,'[1]SERVIÇOS SEINFRA'!$A:$D,2,0)))),IF(C142=\"INSUMO\",IF(D142=\"SINAPI\",VLOOKUP(E142,'[1]INSUMOS SINAPI'!$A:$D,2,0),IF(D142=\"ORSE\",VLOOKUP(E142,'[1]INSUMOS ORSE'!$A:$D,2,0),IF(D142=\"SEINFRA\",VLOOKUP(E142,'[1]INSUMOS SEINFRA'!$A:$D,2,0),)))))","v":"BUCHA EM ALUMINIO, COM ROSCA, DE 3/4\", PARA ELETRODUTO                                                                                                                                                                                                                                                                                                                                                                                                                                                    "},{"$f":"IF(C142=\"SERVIÇO\",IF(D142=\"SINAPI\",VLOOKUP(E142,'[1]SERVIÇOS SINAPI'!$A:$D,3,0),IF(D142=\"ORSE\",VLOOKUP(E142,'[1]SERVIÇOS ORSE'!$A:$D,3,0),IF(D142=\"SEINFRA\",VLOOKUP(E142,'[1]SERVIÇOS SEINFRA'!$A:$D,3,0)))),IF(C142=\"INSUMO\",IF(D142=\"SINAPI\",VLOOKUP(E142,'[1]INSUMOS SINAPI'!$A:$D,3,0),IF(D142=\"ORSE\",VLOOKUP(E142,'[1]INSUMOS ORSE'!$A:$D,3,0),IF(D142=\"SEINFRA\",VLOOKUP(E142,'[1]INSUMOS SEINFRA'!$A:$D,3,0),)))))","v":"UN    "},{"$f":"'[1]Memória de Cálculo'!$L$835*$G$7","v":6},{"$f":"IF(C142=\"SERVIÇO\",IF(D142=\"SINAPI\",VLOOKUP(E142,'[1]SERVIÇOS SINAPI'!$A:$D,4,0),IF(D142=\"ORSE\",VLOOKUP(E142,'[1]SERVIÇOS ORSE'!$A:$D,4,0),IF(D142=\"SEINFRA\",VLOOKUP(E142,'[1]SERVIÇOS SEINFRA'!$A:$D,4,0)))),IF(C142=\"INSUMO\",IF(D142=\"SINAPI\",VLOOKUP(E142,'[1]INSUMOS SINAPI'!$A:$D,4,0),IF(D142=\"ORSE\",VLOOKUP(E142,'[1]INSUMOS ORSE'!$A:$D,4,0),IF(D142=\"SEINFRA\",VLOOKUP(E142,'[1]INSUMOS SEINFRA'!$A:$D,4,0),)))))","v":0.84},0.94,5.64,5]
[null,"2.6.5","INSUMO","SINAPI",39209,{"$f":"IF(C143=\"SERVIÇO\",IF(D143=\"SINAPI\",VLOOKUP(E143,'[1]SERVIÇOS SINAPI'!$A:$D,2,0),IF(D143=\"ORSE\",VLOOKUP(E143,'[1]SERVIÇOS ORSE'!$A:$D,2,0),IF(D143=\"SEINFRA\",VLOOKUP(E143,'[1]SERVIÇOS SEINFRA'!$A:$D,2,0)))),IF(C143=\"INSUMO\",IF(D143=\"SINAPI\",VLOOKUP(E143,'[1]INSUMOS SINAPI'!$A:$D,2,0),IF(D143=\"ORSE\",VLOOKUP(E143,'[1]INSUMOS ORSE'!$A:$D,2,0),IF(D143=\"SEINFRA\",VLOOKUP(E143,'[1]INSUMOS SEINFRA'!$A:$D,2,0),)))))","v":"ARRUELA EM ALUMINIO, COM ROSCA, DE 3/4\", PARA ELETRODUTO                                                                                                                                                                                                                                                                                                                                                                                                                                                  "},{"$f":"IF(C143=\"SERVIÇO\",IF(D143=\"SINAPI\",VLOOKUP(E143,'[1]SERVIÇOS SINAPI'!$A:$D,3,0),IF(D143=\"ORSE\",VLOOKUP(E143,'[1]SERVIÇOS ORSE'!$A:$D,3,0),IF(D143=\"SEINFRA\",VLOOKUP(E143,'[1]SERVIÇOS SEINFRA'!$A:$D,3,0)))),IF(C143=\"INSUMO\",IF(D143=\"SINAPI\",VLOOKUP(E143,'[1]INSUMOS SINAPI'!$A:$D,3,0),IF(D143=\"ORSE\",VLOOKUP(E143,'[1]INSUMOS ORSE'!$A:$D,3,0),IF(D143=\"SEINFRA\",VLOOKUP(E143,'[1]INSUMOS SEINFRA'!$A:$D,3,0),)))))","v":"UN    "},{"$f":"'[1]Memória de Cálculo'!$L$838*$G$7","v":6},{"$f":"IF(C143=\"SERVIÇO\",IF(D143=\"SINAPI\",VLOOKUP(E143,'[1]SERVIÇOS SINAPI'!$A:$D,4,0),IF(D143=\"ORSE\",VLOOKUP(E143,'[1]SERVIÇOS ORSE'!$A:$D,4,0),IF(D143=\"SEINFRA\",VLOOKUP(E143,'[1]SERVIÇOS SEINFRA'!$A:$D,4,0)))),IF(C143=\"INSUMO\",IF(D143=\"SINAPI\",VLOOKUP(E143,'[1]INSUMOS SINAPI'!$A:$D,4,0),IF(D143=\"ORSE\",VLOOKUP(E143,'[1]INSUMOS ORSE'!$A:$D,4,0),IF(D143=\"SEINFRA\",VLOOKUP(E143,'[1]INSUMOS SEINFRA'!$A:$D,4,0),)))))","v":0.43},0.48,2.88,5]
[null,"2.6.6","INSUMO","SINAPI",5051,{"$f":"IF(C144=\"SERVIÇO\",IF(D144=\"SINAPI\",VLOOKUP(E144,'[1]SERVIÇOS SINAPI'!$A:$D,2,0),IF(D144=\"ORSE\",VLOOKUP(E144,'[1]SERVIÇOS ORSE'!$A:$D,2,0),IF(D144=\"SEINFRA\",VLOOKUP(E144,'[1]SERVIÇOS SEINFRA'!$A:$D,2,0)))),IF(C144=\"INSUMO\",IF(D144=\"SINAPI\",VLOOKUP(E144,'[1]INSUMOS SINAPI'!$A:$D,2,0),IF(D144=\"ORSE\",VLOOKUP(E144,'[1]INSUMOS ORSE'!$A:$D,2,0),IF(D144=\"SEINFRA\",VLOOKUP(E144,'[1]INSUMOS SEINFRA'!$A:$D,2,0),)))))","v":"POSTE CONICO CONTINUO EM ACO GALVANIZADO, CURVO, BRACO SIMPLES, ENGASTADO,  H = 9 M, DIAMETRO INFERIOR = *135* MM                                                                                                                                                                                                                                                                                                                                                                                         "},{"$f":"IF(C144=\"SERVIÇO\",IF(D144=\"SINAPI\",VLOOKUP(E144,'[1]SERVIÇOS SINAPI'!$A:$D,3,0),IF(D144=\"ORSE\",VLOOKUP(E144,'[1]SERVIÇOS ORSE'!$A:$D,3,0),IF(D144=\"SEINFRA\",VLOOKUP(E144,'[1]SERVIÇOS SEINFRA'!$A:$D,3,0)))),IF(C144=\"INSUMO\",IF(D144=\"SINAPI\",VLOOKUP(E144,'[1]INSUMOS SINAPI'!$A:$D,3,0),IF(D144=\"ORSE\",VLOOKUP(E144,'[1]INSUMOS ORSE'!$A:$D,3,0),IF(D144=\"SEINFRA\",VLOOKUP(E144,'[1]INSUMOS SEINFRA'!$A:$D,3,0),)))))","v":"UN    "},{"$f":"'[1]Memória de Cálculo'!$L$843*$G$7","v":6},{"$f":"IF(C144=\"SERVIÇO\",IF(D144=\"SINAPI\",VLOOKUP(E144,'[1]SERVIÇOS SINAPI'!$A:$D,4,0),IF(D144=\"ORSE\",VLOOKUP(E144,'[1]SERVIÇOS ORSE'!$A:$D,4,0),IF(D144=\"SEINFRA\",VLOOKUP(E144,'[1]SERVIÇOS SEINFRA'!$A:$D,4,0)))),IF(C144=\"INSUMO\",IF(D144=\"SINAPI\",VLOOKUP(E144,'[1]INSUMOS SINAPI'!$A:$D,4,0),IF(D144=\"ORSE\",VLOOKUP(E144,'[1]INSUMOS ORSE'!$A:$D,4,0),IF(D144=\"SEINFRA\",VLOOKUP(E144,'[1]INSUMOS SEINFRA'!$A:$D,4,0),)))))","v":2189.5},2439.76,14638.56,5]
[null,"2.6.7","INSUMO","SINAPI",39746,{"$f":"IF(C145=\"SERVIÇO\",IF(D145=\"SINAPI\",VLOOKUP(E145,'[1]SERVIÇOS SINAPI'!$A:$D,2,0),IF(D145=\"ORSE\",VLOOKUP(E145,'[1]SERVIÇOS ORSE'!$A:$D,2,0),IF(D145=\"SEINFRA\",VLOOKUP(E145,'[1]SERVIÇOS SEINFRA'!$A:$D,2,0)))),IF(C145=\"INSUMO\",IF(D145=\"SINAPI\",VLOOKUP(E145,'[1]INSUMOS SINAPI'!$A:$D,2,0),IF(D145=\"ORSE\",VLOOKUP(E145,'[1]INSUMOS ORSE'!$A:$D,2,0),IF(D145=\"SEINFRA\",VLOOKUP(E145,'[1]INSUMOS SEINFRA'!$A:$D,2,0),)))))","v":"CHUMBADOR DE ACO, 1\" X 600 MM, PARA POSTES DE ACO COM BASE, INCLUSO PORCA E ARRUELA                                                                                                                                                                                                                                                                                                                                                                                                                       "},{"$f":"IF(C145=\"SERVIÇO\",IF(D145=\"SINAPI\",VLOOKUP(E145,'[1]SERVIÇOS SINAPI'!$A:$D,3,0),IF(D145=\"ORSE\",VLOOKUP(E145,'[1]SERVIÇOS ORSE'!$A:$D,3,0),IF(D145=\"SEINFRA\",VLOOKUP(E145,'[1]SERVIÇOS SEINFRA'!$A:$D,3,0)))),IF(C145=\"INSUMO\",IF(D145=\"SINAPI\",VLOOKUP(E145,'[1]INSUMOS SINAPI'!$A:$D,3,0),IF(D145=\"ORSE\",VLOOKUP(E145,'[1]INSUMOS ORSE'!$A:$D,3,0),IF(D145=\"SEINFRA\",VLOOKUP(E145,'[1]INSUMOS SEINFRA'!$A:$D,3,0),)))))","v":"UN    "},{"$f":"'[1]Memória de Cálculo'!$L$847*$G$7","v":6},{"$f":"IF(C145=\"SERVIÇO\",IF(D145=\"SINAPI\",VLOOKUP(E145,'[1]SERVIÇOS SINAPI'!$A:$D,4,0),IF(D145=\"ORSE\",VLOOKUP(E145,'[1]SERVIÇOS ORSE'!$A:$D,4,0),IF(D145=\"SEINFRA\",VLOOKUP(E145,'[1]SERVIÇOS SEINFRA'!$A:$D,4,0)))),IF(C145=\"INSUMO\",IF(D145=\"SINAPI\",VLOOKUP(E145,'[1]INSUMOS SINAPI'!$A:$D,4,0),IF(D145=\"ORSE\",VLOOKUP(E145,'[1]INSUMOS ORSE'!$A:$D,4,0),IF(D145=\"SEINFRA\",VLOOKUP(E145,'[1]INSUMOS SEINFRA'!$A:$D,4,0),)))))","v":228.4},254.51,1527.06,5]
[null,"2.6.8","INSUMO","ORSE",13284,{"$f":"IF(C146=\"SERVIÇO\",IF(D146=\"SINAPI\",VLOOKUP(E146,'[1]SERVIÇOS SINAPI'!$A:$D,2,0),IF(D146=\"ORSE\",VLOOKUP(E146,'[1]SERVIÇOS ORSE'!$A:$D,2,0),IF(D146=\"SEINFRA\",VLOOKUP(E146,'[1]SERVIÇOS SEINFRA'!$A:$D,2,0)))),IF(C146=\"INSUMO\",IF(D146=\"SINAPI\",VLOOKUP(E146,'[1]INSUMOS SINAPI'!$A:$D,2,0),IF(D146=\"ORSE\",VLOOKUP(E146,'[1]INSUMOS ORSE'!$A:$D,2,0),IF(D146=\"SEINFRA\",VLOOKUP(E146,'[1]INSUMOS SEINFRA'!$A:$D,2,0),)))))","v":"LÂMPADA LED 100W, LUZ BRANCA 6500K, TLN190 - E40, 120º DE ÂNGULO DE ABERTURA, MARCA GLIGHT OU SIMILAR"},{"$f":"IF(C146=\"SERVIÇO\",IF(D146=\"SINAPI\",VLOOKUP(E146,'[1]SERVIÇOS SINAPI'!$A:$D,3,0),IF(D146=\"ORSE\",VLOOKUP(E146,'[1]SERVIÇOS ORSE'!$A:$D,3,0),IF(D146=\"SEINFRA\",VLOOKUP(E146,'[1]SERVIÇOS SEINFRA'!$A:$D,3,0)))),IF(C146=\"INSUMO\",IF(D146=\"SINAPI\",VLOOKUP(E146,'[1]INSUMOS SINAPI'!$A:$D,3,0),IF(D146=\"ORSE\",VLOOKUP(E146,'[1]INSUMOS ORSE'!$A:$D,3,0),IF(D146=\"SEINFRA\",VLOOKUP(E146,'[1]INSUMOS SEINFRA'!$A:$D,3,0),)))))","v":"UN"},{"$f":"'[1]Memória de Cálculo'!$L$851*$G$7","v":6},{"$f":"IF(C146=\"SERVIÇO\",IF(D146=\"SINAPI\",VLOOKUP(E146,'[1]SERVIÇOS SINAPI'!$A:$D,4,0),IF(D146=\"ORSE\",VLOOKUP(E146,'[1]SERVIÇOS ORSE'!$A:$D,4,0),IF(D146=\"SEINFRA\",VLOOKUP(E146,'[1]SERVIÇOS SEINFRA'!$A:$D,4,0)))),IF(C146=\"INSUMO\",IF(D146=\"SINAPI\",VLOOKUP(E146,'[1]INSUMOS SINAPI'!$A:$D,4,0),IF(D146=\"ORSE\",VLOOKUP(E146,'[1]INSUMOS ORSE'!$A:$D,4,0),IF(D146=\"SEINFRA\",VLOOKUP(E146,'[1]INSUMOS SEINFRA'!$A:$D,4,0),)))))","v":248.99},277.45,1664.7,2]
[null,"2.6.9","INSUMO","SINAPI",3798,{"$f":"IF(C147=\"SERVIÇO\",IF(D147=\"SINAPI\",VLOOKUP(E147,'[1]SERVIÇOS SINAPI'!$A:$D,2,0),IF(D147=\"ORSE\",VLOOKUP(E147,'[1]SERVIÇOS ORSE'!$A:$D,2,0),IF(D147=\"SEINFRA\",VLOOKUP(E147,'[1]SERVIÇOS SEINFRA'!$A:$D,2,0)))),IF(C147=\"INSUMO\",IF(D147=\"SINAPI\",VLOOKUP(E147,'[1]INSUMOS SINAPI'!$A:$D,2,0),IF(D147=\"ORSE\",VLOOKUP(E147,'[1]INSUMOS ORSE'!$A:$D,2,0),IF(D147=\"SEINFRA\",VLOOKUP(E147,'[1]INSUMOS SEINFRA'!$A:$D,2,0),)))))","v":"LUMINARIA ABERTA P/ ILUMINACAO PUBLICA, TIPO X-57 PETERCO OU EQUIV                                                                                                                                                                                                                                                                                                                                                                                                                                        "},{"$f":"IF(C147=\"SERVIÇO\",IF(D147=\"SINAPI\",VLOOKUP(E147,'[1]SERVIÇOS SINAPI'!$A:$D,3,0),IF(D147=\"ORSE\",VLOOKUP(E147,'[1]SERVIÇOS ORSE'!$A:$D,3,0),IF(D147=\"SEINFRA\",VLOOKUP(E147,'[1]SERVIÇOS SEINFRA'!$A:$D,3,0)))),IF(C147=\"INSUMO\",IF(D147=\"SINAPI\",VLOOKUP(E147,'[1]INSUMOS SINAPI'!$A:$D,3,0),IF(D147=\"ORSE\",VLOOKUP(E147,'[1]INSUMOS ORSE'!$A:$D,3,0),IF(D147=\"SEINFRA\",VLOOKUP(E147,'[1]INSUMOS SEINFRA'!$A:$D,3,0),)))))","v":"UN    "},{"$f":"'[1]Memória de Cálculo'!$L$855*$G$7","v":6},{"$f":"IF(C147=\"SERVIÇO\",IF(D147=\"SINAPI\",VLOOKUP(E147,'[1]SERVIÇOS SINAPI'!$A:$D,4,0),IF(D147=\"ORSE\",VLOOKUP(E147,'[1]SERVIÇOS ORSE'!$A:$D,4,0),IF(D147=\"SEINFRA\",VLOOKUP(E147,'[1]SERVIÇOS SEINFRA'!$A:$D,4,0)))),IF(C147=\"INSUMO\",IF(D147=\"SINAPI\",VLOOKUP(E147,'[1]INSUMOS SINAPI'!$A:$D,4,0),IF(D147=\"ORSE\",VLOOKUP(E147,'[1]INSUMOS ORSE'!$A:$D,4,0),IF(D147=\"SEINFRA\",VLOOKUP(E147,'[1]INSUMOS SEINFRA'!$A:$D,4,0),)))))","v":56.77},63.26,379.56,5]
[null,"2.6.10","INSUMO","SINAPI",2510,{"$f":"IF(C148=\"SERVIÇO\",IF(D148=\"SINAPI\",VLOOKUP(E148,'[1]SERVIÇOS SINAPI'!$A:$D,2,0),IF(D148=\"ORSE\",VLOOKUP(E148,'[1]SERVIÇOS ORSE'!$A:$D,2,0),IF(D148=\"SEINFRA\",VLOOKUP(E148,'[1]SERVIÇOS SEINFRA'!$A:$D,2,0)))),IF(C148=\"INSUMO\",IF(D148=\"SINAPI\",VLOOKUP(E148,'[1]INSUMOS SINAPI'!$A:$D,2,0),IF(D148=\"ORSE\",VLOOKUP(E148,'[1]INSUMOS ORSE'!$A:$D,2,0),IF(D148=\"SEINFRA\",VLOOKUP(E148,'[1]INSUMOS SEINFRA'!$A:$D,2,0),)))))","v":"RELE FOTOELETRICO INTERNO E EXTERNO BIVOLT 1000 W, DE CONECTOR, SEM BASE                                                                                                                                                                                                                                                                                                                                                                                                                                  "},{"$f":"IF(C148=\"SERVIÇO\",IF(D148=\"SINAPI\",VLOOKUP(E148,'[1]SERVIÇOS SINAPI'!$A:$D,3,0),IF(D148=\"ORSE\",VLOOKUP(E148,'[1]SERVIÇOS ORSE'!$A:$D,3,0),IF(D148=\"SEINFRA\",VLOOKUP(E148,'[1]SERVIÇOS SEINFRA'!$A:$D,3,0)))),IF(C148=\"INSUMO\",IF(D148=\"SINAPI\",VLOOKUP(E148,'[1]INSUMOS SINAPI'!$A:$D,3,0),IF(D148=\"ORSE\",VLOOKUP(E148,'[1]INSUMOS ORSE'!$A:$D,3,0),IF(D148=\"SEINFRA\",VLOOKUP(E148,'[1]INSUMOS SEINFRA'!$A:$D,3,0),)))))","v":"UN    "},{"$f":"'[1]Memória de Cálculo'!$L$859*$G$7","v":6},{"$f":"IF(C148=\"SERVIÇO\",IF(D148=\"SINAPI\",VLOOKUP(E148,'[1]SERVIÇOS SINAPI'!$A:$D,4,0),IF(D148=\"ORSE\",VLOOKUP(E148,'[1]SERVIÇOS ORSE'!$A:$D,4,0),IF(D148=\"SEINFRA\",VLOOKUP(E148,'[1]SERVIÇOS SEINFRA'!$A:$D,4,0)))),IF(C148=\"INSUMO\",IF(D148=\"SINAPI\",VLOOKUP(E148,'[1]INSUMOS SINAPI'!$A:$D,4,0),IF(D148=\"ORSE\",VLOOKUP(E148,'[1]INSUMOS ORSE'!$A:$D,4,0),IF(D148=\"SEINFRA\",VLOOKUP(E148,'[1]INSUMOS SEINFRA'!$A:$D,4,0),)))))","v":24.09},26.84,161.04,5]
[null,"2.6.11","INSUMO","SINAPI",1021,{"$f":"IF(C149=\"SERVIÇO\",IF(D149=\"SINAPI\",VLOOKUP(E149,'[1]SERVIÇOS SINAPI'!$A:$D,2,0),IF(D149=\"ORSE\",VLOOKUP(E149,'[1]SERVIÇOS ORSE'!$A:$D,2,0),IF(D149=\"SEINFRA\",VLOOKUP(E149,'[1]SERVIÇOS SEINFRA'!$A:$D,2,0)))),IF(C149=\"INSUMO\",IF(D149=\"SINAPI\",VLOOKUP(E149,'[1]INSUMOS SINAPI'!$A:$D,2,0),IF(D149=\"ORSE\",VLOOKUP(E149,'[1]INSUMOS ORSE'!$A:$D,2,0),IF(D149=\"SEINFRA\",VLOOKUP(E149,'[1]INSUMOS SEINFRA'!$A:$D,2,0),)))))","v":"CABO DE COBRE, FLEXIVEL, CLASSE 4 OU 5, ISOLACAO EM PVC/A, ANTICHAMA BWF-B, COBERTURA PVC-ST1, ANTICHAMA BWF-B, 1 CONDUTOR, 0,6/1 KV, SECAO NOMINAL 4 MM2                                                                                                                                                                                                                                                                                                                                                 "},{"$f":"IF(C149=\"SERVIÇO\",IF(D149=\"SINAPI\",VLOOKUP(E149,'[1]SERVIÇOS SINAPI'!$A:$D,3,0),IF(D149=\"ORSE\",VLOOKUP(E149,'[1]SERVIÇOS ORSE'!$A:$D,3,0),IF(D149=\"SEINFRA\",VLOOKUP(E149,'[1]SERVIÇOS SEINFRA'!$A:$D,3,0)))),IF(C149=\"INSUMO\",IF(D149=\"SINAPI\",VLOOKUP(E149,'[1]INSUMOS SINAPI'!$A:$D,3,0),IF(D149=\"ORSE\",VLOOKUP(E149,'[1]INSUMOS ORSE'!$A:$D,3,0),IF(D149=\"SEINFRA\",VLOOKUP(E149,'[1]INSUMOS SEINFRA'!$A:$D,3,0),)))))","v":"M     "},{"$f":"'[1]Memória de Cálculo'!$L$863*$G$7","v":39},{"$f":"IF(C149=\"SERVIÇO\",IF(D149=\"SINAPI\",VLOOKUP(E149,'[1]SERVIÇOS SINAPI'!$A:$D,4,0),IF(D149=\"ORSE\",VLOOKUP(E149,'[1]SERVIÇOS ORSE'!$A:$D,4,0),IF(D149=\"SEINFRA\",VLOOKUP(E149,'[1]SERVIÇOS SEINFRA'!$A:$D,4,0)))),IF(C149=\"INSUMO\",IF(D149=\"SINAPI\",VLOOKUP(E149,'[1]INSUMOS SINAPI'!$A:$D,4,0),IF(D149=\"ORSE\",VLOOKUP(E149,'[1]INSUMOS ORSE'!$A:$D,4,0),IF(D149=\"SEINFRA\",VLOOKUP(E149,'[1]INSUMOS SEINFRA'!$A:$D,4,0),)))))","v":5.23},5.83,227.37,5]
[null,"2.6.12","INSUMO","SINAPI",38055,{"$f":"IF(C150=\"SERVIÇO\",IF(D150=\"SINAPI\",VLOOKUP(E150,'[1]SERVIÇOS SINAPI'!$A:$D,2,0),IF(D150=\"ORSE\",VLOOKUP(E150,'[1]SERVIÇOS ORSE'!$A:$D,2,0),IF(D150=\"SEINFRA\",VLOOKUP(E150,'[1]SERVIÇOS SEINFRA'!$A:$D,2,0)))),IF(C150=\"INSUMO\",IF(D150=\"SINAPI\",VLOOKUP(E150,'[1]INSUMOS SINAPI'!$A:$D,2,0),IF(D150=\"ORSE\",VLOOKUP(E150,'[1]INSUMOS ORSE'!$A:$D,2,0),IF(D150=\"SEINFRA\",VLOOKUP(E150,'[1]INSUMOS SEINFRA'!$A:$D,2,0),)))))","v":"GRAMPO METALICO TIPO OLHAL PARA HASTE DE ATERRAMENTO DE 1/2'', CONDUTOR DE *10* A 50 MM2                                                                                                                                                                                                                                                                                                                                                                                                                  "},{"$f":"IF(C150=\"SERVIÇO\",IF(D150=\"SINAPI\",VLOOKUP(E150,'[1]SERVIÇOS SINAPI'!$A:$D,3,0),IF(D150=\"ORSE\",VLOOKUP(E150,'[1]SERVIÇOS ORSE'!$A:$D,3,0),IF(D150=\"SEINFRA\",VLOOKUP(E150,'[1]SERVIÇOS SEINFRA'!$A:$D,3,0)))),IF(C150=\"INSUMO\",IF(D150=\"SINAPI\",VLOOKUP(E150,'[1]INSUMOS SINAPI'!$A:$D,3,0),IF(D150=\"ORSE\",VLOOKUP(E150,'[1]INSUMOS ORSE'!$A:$D,3,0),IF(D150=\"SEINFRA\",VLOOKUP(E150,'[1]INSUMOS SEINFRA'!$A:$D,3,0),)))))","v":"UN    "},{"$f":"'[1]Memória de Cálculo'!$L$867*$G$7","v":6},{"$f":"IF(C150=\"SERVIÇO\",IF(D150=\"SINAPI\",VLOOKUP(E150,'[1]SERVIÇOS SINAPI'!$A:$D,4,0),IF(D150=\"ORSE\",VLOOKUP(E150,'[1]SERVIÇOS ORSE'!$A:$D,4,0),IF(D150=\"SEINFRA\",VLOOKUP(E150,'[1]SERVIÇOS SEINFRA'!$A:$D,4,0)))),IF(C150=\"INSUMO\",IF(D150=\"SINAPI\",VLOOKUP(E150,'[1]INSUMOS SINAPI'!$A:$D,4,0),IF(D150=\"ORSE\",VLOOKUP(E150,'[1]INSUMOS ORSE'!$A:$D,4,0),IF(D150=\"SEINFRA\",VLOOKUP(E150,'[1]INSUMOS SEINFRA'!$A:$D,4,0),)))))","v":5.62},6.26,37.56,5]
[null,"2.6.13","INSUMO","SINAPI",3380,{"$f":"IF(C151=\"SERVIÇO\",IF(D151=\"SINAPI\",VLOOKUP(E151,'[1]SERVIÇOS SINAPI'!$A:$D,2,0),IF(D151=\"ORSE\",VLOOKUP(E151,'[1]SERVIÇOS ORSE'!$A:$D,2,0),IF(D151=\"SEINFRA\",VLOOKUP(E151,'[1]SERVIÇOS SEINFRA'!$A:$D,2,0)))),IF(C151=\"INSUMO\",IF(D151=\"SINAPI\",VLOOKUP(E151,'[1]INSUMOS SINAPI'!$A:$D,2,0),IF(D151=\"ORSE\",VLOOKUP(E151,'[1]INSUMOS ORSE'!$A:$D,2,0),IF(D151=\"SEINFRA\",VLOOKUP(E151,'[1]INSUMOS SEINFRA'!$A:$D,2,0),)))))","v":"!EM PROCESSO DE DESATIVACAO! HASTE DE ATERRAMENTO EM ACO COM 3,00 M DE COMPRIMENTO E DN = 5/8\", REVESTIDA COM BAIXA CAMADA DE COBRE, COM CONECTOR TIPO GRAMPO                                                                                                                                                                                                                                                                                                                                             "},{"$f":"IF(C151=\"SERVIÇO\",IF(D151=\"SINAPI\",VLOOKUP(E151,'[1]SERVIÇOS SINAPI'!$A:$D,3,0),IF(D151=\"ORSE\",VLOOKUP(E151,'[1]SERVIÇOS ORSE'!$A:$D,3,0),IF(D151=\"SEINFRA\",VLOOKUP(E151,'[1]SERVIÇOS SEINFRA'!$A:$D,3,0)))),IF(C151=\"INSUMO\",IF(D151=\"SINAPI\",VLOOKUP(E151,'[1]INSUMOS SINAPI'!$A:$D,3,0),IF(D151=\"ORSE\",VLOOKUP(E151,'[1]INSUMOS ORSE'!$A:$D,3,0),IF(D151=\"SEINFRA\",VLOOKUP(E151,'[1]INSUMOS SEINFRA'!$A:$D,3,0),)))))","v":"UN    "},{"$f":"'[1]Memória de Cálculo'!$L$871*$G$7","v":6},{"$f":"IF(C151=\"SERVIÇO\",IF(D151=\"SINAPI\",VLOOKUP(E151,'[1]SERVIÇOS SINAPI'!$A:$D,4,0),IF(D151=\"ORSE\",VLOOKUP(E151,'[1]SERVIÇOS ORSE'!$A:$D,4,0),IF(D151=\"SEINFRA\",VLOOKUP(E151,'[1]SERVIÇOS SEINFRA'!$A:$D,4,0)))),IF(C151=\"INSUMO\",IF(D151=\"SINAPI\",VLOOKUP(E151,'[1]INSUMOS SINAPI'!$A:$D,4,0),IF(D151=\"ORSE\",VLOOKUP(E151,'[1]INSUMOS ORSE'!$A:$D,4,0),IF(D151=\"SEINFRA\",VLOOKUP(E151,'[1]INSUMOS SEINFRA'!$A:$D,4,0),)))))","v":63},70.2,421.2,5]
[null,"2.7","INSUMOS PARA INSTALAÇÃO HIDRAULICA DA UNIDADE DE MELHORAMENTO GENETICO",{"$nulls":7},{"$f":"SUM(K153:K172)","v":11789.33}]
[null,"2.7.1","INSUMO","SINAPI",9867,{"$f":"IF(C153=\"SERVIÇO\",IF(D153=\"SINAPI\",VLOOKUP(E153,'[1]SERVIÇOS SINAPI'!$A:$D,2,0),IF(D153=\"ORSE\",VLOOKUP(E153,'[1]SERVIÇOS ORSE'!$A:$D,2,0),IF(D153=\"SEINFRA\",VLOOKUP(E153,'[1]SERVIÇOS SEINFRA'!$A:$D,2,0)))),IF(C153=\"INSUMO\",IF(D153=\"SINAPI\",VLOOKUP(E153,'[1]INSUMOS SINAPI'!$A:$D,2,0),IF(D153=\"ORSE\",VLOOKUP(E153,'[1]INSUMOS ORSE'!$A:$D,2,0),IF(D153=\"SEINFRA\",VLOOKUP(E153,'[1]INSUMOS SEINFRA'!$A:$D,2,0),)))))","v":"TUBO PVC, SOLDAVEL, DN 20 MM, AGUA FRIA (NBR-5648)                                                                                                                                                                                                                                                                                                                                                                                                                                                        "},{"$f":"IF(C153=\"SERVIÇO\",IF(D153=\"SINAPI\",VLOOKUP(E153,'[1]SERVIÇOS SINAPI'!$A:$D,3,0),IF(D153=\"ORSE\",VLOOKUP(E153,'[1]SERVIÇOS ORSE'!$A:$D,3,0),IF(D153=\"SEINFRA\",VLOOKUP(E153,'[1]SERVIÇOS SEINFRA'!$A:$D,3,0)))),IF(C153=\"INSUMO\",IF(D153=\"SINAPI\",VLOOKUP(E153,'[1]INSUMOS SINAPI'!$A:$D,3,0),IF(D153=\"ORSE\",VLOOKUP(E153,'[1]INSUMOS ORSE'!$A:$D,3,0),IF(D153=\"SEINFRA\",VLOOKUP(E153,'[1]INSUMOS SEINFRA'!$A:$D,3,0),)))))","v":"M     "},{"$f":"'[1]Memória de Cálculo'!$L$876*$G$7","v":6},{"$f":"IF(C153=\"SERVIÇO\",IF(D153=\"SINAPI\",VLOOKUP(E153,'[1]SERVIÇOS SINAPI'!$A:$D,4,0),IF(D153=\"ORSE\",VLOOKUP(E153,'[1]SERVIÇOS ORSE'!$A:$D,4,0),IF(D153=\"SEINFRA\",VLOOKUP(E153,'[1]SERVIÇOS SEINFRA'!$A:$D,4,0)))),IF(C153=\"INSUMO\",IF(D153=\"SINAPI\",VLOOKUP(E153,'[1]INSUMOS SINAPI'!$A:$D,4,0),IF(D153=\"ORSE\",VLOOKUP(E153,'[1]INSUMOS ORSE'!$A:$D,4,0),IF(D153=\"SEINFRA\",VLOOKUP(E153,'[1]INSUMOS SEINFRA'!$A:$D,4,0),)))))","v":3.53},{"$f":"IF(C153=\"SERVIÇO\",I153*(1+$I$8),IF(C153=\"INSUMO\",(I153*(1+$K$8))))","v":3.93},{"$f":"J153*H153","v":23.58},4]
[null,"2.7.2","INSUMO","SINAPI",9868,{"$f":"IF(C154=\"SERVIÇO\",IF(D154=\"SINAPI\",VLOOKUP(E154,'[1]SERVIÇOS SINAPI'!$A:$D,2,0),IF(D154=\"ORSE\",VLOOKUP(E154,'[1]SERVIÇOS ORSE'!$A:$D,2,0),IF(D154=\"SEINFRA\",VLOOKUP(E154,'[1]SERVIÇOS SEINFRA'!$A:$D,2,0)))),IF(C154=\"INSUMO\",IF(D154=\"SINAPI\",VLOOKUP(E154,'[1]INSUMOS SINAPI'!$A:$D,2,0),IF(D154=\"ORSE\",VLOOKUP(E154,'[1]INSUMOS ORSE'!$A:$D,2,0),IF(D154=\"SEINFRA\",VLOOKUP(E154,'[1]INSUMOS SEINFRA'!$A:$D,2,0),)))))","v":"TUBO PVC, SOLDAVEL, DN 25 MM, AGUA FRIA (NBR-5648)                                                                                                                                                                                                                                                                                                                                                                                                                                                        "},{"$f":"IF(C154=\"SERVIÇO\",IF(D154=\"SINAPI\",VLOOKUP(E154,'[1]SERVIÇOS SINAPI'!$A:$D,3,0),IF(D154=\"ORSE\",VLOOKUP(E154,'[1]SERVIÇOS ORSE'!$A:$D,3,0),IF(D154=\"SEINFRA\",VLOOKUP(E154,'[1]SERVIÇOS SEINFRA'!$A:$D,3,0)))),IF(C154=\"INSUMO\",IF(D154=\"SINAPI\",VLOOKUP(E154,'[1]INSUMOS SINAPI'!$A:$D,3,0),IF(D154=\"ORSE\",VLOOKUP(E154,'[1]INSUMOS ORSE'!$A:$D,3,0),IF(D154=\"SEINFRA\",VLOOKUP(E154,'[1]INSUMOS SEINFRA'!$A:$D,3,0),)))))","v":"M     "},{"$f":"'[1]Memória de Cálculo'!$L$880*$G$7","v":72},{"$f":"IF(C154=\"SERVIÇO\",IF(D154=\"SINAPI\",VLOOKUP(E154,'[1]SERVIÇOS SINAPI'!$A:$D,4,0),IF(D154=\"ORSE\",VLOOKUP(E154,'[1]SERVIÇOS ORSE'!$A:$D,4,0),IF(D154=\"SEINFRA\",VLOOKUP(E154,'[1]SERVIÇOS SEINFRA'!$A:$D,4,0)))),IF(C154=\"INSUMO\",IF(D154=\"SINAPI\",VLOOKUP(E154,'[1]INSUMOS SINAPI'!$A:$D,4,0),IF(D154=\"ORSE\",VLOOKUP(E154,'[1]INSUMOS ORSE'!$A:$D,4,0),IF(D154=\"SEINFRA\",VLOOKUP(E154,'[1]INSUMOS SEINFRA'!$A:$D,4,0),)))))","v":4.53},5.05,363.6,4]
[null,"2.7.3","INSUMO","SINAPI",9869,{"$f":"IF(C155=\"SERVIÇO\",IF(D155=\"SINAPI\",VLOOKUP(E155,'[1]SERVIÇOS SINAPI'!$A:$D,2,0),IF(D155=\"ORSE\",VLOOKUP(E155,'[1]SERVIÇOS ORSE'!$A:$D,2,0),IF(D155=\"SEINFRA\",VLOOKUP(E155,'[1]SERVIÇOS SEINFRA'!$A:$D,2,0)))),IF(C155=\"INSUMO\",IF(D155=\"SINAPI\",VLOOKUP(E155,'[1]INSUMOS SINAPI'!$A:$D,2,0),IF(D155=\"ORSE\",VLOOKUP(E155,'[1]INSUMOS ORSE'!$A:$D,2,0),IF(D155=\"SEINFRA\",VLOOKUP(E155,'[1]INSUMOS SEINFRA'!$A:$D,2,0),)))))","v":"TUBO PVC, SOLDAVEL, DN 32 MM, AGUA FRIA (NBR-5648)                                                                                                                                                                                                                                                                                                                                                                                                                                                        "},{"$f":"IF(C155=\"SERVIÇO\",IF(D155=\"SINAPI\",VLOOKUP(E155,'[1]SERVIÇOS SINAPI'!$A:$D,3,0),IF(D155=\"ORSE\",VLOOKUP(E155,'[1]SERVIÇOS ORSE'!$A:$D,3,0),IF(D155=\"SEINFRA\",VLOOKUP(E155,'[1]SERVIÇOS SEINFRA'!$A:$D,3,0)))),IF(C155=\"INSUMO\",IF(D155=\"SINAPI\",VLOOKUP(E155,'[1]INSUMOS SINAPI'!$A:$D,3,0),IF(D155=\"ORSE\",VLOOKUP(E155,'[1]INSUMOS ORSE'!$A:$D,3,0),IF(D155=\"SEINFRA\",VLOOKUP(E155,'[1]INSUMOS SEINFRA'!$A:$D,3,0),)))))","v":"M     "},{"$f":"'[1]Memória de Cálculo'!$L$885*$G$7","v":90},{"$f":"IF(C155=\"SERVIÇO\",IF(D155=\"SINAPI\",VLOOKUP(E155,'[1]SERVIÇOS SINAPI'!$A:$D,4,0),IF(D155=\"ORSE\",VLOOKUP(E155,'[1]SERVIÇOS ORSE'!$A:$D,4,0),IF(D155=\"SEINFRA\",VLOOKUP(E155,'[1]SERVIÇOS SEINFRA'!$A:$D,4,0)))),IF(C155=\"INSUMO\",IF(D155=\"SINAPI\",VLOOKUP(E155,'[1]INSUMOS SINAPI'!$A:$D,4,0),IF(D155=\"ORSE\",VLOOKUP(E155,'[1]INSUMOS ORSE'!$A:$D,4,0),IF(D155=\"SEINFRA\",VLOOKUP(E155,'[1]INSUMOS SEINFRA'!$A:$D,4,0),)))))","v":10.17},11.33,1019.7,4]
[null,"2.7.4","INSUMO","SINAPI",9875,{"$f":"IF(C156=\"SERVIÇO\",IF(D156=\"SINAPI\",VLOOKUP(E156,'[1]SERVIÇOS SINAPI'!$A:$D,2,0),IF(D156=\"ORSE\",VLOOKUP(E156,'[1]SERVIÇOS ORSE'!$A:$D,2,0),IF(D156=\"SEINFRA\",VLOOKUP(E156,'[1]SERVIÇOS SEINFRA'!$A:$D,2,0)))),IF(C156=\"INSUMO\",IF(D156=\"SINAPI\",VLOOKUP(E156,'[1]INSUMOS SINAPI'!$A:$D,2,0),IF(D156=\"ORSE\",VLOOKUP(E156,'[1]INSUMOS ORSE'!$A:$D,2,0),IF(D156=\"SEINFRA\",VLOOKUP(E156,'[1]INSUMOS SEINFRA'!$A:$D,2,0),)))))","v":"TUBO PVC, SOLDAVEL, DN 50 MM, PARA AGUA FRIA (NBR-5648)                                                                                                                                                                                                                                                                                                                                                                                                                                                   "},{"$f":"IF(C156=\"SERVIÇO\",IF(D156=\"SINAPI\",VLOOKUP(E156,'[1]SERVIÇOS SINAPI'!$A:$D,3,0),IF(D156=\"ORSE\",VLOOKUP(E156,'[1]SERVIÇOS ORSE'!$A:$D,3,0),IF(D156=\"SEINFRA\",VLOOKUP(E156,'[1]SERVIÇOS SEINFRA'!$A:$D,3,0)))),IF(C156=\"INSUMO\",IF(D156=\"SINAPI\",VLOOKUP(E156,'[1]INSUMOS SINAPI'!$A:$D,3,0),IF(D156=\"ORSE\",VLOOKUP(E156,'[1]INSUMOS ORSE'!$A:$D,3,0),IF(D156=\"SEINFRA\",VLOOKUP(E156,'[1]INSUMOS SEINFRA'!$A:$D,3,0),)))))","v":"M     "},{"$f":"'[1]Memória de Cálculo'!$L$891*$G$7","v":54.06},{"$f":"IF(C156=\"SERVIÇO\",IF(D156=\"SINAPI\",VLOOKUP(E156,'[1]SERVIÇOS SINAPI'!$A:$D,4,0),IF(D156=\"ORSE\",VLOOKUP(E156,'[1]SERVIÇOS ORSE'!$A:$D,4,0),IF(D156=\"SEINFRA\",VLOOKUP(E156,'[1]SERVIÇOS SEINFRA'!$A:$D,4,0)))),IF(C156=\"INSUMO\",IF(D156=\"SINAPI\",VLOOKUP(E156,'[1]INSUMOS SINAPI'!$A:$D,4,0),IF(D156=\"ORSE\",VLOOKUP(E156,'[1]INSUMOS ORSE'!$A:$D,4,0),IF(D156=\"SEINFRA\",VLOOKUP(E156,'[1]INSUMOS SEINFRA'!$A:$D,4,0),)))))","v":16.96},18.9,1021.73,4]
[null,"2.7.5","INSUMO","SINAPI",3540,{"$f":"IF(C157=\"SERVIÇO\",IF(D157=\"SINAPI\",VLOOKUP(E157,'[1]SERVIÇOS SINAPI'!$A:$D,2,0),IF(D157=\"ORSE\",VLOOKUP(E157,'[1]SERVIÇOS ORSE'!$A:$D,2,0),IF(D157=\"SEINFRA\",VLOOKUP(E157,'[1]SERVIÇOS SEINFRA'!$A:$D,2,0)))),IF(C157=\"INSUMO\",IF(D157=\"SINAPI\",VLOOKUP(E157,'[1]INSUMOS SINAPI'!$A:$D,2,0),IF(D157=\"ORSE\",VLOOKUP(E157,'[1]INSUMOS ORSE'!$A:$D,2,0),IF(D157=\"SEINFRA\",VLOOKUP(E157,'[1]INSUMOS SEINFRA'!$A:$D,2,0),)))))","v":"JOELHO PVC, SOLDAVEL, 90 GRAUS, 50 MM, PARA AGUA FRIA PREDIAL                                                                                                                                                                                                                                                                                                                                                                                                                                             "},{"$f":"IF(C157=\"SERVIÇO\",IF(D157=\"SINAPI\",VLOOKUP(E157,'[1]SERVIÇOS SINAPI'!$A:$D,3,0),IF(D157=\"ORSE\",VLOOKUP(E157,'[1]SERVIÇOS ORSE'!$A:$D,3,0),IF(D157=\"SEINFRA\",VLOOKUP(E157,'[1]SERVIÇOS SEINFRA'!$A:$D,3,0)))),IF(C157=\"INSUMO\",IF(D157=\"SINAPI\",VLOOKUP(E157,'[1]INSUMOS SINAPI'!$A:$D,3,0),IF(D157=\"ORSE\",VLOOKUP(E157,'[1]INSUMOS ORSE'!$A:$D,3,0),IF(D157=\"SEINFRA\",VLOOKUP(E157,'[1]INSUMOS SEINFRA'!$A:$D,3,0),)))))","v":"UN    "},{"$f":"'[1]Memória de Cálculo'!$L$897*$G$7","v":36},{"$f":"IF(C157=\"SERVIÇO\",IF(D157=\"SINAPI\",VLOOKUP(E157,'[1]SERVIÇOS SINAPI'!$A:$D,4,0),IF(D157=\"ORSE\",VLOOKUP(E157,'[1]SERVIÇOS ORSE'!$A:$D,4,0),IF(D157=\"SEINFRA\",VLOOKUP(E157,'[1]SERVIÇOS SEINFRA'!$A:$D,4,0)))),IF(C157=\"INSUMO\",IF(D157=\"SINAPI\",VLOOKUP(E157,'[1]INSUMOS SINAPI'!$A:$D,4,0),IF(D157=\"ORSE\",VLOOKUP(E157,'[1]INSUMOS ORSE'!$A:$D,4,0),IF(D157=\"SEINFRA\",VLOOKUP(E157,'[1]INSUMOS SEINFRA'!$A:$D,4,0),)))))","v":6.85},7.63,274.68,4]
[null,"2.7.6","INSUMO","SINAPI",3542,{"$f":"IF(C158=\"SERVIÇO\",IF(D158=\"SINAPI\",VLOOKUP(E158,'[1]SERVIÇOS SINAPI'!$A:$D,2,0),IF(D158=\"ORSE\",VLOOKUP(E158,'[1]SERVIÇOS ORSE'!$A:$D,2,0),IF(D158=\"SEINFRA\",VLOOKUP(E158,'[1]SERVIÇOS SEINFRA'!$A:$D,2,0)))),IF(C158=\"INSUMO\",IF(D158=\"SINAPI\",VLOOKUP(E158,'[1]INSUMOS SINAPI'!$A:$D,2,0),IF(D158=\"ORSE\",VLOOKUP(E158,'[1]INSUMOS ORSE'!$A:$D,2,0),IF(D158=\"SEINFRA\",VLOOKUP(E158,'[1]INSUMOS SEINFRA'!$A:$D,2,0),)))))","v":"JOELHO PVC, SOLDAVEL, 90 GRAUS, 20 MM, PARA AGUA FRIA PREDIAL                                                                                                                                                                                                                                                                                                                                                                                                                                             "},{"$f":"IF(C158=\"SERVIÇO\",IF(D158=\"SINAPI\",VLOOKUP(E158,'[1]SERVIÇOS SINAPI'!$A:$D,3,0),IF(D158=\"ORSE\",VLOOKUP(E158,'[1]SERVIÇOS ORSE'!$A:$D,3,0),IF(D158=\"SEINFRA\",VLOOKUP(E158,'[1]SERVIÇOS SEINFRA'!$A:$D,3,0)))),IF(C158=\"INSUMO\",IF(D158=\"SINAPI\",VLOOKUP(E158,'[1]INSUMOS SINAPI'!$A:$D,3,0),IF(D158=\"ORSE\",VLOOKUP(E158,'[1]INSUMOS ORSE'!$A:$D,3,0),IF(D158=\"SEINFRA\",VLOOKUP(E158,'[1]INSUMOS SEINFRA'!$A:$D,3,0),)))))","v":"UN    "},{"$f":"'[1]Memória de Cálculo'!$L$901*$G$7","v":12},{"$f":"IF(C158=\"SERVIÇO\",IF(D158=\"SINAPI\",VLOOKUP(E158,'[1]SERVIÇOS SINAPI'!$A:$D,4,0),IF(D158=\"ORSE\",VLOOKUP(E158,'[1]SERVIÇOS ORSE'!$A:$D,4,0),IF(D158=\"SEINFRA\",VLOOKUP(E158,'[1]SERVIÇOS SEINFRA'!$A:$D,4,0)))),IF(C158=\"INSUMO\",IF(D158=\"SINAPI\",VLOOKUP(E158,'[1]INSUMOS SINAPI'!$A:$D,4,0),IF(D158=\"ORSE\",VLOOKUP(E158,'[1]INSUMOS ORSE'!$A:$D,4,0),IF(D158=\"SEINFRA\",VLOOKUP(E158,'[1]INSUMOS SEINFRA'!$A:$D,4,0),)))))","v":0.65},0.72,8.64,4]
[null,"2.7.7","INSUMO","SINAPI",3529,{"$f":"IF(C159=\"SERVIÇO\",IF(D159=\"SINAPI\",VLOOKUP(E159,'[1]SERVIÇOS SINAPI'!$A:$D,2,0),IF(D159=\"ORSE\",VLOOKUP(E159,'[1]SERVIÇOS ORSE'!$A:$D,2,0),IF(D159=\"SEINFRA\",VLOOKUP(E159,'[1]SERVIÇOS SEINFRA'!$A:$D,2,0)))),IF(C159=\"INSUMO\",IF(D159=\"SINAPI\",VLOOKUP(E159,'[1]INSUMOS SINAPI'!$A:$D,2,0),IF(D159=\"ORSE\",VLOOKUP(E159,'[1]INSUMOS ORSE'!$A:$D,2,0),IF(D159=\"SEINFRA\",VLOOKUP(E159,'[1]INSUMOS SEINFRA'!$A:$D,2,0),)))))","v":"JOELHO PVC, SOLDAVEL, 90 GRAUS, 25 MM, PARA AGUA FRIA PREDIAL                                                                                                                                                                                                                                                                                                                                                                                                                                             "},{"$f":"IF(C159=\"SERVIÇO\",IF(D159=\"SINAPI\",VLOOKUP(E159,'[1]SERVIÇOS SINAPI'!$A:$D,3,0),IF(D159=\"ORSE\",VLOOKUP(E159,'[1]SERVIÇOS ORSE'!$A:$D,3,0),IF(D159=\"SEINFRA\",VLOOKUP(E159,'[1]SERVIÇOS SEINFRA'!$A:$D,3,0)))),IF(C159=\"INSUMO\",IF(D159=\"SINAPI\",VLOOKUP(E159,'[1]INSUMOS SINAPI'!$A:$D,3,0),IF(D159=\"ORSE\",VLOOKUP(E159,'[1]INSUMOS ORSE'!$A:$D,3,0),IF(D159=\"SEINFRA\",VLOOKUP(E159,'[1]INSUMOS SEINFRA'!$A:$D,3,0),)))))","v":"UN    "},{"$f":"'[1]Memória de Cálculo'!$L$908*$G$7","v":120},{"$f":"IF(C159=\"SERVIÇO\",IF(D159=\"SINAPI\",VLOOKUP(E159,'[1]SERVIÇOS SINAPI'!$A:$D,4,0),IF(D159=\"ORSE\",VLOOKUP(E159,'[1]SERVIÇOS ORSE'!$A:$D,4,0),IF(D159=\"SEINFRA\",VLOOKUP(E159,'[1]SERVIÇOS SEINFRA'!$A:$D,4,0)))),IF(C159=\"INSUMO\",IF(D159=\"SINAPI\",VLOOKUP(E159,'[1]INSUMOS SINAPI'!$A:$D,4,0),IF(D159=\"ORSE\",VLOOKUP(E159,'[1]INSUMOS ORSE'!$A:$D,4,0),IF(D159=\"SEINFRA\",VLOOKUP(E159,'[1]INSUMOS SEINFRA'!$A:$D,4,0),)))))","v":0.89},0.99,118.8,4]
[null,"2.7.8","INSUMO","SINAPI",11670,{"$f":"IF(C160=\"SERVIÇO\",IF(D160=\"SINAPI\",VLOOKUP(E160,'[1]SERVIÇOS SINAPI'!$A:$D,2,0),IF(D160=\"ORSE\",VLOOKUP(E160,'[1]SERVIÇOS ORSE'!$A:$D,2,0),IF(D160=\"SEINFRA\",VLOOKUP(E160,'[1]SERVIÇOS SEINFRA'!$A:$D,2,0)))),IF(C160=\"INSUMO\",IF(D160=\"SINAPI\",VLOOKUP(E160,'[1]INSUMOS SINAPI'!$A:$D,2,0),IF(D160=\"ORSE\",VLOOKUP(E160,'[1]INSUMOS ORSE'!$A:$D,2,0),IF(D160=\"SEINFRA\",VLOOKUP(E160,'[1]INSUMOS SEINFRA'!$A:$D,2,0),)))))","v":"REGISTRO DE ESFERA, PVC, COM VOLANTE, VS, ROSCAVEL, DN 1/2\", COM CORPO DIVIDIDO                                                                                                                                                                                                                                                                                                                                                                                                                           "},{"$f":"IF(C160=\"SERVIÇO\",IF(D160=\"SINAPI\",VLOOKUP(E160,'[1]SERVIÇOS SINAPI'!$A:$D,3,0),IF(D160=\"ORSE\",VLOOKUP(E160,'[1]SERVIÇOS ORSE'!$A:$D,3,0),IF(D160=\"SEINFRA\",VLOOKUP(E160,'[1]SERVIÇOS SEINFRA'!$A:$D,3,0)))),IF(C160=\"INSUMO\",IF(D160=\"SINAPI\",VLOOKUP(E160,'[1]INSUMOS SINAPI'!$A:$D,3,0),IF(D160=\"ORSE\",VLOOKUP(E160,'[1]INSUMOS ORSE'!$A:$D,3,0),IF(D160=\"SEINFRA\",VLOOKUP(E160,'[1]INSUMOS SEINFRA'!$A:$D,3,0),)))))","v":"UN    "},{"$f":"'[1]Memória de Cálculo'!$L$912*$G$7","v":72},{"$f":"IF(C160=\"SERVIÇO\",IF(D160=\"SINAPI\",VLOOKUP(E160,'[1]SERVIÇOS SINAPI'!$A:$D,4,0),IF(D160=\"ORSE\",VLOOKUP(E160,'[1]SERVIÇOS ORSE'!$A:$D,4,0),IF(D160=\"SEINFRA\",VLOOKUP(E160,'[1]SERVIÇOS SEINFRA'!$A:$D,4,0)))),IF(C160=\"INSUMO\",IF(D160=\"SINAPI\",VLOOKUP(E160,'[1]INSUMOS SINAPI'!$A:$D,4,0),IF(D160=\"ORSE\",VLOOKUP(E160,'[1]INSUMOS ORSE'!$A:$D,4,0),IF(D160=\"SEINFRA\",VLOOKUP(E160,'[1]INSUMOS SEINFRA'!$A:$D,4,0),)))))","v":16.65},18.55,1335.6,5]
[null,"2.7.9","INSUMO","ORSE",1954,{"$f":"IF(C161=\"SERVIÇO\",IF(D161=\"SINAPI\",VLOOKUP(E161,'[1]SERVIÇOS SINAPI'!$A:$D,2,0),IF(D161=\"ORSE\",VLOOKUP(E161,'[1]SERVIÇOS ORSE'!$A:$D,2,0),IF(D161=\"SEINFRA\",VLOOKUP(E161,'[1]SERVIÇOS SEINFRA'!$A:$D,2,0)))),IF(C161=\"INSUMO\",IF(D161=\"SINAPI\",VLOOKUP(E161,'[1]INSUMOS SINAPI'!$A:$D,2,0),IF(D161=\"ORSE\",VLOOKUP(E161,'[1]INSUMOS ORSE'!$A:$D,2,0),IF(D161=\"SEINFRA\",VLOOKUP(E161,'[1]INSUMOS SEINFRA'!$A:$D,2,0),)))))","v":"REGISTRO GAVETA BRUTO, C/ VOLANTE, D =  50MM (2\")"},{"$f":"IF(C161=\"SERVIÇO\",IF(D161=\"SINAPI\",VLOOKUP(E161,'[1]SERVIÇOS SINAPI'!$A:$D,3,0),IF(D161=\"ORSE\",VLOOKUP(E161,'[1]SERVIÇOS ORSE'!$A:$D,3,0),IF(D161=\"SEINFRA\",VLOOKUP(E161,'[1]SERVIÇOS SEINFRA'!$A:$D,3,0)))),IF(C161=\"INSUMO\",IF(D161=\"SINAPI\",VLOOKUP(E161,'[1]INSUMOS SINAPI'!$A:$D,3,0),IF(D161=\"ORSE\",VLOOKUP(E161,'[1]INSUMOS ORSE'!$A:$D,3,0),IF(D161=\"SEINFRA\",VLOOKUP(E161,'[1]INSUMOS SEINFRA'!$A:$D,3,0),)))))","v":"UN"},{"$f":"'[1]Memória de Cálculo'!$L$918*$G$7","v":18},{"$f":"IF(C161=\"SERVIÇO\",IF(D161=\"SINAPI\",VLOOKUP(E161,'[1]SERVIÇOS SINAPI'!$A:$D,4,0),IF(D161=\"ORSE\",VLOOKUP(E161,'[1]SERVIÇOS ORSE'!$A:$D,4,0),IF(D161=\"SEINFRA\",VLOOKUP(E161,'[1]SERVIÇOS SEINFRA'!$A:$D,4,0)))),IF(C161=\"INSUMO\",IF(D161=\"SINAPI\",VLOOKUP(E161,'[1]INSUMOS SINAPI'!$A:$D,4,0),IF(D161=\"ORSE\",VLOOKUP(E161,'[1]INSUMOS ORSE'!$A:$D,4,0),IF(D161=\"SEINFRA\",VLOOKUP(E161,'[1]INSUMOS SEINFRA'!$A:$D,4,0),)))))","v":107.46},119.74,2155.32,5]
[null,"2.7.10","INSUMO","SINAPI",113,{"$f":"IF(C162=\"SERVIÇO\",IF(D162=\"SINAPI\",VLOOKUP(E162,'[1]SERVIÇOS SINAPI'!$A:$D,2,0),IF(D162=\"ORSE\",VLOOKUP(E162,'[1]SERVIÇOS ORSE'!$A:$D,2,0),IF(D162=\"SEINFRA\",VLOOKUP(E162,'[1]SERVIÇOS SEINFRA'!$A:$D,2,0)))),IF(C162=\"INSUMO\",IF(D162=\"SINAPI\",VLOOKUP(E162,'[1]INSUMOS SINAPI'!$A:$D,2,0),IF(D162=\"ORSE\",VLOOKUP(E162,'[1]INSUMOS ORSE'!$A:$D,2,0),IF(D162=\"SEINFRA\",VLOOKUP(E162,'[1]INSUMOS SEINFRA'!$A:$D,2,0),)))))","v":"ADAPTADOR PVC SOLDAVEL CURTO COM BOLSA E ROSCA, 60 MM X 2\", PARA AGUA FRIA                                                                                                                                                                                                                                                                                                                                                                                                                                "},{"$f":"IF(C162=\"SERVIÇO\",IF(D162=\"SINAPI\",VLOOKUP(E162,'[1]SERVIÇOS SINAPI'!$A:$D,3,0),IF(D162=\"ORSE\",VLOOKUP(E162,'[1]SERVIÇOS ORSE'!$A:$D,3,0),IF(D162=\"SEINFRA\",VLOOKUP(E162,'[1]SERVIÇOS SEINFRA'!$A:$D,3,0)))),IF(C162=\"INSUMO\",IF(D162=\"SINAPI\",VLOOKUP(E162,'[1]INSUMOS SINAPI'!$A:$D,3,0),IF(D162=\"ORSE\",VLOOKUP(E162,'[1]INSUMOS ORSE'!$A:$D,3,0),IF(D162=\"SEINFRA\",VLOOKUP(E162,'[1]INSUMOS SEINFRA'!$A:$D,3,0),)))))","v":"UN    "},{"$f":"'[1]Memória de Cálculo'!$L$924*$G$7","v":18},{"$f":"IF(C162=\"SERVIÇO\",IF(D162=\"SINAPI\",VLOOKUP(E162,'[1]SERVIÇOS SINAPI'!$A:$D,4,0),IF(D162=\"ORSE\",VLOOKUP(E162,'[1]SERVIÇOS ORSE'!$A:$D,4,0),IF(D162=\"SEINFRA\",VLOOKUP(E162,'[1]SERVIÇOS SEINFRA'!$A:$D,4,0)))),IF(C162=\"INSUMO\",IF(D162=\"SINAPI\",VLOOKUP(E162,'[1]INSUMOS SINAPI'!$A:$D,4,0),IF(D162=\"ORSE\",VLOOKUP(E162,'[1]INSUMOS ORSE'!$A:$D,4,0),IF(D162=\"SEINFRA\",VLOOKUP(E162,'[1]INSUMOS SEINFRA'!$A:$D,4,0),)))))","v":14.63},16.3,293.4,4]
[null,"2.7.11","INSUMO","ORSE",2110,{"$f":"IF(C163=\"SERVIÇO\",IF(D163=\"SINAPI\",VLOOKUP(E163,'[1]SERVIÇOS SINAPI'!$A:$D,2,0),IF(D163=\"ORSE\",VLOOKUP(E163,'[1]SERVIÇOS ORSE'!$A:$D,2,0),IF(D163=\"SEINFRA\",VLOOKUP(E163,'[1]SERVIÇOS SEINFRA'!$A:$D,2,0)))),IF(C163=\"INSUMO\",IF(D163=\"SINAPI\",VLOOKUP(E163,'[1]INSUMOS SINAPI'!$A:$D,2,0),IF(D163=\"ORSE\",VLOOKUP(E163,'[1]INSUMOS ORSE'!$A:$D,2,0),IF(D163=\"SEINFRA\",VLOOKUP(E163,'[1]INSUMOS SEINFRA'!$A:$D,2,0),)))))","v":"TE 90° PVC RIGIDO SOLDAVEL, MARROM,  D=  25MM"},{"$f":"IF(C163=\"SERVIÇO\",IF(D163=\"SINAPI\",VLOOKUP(E163,'[1]SERVIÇOS SINAPI'!$A:$D,3,0),IF(D163=\"ORSE\",VLOOKUP(E163,'[1]SERVIÇOS ORSE'!$A:$D,3,0),IF(D163=\"SEINFRA\",VLOOKUP(E163,'[1]SERVIÇOS SEINFRA'!$A:$D,3,0)))),IF(C163=\"INSUMO\",IF(D163=\"SINAPI\",VLOOKUP(E163,'[1]INSUMOS SINAPI'!$A:$D,3,0),IF(D163=\"ORSE\",VLOOKUP(E163,'[1]INSUMOS ORSE'!$A:$D,3,0),IF(D163=\"SEINFRA\",VLOOKUP(E163,'[1]INSUMOS SEINFRA'!$A:$D,3,0),)))))","v":"UN"},{"$f":"'[1]Memória de Cálculo'!$L$931*$G$7","v":54},{"$f":"IF(C163=\"SERVIÇO\",IF(D163=\"SINAPI\",VLOOKUP(E163,'[1]SERVIÇOS SINAPI'!$A:$D,4,0),IF(D163=\"ORSE\",VLOOKUP(E163,'[1]SERVIÇOS ORSE'!$A:$D,4,0),IF(D163=\"SEINFRA\",VLOOKUP(E163,'[1]SERVIÇOS SEINFRA'!$A:$D,4,0)))),IF(C163=\"INSUMO\",IF(D163=\"SINAPI\",VLOOKUP(E163,'[1]INSUMOS SINAPI'!$A:$D,4,0),IF(D163=\"ORSE\",VLOOKUP(E163,'[1]INSUMOS ORSE'!$A:$D,4,0),IF(D163=\"SEINFRA\",VLOOKUP(E163,'[1]INSUMOS SEINFRA'!$A:$D,4,0),)))))","v":1.49},1.66,89.64,4]
[null,"2.7.12","INSUMO","ORSE",2111,{"$f":"IF(C164=\"SERVIÇO\",IF(D164=\"SINAPI\",VLOOKUP(E164,'[1]SERVIÇOS SINAPI'!$A:$D,2,0),IF(D164=\"ORSE\",VLOOKUP(E164,'[1]SERVIÇOS ORSE'!$A:$D,2,0),IF(D164=\"SEINFRA\",VLOOKUP(E164,'[1]SERVIÇOS SEINFRA'!$A:$D,2,0)))),IF(C164=\"INSUMO\",IF(D164=\"SINAPI\",VLOOKUP(E164,'[1]INSUMOS SINAPI'!$A:$D,2,0),IF(D164=\"ORSE\",VLOOKUP(E164,'[1]INSUMOS ORSE'!$A:$D,2,0),IF(D164=\"SEINFRA\",VLOOKUP(E164,'[1]INSUMOS SEINFRA'!$A:$D,2,0),)))))","v":"TE 90° PVC RIGIDO SOLDAVEL, MARROM,  D=  32MM"},{"$f":"IF(C164=\"SERVIÇO\",IF(D164=\"SINAPI\",VLOOKUP(E164,'[1]SERVIÇOS SINAPI'!$A:$D,3,0),IF(D164=\"ORSE\",VLOOKUP(E164,'[1]SERVIÇOS ORSE'!$A:$D,3,0),IF(D164=\"SEINFRA\",VLOOKUP(E164,'[1]SERVIÇOS SEINFRA'!$A:$D,3,0)))),IF(C164=\"INSUMO\",IF(D164=\"SINAPI\",VLOOKUP(E164,'[1]INSUMOS SINAPI'!$A:$D,3,0),IF(D164=\"ORSE\",VLOOKUP(E164,'[1]INSUMOS ORSE'!$A:$D,3,0),IF(D164=\"SEINFRA\",VLOOKUP(E164,'[1]INSUMOS SEINFRA'!$A:$D,3,0),)))))","v":"UN"},{"$f":"'[1]Memória de Cálculo'!$L$935*$G$7","v":6},{"$f":"IF(C164=\"SERVIÇO\",IF(D164=\"SINAPI\",VLOOKUP(E164,'[1]SERVIÇOS SINAPI'!$A:$D,4,0),IF(D164=\"ORSE\",VLOOKUP(E164,'[1]SERVIÇOS ORSE'!$A:$D,4,0),IF(D164=\"SEINFRA\",VLOOKUP(E164,'[1]SERVIÇOS SEINFRA'!$A:$D,4,0)))),IF(C164=\"INSUMO\",IF(D164=\"SINAPI\",VLOOKUP(E164,'[1]INSUMOS SINAPI'!$A:$D,4,0),IF(D164=\"ORSE\",VLOOKUP(E164,'[1]INSUMOS ORSE'!$A:$D,4,0),IF(D164=\"SEINFRA\",VLOOKUP(E164,'[1]INSUMOS SEINFRA'!$A:$D,4,0),)))))","v":4.95},5.52,33.12,4]
[null,"2.7.13","INSUMO","ORSE",2153,{"$f":"IF(C165=\"SERVIÇO\",IF(D165=\"SINAPI\",VLOOKUP(E165,'[1]SERVIÇOS SINAPI'!$A:$D,2,0),IF(D165=\"ORSE\",VLOOKUP(E165,'[1]SERVIÇOS ORSE'!$A:$D,2,0),IF(D165=\"SEINFRA\",VLOOKUP(E165,'[1]SERVIÇOS SEINFRA'!$A:$D,2,0)))),IF(C165=\"INSUMO\",IF(D165=\"SINAPI\",VLOOKUP(E165,'[1]INSUMOS SINAPI'!$A:$D,2,0),IF(D165=\"ORSE\",VLOOKUP(E165,'[1]INSUMOS ORSE'!$A:$D,2,0),IF(D165=\"SEINFRA\",VLOOKUP(E165,'[1]INSUMOS SEINFRA'!$A:$D,2,0),)))))","v":"TE 90° REDUCAO PVC RIGIDO SOLDAVEL, MARROM,  D=  32 X 25MM"},{"$f":"IF(C165=\"SERVIÇO\",IF(D165=\"SINAPI\",VLOOKUP(E165,'[1]SERVIÇOS SINAPI'!$A:$D,3,0),IF(D165=\"ORSE\",VLOOKUP(E165,'[1]SERVIÇOS ORSE'!$A:$D,3,0),IF(D165=\"SEINFRA\",VLOOKUP(E165,'[1]SERVIÇOS SEINFRA'!$A:$D,3,0)))),IF(C165=\"INSUMO\",IF(D165=\"SINAPI\",VLOOKUP(E165,'[1]INSUMOS SINAPI'!$A:$D,3,0),IF(D165=\"ORSE\",VLOOKUP(E165,'[1]INSUMOS ORSE'!$A:$D,3,0),IF(D165=\"SEINFRA\",VLOOKUP(E165,'[1]INSUMOS SEINFRA'!$A:$D,3,0),)))))","v":"UN"},{"$f":"'[1]Memória de Cálculo'!$L$940*$G$7","v":42},{"$f":"IF(C165=\"SERVIÇO\",IF(D165=\"SINAPI\",VLOOKUP(E165,'[1]SERVIÇOS SINAPI'!$A:$D,4,0),IF(D165=\"ORSE\",VLOOKUP(E165,'[1]SERVIÇOS ORSE'!$A:$D,4,0),IF(D165=\"SEINFRA\",VLOOKUP(E165,'[1]SERVIÇOS SEINFRA'!$A:$D,4,0)))),IF(C165=\"INSUMO\",IF(D165=\"SINAPI\",VLOOKUP(E165,'[1]INSUMOS SINAPI'!$A:$D,4,0),IF(D165=\"ORSE\",VLOOKUP(E165,'[1]INSUMOS ORSE'!$A:$D,4,0),IF(D165=\"SEINFRA\",VLOOKUP(E165,'[1]INSUMOS SEINFRA'!$A:$D,4,0),)))))","v":7.35},8.19,343.98,4]
[null,"2.7.14","INSUMO","ORSE",361,{"$f":"IF(C166=\"SERVIÇO\",IF(D166=\"SINAPI\",VLOOKUP(E166,'[1]SERVIÇOS SINAPI'!$A:$D,2,0),IF(D166=\"ORSE\",VLOOKUP(E166,'[1]SERVIÇOS ORSE'!$A:$D,2,0),IF(D166=\"SEINFRA\",VLOOKUP(E166,'[1]SERVIÇOS SEINFRA'!$A:$D,2,0)))),IF(C166=\"INSUMO\",IF(D166=\"SINAPI\",VLOOKUP(E166,'[1]INSUMOS SINAPI'!$A:$D,2,0),IF(D166=\"ORSE\",VLOOKUP(E166,'[1]INSUMOS ORSE'!$A:$D,2,0),IF(D166=\"SEINFRA\",VLOOKUP(E166,'[1]INSUMOS SEINFRA'!$A:$D,2,0),)))))","v":"BUCHA REDUCAO LONGA PVC RIGIDO SOLDAVEL, MARROM, D= 60 X 32MM"},{"$f":"IF(C166=\"SERVIÇO\",IF(D166=\"SINAPI\",VLOOKUP(E166,'[1]SERVIÇOS SINAPI'!$A:$D,3,0),IF(D166=\"ORSE\",VLOOKUP(E166,'[1]SERVIÇOS ORSE'!$A:$D,3,0),IF(D166=\"SEINFRA\",VLOOKUP(E166,'[1]SERVIÇOS SEINFRA'!$A:$D,3,0)))),IF(C166=\"INSUMO\",IF(D166=\"SINAPI\",VLOOKUP(E166,'[1]INSUMOS SINAPI'!$A:$D,3,0),IF(D166=\"ORSE\",VLOOKUP(E166,'[1]INSUMOS ORSE'!$A:$D,3,0),IF(D166=\"SEINFRA\",VLOOKUP(E166,'[1]INSUMOS SEINFRA'!$A:$D,3,0),)))))","v":"UN"},{"$f":"'[1]Memória de Cálculo'!$L$945*$G$7","v":12},{"$f":"IF(C166=\"SERVIÇO\",IF(D166=\"SINAPI\",VLOOKUP(E166,'[1]SERVIÇOS SINAPI'!$A:$D,4,0),IF(D166=\"ORSE\",VLOOKUP(E166,'[1]SERVIÇOS ORSE'!$A:$D,4,0),IF(D166=\"SEINFRA\",VLOOKUP(E166,'[1]SERVIÇOS SEINFRA'!$A:$D,4,0)))),IF(C166=\"INSUMO\",IF(D166=\"SINAPI\",VLOOKUP(E166,'[1]INSUMOS SINAPI'!$A:$D,4,0),IF(D166=\"ORSE\",VLOOKUP(E166,'[1]INSUMOS ORSE'!$A:$D,4,0),IF(D166=\"SEINFRA\",VLOOKUP(E166,'[1]INSUMOS SEINFRA'!$A:$D,4,0),)))))","v":13.04},14.53,174.36,4]
[null,"2.7.15","INSUMO","SINAPI",11831,{"$f":"IF(C167=\"SERVIÇO\",IF(D167=\"SINAPI\",VLOOKUP(E167,'[1]SERVIÇOS SINAPI'!$A:$D,2,0),IF(D167=\"ORSE\",VLOOKUP(E167,'[1]SERVIÇOS ORSE'!$A:$D,2,0),IF(D167=\"SEINFRA\",VLOOKUP(E167,'[1]SERVIÇOS SEINFRA'!$A:$D,2,0)))),IF(C167=\"INSUMO\",IF(D167=\"SINAPI\",VLOOKUP(E167,'[1]INSUMOS SINAPI'!$A:$D,2,0),IF(D167=\"ORSE\",VLOOKUP(E167,'[1]INSUMOS ORSE'!$A:$D,2,0),IF(D167=\"SEINFRA\",VLOOKUP(E167,'[1]INSUMOS SEINFRA'!$A:$D,2,0),)))))","v":"TORNEIRA PLASTICA PARA TANQUE 1/2 \" OU 3/4 \" COM BICO PARA MANGUEIRA                                                                                                                                                                                                                                                                                                                                                                                                                                      "},{"$f":"IF(C167=\"SERVIÇO\",IF(D167=\"SINAPI\",VLOOKUP(E167,'[1]SERVIÇOS SINAPI'!$A:$D,3,0),IF(D167=\"ORSE\",VLOOKUP(E167,'[1]SERVIÇOS ORSE'!$A:$D,3,0),IF(D167=\"SEINFRA\",VLOOKUP(E167,'[1]SERVIÇOS SEINFRA'!$A:$D,3,0)))),IF(C167=\"INSUMO\",IF(D167=\"SINAPI\",VLOOKUP(E167,'[1]INSUMOS SINAPI'!$A:$D,3,0),IF(D167=\"ORSE\",VLOOKUP(E167,'[1]INSUMOS ORSE'!$A:$D,3,0),IF(D167=\"SEINFRA\",VLOOKUP(E167,'[1]INSUMOS SEINFRA'!$A:$D,3,0),)))))","v":"UN    "},{"$f":"'[1]Memória de Cálculo'!$L$950*$G$7","v":12},{"$f":"IF(C167=\"SERVIÇO\",IF(D167=\"SINAPI\",VLOOKUP(E167,'[1]SERVIÇOS SINAPI'!$A:$D,4,0),IF(D167=\"ORSE\",VLOOKUP(E167,'[1]SERVIÇOS ORSE'!$A:$D,4,0),IF(D167=\"SEINFRA\",VLOOKUP(E167,'[1]SERVIÇOS SEINFRA'!$A:$D,4,0)))),IF(C167=\"INSUMO\",IF(D167=\"SINAPI\",VLOOKUP(E167,'[1]INSUMOS SINAPI'!$A:$D,4,0),IF(D167=\"ORSE\",VLOOKUP(E167,'[1]INSUMOS ORSE'!$A:$D,4,0),IF(D167=\"SEINFRA\",VLOOKUP(E167,'[1]INSUMOS SEINFRA'!$A:$D,4,0),)))))","v":34.6},38.55,462.6,4]
[null,"2.7.16","INSUMO","SINAPI",20080,{"$f":"IF(C168=\"SERVIÇO\",IF(D168=\"SINAPI\",VLOOKUP(E168,'[1]SERVIÇOS SINAPI'!$A:$D,2,0),IF(D168=\"ORSE\",VLOOKUP(E168,'[1]SERVIÇOS ORSE'!$A:$D,2,0),IF(D168=\"SEINFRA\",VLOOKUP(E168,'[1]SERVIÇOS SEINFRA'!$A:$D,2,0)))),IF(C168=\"INSUMO\",IF(D168=\"SINAPI\",VLOOKUP(E168,'[1]INSUMOS SINAPI'!$A:$D,2,0),IF(D168=\"ORSE\",VLOOKUP(E168,'[1]INSUMOS ORSE'!$A:$D,2,0),IF(D168=\"SEINFRA\",VLOOKUP(E168,'[1]INSUMOS SEINFRA'!$A:$D,2,0),)))))","v":"ADESIVO PLASTICO PARA PVC, FRASCO COM 175 GR                                                                                                                                                                                                                                                                                                                                                                                                                                                              "},{"$f":"IF(C168=\"SERVIÇO\",IF(D168=\"SINAPI\",VLOOKUP(E168,'[1]SERVIÇOS SINAPI'!$A:$D,3,0),IF(D168=\"ORSE\",VLOOKUP(E168,'[1]SERVIÇOS ORSE'!$A:$D,3,0),IF(D168=\"SEINFRA\",VLOOKUP(E168,'[1]SERVIÇOS SEINFRA'!$A:$D,3,0)))),IF(C168=\"INSUMO\",IF(D168=\"SINAPI\",VLOOKUP(E168,'[1]INSUMOS SINAPI'!$A:$D,3,0),IF(D168=\"ORSE\",VLOOKUP(E168,'[1]INSUMOS ORSE'!$A:$D,3,0),IF(D168=\"SEINFRA\",VLOOKUP(E168,'[1]INSUMOS SEINFRA'!$A:$D,3,0),)))))","v":"UN    "},{"$f":"'[1]Memória de Cálculo'!$L$954*$G$7","v":12},{"$f":"IF(C168=\"SERVIÇO\",IF(D168=\"SINAPI\",VLOOKUP(E168,'[1]SERVIÇOS SINAPI'!$A:$D,4,0),IF(D168=\"ORSE\",VLOOKUP(E168,'[1]SERVIÇOS ORSE'!$A:$D,4,0),IF(D168=\"SEINFRA\",VLOOKUP(E168,'[1]SERVIÇOS SEINFRA'!$A:$D,4,0)))),IF(C168=\"INSUMO\",IF(D168=\"SINAPI\",VLOOKUP(E168,'[1]INSUMOS SINAPI'!$A:$D,4,0),IF(D168=\"ORSE\",VLOOKUP(E168,'[1]INSUMOS ORSE'!$A:$D,4,0),IF(D168=\"SEINFRA\",VLOOKUP(E168,'[1]INSUMOS SEINFRA'!$A:$D,4,0),)))))","v":19.78},22.04,264.48,4]
[null,"2.7.17","INSUMO","ORSE",11831,{"$f":"IF(C169=\"SERVIÇO\",IF(D169=\"SINAPI\",VLOOKUP(E169,'[1]SERVIÇOS SINAPI'!$A:$D,2,0),IF(D169=\"ORSE\",VLOOKUP(E169,'[1]SERVIÇOS ORSE'!$A:$D,2,0),IF(D169=\"SEINFRA\",VLOOKUP(E169,'[1]SERVIÇOS SEINFRA'!$A:$D,2,0)))),IF(C169=\"INSUMO\",IF(D169=\"SINAPI\",VLOOKUP(E169,'[1]INSUMOS SINAPI'!$A:$D,2,0),IF(D169=\"ORSE\",VLOOKUP(E169,'[1]INSUMOS ORSE'!$A:$D,2,0),IF(D169=\"SEINFRA\",VLOOKUP(E169,'[1]INSUMOS SEINFRA'!$A:$D,2,0),)))))","v":"FITA VEDACAO TEFLON LARG= 1/2\" COM 50M"},{"$f":"IF(C169=\"SERVIÇO\",IF(D169=\"SINAPI\",VLOOKUP(E169,'[1]SERVIÇOS SINAPI'!$A:$D,3,0),IF(D169=\"ORSE\",VLOOKUP(E169,'[1]SERVIÇOS ORSE'!$A:$D,3,0),IF(D169=\"SEINFRA\",VLOOKUP(E169,'[1]SERVIÇOS SEINFRA'!$A:$D,3,0)))),IF(C169=\"INSUMO\",IF(D169=\"SINAPI\",VLOOKUP(E169,'[1]INSUMOS SINAPI'!$A:$D,3,0),IF(D169=\"ORSE\",VLOOKUP(E169,'[1]INSUMOS ORSE'!$A:$D,3,0),IF(D169=\"SEINFRA\",VLOOKUP(E169,'[1]INSUMOS SEINFRA'!$A:$D,3,0),)))))","v":"UN"},{"$f":"'[1]Memória de Cálculo'!$L$958*$G$7","v":24},{"$f":"IF(C169=\"SERVIÇO\",IF(D169=\"SINAPI\",VLOOKUP(E169,'[1]SERVIÇOS SINAPI'!$A:$D,4,0),IF(D169=\"ORSE\",VLOOKUP(E169,'[1]SERVIÇOS ORSE'!$A:$D,4,0),IF(D169=\"SEINFRA\",VLOOKUP(E169,'[1]SERVIÇOS SEINFRA'!$A:$D,4,0)))),IF(C169=\"INSUMO\",IF(D169=\"SINAPI\",VLOOKUP(E169,'[1]INSUMOS SINAPI'!$A:$D,4,0),IF(D169=\"ORSE\",VLOOKUP(E169,'[1]INSUMOS ORSE'!$A:$D,4,0),IF(D169=\"SEINFRA\",VLOOKUP(E169,'[1]INSUMOS SEINFRA'!$A:$D,4,0),)))))","v":14.45},16.1,386.4,4]
[null,"2.7.18","INSUMO","ORSE",3578,{"$f":"IF(C170=\"SERVIÇO\",IF(D170=\"SINAPI\",VLOOKUP(E170,'[1]SERVIÇOS SINAPI'!$A:$D,2,0),IF(D170=\"ORSE\",VLOOKUP(E170,'[1]SERVIÇOS ORSE'!$A:$D,2,0),IF(D170=\"SEINFRA\",VLOOKUP(E170,'[1]SERVIÇOS SEINFRA'!$A:$D,2,0)))),IF(C170=\"INSUMO\",IF(D170=\"SINAPI\",VLOOKUP(E170,'[1]INSUMOS SINAPI'!$A:$D,2,0),IF(D170=\"ORSE\",VLOOKUP(E170,'[1]INSUMOS ORSE'!$A:$D,2,0),IF(D170=\"SEINFRA\",VLOOKUP(E170,'[1]INSUMOS SEINFRA'!$A:$D,2,0),)))))","v":"ENGATE EM PVC (LIGAÇÃO FLEXÍVEL), ACABAMENTO BRANCO, 1/2\" X 40CM, AMANCO OU S IMILAR"},{"$f":"IF(C170=\"SERVIÇO\",IF(D170=\"SINAPI\",VLOOKUP(E170,'[1]SERVIÇOS SINAPI'!$A:$D,3,0),IF(D170=\"ORSE\",VLOOKUP(E170,'[1]SERVIÇOS ORSE'!$A:$D,3,0),IF(D170=\"SEINFRA\",VLOOKUP(E170,'[1]SERVIÇOS SEINFRA'!$A:$D,3,0)))),IF(C170=\"INSUMO\",IF(D170=\"SINAPI\",VLOOKUP(E170,'[1]INSUMOS SINAPI'!$A:$D,3,0),IF(D170=\"ORSE\",VLOOKUP(E170,'[1]INSUMOS ORSE'!$A:$D,3,0),IF(D170=\"SEINFRA\",VLOOKUP(E170,'[1]INSUMOS SEINFRA'!$A:$D,3,0),)))))","v":"UN"},{"$f":"'[1]Memória de Cálculo'!$L$963*$G$7","v":84},{"$f":"IF(C170=\"SERVIÇO\",IF(D170=\"SINAPI\",VLOOKUP(E170,'[1]SERVIÇOS SINAPI'!$A:$D,4,0),IF(D170=\"ORSE\",VLOOKUP(E170,'[1]SERVIÇOS ORSE'!$A:$D,4,0),IF(D170=\"SEINFRA\",VLOOKUP(E170,'[1]SERVIÇOS SEINFRA'!$A:$D,4,0)))),IF(C170=\"INSUMO\",IF(D170=\"SINAPI\",VLOOKUP(E170,'[1]INSUMOS SINAPI'!$A:$D,4,0),IF(D170=\"ORSE\",VLOOKUP(E170,'[1]INSUMOS ORSE'!$A:$D,4,0),IF(D170=\"SEINFRA\",VLOOKUP(E170,'[1]INSUMOS SEINFRA'!$A:$D,4,0),)))))","v":4.76},5.3,445.2,4]
[null,"2.7.19","INSUMO","SINAPI",107,{"$f":"IF(C171=\"SERVIÇO\",IF(D171=\"SINAPI\",VLOOKUP(E171,'[1]SERVIÇOS SINAPI'!$A:$D,2,0),IF(D171=\"ORSE\",VLOOKUP(E171,'[1]SERVIÇOS ORSE'!$A:$D,2,0),IF(D171=\"SEINFRA\",VLOOKUP(E171,'[1]SERVIÇOS SEINFRA'!$A:$D,2,0)))),IF(C171=\"INSUMO\",IF(D171=\"SINAPI\",VLOOKUP(E171,'[1]INSUMOS SINAPI'!$A:$D,2,0),IF(D171=\"ORSE\",VLOOKUP(E171,'[1]INSUMOS ORSE'!$A:$D,2,0),IF(D171=\"SEINFRA\",VLOOKUP(E171,'[1]INSUMOS SEINFRA'!$A:$D,2,0),)))))","v":"ADAPTADOR PVC SOLDAVEL CURTO COM BOLSA E ROSCA, 20 MM X 1/2\", PARA AGUA FRIA                                                                                                                                                                                                                                                                                                                                                                                                                              "},{"$f":"IF(C171=\"SERVIÇO\",IF(D171=\"SINAPI\",VLOOKUP(E171,'[1]SERVIÇOS SINAPI'!$A:$D,3,0),IF(D171=\"ORSE\",VLOOKUP(E171,'[1]SERVIÇOS ORSE'!$A:$D,3,0),IF(D171=\"SEINFRA\",VLOOKUP(E171,'[1]SERVIÇOS SEINFRA'!$A:$D,3,0)))),IF(C171=\"INSUMO\",IF(D171=\"SINAPI\",VLOOKUP(E171,'[1]INSUMOS SINAPI'!$A:$D,3,0),IF(D171=\"ORSE\",VLOOKUP(E171,'[1]INSUMOS ORSE'!$A:$D,3,0),IF(D171=\"SEINFRA\",VLOOKUP(E171,'[1]INSUMOS SEINFRA'!$A:$D,3,0),)))))","v":"UN    "},{"$f":"'[1]Memória de Cálculo'!$L$968*$G$7","v":18},{"$f":"IF(C171=\"SERVIÇO\",IF(D171=\"SINAPI\",VLOOKUP(E171,'[1]SERVIÇOS SINAPI'!$A:$D,4,0),IF(D171=\"ORSE\",VLOOKUP(E171,'[1]SERVIÇOS ORSE'!$A:$D,4,0),IF(D171=\"SEINFRA\",VLOOKUP(E171,'[1]SERVIÇOS SEINFRA'!$A:$D,4,0)))),IF(C171=\"INSUMO\",IF(D171=\"SINAPI\",VLOOKUP(E171,'[1]INSUMOS SINAPI'!$A:$D,4,0),IF(D171=\"ORSE\",VLOOKUP(E171,'[1]INSUMOS ORSE'!$A:$D,4,0),IF(D171=\"SEINFRA\",VLOOKUP(E171,'[1]INSUMOS SEINFRA'!$A:$D,4,0),)))))","v":0.87},0.97,17.46,4]
[null,"2.7.20","INSUMO","SINAPI",12623,{"$f":"IF(C172=\"SERVIÇO\",IF(D172=\"SINAPI\",VLOOKUP(E172,'[1]SERVIÇOS SINAPI'!$A:$D,2,0),IF(D172=\"ORSE\",VLOOKUP(E172,'[1]SERVIÇOS ORSE'!$A:$D,2,0),IF(D172=\"SEINFRA\",VLOOKUP(E172,'[1]SERVIÇOS SEINFRA'!$A:$D,2,0)))),IF(C172=\"INSUMO\",IF(D172=\"SINAPI\",VLOOKUP(E172,'[1]INSUMOS SINAPI'!$A:$D,2,0),IF(D172=\"ORSE\",VLOOKUP(E172,'[1]INSUMOS ORSE'!$A:$D,2,0),IF(D172=\"SEINFRA\",VLOOKUP(E172,'[1]INSUMOS SEINFRA'!$A:$D,2,0),)))))","v":"CONDUTOR PLUVIAL, PVC, CIRCULAR, DIAMETRO ENTRE 80 E 100 MM, PARA DRENAGEM PREDIAL                                                                                                                                                                                                                                                                                                                                                                                                                        "},{"$f":"IF(C172=\"SERVIÇO\",IF(D172=\"SINAPI\",VLOOKUP(E172,'[1]SERVIÇOS SINAPI'!$A:$D,3,0),IF(D172=\"ORSE\",VLOOKUP(E172,'[1]SERVIÇOS ORSE'!$A:$D,3,0),IF(D172=\"SEINFRA\",VLOOKUP(E172,'[1]SERVIÇOS SEINFRA'!$A:$D,3,0)))),IF(C172=\"INSUMO\",IF(D172=\"SINAPI\",VLOOKUP(E172,'[1]INSUMOS SINAPI'!$A:$D,3,0),IF(D172=\"ORSE\",VLOOKUP(E172,'[1]INSUMOS ORSE'!$A:$D,3,0),IF(D172=\"SEINFRA\",VLOOKUP(E172,'[1]INSUMOS SEINFRA'!$A:$D,3,0),)))))","v":"M     "},{"$f":"'[1]Memória de Cálculo'!$L$973*$G$7","v":216},{"$f":"IF(C172=\"SERVIÇO\",IF(D172=\"SINAPI\",VLOOKUP(E172,'[1]SERVIÇOS SINAPI'!$A:$D,4,0),IF(D172=\"ORSE\",VLOOKUP(E172,'[1]SERVIÇOS ORSE'!$A:$D,4,0),IF(D172=\"SEINFRA\",VLOOKUP(E172,'[1]SERVIÇOS SEINFRA'!$A:$D,4,0)))),IF(C172=\"INSUMO\",IF(D172=\"SINAPI\",VLOOKUP(E172,'[1]INSUMOS SINAPI'!$A:$D,4,0),IF(D172=\"ORSE\",VLOOKUP(E172,'[1]INSUMOS ORSE'!$A:$D,4,0),IF(D172=\"SEINFRA\",VLOOKUP(E172,'[1]INSUMOS SEINFRA'!$A:$D,4,0),)))))","v":12.29},13.69,2957.04,4]
[null,"2.8"," INSTALAÇÃO ELETRICA DO RAMAL DE ENTRADA E MEDIÇÃO NO PADRÃO CELPE PARA A UNIDADE DE MELHORAMENTO GENETICO",{"$nulls":7},{"$f":"SUM(K174:K184)","v":17734.8}]
[null,"2.8.1","INSUMO","SINAPI",39259,{"$f":"IF(C174=\"SERVIÇO\",IF(D174=\"SINAPI\",VLOOKUP(E174,'[1]SERVIÇOS SINAPI'!$A:$D,2,0),IF(D174=\"ORSE\",VLOOKUP(E174,'[1]SERVIÇOS ORSE'!$A:$D,2,0),IF(D174=\"SEINFRA\",VLOOKUP(E174,'[1]SERVIÇOS SEINFRA'!$A:$D,2,0)))),IF(C174=\"INSUMO\",IF(D174=\"SINAPI\",VLOOKUP(E174,'[1]INSUMOS SINAPI'!$A:$D,2,0),IF(D174=\"ORSE\",VLOOKUP(E174,'[1]INSUMOS ORSE'!$A:$D,2,0),IF(D174=\"SEINFRA\",VLOOKUP(E174,'[1]INSUMOS SEINFRA'!$A:$D,2,0),)))))","v":"CABO MULTIPOLAR DE COBRE, FLEXIVEL, CLASSE 4 OU 5, ISOLACAO EM HEPR, COBERTURA EM PVC-ST2, ANTICHAMA BWF-B, 0,6/1 KV, 3 CONDUTORES DE 4 MM2                                                                                                                                                                                                                                                                                                                                                               "},{"$f":"IF(C174=\"SERVIÇO\",IF(D174=\"SINAPI\",VLOOKUP(E174,'[1]SERVIÇOS SINAPI'!$A:$D,3,0),IF(D174=\"ORSE\",VLOOKUP(E174,'[1]SERVIÇOS ORSE'!$A:$D,3,0),IF(D174=\"SEINFRA\",VLOOKUP(E174,'[1]SERVIÇOS SEINFRA'!$A:$D,3,0)))),IF(C174=\"INSUMO\",IF(D174=\"SINAPI\",VLOOKUP(E174,'[1]INSUMOS SINAPI'!$A:$D,3,0),IF(D174=\"ORSE\",VLOOKUP(E174,'[1]INSUMOS ORSE'!$A:$D,3,0),IF(D174=\"SEINFRA\",VLOOKUP(E174,'[1]INSUMOS SEINFRA'!$A:$D,3,0),)))))","v":"M     "},{"$f":"'[1]Memória de Cálculo'!$L$979*$G$7","v":36},{"$f":"IF(C174=\"SERVIÇO\",IF(D174=\"SINAPI\",VLOOKUP(E174,'[1]SERVIÇOS SINAPI'!$A:$D,4,0),IF(D174=\"ORSE\",VLOOKUP(E174,'[1]SERVIÇOS ORSE'!$A:$D,4,0),IF(D174=\"SEINFRA\",VLOOKUP(E174,'[1]SERVIÇOS SEINFRA'!$A:$D,4,0)))),IF(C174=\"INSUMO\",IF(D174=\"SINAPI\",VLOOKUP(E174,'[1]INSUMOS SINAPI'!$A:$D,4,0),IF(D174=\"ORSE\",VLOOKUP(E174,'[1]INSUMOS ORSE'!$A:$D,4,0),IF(D174=\"SEINFRA\",VLOOKUP(E174,'[1]INSUMOS SEINFRA'!$A:$D,4,0),)))))","v":15.13},{"$f":"IF(C174=\"SERVIÇO\",I174*(1+$I$8),IF(C174=\"INSUMO\",(I174*(1+$K$8))))","v":16.86},{"$f":"J174*H174","v":606.96},5]
[null,"2.8.2","SERVIÇO","ORSE",11123,{"$f":"IF(C175=\"SERVIÇO\",IF(D175=\"SINAPI\",VLOOKUP(E175,'[1]SERVIÇOS SINAPI'!$A:$D,2,0),IF(D175=\"ORSE\",VLOOKUP(E175,'[1]SERVIÇOS ORSE'!$A:$D,2,0),IF(D175=\"SEINFRA\",VLOOKUP(E175,'[1]SERVIÇOS SEINFRA'!$A:$D,2,0)))),IF(C175=\"INSUMO\",IF(D175=\"SINAPI\",VLOOKUP(E175,'[1]INSUMOS SINAPI'!$A:$D,2,0),IF(D175=\"ORSE\",VLOOKUP(E175,'[1]INSUMOS ORSE'!$A:$D,2,0),IF(D175=\"SEINFRA\",VLOOKUP(E175,'[1]INSUMOS SEINFRA'!$A:$D,2,0),)))))","v":"ENTRADA DE ENERGIA ELÉTRICA MONOFÁSICA DEMANDA ENTRE 3,8 E 6,3 KW - REV 01"},{"$f":"IF(C175=\"SERVIÇO\",IF(D175=\"SINAPI\",VLOOKUP(E175,'[1]SERVIÇOS SINAPI'!$A:$D,3,0),IF(D175=\"ORSE\",VLOOKUP(E175,'[1]SERVIÇOS ORSE'!$A:$D,3,0),IF(D175=\"SEINFRA\",VLOOKUP(E175,'[1]SERVIÇOS SEINFRA'!$A:$D,3,0)))),IF(C175=\"INSUMO\",IF(D175=\"SINAPI\",VLOOKUP(E175,'[1]INSUMOS SINAPI'!$A:$D,3,0),IF(D175=\"ORSE\",VLOOKUP(E175,'[1]INSUMOS ORSE'!$A:$D,3,0),IF(D175=\"SEINFRA\",VLOOKUP(E175,'[1]INSUMOS SEINFRA'!$A:$D,3,0),)))))","v":"UN"},{"$f":"'[1]Memória de Cálculo'!$L$983*$G$7","v":6},{"$f":"IF(C175=\"SERVIÇO\",IF(D175=\"SINAPI\",VLOOKUP(E175,'[1]SERVIÇOS SINAPI'!$A:$D,4,0),IF(D175=\"ORSE\",VLOOKUP(E175,'[1]SERVIÇOS ORSE'!$A:$D,4,0),IF(D175=\"SEINFRA\",VLOOKUP(E175,'[1]SERVIÇOS SEINFRA'!$A:$D,4,0)))),IF(C175=\"INSUMO\",IF(D175=\"SINAPI\",VLOOKUP(E175,'[1]INSUMOS SINAPI'!$A:$D,4,0),IF(D175=\"ORSE\",VLOOKUP(E175,'[1]INSUMOS ORSE'!$A:$D,4,0),IF(D175=\"SEINFRA\",VLOOKUP(E175,'[1]INSUMOS SEINFRA'!$A:$D,4,0),)))))","v":1841.69},2274.49,13646.94,5]
[null,"2.8.3","INSUMO","SINAPI",868,{"$f":"IF(C176=\"SERVIÇO\",IF(D176=\"SINAPI\",VLOOKUP(E176,'[1]SERVIÇOS SINAPI'!$A:$D,2,0),IF(D176=\"ORSE\",VLOOKUP(E176,'[1]SERVIÇOS ORSE'!$A:$D,2,0),IF(D176=\"SEINFRA\",VLOOKUP(E176,'[1]SERVIÇOS SEINFRA'!$A:$D,2,0)))),IF(C176=\"INSUMO\",IF(D176=\"SINAPI\",VLOOKUP(E176,'[1]INSUMOS SINAPI'!$A:$D,2,0),IF(D176=\"ORSE\",VLOOKUP(E176,'[1]INSUMOS ORSE'!$A:$D,2,0),IF(D176=\"SEINFRA\",VLOOKUP(E176,'[1]INSUMOS SEINFRA'!$A:$D,2,0),)))))","v":"CABO DE COBRE NU 25 MM2 MEIO-DURO                                                                                                                                                                                                                                                                                                                                                                                                                                                                         "},{"$f":"IF(C176=\"SERVIÇO\",IF(D176=\"SINAPI\",VLOOKUP(E176,'[1]SERVIÇOS SINAPI'!$A:$D,3,0),IF(D176=\"ORSE\",VLOOKUP(E176,'[1]SERVIÇOS ORSE'!$A:$D,3,0),IF(D176=\"SEINFRA\",VLOOKUP(E176,'[1]SERVIÇOS SEINFRA'!$A:$D,3,0)))),IF(C176=\"INSUMO\",IF(D176=\"SINAPI\",VLOOKUP(E176,'[1]INSUMOS SINAPI'!$A:$D,3,0),IF(D176=\"ORSE\",VLOOKUP(E176,'[1]INSUMOS ORSE'!$A:$D,3,0),IF(D176=\"SEINFRA\",VLOOKUP(E176,'[1]INSUMOS SEINFRA'!$A:$D,3,0),)))))","v":"M     "},{"$f":"'[1]Memória de Cálculo'!$L$987*$G$7","v":48},{"$f":"IF(C176=\"SERVIÇO\",IF(D176=\"SINAPI\",VLOOKUP(E176,'[1]SERVIÇOS SINAPI'!$A:$D,4,0),IF(D176=\"ORSE\",VLOOKUP(E176,'[1]SERVIÇOS ORSE'!$A:$D,4,0),IF(D176=\"SEINFRA\",VLOOKUP(E176,'[1]SERVIÇOS SEINFRA'!$A:$D,4,0)))),IF(C176=\"INSUMO\",IF(D176=\"SINAPI\",VLOOKUP(E176,'[1]INSUMOS SINAPI'!$A:$D,4,0),IF(D176=\"ORSE\",VLOOKUP(E176,'[1]INSUMOS ORSE'!$A:$D,4,0),IF(D176=\"SEINFRA\",VLOOKUP(E176,'[1]INSUMOS SEINFRA'!$A:$D,4,0),)))))","v":28.17},31.39,1506.72,5]
[null,"2.8.4","INSUMO","SINAPI",3379,{"$f":"IF(C177=\"SERVIÇO\",IF(D177=\"SINAPI\",VLOOKUP(E177,'[1]SERVIÇOS SINAPI'!$A:$D,2,0),IF(D177=\"ORSE\",VLOOKUP(E177,'[1]SERVIÇOS ORSE'!$A:$D,2,0),IF(D177=\"SEINFRA\",VLOOKUP(E177,'[1]SERVIÇOS SEINFRA'!$A:$D,2,0)))),IF(C177=\"INSUMO\",IF(D177=\"SINAPI\",VLOOKUP(E177,'[1]INSUMOS SINAPI'!$A:$D,2,0),IF(D177=\"ORSE\",VLOOKUP(E177,'[1]INSUMOS ORSE'!$A:$D,2,0),IF(D177=\"SEINFRA\",VLOOKUP(E177,'[1]INSUMOS SEINFRA'!$A:$D,2,0),)))))","v":"!EM PROCESSO DE DESATIVACAO! HASTE DE ATERRAMENTO EM ACO COM 3,00 M DE COMPRIMENTO E DN = 5/8\", REVESTIDA COM BAIXA CAMADA DE COBRE, SEM CONECTOR                                                                                                                                                                                                                                                                                                                                                         "},{"$f":"IF(C177=\"SERVIÇO\",IF(D177=\"SINAPI\",VLOOKUP(E177,'[1]SERVIÇOS SINAPI'!$A:$D,3,0),IF(D177=\"ORSE\",VLOOKUP(E177,'[1]SERVIÇOS ORSE'!$A:$D,3,0),IF(D177=\"SEINFRA\",VLOOKUP(E177,'[1]SERVIÇOS SEINFRA'!$A:$D,3,0)))),IF(C177=\"INSUMO\",IF(D177=\"SINAPI\",VLOOKUP(E177,'[1]INSUMOS SINAPI'!$A:$D,3,0),IF(D177=\"ORSE\",VLOOKUP(E177,'[1]INSUMOS ORSE'!$A:$D,3,0),IF(D177=\"SEINFRA\",VLOOKUP(E177,'[1]INSUMOS SEINFRA'!$A:$D,3,0),)))))","v":"UN    "},{"$f":"'[1]Memória de Cálculo'!$L$991*$G$7","v":6},{"$f":"IF(C177=\"SERVIÇO\",IF(D177=\"SINAPI\",VLOOKUP(E177,'[1]SERVIÇOS SINAPI'!$A:$D,4,0),IF(D177=\"ORSE\",VLOOKUP(E177,'[1]SERVIÇOS ORSE'!$A:$D,4,0),IF(D177=\"SEINFRA\",VLOOKUP(E177,'[1]SERVIÇOS SEINFRA'!$A:$D,4,0)))),IF(C177=\"INSUMO\",IF(D177=\"SINAPI\",VLOOKUP(E177,'[1]INSUMOS SINAPI'!$A:$D,4,0),IF(D177=\"ORSE\",VLOOKUP(E177,'[1]INSUMOS ORSE'!$A:$D,4,0),IF(D177=\"SEINFRA\",VLOOKUP(E177,'[1]INSUMOS SEINFRA'!$A:$D,4,0),)))))","v":60.82},67.77,406.62,5]
[null,"2.8.5","INSUMO","ORSE",11848,{"$f":"IF(C178=\"SERVIÇO\",IF(D178=\"SINAPI\",VLOOKUP(E178,'[1]SERVIÇOS SINAPI'!$A:$D,2,0),IF(D178=\"ORSE\",VLOOKUP(E178,'[1]SERVIÇOS ORSE'!$A:$D,2,0),IF(D178=\"SEINFRA\",VLOOKUP(E178,'[1]SERVIÇOS SEINFRA'!$A:$D,2,0)))),IF(C178=\"INSUMO\",IF(D178=\"SINAPI\",VLOOKUP(E178,'[1]INSUMOS SINAPI'!$A:$D,2,0),IF(D178=\"ORSE\",VLOOKUP(E178,'[1]INSUMOS ORSE'!$A:$D,2,0),IF(D178=\"SEINFRA\",VLOOKUP(E178,'[1]INSUMOS SEINFRA'!$A:$D,2,0),)))))","v":"CONECTOR CABO-HASTE EM BRONZE NATURAL PARA 2 CABOS COBRE DE 16MM² A 70MM² COM GRAMPO \"U\" E PORCAS DE AÇO GALV.REF:TEL-583 OU SIMILAR"},{"$f":"IF(C178=\"SERVIÇO\",IF(D178=\"SINAPI\",VLOOKUP(E178,'[1]SERVIÇOS SINAPI'!$A:$D,3,0),IF(D178=\"ORSE\",VLOOKUP(E178,'[1]SERVIÇOS ORSE'!$A:$D,3,0),IF(D178=\"SEINFRA\",VLOOKUP(E178,'[1]SERVIÇOS SEINFRA'!$A:$D,3,0)))),IF(C178=\"INSUMO\",IF(D178=\"SINAPI\",VLOOKUP(E178,'[1]INSUMOS SINAPI'!$A:$D,3,0),IF(D178=\"ORSE\",VLOOKUP(E178,'[1]INSUMOS ORSE'!$A:$D,3,0),IF(D178=\"SEINFRA\",VLOOKUP(E178,'[1]INSUMOS SEINFRA'!$A:$D,3,0),)))))","v":"UN"},{"$f":"'[1]Memória de Cálculo'!$L$991*$G$7","v":6},{"$f":"IF(C178=\"SERVIÇO\",IF(D178=\"SINAPI\",VLOOKUP(E178,'[1]SERVIÇOS SINAPI'!$A:$D,4,0),IF(D178=\"ORSE\",VLOOKUP(E178,'[1]SERVIÇOS ORSE'!$A:$D,4,0),IF(D178=\"SEINFRA\",VLOOKUP(E178,'[1]SERVIÇOS SEINFRA'!$A:$D,4,0)))),IF(C178=\"INSUMO\",IF(D178=\"SINAPI\",VLOOKUP(E178,'[1]INSUMOS SINAPI'!$A:$D,4,0),IF(D178=\"ORSE\",VLOOKUP(E178,'[1]INSUMOS ORSE'!$A:$D,4,0),IF(D178=\"SEINFRA\",VLOOKUP(E178,'[1]INSUMOS SEINFRA'!$A:$D,4,0),)))))","v":3.9},4.35,26.1,5]
[null,"2.8.6","INSUMO","ORSE",3721,{"$f":"IF(C179=\"SERVIÇO\",IF(D179=\"SINAPI\",VLOOKUP(E179,'[1]SERVIÇOS SINAPI'!$A:$D,2,0),IF(D179=\"ORSE\",VLOOKUP(E179,'[1]SERVIÇOS ORSE'!$A:$D,2,0),IF(D179=\"SEINFRA\",VLOOKUP(E179,'[1]SERVIÇOS SEINFRA'!$A:$D,2,0)))),IF(C179=\"INSUMO\",IF(D179=\"SINAPI\",VLOOKUP(E179,'[1]INSUMOS SINAPI'!$A:$D,2,0),IF(D179=\"ORSE\",VLOOKUP(E179,'[1]INSUMOS ORSE'!$A:$D,2,0),IF(D179=\"SEINFRA\",VLOOKUP(E179,'[1]INSUMOS SEINFRA'!$A:$D,2,0),)))))","v":"DISJUNTOR MONOPOLAR 40 A, PADRÃO NEMA ( LINHA PRETA ), CORRENTE DE INTERRUPÇÃ O 5KA, REF.: ELETROMAR OU SIMILAR"},{"$f":"IF(C179=\"SERVIÇO\",IF(D179=\"SINAPI\",VLOOKUP(E179,'[1]SERVIÇOS SINAPI'!$A:$D,3,0),IF(D179=\"ORSE\",VLOOKUP(E179,'[1]SERVIÇOS ORSE'!$A:$D,3,0),IF(D179=\"SEINFRA\",VLOOKUP(E179,'[1]SERVIÇOS SEINFRA'!$A:$D,3,0)))),IF(C179=\"INSUMO\",IF(D179=\"SINAPI\",VLOOKUP(E179,'[1]INSUMOS SINAPI'!$A:$D,3,0),IF(D179=\"ORSE\",VLOOKUP(E179,'[1]INSUMOS ORSE'!$A:$D,3,0),IF(D179=\"SEINFRA\",VLOOKUP(E179,'[1]INSUMOS SEINFRA'!$A:$D,3,0),)))))","v":"UN"},{"$f":"'[1]Memória de Cálculo'!$L$999*$G$7","v":6},{"$f":"IF(C179=\"SERVIÇO\",IF(D179=\"SINAPI\",VLOOKUP(E179,'[1]SERVIÇOS SINAPI'!$A:$D,4,0),IF(D179=\"ORSE\",VLOOKUP(E179,'[1]SERVIÇOS ORSE'!$A:$D,4,0),IF(D179=\"SEINFRA\",VLOOKUP(E179,'[1]SERVIÇOS SEINFRA'!$A:$D,4,0)))),IF(C179=\"INSUMO\",IF(D179=\"SINAPI\",VLOOKUP(E179,'[1]INSUMOS SINAPI'!$A:$D,4,0),IF(D179=\"ORSE\",VLOOKUP(E179,'[1]INSUMOS ORSE'!$A:$D,4,0),IF(D179=\"SEINFRA\",VLOOKUP(E179,'[1]INSUMOS SEINFRA'!$A:$D,4,0),)))))","v":12.75},14.21,85.26,4]
[null,"2.8.7","INSUMO","SINAPI",2685,{"$f":"IF(C180=\"SERVIÇO\",IF(D180=\"SINAPI\",VLOOKUP(E180,'[1]SERVIÇOS SINAPI'!$A:$D,2,0),IF(D180=\"ORSE\",VLOOKUP(E180,'[1]SERVIÇOS ORSE'!$A:$D,2,0),IF(D180=\"SEINFRA\",VLOOKUP(E180,'[1]SERVIÇOS SEINFRA'!$A:$D,2,0)))),IF(C180=\"INSUMO\",IF(D180=\"SINAPI\",VLOOKUP(E180,'[1]INSUMOS SINAPI'!$A:$D,2,0),IF(D180=\"ORSE\",VLOOKUP(E180,'[1]INSUMOS ORSE'!$A:$D,2,0),IF(D180=\"SEINFRA\",VLOOKUP(E180,'[1]INSUMOS SEINFRA'!$A:$D,2,0),)))))","v":"ELETRODUTO DE PVC RIGIDO ROSCAVEL DE 1 \", SEM LUVA                                                                                                                                                                                                                                                                                                                                                                                                                                                        "},{"$f":"IF(C180=\"SERVIÇO\",IF(D180=\"SINAPI\",VLOOKUP(E180,'[1]SERVIÇOS SINAPI'!$A:$D,3,0),IF(D180=\"ORSE\",VLOOKUP(E180,'[1]SERVIÇOS ORSE'!$A:$D,3,0),IF(D180=\"SEINFRA\",VLOOKUP(E180,'[1]SERVIÇOS SEINFRA'!$A:$D,3,0)))),IF(C180=\"INSUMO\",IF(D180=\"SINAPI\",VLOOKUP(E180,'[1]INSUMOS SINAPI'!$A:$D,3,0),IF(D180=\"ORSE\",VLOOKUP(E180,'[1]INSUMOS ORSE'!$A:$D,3,0),IF(D180=\"SEINFRA\",VLOOKUP(E180,'[1]INSUMOS SEINFRA'!$A:$D,3,0),)))))","v":"M     "},{"$f":"'[1]Memória de Cálculo'!$L$1003*$G$7","v":12},{"$f":"IF(C180=\"SERVIÇO\",IF(D180=\"SINAPI\",VLOOKUP(E180,'[1]SERVIÇOS SINAPI'!$A:$D,4,0),IF(D180=\"ORSE\",VLOOKUP(E180,'[1]SERVIÇOS ORSE'!$A:$D,4,0),IF(D180=\"SEINFRA\",VLOOKUP(E180,'[1]SERVIÇOS SEINFRA'!$A:$D,4,0)))),IF(C180=\"INSUMO\",IF(D180=\"SINAPI\",VLOOKUP(E180,'[1]INSUMOS SINAPI'!$A:$D,4,0),IF(D180=\"ORSE\",VLOOKUP(E180,'[1]INSUMOS ORSE'!$A:$D,4,0),IF(D180=\"SEINFRA\",VLOOKUP(E180,'[1]INSUMOS SEINFRA'!$A:$D,4,0),)))))","v":7.45},8.3,99.6,4]
[null,"2.8.8","INSUMO","SINAPI",1892,{"$f":"IF(C181=\"SERVIÇO\",IF(D181=\"SINAPI\",VLOOKUP(E181,'[1]SERVIÇOS SINAPI'!$A:$D,2,0),IF(D181=\"ORSE\",VLOOKUP(E181,'[1]SERVIÇOS ORSE'!$A:$D,2,0),IF(D181=\"SEINFRA\",VLOOKUP(E181,'[1]SERVIÇOS SEINFRA'!$A:$D,2,0)))),IF(C181=\"INSUMO\",IF(D181=\"SINAPI\",VLOOKUP(E181,'[1]INSUMOS SINAPI'!$A:$D,2,0),IF(D181=\"ORSE\",VLOOKUP(E181,'[1]INSUMOS ORSE'!$A:$D,2,0),IF(D181=\"SEINFRA\",VLOOKUP(E181,'[1]INSUMOS SEINFRA'!$A:$D,2,0),)))))","v":"LUVA EM PVC RIGIDO ROSCAVEL, DE 1\", PARA ELETRODUTO                                                                                                                                                                                                                                                                                                                                                                                                                                                       "},{"$f":"IF(C181=\"SERVIÇO\",IF(D181=\"SINAPI\",VLOOKUP(E181,'[1]SERVIÇOS SINAPI'!$A:$D,3,0),IF(D181=\"ORSE\",VLOOKUP(E181,'[1]SERVIÇOS ORSE'!$A:$D,3,0),IF(D181=\"SEINFRA\",VLOOKUP(E181,'[1]SERVIÇOS SEINFRA'!$A:$D,3,0)))),IF(C181=\"INSUMO\",IF(D181=\"SINAPI\",VLOOKUP(E181,'[1]INSUMOS SINAPI'!$A:$D,3,0),IF(D181=\"ORSE\",VLOOKUP(E181,'[1]INSUMOS ORSE'!$A:$D,3,0),IF(D181=\"SEINFRA\",VLOOKUP(E181,'[1]INSUMOS SEINFRA'!$A:$D,3,0),)))))","v":"UN    "},{"$f":"'[1]Memória de Cálculo'!$L$1007*$G$7","v":6},{"$f":"IF(C181=\"SERVIÇO\",IF(D181=\"SINAPI\",VLOOKUP(E181,'[1]SERVIÇOS SINAPI'!$A:$D,4,0),IF(D181=\"ORSE\",VLOOKUP(E181,'[1]SERVIÇOS ORSE'!$A:$D,4,0),IF(D181=\"SEINFRA\",VLOOKUP(E181,'[1]SERVIÇOS SEINFRA'!$A:$D,4,0)))),IF(C181=\"INSUMO\",IF(D181=\"SINAPI\",VLOOKUP(E181,'[1]INSUMOS SINAPI'!$A:$D,4,0),IF(D181=\"ORSE\",VLOOKUP(E181,'[1]INSUMOS ORSE'!$A:$D,4,0),IF(D181=\"SEINFRA\",VLOOKUP(E181,'[1]INSUMOS SEINFRA'!$A:$D,4,0),)))))","v":1.83},2.04,12.24,4]
[null,"2.8.9","INSUMO","SINAPI",1884,{"$f":"IF(C182=\"SERVIÇO\",IF(D182=\"SINAPI\",VLOOKUP(E182,'[1]SERVIÇOS SINAPI'!$A:$D,2,0),IF(D182=\"ORSE\",VLOOKUP(E182,'[1]SERVIÇOS ORSE'!$A:$D,2,0),IF(D182=\"SEINFRA\",VLOOKUP(E182,'[1]SERVIÇOS SEINFRA'!$A:$D,2,0)))),IF(C182=\"INSUMO\",IF(D182=\"SINAPI\",VLOOKUP(E182,'[1]INSUMOS SINAPI'!$A:$D,2,0),IF(D182=\"ORSE\",VLOOKUP(E182,'[1]INSUMOS ORSE'!$A:$D,2,0),IF(D182=\"SEINFRA\",VLOOKUP(E182,'[1]INSUMOS SEINFRA'!$A:$D,2,0),)))))","v":"CURVA 90 GRAUS, LONGA, DE PVC RIGIDO ROSCAVEL, DE 1\", PARA ELETRODUTO                                                                                                                                                                                                                                                                                                                                                                                                                                     "},{"$f":"IF(C182=\"SERVIÇO\",IF(D182=\"SINAPI\",VLOOKUP(E182,'[1]SERVIÇOS SINAPI'!$A:$D,3,0),IF(D182=\"ORSE\",VLOOKUP(E182,'[1]SERVIÇOS ORSE'!$A:$D,3,0),IF(D182=\"SEINFRA\",VLOOKUP(E182,'[1]SERVIÇOS SEINFRA'!$A:$D,3,0)))),IF(C182=\"INSUMO\",IF(D182=\"SINAPI\",VLOOKUP(E182,'[1]INSUMOS SINAPI'!$A:$D,3,0),IF(D182=\"ORSE\",VLOOKUP(E182,'[1]INSUMOS ORSE'!$A:$D,3,0),IF(D182=\"SEINFRA\",VLOOKUP(E182,'[1]INSUMOS SEINFRA'!$A:$D,3,0),)))))","v":"UN    "},{"$f":"'[1]Memória de Cálculo'!$L$1011*$G$7","v":6},{"$f":"IF(C182=\"SERVIÇO\",IF(D182=\"SINAPI\",VLOOKUP(E182,'[1]SERVIÇOS SINAPI'!$A:$D,4,0),IF(D182=\"ORSE\",VLOOKUP(E182,'[1]SERVIÇOS ORSE'!$A:$D,4,0),IF(D182=\"SEINFRA\",VLOOKUP(E182,'[1]SERVIÇOS SEINFRA'!$A:$D,4,0)))),IF(C182=\"INSUMO\",IF(D182=\"SINAPI\",VLOOKUP(E182,'[1]INSUMOS SINAPI'!$A:$D,4,0),IF(D182=\"ORSE\",VLOOKUP(E182,'[1]INSUMOS ORSE'!$A:$D,4,0),IF(D182=\"SEINFRA\",VLOOKUP(E182,'[1]INSUMOS SEINFRA'!$A:$D,4,0),)))))","v":4.59},5.11,30.66,4]
[null,"2.8.10","INSUMO","ORSE",9722,{"$f":"IF(C183=\"SERVIÇO\",IF(D183=\"SINAPI\",VLOOKUP(E183,'[1]SERVIÇOS SINAPI'!$A:$D,2,0),IF(D183=\"ORSE\",VLOOKUP(E183,'[1]SERVIÇOS ORSE'!$A:$D,2,0),IF(D183=\"SEINFRA\",VLOOKUP(E183,'[1]SERVIÇOS SEINFRA'!$A:$D,2,0)))),IF(C183=\"INSUMO\",IF(D183=\"SINAPI\",VLOOKUP(E183,'[1]INSUMOS SINAPI'!$A:$D,2,0),IF(D183=\"ORSE\",VLOOKUP(E183,'[1]INSUMOS ORSE'!$A:$D,2,0),IF(D183=\"SEINFRA\",VLOOKUP(E183,'[1]INSUMOS SEINFRA'!$A:$D,2,0),)))))","v":"CORPO DA CAIXA DE INSPEÇÃO EM PVC P/ATERRAMENTO D=300MM, REDONDA, H=300MM, RE F: TEL-552 OU SIMILAR (SPDA)"},{"$f":"IF(C183=\"SERVIÇO\",IF(D183=\"SINAPI\",VLOOKUP(E183,'[1]SERVIÇOS SINAPI'!$A:$D,3,0),IF(D183=\"ORSE\",VLOOKUP(E183,'[1]SERVIÇOS ORSE'!$A:$D,3,0),IF(D183=\"SEINFRA\",VLOOKUP(E183,'[1]SERVIÇOS SEINFRA'!$A:$D,3,0)))),IF(C183=\"INSUMO\",IF(D183=\"SINAPI\",VLOOKUP(E183,'[1]INSUMOS SINAPI'!$A:$D,3,0),IF(D183=\"ORSE\",VLOOKUP(E183,'[1]INSUMOS ORSE'!$A:$D,3,0),IF(D183=\"SEINFRA\",VLOOKUP(E183,'[1]INSUMOS SEINFRA'!$A:$D,3,0),)))))","v":"UN"},{"$f":"'[1]Memória de Cálculo'!$L$1015*$G$7","v":6},{"$f":"IF(C183=\"SERVIÇO\",IF(D183=\"SINAPI\",VLOOKUP(E183,'[1]SERVIÇOS SINAPI'!$A:$D,4,0),IF(D183=\"ORSE\",VLOOKUP(E183,'[1]SERVIÇOS ORSE'!$A:$D,4,0),IF(D183=\"SEINFRA\",VLOOKUP(E183,'[1]SERVIÇOS SEINFRA'!$A:$D,4,0)))),IF(C183=\"INSUMO\",IF(D183=\"SINAPI\",VLOOKUP(E183,'[1]INSUMOS SINAPI'!$A:$D,4,0),IF(D183=\"ORSE\",VLOOKUP(E183,'[1]INSUMOS ORSE'!$A:$D,4,0),IF(D183=\"SEINFRA\",VLOOKUP(E183,'[1]INSUMOS SEINFRA'!$A:$D,4,0),)))))","v":26.6},29.64,177.84,4]
[null,"2.8.11","INSUMO","ORSE",9723,{"$f":"IF(C184=\"SERVIÇO\",IF(D184=\"SINAPI\",VLOOKUP(E184,'[1]SERVIÇOS SINAPI'!$A:$D,2,0),IF(D184=\"ORSE\",VLOOKUP(E184,'[1]SERVIÇOS ORSE'!$A:$D,2,0),IF(D184=\"SEINFRA\",VLOOKUP(E184,'[1]SERVIÇOS SEINFRA'!$A:$D,2,0)))),IF(C184=\"INSUMO\",IF(D184=\"SINAPI\",VLOOKUP(E184,'[1]INSUMOS SINAPI'!$A:$D,2,0),IF(D184=\"ORSE\",VLOOKUP(E184,'[1]INSUMOS ORSE'!$A:$D,2,0),IF(D184=\"SEINFRA\",VLOOKUP(E184,'[1]INSUMOS SEINFRA'!$A:$D,2,0),)))))","v":"TAMPA REFORÇADA EM FERRO FUNDIDO D=300MM, C/ESCOTILHA QUADRADA E ARTICULADA,  P/CX.ATERRAMENTO, REF:TEL-536 OU SIMILAR (SPDA)"},{"$f":"IF(C184=\"SERVIÇO\",IF(D184=\"SINAPI\",VLOOKUP(E184,'[1]SERVIÇOS SINAPI'!$A:$D,3,0),IF(D184=\"ORSE\",VLOOKUP(E184,'[1]SERVIÇOS ORSE'!$A:$D,3,0),IF(D184=\"SEINFRA\",VLOOKUP(E184,'[1]SERVIÇOS SEINFRA'!$A:$D,3,0)))),IF(C184=\"INSUMO\",IF(D184=\"SINAPI\",VLOOKUP(E184,'[1]INSUMOS SINAPI'!$A:$D,3,0),IF(D184=\"ORSE\",VLOOKUP(E184,'[1]INSUMOS ORSE'!$A:$D,3,0),IF(D184=\"SEINFRA\",VLOOKUP(E184,'[1]INSUMOS SEINFRA'!$A:$D,3,0),)))))","v":"UN"},{"$f":"'[1]Memória de Cálculo'!$L$1019*$G$7","v":6},{"$f":"IF(C184=\"SERVIÇO\",IF(D184=\"SINAPI\",VLOOKUP(E184,'[1]SERVIÇOS SINAPI'!$A:$D,4,0),IF(D184=\"ORSE\",VLOOKUP(E184,'[1]SERVIÇOS ORSE'!$A:$D,4,0),IF(D184=\"SEINFRA\",VLOOKUP(E184,'[1]SERVIÇOS SEINFRA'!$A:$D,4,0)))),IF(C184=\"INSUMO\",IF(D184=\"SINAPI\",VLOOKUP(E184,'[1]INSUMOS SINAPI'!$A:$D,4,0),IF(D184=\"ORSE\",VLOOKUP(E184,'[1]INSUMOS ORSE'!$A:$D,4,0),IF(D184=\"SEINFRA\",VLOOKUP(E184,'[1]INSUMOS SEINFRA'!$A:$D,4,0),)))))","v":169.89},189.31,1135.86,5]
[null,"2.9","INSUMOS PARA INSTALAÇÃO DO SPDA DA UNIDADE DE MELHORAMENTO GENETICO",{"$nulls":7},{"$f":"SUM(K186:K196)","v":10215.67}]
[null,"2.9.1","INSUMO","ORSE",11513,{"$f":"IF(C186=\"SERVIÇO\",IF(D186=\"SINAPI\",VLOOKUP(E186,'[1]SERVIÇOS SINAPI'!$A:$D,2,0),IF(D186=\"ORSE\",VLOOKUP(E186,'[1]SERVIÇOS ORSE'!$A:$D,2,0),IF(D186=\"SEINFRA\",VLOOKUP(E186,'[1]SERVIÇOS SEINFRA'!$A:$D,2,0)))),IF(C186=\"INSUMO\",IF(D186=\"SINAPI\",VLOOKUP(E186,'[1]INSUMOS SINAPI'!$A:$D,2,0),IF(D186=\"ORSE\",VLOOKUP(E186,'[1]INSUMOS ORSE'!$A:$D,2,0),IF(D186=\"SEINFRA\",VLOOKUP(E186,'[1]INSUMOS SEINFRA'!$A:$D,2,0),)))))","v":"CAIXA INSPEÇÃO EM POLIAMIDA 150X110X70MM, REF:TEL-541 OU SIMILAR (P/SPDA)"},{"$f":"IF(C186=\"SERVIÇO\",IF(D186=\"SINAPI\",VLOOKUP(E186,'[1]SERVIÇOS SINAPI'!$A:$D,3,0),IF(D186=\"ORSE\",VLOOKUP(E186,'[1]SERVIÇOS ORSE'!$A:$D,3,0),IF(D186=\"SEINFRA\",VLOOKUP(E186,'[1]SERVIÇOS SEINFRA'!$A:$D,3,0)))),IF(C186=\"INSUMO\",IF(D186=\"SINAPI\",VLOOKUP(E186,'[1]INSUMOS SINAPI'!$A:$D,3,0),IF(D186=\"ORSE\",VLOOKUP(E186,'[1]INSUMOS ORSE'!$A:$D,3,0),IF(D186=\"SEINFRA\",VLOOKUP(E186,'[1]INSUMOS SEINFRA'!$A:$D,3,0),)))))","v":"UN"},{"$f":"'[1]Memória de Cálculo'!$L$1024*$G$7","v":6},{"$f":"IF(C186=\"SERVIÇO\",IF(D186=\"SINAPI\",VLOOKUP(E186,'[1]SERVIÇOS SINAPI'!$A:$D,4,0),IF(D186=\"ORSE\",VLOOKUP(E186,'[1]SERVIÇOS ORSE'!$A:$D,4,0),IF(D186=\"SEINFRA\",VLOOKUP(E186,'[1]SERVIÇOS SEINFRA'!$A:$D,4,0)))),IF(C186=\"INSUMO\",IF(D186=\"SINAPI\",VLOOKUP(E186,'[1]INSUMOS SINAPI'!$A:$D,4,0),IF(D186=\"ORSE\",VLOOKUP(E186,'[1]INSUMOS ORSE'!$A:$D,4,0),IF(D186=\"SEINFRA\",VLOOKUP(E186,'[1]INSUMOS SEINFRA'!$A:$D,4,0),)))))","v":85.15},{"$f":"IF(C186=\"SERVIÇO\",I186*(1+$I$8),IF(C186=\"INSUMO\",(I186*(1+$K$8))))","v":94.88},{"$f":"J186*H186","v":569.28},4]
[null,"2.9.2","INSUMO","ORSE",398,{"$f":"IF(C187=\"SERVIÇO\",IF(D187=\"SINAPI\",VLOOKUP(E187,'[1]SERVIÇOS SINAPI'!$A:$D,2,0),IF(D187=\"ORSE\",VLOOKUP(E187,'[1]SERVIÇOS ORSE'!$A:$D,2,0),IF(D187=\"SEINFRA\",VLOOKUP(E187,'[1]SERVIÇOS SEINFRA'!$A:$D,2,0)))),IF(C187=\"INSUMO\",IF(D187=\"SINAPI\",VLOOKUP(E187,'[1]INSUMOS SINAPI'!$A:$D,2,0),IF(D187=\"ORSE\",VLOOKUP(E187,'[1]INSUMOS ORSE'!$A:$D,2,0),IF(D187=\"SEINFRA\",VLOOKUP(E187,'[1]INSUMOS SEINFRA'!$A:$D,2,0),)))))","v":"CABO DE ALUMÍNIO NU ASC, SEM ALMA DE AÇO, 7X1 FIOS - 2/0 AWG"},{"$f":"IF(C187=\"SERVIÇO\",IF(D187=\"SINAPI\",VLOOKUP(E187,'[1]SERVIÇOS SINAPI'!$A:$D,3,0),IF(D187=\"ORSE\",VLOOKUP(E187,'[1]SERVIÇOS ORSE'!$A:$D,3,0),IF(D187=\"SEINFRA\",VLOOKUP(E187,'[1]SERVIÇOS SEINFRA'!$A:$D,3,0)))),IF(C187=\"INSUMO\",IF(D187=\"SINAPI\",VLOOKUP(E187,'[1]INSUMOS SINAPI'!$A:$D,3,0),IF(D187=\"ORSE\",VLOOKUP(E187,'[1]INSUMOS ORSE'!$A:$D,3,0),IF(D187=\"SEINFRA\",VLOOKUP(E187,'[1]INSUMOS SEINFRA'!$A:$D,3,0),)))))","v":"KG"},{"$f":"'[1]Memória de Cálculo'!$L$1028*$G$7","v":21.6},{"$f":"IF(C187=\"SERVIÇO\",IF(D187=\"SINAPI\",VLOOKUP(E187,'[1]SERVIÇOS SINAPI'!$A:$D,4,0),IF(D187=\"ORSE\",VLOOKUP(E187,'[1]SERVIÇOS ORSE'!$A:$D,4,0),IF(D187=\"SEINFRA\",VLOOKUP(E187,'[1]SERVIÇOS SEINFRA'!$A:$D,4,0)))),IF(C187=\"INSUMO\",IF(D187=\"SINAPI\",VLOOKUP(E187,'[1]INSUMOS SINAPI'!$A:$D,4,0),IF(D187=\"ORSE\",VLOOKUP(E187,'[1]INSUMOS ORSE'!$A:$D,4,0),IF(D187=\"SEINFRA\",VLOOKUP(E187,'[1]INSUMOS SEINFRA'!$A:$D,4,0),)))))","v":34.12},38.02,821.23,5]
[null,"2.9.3","INSUMO","ORSE",9329,{"$f":"IF(C188=\"SERVIÇO\",IF(D188=\"SINAPI\",VLOOKUP(E188,'[1]SERVIÇOS SINAPI'!$A:$D,2,0),IF(D188=\"ORSE\",VLOOKUP(E188,'[1]SERVIÇOS ORSE'!$A:$D,2,0),IF(D188=\"SEINFRA\",VLOOKUP(E188,'[1]SERVIÇOS SEINFRA'!$A:$D,2,0)))),IF(C188=\"INSUMO\",IF(D188=\"SINAPI\",VLOOKUP(E188,'[1]INSUMOS SINAPI'!$A:$D,2,0),IF(D188=\"ORSE\",VLOOKUP(E188,'[1]INSUMOS ORSE'!$A:$D,2,0),IF(D188=\"SEINFRA\",VLOOKUP(E188,'[1]INSUMOS SEINFRA'!$A:$D,2,0),)))))","v":"CONECTOR DE MEDIÇÃO EM BRONZE C/4 PARAFUSOS P/CABOS DE COBRE 16-70MM² REF.TEL -560 (PÁRA-RAIO)"},{"$f":"IF(C188=\"SERVIÇO\",IF(D188=\"SINAPI\",VLOOKUP(E188,'[1]SERVIÇOS SINAPI'!$A:$D,3,0),IF(D188=\"ORSE\",VLOOKUP(E188,'[1]SERVIÇOS ORSE'!$A:$D,3,0),IF(D188=\"SEINFRA\",VLOOKUP(E188,'[1]SERVIÇOS SEINFRA'!$A:$D,3,0)))),IF(C188=\"INSUMO\",IF(D188=\"SINAPI\",VLOOKUP(E188,'[1]INSUMOS SINAPI'!$A:$D,3,0),IF(D188=\"ORSE\",VLOOKUP(E188,'[1]INSUMOS ORSE'!$A:$D,3,0),IF(D188=\"SEINFRA\",VLOOKUP(E188,'[1]INSUMOS SEINFRA'!$A:$D,3,0),)))))","v":"UN"},{"$f":"'[1]Memória de Cálculo'!$L$1032*$G$7","v":6},{"$f":"IF(C188=\"SERVIÇO\",IF(D188=\"SINAPI\",VLOOKUP(E188,'[1]SERVIÇOS SINAPI'!$A:$D,4,0),IF(D188=\"ORSE\",VLOOKUP(E188,'[1]SERVIÇOS ORSE'!$A:$D,4,0),IF(D188=\"SEINFRA\",VLOOKUP(E188,'[1]SERVIÇOS SEINFRA'!$A:$D,4,0)))),IF(C188=\"INSUMO\",IF(D188=\"SINAPI\",VLOOKUP(E188,'[1]INSUMOS SINAPI'!$A:$D,4,0),IF(D188=\"ORSE\",VLOOKUP(E188,'[1]INSUMOS ORSE'!$A:$D,4,0),IF(D188=\"SEINFRA\",VLOOKUP(E188,'[1]INSUMOS SEINFRA'!$A:$D,4,0),)))))","v":35.5},39.56,237.36,5]
[null,"2.9.4","INSUMO","SINAPI",2685,{"$f":"IF(C189=\"SERVIÇO\",IF(D189=\"SINAPI\",VLOOKUP(E189,'[1]SERVIÇOS SINAPI'!$A:$D,2,0),IF(D189=\"ORSE\",VLOOKUP(E189,'[1]SERVIÇOS ORSE'!$A:$D,2,0),IF(D189=\"SEINFRA\",VLOOKUP(E189,'[1]SERVIÇOS SEINFRA'!$A:$D,2,0)))),IF(C189=\"INSUMO\",IF(D189=\"SINAPI\",VLOOKUP(E189,'[1]INSUMOS SINAPI'!$A:$D,2,0),IF(D189=\"ORSE\",VLOOKUP(E189,'[1]INSUMOS ORSE'!$A:$D,2,0),IF(D189=\"SEINFRA\",VLOOKUP(E189,'[1]INSUMOS SEINFRA'!$A:$D,2,0),)))))","v":"ELETRODUTO DE PVC RIGIDO ROSCAVEL DE 1 \", SEM LUVA                                                                                                                                                                                                                                                                                                                                                                                                                                                        "},{"$f":"IF(C189=\"SERVIÇO\",IF(D189=\"SINAPI\",VLOOKUP(E189,'[1]SERVIÇOS SINAPI'!$A:$D,3,0),IF(D189=\"ORSE\",VLOOKUP(E189,'[1]SERVIÇOS ORSE'!$A:$D,3,0),IF(D189=\"SEINFRA\",VLOOKUP(E189,'[1]SERVIÇOS SEINFRA'!$A:$D,3,0)))),IF(C189=\"INSUMO\",IF(D189=\"SINAPI\",VLOOKUP(E189,'[1]INSUMOS SINAPI'!$A:$D,3,0),IF(D189=\"ORSE\",VLOOKUP(E189,'[1]INSUMOS ORSE'!$A:$D,3,0),IF(D189=\"SEINFRA\",VLOOKUP(E189,'[1]INSUMOS SEINFRA'!$A:$D,3,0),)))))","v":"M     "},{"$f":"'[1]Memória de Cálculo'!$L$1036*$G$7","v":18},{"$f":"IF(C189=\"SERVIÇO\",IF(D189=\"SINAPI\",VLOOKUP(E189,'[1]SERVIÇOS SINAPI'!$A:$D,4,0),IF(D189=\"ORSE\",VLOOKUP(E189,'[1]SERVIÇOS ORSE'!$A:$D,4,0),IF(D189=\"SEINFRA\",VLOOKUP(E189,'[1]SERVIÇOS SEINFRA'!$A:$D,4,0)))),IF(C189=\"INSUMO\",IF(D189=\"SINAPI\",VLOOKUP(E189,'[1]INSUMOS SINAPI'!$A:$D,4,0),IF(D189=\"ORSE\",VLOOKUP(E189,'[1]INSUMOS ORSE'!$A:$D,4,0),IF(D189=\"SEINFRA\",VLOOKUP(E189,'[1]INSUMOS SEINFRA'!$A:$D,4,0),)))))","v":7.45},8.3,149.4,4]
[null,"2.9.5","INSUMO","ORSE",6667,{"$f":"IF(C190=\"SERVIÇO\",IF(D190=\"SINAPI\",VLOOKUP(E190,'[1]SERVIÇOS SINAPI'!$A:$D,2,0),IF(D190=\"ORSE\",VLOOKUP(E190,'[1]SERVIÇOS ORSE'!$A:$D,2,0),IF(D190=\"SEINFRA\",VLOOKUP(E190,'[1]SERVIÇOS SEINFRA'!$A:$D,2,0)))),IF(C190=\"INSUMO\",IF(D190=\"SINAPI\",VLOOKUP(E190,'[1]INSUMOS SINAPI'!$A:$D,2,0),IF(D190=\"ORSE\",VLOOKUP(E190,'[1]INSUMOS ORSE'!$A:$D,2,0),IF(D190=\"SEINFRA\",VLOOKUP(E190,'[1]INSUMOS SEINFRA'!$A:$D,2,0),)))))","v":"CAPTOR COM BASE DE FIXAÇÃO HORIZONTAL 3/8\" X 400MM (PÁRA-RAIO)"},{"$f":"IF(C190=\"SERVIÇO\",IF(D190=\"SINAPI\",VLOOKUP(E190,'[1]SERVIÇOS SINAPI'!$A:$D,3,0),IF(D190=\"ORSE\",VLOOKUP(E190,'[1]SERVIÇOS ORSE'!$A:$D,3,0),IF(D190=\"SEINFRA\",VLOOKUP(E190,'[1]SERVIÇOS SEINFRA'!$A:$D,3,0)))),IF(C190=\"INSUMO\",IF(D190=\"SINAPI\",VLOOKUP(E190,'[1]INSUMOS SINAPI'!$A:$D,3,0),IF(D190=\"ORSE\",VLOOKUP(E190,'[1]INSUMOS ORSE'!$A:$D,3,0),IF(D190=\"SEINFRA\",VLOOKUP(E190,'[1]INSUMOS SEINFRA'!$A:$D,3,0),)))))","v":"UN"},{"$f":"'[1]Memória de Cálculo'!$L$1040*$G$7","v":6},{"$f":"IF(C190=\"SERVIÇO\",IF(D190=\"SINAPI\",VLOOKUP(E190,'[1]SERVIÇOS SINAPI'!$A:$D,4,0),IF(D190=\"ORSE\",VLOOKUP(E190,'[1]SERVIÇOS ORSE'!$A:$D,4,0),IF(D190=\"SEINFRA\",VLOOKUP(E190,'[1]SERVIÇOS SEINFRA'!$A:$D,4,0)))),IF(C190=\"INSUMO\",IF(D190=\"SINAPI\",VLOOKUP(E190,'[1]INSUMOS SINAPI'!$A:$D,4,0),IF(D190=\"ORSE\",VLOOKUP(E190,'[1]INSUMOS ORSE'!$A:$D,4,0),IF(D190=\"SEINFRA\",VLOOKUP(E190,'[1]INSUMOS SEINFRA'!$A:$D,4,0),)))))","v":16.18},18.03,108.18,5]
[null,"2.9.6","INSUMO","ORSE",6779,{"$f":"IF(C191=\"SERVIÇO\",IF(D191=\"SINAPI\",VLOOKUP(E191,'[1]SERVIÇOS SINAPI'!$A:$D,2,0),IF(D191=\"ORSE\",VLOOKUP(E191,'[1]SERVIÇOS ORSE'!$A:$D,2,0),IF(D191=\"SEINFRA\",VLOOKUP(E191,'[1]SERVIÇOS SEINFRA'!$A:$D,2,0)))),IF(C191=\"INSUMO\",IF(D191=\"SINAPI\",VLOOKUP(E191,'[1]INSUMOS SINAPI'!$A:$D,2,0),IF(D191=\"ORSE\",VLOOKUP(E191,'[1]INSUMOS ORSE'!$A:$D,2,0),IF(D191=\"SEINFRA\",VLOOKUP(E191,'[1]INSUMOS SEINFRA'!$A:$D,2,0),)))))","v":"SINALIZADOR DUPLO C/ CÉLULA PARA MASTRO (PÁRA-RAIO)"},{"$f":"IF(C191=\"SERVIÇO\",IF(D191=\"SINAPI\",VLOOKUP(E191,'[1]SERVIÇOS SINAPI'!$A:$D,3,0),IF(D191=\"ORSE\",VLOOKUP(E191,'[1]SERVIÇOS ORSE'!$A:$D,3,0),IF(D191=\"SEINFRA\",VLOOKUP(E191,'[1]SERVIÇOS SEINFRA'!$A:$D,3,0)))),IF(C191=\"INSUMO\",IF(D191=\"SINAPI\",VLOOKUP(E191,'[1]INSUMOS SINAPI'!$A:$D,3,0),IF(D191=\"ORSE\",VLOOKUP(E191,'[1]INSUMOS ORSE'!$A:$D,3,0),IF(D191=\"SEINFRA\",VLOOKUP(E191,'[1]INSUMOS SEINFRA'!$A:$D,3,0),)))))","v":"UN"},{"$f":"'[1]Memória de Cálculo'!$L$1044*$G$7","v":6},{"$f":"IF(C191=\"SERVIÇO\",IF(D191=\"SINAPI\",VLOOKUP(E191,'[1]SERVIÇOS SINAPI'!$A:$D,4,0),IF(D191=\"ORSE\",VLOOKUP(E191,'[1]SERVIÇOS ORSE'!$A:$D,4,0),IF(D191=\"SEINFRA\",VLOOKUP(E191,'[1]SERVIÇOS SEINFRA'!$A:$D,4,0)))),IF(C191=\"INSUMO\",IF(D191=\"SINAPI\",VLOOKUP(E191,'[1]INSUMOS SINAPI'!$A:$D,4,0),IF(D191=\"ORSE\",VLOOKUP(E191,'[1]INSUMOS ORSE'!$A:$D,4,0),IF(D191=\"SEINFRA\",VLOOKUP(E191,'[1]INSUMOS SEINFRA'!$A:$D,4,0),)))))","v":415},462.43,2774.58,5]
[null,"2.9.7","INSUMO","ORSE",12429,{"$f":"IF(C192=\"SERVIÇO\",IF(D192=\"SINAPI\",VLOOKUP(E192,'[1]SERVIÇOS SINAPI'!$A:$D,2,0),IF(D192=\"ORSE\",VLOOKUP(E192,'[1]SERVIÇOS ORSE'!$A:$D,2,0),IF(D192=\"SEINFRA\",VLOOKUP(E192,'[1]SERVIÇOS SEINFRA'!$A:$D,2,0)))),IF(C192=\"INSUMO\",IF(D192=\"SINAPI\",VLOOKUP(E192,'[1]INSUMOS SINAPI'!$A:$D,2,0),IF(D192=\"ORSE\",VLOOKUP(E192,'[1]INSUMOS ORSE'!$A:$D,2,0),IF(D192=\"SEINFRA\",VLOOKUP(E192,'[1]INSUMOS SEINFRA'!$A:$D,2,0),)))))","v":"SUPORTE GUIA SIMPLES TIPO CURTO CHAPA ENCOSTO COM ROLDANA EM POLIPROPILENO, H = 50 CM (TEL-241)"},{"$f":"IF(C192=\"SERVIÇO\",IF(D192=\"SINAPI\",VLOOKUP(E192,'[1]SERVIÇOS SINAPI'!$A:$D,3,0),IF(D192=\"ORSE\",VLOOKUP(E192,'[1]SERVIÇOS ORSE'!$A:$D,3,0),IF(D192=\"SEINFRA\",VLOOKUP(E192,'[1]SERVIÇOS SEINFRA'!$A:$D,3,0)))),IF(C192=\"INSUMO\",IF(D192=\"SINAPI\",VLOOKUP(E192,'[1]INSUMOS SINAPI'!$A:$D,3,0),IF(D192=\"ORSE\",VLOOKUP(E192,'[1]INSUMOS ORSE'!$A:$D,3,0),IF(D192=\"SEINFRA\",VLOOKUP(E192,'[1]INSUMOS SEINFRA'!$A:$D,3,0),)))))","v":"UN"},{"$f":"'[1]Memória de Cálculo'!$L$1048*$G$7","v":18},{"$f":"IF(C192=\"SERVIÇO\",IF(D192=\"SINAPI\",VLOOKUP(E192,'[1]SERVIÇOS SINAPI'!$A:$D,4,0),IF(D192=\"ORSE\",VLOOKUP(E192,'[1]SERVIÇOS ORSE'!$A:$D,4,0),IF(D192=\"SEINFRA\",VLOOKUP(E192,'[1]SERVIÇOS SEINFRA'!$A:$D,4,0)))),IF(C192=\"INSUMO\",IF(D192=\"SINAPI\",VLOOKUP(E192,'[1]INSUMOS SINAPI'!$A:$D,4,0),IF(D192=\"ORSE\",VLOOKUP(E192,'[1]INSUMOS ORSE'!$A:$D,4,0),IF(D192=\"SEINFRA\",VLOOKUP(E192,'[1]INSUMOS SEINFRA'!$A:$D,4,0),)))))","v":14.99},16.7,300.6,5]
[null,"2.9.8","INSUMO","ORSE",1094,{"$f":"IF(C193=\"SERVIÇO\",IF(D193=\"SINAPI\",VLOOKUP(E193,'[1]SERVIÇOS SINAPI'!$A:$D,2,0),IF(D193=\"ORSE\",VLOOKUP(E193,'[1]SERVIÇOS ORSE'!$A:$D,2,0),IF(D193=\"SEINFRA\",VLOOKUP(E193,'[1]SERVIÇOS SEINFRA'!$A:$D,2,0)))),IF(C193=\"INSUMO\",IF(D193=\"SINAPI\",VLOOKUP(E193,'[1]INSUMOS SINAPI'!$A:$D,2,0),IF(D193=\"ORSE\",VLOOKUP(E193,'[1]INSUMOS ORSE'!$A:$D,2,0),IF(D193=\"SEINFRA\",VLOOKUP(E193,'[1]INSUMOS SEINFRA'!$A:$D,2,0),)))))","v":"HASTE COBREADA COPPERWELD P/ ATERRAMENTO 254 MICR D= 3/4\" X 3,00 M C/CONECTOR"},{"$f":"IF(C193=\"SERVIÇO\",IF(D193=\"SINAPI\",VLOOKUP(E193,'[1]SERVIÇOS SINAPI'!$A:$D,3,0),IF(D193=\"ORSE\",VLOOKUP(E193,'[1]SERVIÇOS ORSE'!$A:$D,3,0),IF(D193=\"SEINFRA\",VLOOKUP(E193,'[1]SERVIÇOS SEINFRA'!$A:$D,3,0)))),IF(C193=\"INSUMO\",IF(D193=\"SINAPI\",VLOOKUP(E193,'[1]INSUMOS SINAPI'!$A:$D,3,0),IF(D193=\"ORSE\",VLOOKUP(E193,'[1]INSUMOS ORSE'!$A:$D,3,0),IF(D193=\"SEINFRA\",VLOOKUP(E193,'[1]INSUMOS SEINFRA'!$A:$D,3,0),)))))","v":"UN"},{"$f":"'[1]Memória de Cálculo'!$L$1052*$G$7","v":12},{"$f":"IF(C193=\"SERVIÇO\",IF(D193=\"SINAPI\",VLOOKUP(E193,'[1]SERVIÇOS SINAPI'!$A:$D,4,0),IF(D193=\"ORSE\",VLOOKUP(E193,'[1]SERVIÇOS ORSE'!$A:$D,4,0),IF(D193=\"SEINFRA\",VLOOKUP(E193,'[1]SERVIÇOS SEINFRA'!$A:$D,4,0)))),IF(C193=\"INSUMO\",IF(D193=\"SINAPI\",VLOOKUP(E193,'[1]INSUMOS SINAPI'!$A:$D,4,0),IF(D193=\"ORSE\",VLOOKUP(E193,'[1]INSUMOS ORSE'!$A:$D,4,0),IF(D193=\"SEINFRA\",VLOOKUP(E193,'[1]INSUMOS SEINFRA'!$A:$D,4,0),)))))","v":112},124.8,1497.6,5]
[null,"2.9.9","INSUMO","ORSE",9723,{"$f":"IF(C194=\"SERVIÇO\",IF(D194=\"SINAPI\",VLOOKUP(E194,'[1]SERVIÇOS SINAPI'!$A:$D,2,0),IF(D194=\"ORSE\",VLOOKUP(E194,'[1]SERVIÇOS ORSE'!$A:$D,2,0),IF(D194=\"SEINFRA\",VLOOKUP(E194,'[1]SERVIÇOS SEINFRA'!$A:$D,2,0)))),IF(C194=\"INSUMO\",IF(D194=\"SINAPI\",VLOOKUP(E194,'[1]INSUMOS SINAPI'!$A:$D,2,0),IF(D194=\"ORSE\",VLOOKUP(E194,'[1]INSUMOS ORSE'!$A:$D,2,0),IF(D194=\"SEINFRA\",VLOOKUP(E194,'[1]INSUMOS SEINFRA'!$A:$D,2,0),)))))","v":"TAMPA REFORÇADA EM FERRO FUNDIDO D=300MM, C/ESCOTILHA QUADRADA E ARTICULADA,  P/CX.ATERRAMENTO, REF:TEL-536 OU SIMILAR (SPDA)"},{"$f":"IF(C194=\"SERVIÇO\",IF(D194=\"SINAPI\",VLOOKUP(E194,'[1]SERVIÇOS SINAPI'!$A:$D,3,0),IF(D194=\"ORSE\",VLOOKUP(E194,'[1]SERVIÇOS ORSE'!$A:$D,3,0),IF(D194=\"SEINFRA\",VLOOKUP(E194,'[1]SERVIÇOS SEINFRA'!$A:$D,3,0)))),IF(C194=\"INSUMO\",IF(D194=\"SINAPI\",VLOOKUP(E194,'[1]INSUMOS SINAPI'!$A:$D,3,0),IF(D194=\"ORSE\",VLOOKUP(E194,'[1]INSUMOS ORSE'!$A:$D,3,0),IF(D194=\"SEINFRA\",VLOOKUP(E194,'[1]INSUMOS SEINFRA'!$A:$D,3,0),)))))","v":"UN"},{"$f":"'[1]Memória de Cálculo'!$L$1056*$G$7","v":12},{"$f":"IF(C194=\"SERVIÇO\",IF(D194=\"SINAPI\",VLOOKUP(E194,'[1]SERVIÇOS SINAPI'!$A:$D,4,0),IF(D194=\"ORSE\",VLOOKUP(E194,'[1]SERVIÇOS ORSE'!$A:$D,4,0),IF(D194=\"SEINFRA\",VLOOKUP(E194,'[1]SERVIÇOS SEINFRA'!$A:$D,4,0)))),IF(C194=\"INSUMO\",IF(D194=\"SINAPI\",VLOOKUP(E194,'[1]INSUMOS SINAPI'!$A:$D,4,0),IF(D194=\"ORSE\",VLOOKUP(E194,'[1]INSUMOS ORSE'!$A:$D,4,0),IF(D194=\"SEINFRA\",VLOOKUP(E194,'[1]INSUMOS SEINFRA'!$A:$D,4,0),)))))","v":169.89},189.31,2271.72,5]
[null,"2.9.10","INSUMO","ORSE",9722,{"$f":"IF(C195=\"SERVIÇO\",IF(D195=\"SINAPI\",VLOOKUP(E195,'[1]SERVIÇOS SINAPI'!$A:$D,2,0),IF(D195=\"ORSE\",VLOOKUP(E195,'[1]SERVIÇOS ORSE'!$A:$D,2,0),IF(D195=\"SEINFRA\",VLOOKUP(E195,'[1]SERVIÇOS SEINFRA'!$A:$D,2,0)))),IF(C195=\"INSUMO\",IF(D195=\"SINAPI\",VLOOKUP(E195,'[1]INSUMOS SINAPI'!$A:$D,2,0),IF(D195=\"ORSE\",VLOOKUP(E195,'[1]INSUMOS ORSE'!$A:$D,2,0),IF(D195=\"SEINFRA\",VLOOKUP(E195,'[1]INSUMOS SEINFRA'!$A:$D,2,0),)))))","v":"CORPO DA CAIXA DE INSPEÇÃO EM PVC P/ATERRAMENTO D=300MM, REDONDA, H=300MM, RE F: TEL-552 OU SIMILAR (SPDA)"},{"$f":"IF(C195=\"SERVIÇO\",IF(D195=\"SINAPI\",VLOOKUP(E195,'[1]SERVIÇOS SINAPI'!$A:$D,3,0),IF(D195=\"ORSE\",VLOOKUP(E195,'[1]SERVIÇOS ORSE'!$A:$D,3,0),IF(D195=\"SEINFRA\",VLOOKUP(E195,'[1]SERVIÇOS SEINFRA'!$A:$D,3,0)))),IF(C195=\"INSUMO\",IF(D195=\"SINAPI\",VLOOKUP(E195,'[1]INSUMOS SINAPI'!$A:$D,3,0),IF(D195=\"ORSE\",VLOOKUP(E195,'[1]INSUMOS ORSE'!$A:$D,3,0),IF(D195=\"SEINFRA\",VLOOKUP(E195,'[1]INSUMOS SEINFRA'!$A:$D,3,0),)))))","v":"UN"},{"$f":"'[1]Memória de Cálculo'!$L$1060*$G$7","v":12},{"$f":"IF(C195=\"SERVIÇO\",IF(D195=\"SINAPI\",VLOOKUP(E195,'[1]SERVIÇOS SINAPI'!$A:$D,4,0),IF(D195=\"ORSE\",VLOOKUP(E195,'[1]SERVIÇOS ORSE'!$A:$D,4,0),IF(D195=\"SEINFRA\",VLOOKUP(E195,'[1]SERVIÇOS SEINFRA'!$A:$D,4,0)))),IF(C195=\"INSUMO\",IF(D195=\"SINAPI\",VLOOKUP(E195,'[1]INSUMOS SINAPI'!$A:$D,4,0),IF(D195=\"ORSE\",VLOOKUP(E195,'[1]INSUMOS ORSE'!$A:$D,4,0),IF(D195=\"SEINFRA\",VLOOKUP(E195,'[1]INSUMOS SEINFRA'!$A:$D,4,0),)))))","v":26.6},29.64,355.68,4]
[null,"2.9.11","INSUMO","SINAPI",868,{"$f":"IF(C196=\"SERVIÇO\",IF(D196=\"SINAPI\",VLOOKUP(E196,'[1]SERVIÇOS SINAPI'!$A:$D,2,0),IF(D196=\"ORSE\",VLOOKUP(E196,'[1]SERVIÇOS ORSE'!$A:$D,2,0),IF(D196=\"SEINFRA\",VLOOKUP(E196,'[1]SERVIÇOS SEINFRA'!$A:$D,2,0)))),IF(C196=\"INSUMO\",IF(D196=\"SINAPI\",VLOOKUP(E196,'[1]INSUMOS SINAPI'!$A:$D,2,0),IF(D196=\"ORSE\",VLOOKUP(E196,'[1]INSUMOS ORSE'!$A:$D,2,0),IF(D196=\"SEINFRA\",VLOOKUP(E196,'[1]INSUMOS SEINFRA'!$A:$D,2,0),)))))","v":"CABO DE COBRE NU 25 MM2 MEIO-DURO                                                                                                                                                                                                                                                                                                                                                                                                                                                                         "},{"$f":"IF(C196=\"SERVIÇO\",IF(D196=\"SINAPI\",VLOOKUP(E196,'[1]SERVIÇOS SINAPI'!$A:$D,3,0),IF(D196=\"ORSE\",VLOOKUP(E196,'[1]SERVIÇOS ORSE'!$A:$D,3,0),IF(D196=\"SEINFRA\",VLOOKUP(E196,'[1]SERVIÇOS SEINFRA'!$A:$D,3,0)))),IF(C196=\"INSUMO\",IF(D196=\"SINAPI\",VLOOKUP(E196,'[1]INSUMOS SINAPI'!$A:$D,3,0),IF(D196=\"ORSE\",VLOOKUP(E196,'[1]INSUMOS ORSE'!$A:$D,3,0),IF(D196=\"SEINFRA\",VLOOKUP(E196,'[1]INSUMOS SEINFRA'!$A:$D,3,0),)))))","v":"M     "},{"$f":"'[1]Memória de Cálculo'!$L$1064*$G$7","v":36},{"$f":"IF(C196=\"SERVIÇO\",IF(D196=\"SINAPI\",VLOOKUP(E196,'[1]SERVIÇOS SINAPI'!$A:$D,4,0),IF(D196=\"ORSE\",VLOOKUP(E196,'[1]SERVIÇOS ORSE'!$A:$D,4,0),IF(D196=\"SEINFRA\",VLOOKUP(E196,'[1]SERVIÇOS SEINFRA'!$A:$D,4,0)))),IF(C196=\"INSUMO\",IF(D196=\"SINAPI\",VLOOKUP(E196,'[1]INSUMOS SINAPI'!$A:$D,4,0),IF(D196=\"ORSE\",VLOOKUP(E196,'[1]INSUMOS ORSE'!$A:$D,4,0),IF(D196=\"SEINFRA\",VLOOKUP(E196,'[1]INSUMOS SEINFRA'!$A:$D,4,0),)))))","v":28.17},31.39,1130.04,5]
[null,"2.10","INSTALAÇÃO DA EXTRUTURA DOS BOX DE CRIAÇÃO",{"$nulls":7},{"$f":"SUM(K198:K203)","v":125864.17}]
[null,"2.10.1","SERVIÇO","CODEVASF",{"$f":"[1]Composições!I146","v":"COMPO. 10"},"COCHO TIPO BEBEDOURO PARA CAPRINOS E OVINOS, PRODUZIDO EM PLÁSTICO INDUSTRIAL, PROVIDO DE POTE DE ÁGUA COM CAPACIDADE DE 5 LITROS, ABASTECIMENTO AUTOMÁTICO MEDIANTE BOIA DE NÍVEL REGULÁVEL COM ROSCA DE 1/2”, PROTEÇÃO DA BOIA EM AÇO GALVANIZADO, BORDAS ABAULADAS PARA MAIOR CONFORTO DO AMINAL, INCLUSO ADAPTADORES DE ENTRADA, SAÍDA FORNECIDO E INSTALDO.",{"$f":"[1]Composições!I161","v":"M²"},{"$f":"'[1]Memória de Cálculo'!$L$1069*$G$7","v":72},{"$f":"[1]Composições!$I$158","v":141.68},{"$f":"IF(C198=\"SERVIÇO\",I198*(1+$I$8),IF(C198=\"INSUMO\",(I198*(1+$K$8))))","v":174.97},{"$f":"J198*H198","v":12597.84},4,null,{"$f":"H198*J198","v":12597.84}]
[null,"2.10.2","SERVIÇO","CODEVASF",{"$f":"[1]Composições!I162","v":"COMPO. 11"},{"$f":"[1]Composições!E162","v":"PORTEIRA DE MADEIRA PARA CURRAL EM RÊGUA DE MADEIRA 10 x 2,5 CM, INCLUSIVE DOBRADIÇAS, FORNECIMENTO E INSTALAÇÃO."},{"$f":"[1]Composições!I161","v":"M²"},{"$f":"'[1]Memória de Cálculo'!$L$1075*$G$7","v":224.4},{"$f":"[1]Composições!I178","v":255.65},315.73,{"$f":"J199*H199","v":70849.81},2]
[null,"2.10.3","SERVIÇO","SEINFRA","C0741",{"$f":"IF(C200=\"SERVIÇO\",IF(D200=\"SINAPI\",VLOOKUP(E200,'[1]SERVIÇOS SINAPI'!$A:$D,2,0),IF(D200=\"ORSE\",VLOOKUP(E200,'[1]SERVIÇOS ORSE'!$A:$D,2,0),IF(D200=\"SEINFRA\",VLOOKUP(E200,'[1]SERVIÇOS SEINFRA'!$A:$D,2,0)))),IF(C200=\"INSUMO\",IF(D200=\"SINAPI\",VLOOKUP(E200,'[1]INSUMOS SINAPI'!$A:$D,2,0),IF(D200=\"ORSE\",VLOOKUP(E200,'[1]INSUMOS ORSE'!$A:$D,2,0),IF(D200=\"SEINFRA\",VLOOKUP(E200,'[1]INSUMOS SEINFRA'!$A:$D,2,0),)))))","v":"CERCA DE MADEIRA C/ TRAVESSAS DE MADEIRA"},{"$f":"IF(C200=\"SERVIÇO\",IF(D200=\"SINAPI\",VLOOKUP(E200,'[1]SERVIÇOS SINAPI'!$A:$D,3,0),IF(D200=\"ORSE\",VLOOKUP(E200,'[1]SERVIÇOS ORSE'!$A:$D,3,0),IF(D200=\"SEINFRA\",VLOOKUP(E200,'[1]SERVIÇOS SEINFRA'!$A:$D,3,0)))),IF(C200=\"INSUMO\",IF(D200=\"SINAPI\",VLOOKUP(E200,'[1]INSUMOS SINAPI'!$A:$D,3,0),IF(D200=\"ORSE\",VLOOKUP(E200,'[1]INSUMOS ORSE'!$A:$D,3,0),IF(D200=\"SEINFRA\",VLOOKUP(E200,'[1]INSUMOS SEINFRA'!$A:$D,3,0),)))))","v":"M²"},{"$f":"'[1]Memória de Cálculo'!$L$1081*$G$7","v":148.38},{"$f":"IF(C200=\"SERVIÇO\",IF(D200=\"SINAPI\",VLOOKUP(E200,'[1]SERVIÇOS SINAPI'!$A:$D,4,0),IF(D200=\"ORSE\",VLOOKUP(E200,'[1]SERVIÇOS ORSE'!$A:$D,4,0),IF(D200=\"SEINFRA\",VLOOKUP(E200,'[1]SERVIÇOS SEINFRA'!$A:$D,4,0)))),IF(C200=\"INSUMO\",IF(D200=\"SINAPI\",VLOOKUP(E200,'[1]INSUMOS SINAPI'!$A:$D,4,0),IF(D200=\"ORSE\",VLOOKUP(E200,'[1]INSUMOS ORSE'!$A:$D,4,0),IF(D200=\"SEINFRA\",VLOOKUP(E200,'[1]INSUMOS SEINFRA'!$A:$D,4,0),)))))","v":184.05},227.3,33726.77,2]
[null,"2.10.4","INSUMO","SINAPI",368,{"$f":"IF(C201=\"SERVIÇO\",IF(D201=\"SINAPI\",VLOOKUP(E201,'[1]SERVIÇOS SINAPI'!$A:$D,2,0),IF(D201=\"ORSE\",VLOOKUP(E201,'[1]SERVIÇOS ORSE'!$A:$D,2,0),IF(D201=\"SEINFRA\",VLOOKUP(E201,'[1]SERVIÇOS SEINFRA'!$A:$D,2,0)))),IF(C201=\"INSUMO\",IF(D201=\"SINAPI\",VLOOKUP(E201,'[1]INSUMOS SINAPI'!$A:$D,2,0),IF(D201=\"ORSE\",VLOOKUP(E201,'[1]INSUMOS ORSE'!$A:$D,2,0),IF(D201=\"SEINFRA\",VLOOKUP(E201,'[1]INSUMOS SEINFRA'!$A:$D,2,0),)))))","v":"AREIA PARA ATERRO - POSTO JAZIDA/FORNECEDOR (RETIRADO NA JAZIDA, SEM TRANSPORTE)                                                                                                                                                                                                                                                                                                                                                                                                                          "},{"$f":"IF(C201=\"SERVIÇO\",IF(D201=\"SINAPI\",VLOOKUP(E201,'[1]SERVIÇOS SINAPI'!$A:$D,3,0),IF(D201=\"ORSE\",VLOOKUP(E201,'[1]SERVIÇOS ORSE'!$A:$D,3,0),IF(D201=\"SEINFRA\",VLOOKUP(E201,'[1]SERVIÇOS SEINFRA'!$A:$D,3,0)))),IF(C201=\"INSUMO\",IF(D201=\"SINAPI\",VLOOKUP(E201,'[1]INSUMOS SINAPI'!$A:$D,3,0),IF(D201=\"ORSE\",VLOOKUP(E201,'[1]INSUMOS ORSE'!$A:$D,3,0),IF(D201=\"SEINFRA\",VLOOKUP(E201,'[1]INSUMOS SEINFRA'!$A:$D,3,0),)))))","v":" M³    "},{"$f":"'[1]Memória de Cálculo'!$L$1085*$G$7","v":57.72},{"$f":"IF(C201=\"SERVIÇO\",IF(D201=\"SINAPI\",VLOOKUP(E201,'[1]SERVIÇOS SINAPI'!$A:$D,4,0),IF(D201=\"ORSE\",VLOOKUP(E201,'[1]SERVIÇOS ORSE'!$A:$D,4,0),IF(D201=\"SEINFRA\",VLOOKUP(E201,'[1]SERVIÇOS SEINFRA'!$A:$D,4,0)))),IF(C201=\"INSUMO\",IF(D201=\"SINAPI\",VLOOKUP(E201,'[1]INSUMOS SINAPI'!$A:$D,4,0),IF(D201=\"ORSE\",VLOOKUP(E201,'[1]INSUMOS ORSE'!$A:$D,4,0),IF(D201=\"SEINFRA\",VLOOKUP(E201,'[1]INSUMOS SEINFRA'!$A:$D,4,0),)))))","v":71.25},79.39,4582.39,2]
[null,"2.10.5","SERVIÇO","ORSE",5072,{"$f":"IF(C202=\"SERVIÇO\",IF(D202=\"SINAPI\",VLOOKUP(E202,'[1]SERVIÇOS SINAPI'!$A:$D,2,0),IF(D202=\"ORSE\",VLOOKUP(E202,'[1]SERVIÇOS ORSE'!$A:$D,2,0),IF(D202=\"SEINFRA\",VLOOKUP(E202,'[1]SERVIÇOS SEINFRA'!$A:$D,2,0)))),IF(C202=\"INSUMO\",IF(D202=\"SINAPI\",VLOOKUP(E202,'[1]INSUMOS SINAPI'!$A:$D,2,0),IF(D202=\"ORSE\",VLOOKUP(E202,'[1]INSUMOS ORSE'!$A:$D,2,0),IF(D202=\"SEINFRA\",VLOOKUP(E202,'[1]INSUMOS SEINFRA'!$A:$D,2,0),)))))","v":"TRANSPORTE LOCAL COM CAMINHÃO BASCULANTE DE 10M³, EM RODOVIA PAVIMENTADA (CON STRUÇÃO) DENSIDADE=1,5T/M³"},{"$f":"IF(C202=\"SERVIÇO\",IF(D202=\"SINAPI\",VLOOKUP(E202,'[1]SERVIÇOS SINAPI'!$A:$D,3,0),IF(D202=\"ORSE\",VLOOKUP(E202,'[1]SERVIÇOS ORSE'!$A:$D,3,0),IF(D202=\"SEINFRA\",VLOOKUP(E202,'[1]SERVIÇOS SEINFRA'!$A:$D,3,0)))),IF(C202=\"INSUMO\",IF(D202=\"SINAPI\",VLOOKUP(E202,'[1]INSUMOS SINAPI'!$A:$D,3,0),IF(D202=\"ORSE\",VLOOKUP(E202,'[1]INSUMOS ORSE'!$A:$D,3,0),IF(D202=\"SEINFRA\",VLOOKUP(E202,'[1]INSUMOS SEINFRA'!$A:$D,3,0),)))))","v":"TKM"},{"$f":"'[1]Memória de Cálculo'!$L$1089*$G$7","v":461.76},{"$f":"IF(C202=\"SERVIÇO\",IF(D202=\"SINAPI\",VLOOKUP(E202,'[1]SERVIÇOS SINAPI'!$A:$D,4,0),IF(D202=\"ORSE\",VLOOKUP(E202,'[1]SERVIÇOS ORSE'!$A:$D,4,0),IF(D202=\"SEINFRA\",VLOOKUP(E202,'[1]SERVIÇOS SEINFRA'!$A:$D,4,0)))),IF(C202=\"INSUMO\",IF(D202=\"SINAPI\",VLOOKUP(E202,'[1]INSUMOS SINAPI'!$A:$D,4,0),IF(D202=\"ORSE\",VLOOKUP(E202,'[1]INSUMOS ORSE'!$A:$D,4,0),IF(D202=\"SEINFRA\",VLOOKUP(E202,'[1]INSUMOS SEINFRA'!$A:$D,4,0),)))))","v":1.01},1.25,577.2,2]
[null,"2.10.6","INSUMO","SEINFRA","I0448",{"$f":"IF(C203=\"SERVIÇO\",IF(D203=\"SINAPI\",VLOOKUP(E203,'[1]SERVIÇOS SINAPI'!$A:$D,2,0),IF(D203=\"ORSE\",VLOOKUP(E203,'[1]SERVIÇOS ORSE'!$A:$D,2,0),IF(D203=\"SEINFRA\",VLOOKUP(E203,'[1]SERVIÇOS SEINFRA'!$A:$D,2,0)))),IF(C203=\"INSUMO\",IF(D203=\"SINAPI\",VLOOKUP(E203,'[1]INSUMOS SINAPI'!$A:$D,2,0),IF(D203=\"ORSE\",VLOOKUP(E203,'[1]INSUMOS ORSE'!$A:$D,2,0),IF(D203=\"SEINFRA\",VLOOKUP(E203,'[1]INSUMOS SEINFRA'!$A:$D,2,0),)))))","v":"CALHA DE CONCRETO ARMADO D=0,40M"},{"$f":"IF(C203=\"SERVIÇO\",IF(D203=\"SINAPI\",VLOOKUP(E203,'[1]SERVIÇOS SINAPI'!$A:$D,3,0),IF(D203=\"ORSE\",VLOOKUP(E203,'[1]SERVIÇOS ORSE'!$A:$D,3,0),IF(D203=\"SEINFRA\",VLOOKUP(E203,'[1]SERVIÇOS SEINFRA'!$A:$D,3,0)))),IF(C203=\"INSUMO\",IF(D203=\"SINAPI\",VLOOKUP(E203,'[1]INSUMOS SINAPI'!$A:$D,3,0),IF(D203=\"ORSE\",VLOOKUP(E203,'[1]INSUMOS ORSE'!$A:$D,3,0),IF(D203=\"SEINFRA\",VLOOKUP(E203,'[1]INSUMOS SEINFRA'!$A:$D,3,0),)))))","v":"M"},{"$f":"'[1]Memória de Cálculo'!$L$1093*$G$7","v":72},{"$f":"IF(C203=\"SERVIÇO\",IF(D203=\"SINAPI\",VLOOKUP(E203,'[1]SERVIÇOS SINAPI'!$A:$D,4,0),IF(D203=\"ORSE\",VLOOKUP(E203,'[1]SERVIÇOS ORSE'!$A:$D,4,0),IF(D203=\"SEINFRA\",VLOOKUP(E203,'[1]SERVIÇOS SEINFRA'!$A:$D,4,0)))),IF(C203=\"INSUMO\",IF(D203=\"SINAPI\",VLOOKUP(E203,'[1]INSUMOS SINAPI'!$A:$D,4,0),IF(D203=\"ORSE\",VLOOKUP(E203,'[1]INSUMOS ORSE'!$A:$D,4,0),IF(D203=\"SEINFRA\",VLOOKUP(E203,'[1]INSUMOS SEINFRA'!$A:$D,4,0),)))))","v":44},49.03,3530.16,2]
[null,"CUSTO TOTAL DA OBRA",{"$nulls":8},{"$f":"K11+K20","v":2616232.32}]
[{"$nulls":13},"PARÂMETROS PARA REAJUSTAMENTO DE PREÇOS"]
[{"$nulls":13},"N1","N2","N3","N4","N5","N6","N7","TOTAL"]
[]
[{"$nulls":10},4794108.84,null,null,{"$f":"SUMIF($L$12:$L$204,1,$K$12:$K$204)","v":71382.09},{"$f":"SUMIF($L$12:$L$204,2,$K$12:$K$204)","v":1471890.14},{"$f":"SUMIF($L$12:$L$204,3,$K$12:$K$204)","v":151537.28},{"$f":"SUMIF($L$12:$L$204,4,$K$12:$K$204)","v":39775.47},{"$f":"SUMIF($L$12:$L$204,5,$K$12:$K$204)","v":501462.04},{"$f":"SUMIF($L$12:$L$204,6,$K$12:$K$204)","v":283115.08},{"$f":"SUMIF($L$12:$L$204,7,$K$12:$K$204)","v":97070.22},{"$f":"SUM(N208:T208)","v":2616232.32}]
[{"$nulls":10},2210801.25]
[{"$nulls":10},7004910.09]
[{"$nulls":13},{"$f":"N208/$K$204","v":0.0273},0.5626,0.0579,0.0152,0.1917,0.1082,0.0371,{"$f":"SUM(N211:T211)","v":1}]
[null,"OBRA DA ADMINISTRAÇÃO LOCAL",null,null,null,{"$f":"J16","v":103905.24}]
[null,"OBRA SEM ADL",null,null,null,{"$f":"K204-F212","v":2512327.08}]
[{"$nulls":4},"REFLEXO ",{"$f":"F212/F213","v":0.0414},{"$nulls":4},2130287.27]
[{"$nulls":10},{"$f":"K204-K214","v":485945.05}]
[{"$nulls":10},{"$f":"(K204-K214)/K204*100","v":18.57}]
[{"$nulls":10},{"$f":"K214*1.1","v":2343316}]
[null,null,"TCU",null,"VALOR DA ADM com BDI"]
[null,null,"1 QUARTIL",0.0413,{"$f":"D219*$F$213","v":103759.11},{"$f":"E219/(1+$J$3)","v":103759.11}]
[null,null,"2 QUARTIL",0.0774,194454.12,{"$f":"E220/(1+$J$3)","v":194454.12}]
[null,null,"3 QUARTIL",0.1089,273592.42,{"$f":"E221/(1+$J$3)","v":273592.42}]